Workbook

Sheet alt (hidden)
A1: Schützengarten Bestell-Liste Heimlieferservice
A2: Kategorie | B2: Artikel | C2: Artikelbezeichnung | D2: EH | E2: Preis / Fl. * | F2: Preis pro Einheit * | G2: Ich bestelle (Einheiten) | H2: Preis total
A3: Biere | B3: 01105 | C3: Schützengarten Lager hell 50 cl MW Harass | D3: 20 | E3: 1.68 | F3: =D3*E3 -> 33.6 | G3: 0 | H3: =F3*G3 -> 0
B4: 01117 | C4: Schützengarten lager hell 50 cl Dosen | D4: 24 | E4: 1.55 | F4: 37.2 | G4: 0 | H4: =F4*G4 -> 0
B5: 01938 | C5: Klosterbräu Amberbier 33 cl MW Bügelflasche Harass | D5: 20 | E5: 1.7 | F5: 34 | G5: 0 | H5: 0
B6: 01939 | C6: Klosterbräu Amberbier 50 cl Dosen | D6: 24 | E6: 1.65 | F6: 39.6 | G6: 0 | H6: 0
B7: 01576 | C7: Säntisbier naturtrüb 33 cl MW Bügelflasche Harass | D7: 20 | E7: 1.7 | F7: 34 | G7: 0 | H7: 0
B8: 01556 | C8: India Pale Ale 33 cl EW Harass | D8: 10 | E8: 2.35 | F8: 23.5 | G8: 0 | H8: 0
B9: 01548 | C9: Gallus 612 Old Style Ale 33 cl EW Harass | D9: 10 | E9: 2.35 | F9: 23.5 | G9: 0 | H9: 0
B10: 01819 | C10: Schützengarten Zitronen Panaché 33 cl EW Harass | D10: 10 | E10: 1.38 | F10: 13.8 | G10: 0 | H10: 0
B11: 02354 | C11: Schützengarten Alkoholfrei 33 cl MW Harass | D11: 24 | E11: 1.34 | F11: 32.16 | G11: 0 | H11: 0
B12: 02359 | C12: Schützengarten Grapefruit alkoholfrei 33 cl EW Harass | D12: 10 | E12: 1.38 | F12: 13.8 | G12: 0 | H12: 0
A14: Energydrinks | B14: 024440 | C14: Red Bull 25 cl Dosen | D14: 24 | E14: 1.95 | F14: =D14*E14 -> 46.8 | G14: 0 | H14: 0
A16: Mineralwasser | B16: 013087 | C16: Appenzell Mineral laut 150 cl PET Harass | D16: 6 | E16: 1.85 | F16: =D16*E16 -> 11.1 | G16: 0 | H16: 0
B17: 013089 | C17: Appenzell Mineral leise 150 cl PET Harass | D17: 6 | E17: 1.85 | F17: =D17*E17 -> 11.1 | G17: 0 | H17: 0
B18: 013086 | C18: Appenzell Mineral still 150 cl PET Harass | D18: 6 | E18: 1.85 | F18: =D18*E18 -> 11.1 | G18: 0 | H18: 0
A20: Süssgetränke | B20: 024223 | C20: Coca Cola 150 cl PET Harass | D20: 6 | E20: 2.75 | F20: =D20*E20 -> 16.5 | G20: 0 | H20: 0
B21: 024283 | C21: Coca Cola zero 150 cl PET Harass | D21: 6 | E21: 2.75 | F21: 16.5 | G21: 0 | H21: 0
B22: 024133 | C22: Sprite 150 cl PET Harass | D22: 6 | E22: 2.7 | F22: 16.2 | G22: 0 | H22: 0
B23: 024164 | C23: Fanta Orange 150 cl PET Harass | D23: 6 | E23: 2.7 | F23: 16.2 | G23: 0 | H23: 0
B24: 024038 | C24: Elmer Citro 150 cl PET Harass | D24: 6 | E24: 2.65 | F24: 15.9 | G24: 0 | H24: 0
B25: 024617 | C25: Sinalco Original 150 cl PET Harass | D25: 6 | E25: 2.75 | F25: 16.5 | G25: 0 | H25: 0
B26: 024552 | C26: Rivella Rot 150 cl PET Harass | D26: 6 | E26: 2.9 | F26: 17.4 | G26: 0 | H26: 0
B27: 024534 | C27: Rivella Blau 150 cl PET Harass | D27: 6 | E27: 2.9 | F27: 17.4 | G27: 0 | H27: 0
B28: 025384 | C28: Möhl Shorley 150 cl PET Harass | D28: 6 | E28: 2.8 | F28: 16.8 | G28: 0 | H28: 0
B29: 024304 | C29: Fusetea Lemon Lemongrass 150 cl PET Harass | D29: 6 | E29: 2.6 | F29: 15.6 | G29: 0 | H29: 0
A31: Fruchtsaft | B31: 024840 | C31: Michel Orange Premium 100 cl MW Harass | D31: 6 | E31: 2.9 | F31: =D31*E31 -> 17.4 | G31: 0 | H31: 0
A33: Apfelweine | B33: 025329 | C33: Möhl Saft trüb alkoholfrei 50 cl MW | D33: 15 | E33: 1.95 | F33: =D33*E33 -> 29.25 | G33: 0 | H33: 0
B34: 046224 | C34: Möhl Saft vom Fass trüb 50 cl MW | D34: 15 | E34: 1.95 | F34: =D34*E34 -> 29.25 | G34: 0 | H34: 0
A36: Weine | B36: 057147 | C36: Senza Parole Primitivo Salento IGT 75 cl EW | D36: 6 | E36: 11.65 | F36: =D36*E36 -> 69.9 | G36: 0 | H36: 0
B37: 057453 | C37: Senza Parole Bianco IGT 75 cl EW | D37: 6 | E37: 11.65 | F37: =D37*E37 -> 69.9 | G37: 0 | H37: 0
B38: 050099 | C38: Piacere Rouge VdP Suisse 75 cl EW | D38: 6 | E38: 11.9 | F38: =D38*E38 -> 71.4 | G38: 0 | H38: 0
B39: 050123 | C39: Piacere Blanc VdP Suisse 75 cl EW | D39: 6 | E39: 11.9 | F39: =D39*E39 -> 71.4 | G39: 0 | H39: 0
B40: 057960 | C40: Valpolicella Ripasso Zeni DOC 75 cl EW | D40: 6 | E40: 14.8 | F40: =D40*E40 -> 88.8 | G40: 0 | H40: 0
A42: Weitere Artikel gemäss Preisliste:
A48: Total (exkl. Depot) | H48: =SUM(H3:H40) -> 0
A49: *Preise Privat CHF, inkl. Lieferung im Liefergebiet, inkl. MwSt., exkl. Depot. Satz- und Druckfehler vorbehalten. Preise gemäss Preisliste "Privat 2020".
A52: Bitte vollständig ausfüllen:
A53: Vorname:
A54: Name:
A55: Strasse, Nr.:
A56: PLZ, Ort:
A57: Mobile:
A58: E-Mail:
A60: Für eine Bestellung das Formular speichern und senden an:
A61: logistik@schuetzengarten.ch
A63: Herzlichen Dank für deine Bestellung.
H64: 5.11.2020 / nb

Sheet Bestellformular
A1: Schützengarten Bestellliste Heimliefer-Service
A2: Kategorie | B2: Artikel | C2: Artikelbezeichnung | F2: Einheit | G2: Preis/Fl.* | H2: Preis/Einheit* | I2: Ich bestelle (Einheiten) | J2: Preis total
A3: Schützengarten-Biere | B3: 01105 | C3: Schützengarten Lager hell 50 cl MW Harass | F3: 20 | G3: 1.75 | H3: =F3*G3 -> 35 | I3: 0 | J3: =H3*I3 -> 0
B4: 01110 | C4: Schützengarten Lager hell 50 cl MW Harass | F4: 10 | G4: 1.75 | H4: =F4*G4 -> 17.5 | I4: 0 | J4: =H4*I4 -> 0
B5: 01117 | C5: Schützengarten Lager hell 50 cl Dosen | F5: 24 | G5: 1.8 | H5: =F5*G5 -> 43.2 | I5: 0 | J5: =H5*I5 -> 0
B6: 01161 | C6: Schützengarten Lager hell 33 cl MW Harass | F6: 24 | G6: 1.4 | H6: =F6*G6 -> 33.6 | I6: 0 | J6: =H6*I6 -> 0
B7: 01480 | C7: Edelspez Premium 33 cl MW Harass | F7: 24 | G7: 1.55 | H7: =F7*G7 -> 37.2 | I7: 0 | J7: =H7*I7 -> 0
B8: 01938 | C8: Klosterbräu Amberbier 33 cl MW Bügelflasche Harass | F8: 20 | G8: 1.9 | H8: 38 | I8: 0 | J8: 0
B9: 01939 | C9: Klosterbräu Amberbier 50 cl Dosen | F9: 24 | G9: 2.1 | H9: 50.4 | I9: 0 | J9: 0
B10: 01576 | C10: Säntisbier naturtrüb 33 cl MW Bügelflasche Harass | F10: 20 | G10: 1.9 | H10: 38 | I10: 0 | J10: 0
B11: 01556 | C11: India Pale Ale 33 cl EW Harass | F11: 10 | G11: 2.6 | H11: 26 | I11: 0 | J11: 0
B12: 01548 | C12: Gallus 612 Old Style Ale 33 cl EW Harass | F12: 10 | G12: 2.6 | H12: 26 | I12: 0 | J12: 0
B13: 01819 | C13: Schützengarten Zitronen Panaché 33 cl EW Harass | F13: 10 | G13: 1.55 | H13: 15.5 | I13: 0 | J13: 0
B14: 02354 | C14: Schützengarten Alkoholfrei 33 cl MW Harass | F14: 24 | G14: 1.35 | H14: 32.4 | I14: 0 | J14: 0
B15: 02359 | C15: Schützengarten Grapefruit alkoholfrei 33 cl EW Harass | F15: 10 | G15: 1.55 | H15: 15.5 | I15: 0 | J15: 0
A16: Energydrink | B16: 024440 | C16: Red Bull 25 cl Dosen | F16: 24 | G16: 1.95 | H16: =F16*G16 -> 46.8 | I16: 0 | J16: 0
A17: Mineralwasser | B17: 013087 | C17: Appenzell Mineral laut 150 cl PET Harass | F17: 6 | G17: 1.85 | H17: =F17*G17 -> 11.1 | I17: 0 | J17: 0
B18: 013090 | C18: Appenzell Mineral laut 100 cl MW | F18: 12 | G18: 1.5 | H18: 18 | I18: 0 | J18: 0
B19: 013089 | C19: Appenzell Mineral leise 150 cl PET Harass | F19: 6 | G19: 1.85 | H19: 11.1 | I19: 0 | J19: 0
B20: 013086 | C20: Appenzell Mineral still 150 cl PET Harass | F20: 6 | G20: 1.85 | H20: 11.1 | I20: 0 | J20: 0
B21: 013288 | C21: Henniez Mineral blau ohne KS 150 cl PET Harass | F21: 6 | G21: 1.5 | H21: 9 | I21: 0 | J21: 0
B22: 013199 | C22: Eptinger Mineral blau 150 cl PET Harass | F22: 6 | G22: 1.45 | H22: 8.7 | I22: 0 | J22: 0
B23: 013210 | C23: Eptinger Mineral rot mit KS 100 cl MW | F23: 12 | G23: 1.4 | H23: 16.8 | I23: 0 | J23: 0
B24: 013710 | C24: Valser Mineral prickelnd 150 cl PET Harass | F24: 6 | G24: 1.8 | H24: 10.8 | I24: 0 | J24: 0
B25: 013720 | C25: Valser Mineral prickelnd 100 cl MW Harass | F25: 12 | G25: 1.65 | H25: 19.8 | I25: 0 | J25: 0
B26: 013721 | C26: Valser Mineral Calc./Mag. ohne KS 100 cl MW Harass | F26: 12 | G26: 1.65 | H26: 19.8 | I26: 0 | J26: 0
A27: Süssgetränke | B27: 024223 | C27: Coca Cola 150 cl PET Harass | F27: 6 | G27: 2.75 | H27: =F27*G27 -> 16.5 | I27: 0 | J27: 0
B28: 024283 | C28: Coca Cola zero 150 cl PET Harass | F28: 6 | G28: 2.75 | H28: 16.5 | I28: 0 | J28: 0
B29: 024133 | C29: Sprite 150 cl PET Harass | F29: 6 | G29: 2.7 | H29: 16.2 | I29: 0 | J29: 0
B30: 024486 | C30: Fanta Orange 150 cl PET Six-Pack | F30: 6 | G30: 2.7 | H30: 16.2 | I30: 0 | J30: 0
B31: 024038 | C31: Elmer Citro 150 cl PET Harass | F31: 6 | G31: 2.65 | H31: 15.9 | I31: 0 | J31: 0
B32: 024617 | C32: Sinalco Original 150 cl PET Harass | F32: 6 | G32: 2.6 | H32: 15.6 | I32: 0 | J32: 0
B33: 024552 | C33: Rivella Rot 150 cl PET Harass | F33: 6 | G33: 2.9 | H33: 17.4 | I33: 0 | J33: 0
B34: 024534 | C34: Rivella Blau 150 cl PET Harass | F34: 6 | G34: 2.9 | H34: 17.4 | I34: 0 | J34: 0
B35: 025384 | C35: Möhl Shorley 150 cl PET Harass | F35: 6 | G35: 2.8 | H35: 16.8 | I35: 0 | J35: 0
B36: 024304 | C36: Fusetea Lemon Lemongrass 150 cl PET Harass | F36: 6 | G36: 2.55 | H36: 15.3 | I36: 0 | J36: 0
A37: Fruchtsaft | B37: 024840 | C37: Michel Orange Premium 100 cl MW Harass | F37: 6 | G37: 3.05 | H37: =F37*G37 -> 18.3 | I37: 0 | J37: 0
A38: Apfelweine | B38: 025329 | C38: Möhl Saft trüb alkoholfrei 50 cl MW | F38: 15 | G38: 2.05 | H38: =F38*G38 -> 30.75 | I38: 0 | J38: 0
B39: 046224 | C39: Möhl Saft vom Fass trüb 50 cl MW | F39: 15 | G39: 2.05 | H39: =F39*G39 -> 30.75 | I39: 0 | J39: 0
A40: Weissweine | B40: 057147 | C40: Epesses Cave de Beauvoir Lavaux AOC 50 cl EW Harass | F40: 15 | G40: 12.8 | H40: =F40*G40 -> 192 | I40: 0 | J40: =H40*I40 -> 0
B41: 057815 | C41: Chasselas Cave de Jolimont VdP 100 cl EW Harass | F41: 12 | G41: 8 | H41: 96 | I41: 0 | J41: 0
B42: 057453 | C42: Senza Parole Bianco IGT 75 cl EW | F42: 6 | G42: 12.8 | H42: 76.8 | I42: 0 | J42: 0
A43: Rotweine | B43: 050125 | C43: Silentium Primitivo di Manduria DOC 37.5 cl EW | F43: 6 | G43: 11.6 | H43: 69.6 | I43: 0 | J43: 0
B44: 057147 | C44: Senza Parole Primitivo Salento IGT 75 cl EW | F44: 6 | G44: 12.8 | H44: 76.8 | I44: 0 | J44: 0
B45: 050099 | C45: Piacere Rouge VdP Suisse 75 cl EW | F45: 6 | G45: 12.75 | H45: 76.5 | I45: 0 | J45: 0
B46: 057960 | C46: Ripasso Valpolicella Zeni DOC 75 cl EW | F46: 6 | G46: 14.8 | H46: 88.8 | I46: 0 | J46: 0
B47: Artikel | C47: Hauptkategorie | D47: Unterkategorie | E47: Artikelbezeichnung
A48: Weitere Artikel gemäss Preisliste : | B48: =IF(ISBLANK(E48),"",VLOOKUP(E48,'Artikelcode 90 mit Kategorien'!K:L,2,FALSE)) ->  | C48: Kategorie auswählen | F48: =IF(ISBLANK(E48),"",VLOOKUP(E48,'Artikelcode 90 mit Kategorien'!K:S,5,FALSE)) ->  | G48: =IF(ISBLANK(E48),"",VLOOKUP(E48,'Artikelcode 90 mit Kategorien'!K:S,6,FALSE)) ->  | H48: =IF(ISBLANK(E48),"",G48*F48) ->  | J48: =IF(ISBLANK(I48),"",H48*I48) -> 
B49: =IF(ISBLANK(E49),"",VLOOKUP(E49,'Artikelcode 90 mit Kategorien'!K:L,2,FALSE)) ->  | C49: Kategorie auswählen | F49: =IF(ISBLANK(E49),"",VLOOKUP(E49,'Artikelcode 90 mit Kategorien'!K:S,5,FALSE)) ->  | G49: =IF(ISBLANK(E49),"",VLOOKUP(E49,'Artikelcode 90 mit Kategorien'!K:S,6,FALSE)) ->  | H49: =IF(ISBLANK(E49),"",G49*F49) ->  | J49: =IF(ISBLANK(I49),"",H49*I49) -> 
B50: =IF(ISBLANK(E50),"",VLOOKUP(E50,'Artikelcode 90 mit Kategorien'!K:L,2,FALSE)) ->  | C50: Kategorie auswählen | F50: =IF(ISBLANK(E50),"",VLOOKUP(E50,'Artikelcode 90 mit Kategorien'!K:S,5,FALSE)) ->  | G50: =IF(ISBLANK(E50),"",VLOOKUP(E50,'Artikelcode 90 mit Kategorien'!K:S,6,FALSE)) -> 
B51: =IF(ISBLANK(E51),"",VLOOKUP(E51,'Artikelcode 90 mit Kategorien'!K:L,2,FALSE)) ->  | C51: Kategorie auswählen | F51: =IF(ISBLANK(E51),"",VLOOKUP(E51,'Artikelcode 90 mit Kategorien'!K:S,5,FALSE)) ->  | G51: =IF(ISBLANK(E51),"",VLOOKUP(E51,'Artikelcode 90 mit Kategorien'!K:S,6,FALSE)) -> 
B52: =IF(ISBLANK(E52),"",VLOOKUP(E52,'Artikelcode 90 mit Kategorien'!K:L,2,FALSE)) ->  | C52: Kategorie auswählen | F52: =IF(ISBLANK(E52),"",VLOOKUP(E52,'Artikelcode 90 mit Kategorien'!K:S,5,FALSE)) ->  | G52: =IF(ISBLANK(E52),"",VLOOKUP(E52,'Artikelcode 90 mit Kategorien'!K:S,6,FALSE)) -> 
A53: Total (exkl. Depot) | J53: =SUM(J3:J52) -> 0
A54: *Preise Privat CHF, inkl. Lieferung im Liefergebiet, inkl. MwSt., exkl. Depot.
A55: Preise gemäss
A57: Bitte vollständig ausfüllen:
A58: Vorname/Nachname:
A59: Strasse, Nr.:
A60: PLZ, Ort:
A61: Mobile:
A62: E-Mail:
A63: Zahlungsart: | B63: Auswählen | C63: Bitte Zahlungsart auswählen. Zahlung bei Lieferung.
A64: Liefertermin: | C64: Bitte gebe dein gewünschtes Lieferdatum an.
A65: Lieferzeitfenster: | D65: Lieferungen zwischen 7 - 12 Uhr & 13 - 15 Uhr
A66: Sonstige Notiz für Lieferant:
A68: Für eine Bestellung bitte auf den Button Datei speichern & Bestellung verschicken klicken. Du wirst automatisch zu Outlook weitergeleitet.
A72: Du besitzt kein Outlook? Dann speichere bitte das Formular auf deinem Computer ab und sende es an logistik@schuetzengarten.ch. | G72: <<
A74: Vielen Dank für deine Bestellung.
A75: Hier kannst du weiterstöbern und dich von unseren vielfältigen Bierspezialitäten inspirieren lassen.

Sheet Tabelle4 (hidden)
A1: Hallo - hallo | B1: =SUBSTITUTE(SUBSTITUTE(A1,"-","_")," ","_") -> Hallo___hallo

Sheet Zahlungsart_Lieferzeit (hidden)
A1: Zahlungsart
A2: Karte
A3: Bar
A4: Twint
A5: Auswählen
A18: Lieferzeitfenster: | B18: Von | C18: Bis
B19: von 7 Uhr | C19: bis 9 Uhr
B20: von 8 Uhr | C20: bis 10 Uhr
B21: von 9 Uhr | C21: bis 11 Uhr
B22: von 10 Uhr | C22: bis 12 Uhr
B23: von 11 Uhr | C23: bis 14 Uhr
B24: von 13 Uhr | C24: bis 15 Uhr
B25: von 14 Uhr | C25: Auswählen
B26: Auswählen

Sheet Artikeldropdown (hidden)
A1: Erstes Dropdown Menü | C1: Zweites Dropdown Menü | I1: Drittes Dropdown Menü
A2: Hauptkategorie | C2: Biere | D2: Alkoholfreie Getränke | E2: Alkoholhaltige Getränke | F2: Weine | G2: Verschiedenes | I2: Biere | J2: Biere | K2: Biere | L2: Biere | M2: Biere | N2: Biere | O2: Biere | P2: Biere | Q2: Biere | R2: Alkoholfreie Getränke | S2: Alkoholfreie Getränke | T2: Alkoholfreie Getränke | U2: Alkoholfreie Getränke | V2: Alkoholfreie Getränke | W2: Alkoholfreie Getränke | X2: Alkoholfreie Getränke | Y2: Alkoholfreie Getränke | Z2: Alkoholfreie Getränke | AA2: Alkoholfreie Getränke | AB2: Alkoholfreie Getränke | AC2: Alkoholfreie Getränke | AD2: Alkoholfreie Getränke | AE2: Alkoholfreie Getränke | AF2: Alkoholfreie Getränke | AG2: Alkoholfreie Getränke | AH2: Alkoholfreie Getränke | AI2: Alkoholfreie Getränke | AJ2: Alkoholfreie Getränke | AK2: Alkoholhaltige Getränke | AL2: Weine | AM2: Weine | AN2: Weine | AO2: Weine | AP2: Weine | AQ2: Weine | AR2: Weine | AS2: Weine | AT2: Weine | AU2: Weine | AV2: Weine | AW2: Weine | AX2: Weine | AY2: Weine | AZ2: Weine | BA2: Weine | BB2: Weine | BC2: Weine | BD2: Weine | BE2: Weine | BF2: Weine | BG2: Weine | BH2: Weine | BI2: Weine | BJ2: Weine | BK2: Weine | BL2: Weine | BM2: Weine | BN2: Weine | BO2: Weine | BP2: Weine | BQ2: Weine | BR2: Weine | BS2: Weine | BT2: Weine | BU2: Weine | BV2: Weine | BW2: Verschiedenes | BX2: Verschiedenes | BY2: Verschiedenes
A3: Biere | C3: Schützengarten Lagerbiere | D3: Mineralwasser | E3: Getränke mit Alkohol | F3: Schweizer Weisswein offen - Ostschweiz | G3: Gläser - Schützengarten | I3: Schützengarten Lagerbiere | J3: Schützengarten Spezialbiere | K3: Schützengarten Spezialitätenbiere | L3: Schützengarten alkoholfreie Biere | M3: Löwengarten | N3: Alkoholfreie Handelsbiere | O3: Handelsbiere inländisch | P3: Handelsbiere ausländisch | Q3: San Martino Biere | R3: Mineralwasser | S3: Citro | T3: Cola | U3: Grape | V3: Rivella | W3: Sinalco | X3: Orange | Y3: Ice-Tea | Z3: Diverses | AA3: Traubensaft | AB3: Frucht-/Gemüsesaft | AC3: Süssmost | AD3: alkoholfreie Obstsäfte | AE3: Schorle | AF3: Energy Drinks | AG3: alkoholfreie Weine | AH3: Gazosa | AI3: Sirup | AJ3: Funktionelles Wasser | AK3: Getränke mit Alkohol | AL3: Schweizer Weisswein offen - Ostschweiz | AM3: Schweizer Weisswein offen - Wallis und Westschweiz | AN3: Schweizer Weisswein offen - Schweiz allgemein | AO3: Schweizer Flaschenweine weiss - Ostschweiz | AP3: Schweizer Flaschenweine weiss - Wallis und Westschweiz | AQ3: Schweizer Flaschenweine weiss - Schweiz allgemein | AR3: Ausländischer Weisswein offen - Frankreich | AS3: Ausländischer Weisswein offen - Italien | AT3: Ausländischer Weisswein offen - Tischwein | AU3: Ausländische Flaschenweine weiss - Australien | AV3: Ausländische Flaschenweine weiss - Chile | AW3: Ausländische Flaschenweine weiss - Italien | AX3: Ausländische Flaschenweine weiss - Spanien | AY3: Ausländische Flaschenweine weiss - Österreich | AZ3: Ausländische Flaschenweine weiss - Argentinien | BA3: Schweizer Rotweine offen - Ostschweiz | BB3: Schweizer Rotweine offen - Wallis und Westschweiz | BC3: Schweizer Flaschenweine rot - Ostschweiz | BD3: Schweizer Flaschenweine rot - Wallis und Westschweiz | BE3: Schweizer Flaschenweine rot - Tessin | BF3: Ausländische Rotweine offen - Italien | BG3: Ausländische Rotweine offen - USA | BH3: Ausländische Rotweine offen - Spanien | BI3: Ausländische Rotweine offen - Südtirol | BJ3: Ausländische Rotweine offen - Tischwein | BK3: Ausländische Flaschenweine rot - Frankreich | BL3: Ausländische Flaschenweine rot - Italien | BM3: Ausländische Flaschenweine rot - Spanien | BN3: Ausländische Flaschenweine rot - Argentinien | BO3: Ausländische Flaschenweine rot - Chile | BP3: Ausländische Flaschenweine rot - Österreich | BQ3: Ausländische Flaschenweine rot - Portugal | BR3: Roséweine | BS3: Champagner, Schaum- und Apéroweine - Frankreich | BT3: Champagner, Schaum- und Apéroweine - Italien | BU3: Champagner, Schaum- und Apéroweine - Schweiz | BV3: Champagner, Schaum- und Apéroweine - Diverse | BW3: Gläser - Schützengarten | BX3: Gläser - Löwengarten | BY3: Kohlensäure und andere Ausschank-Gase
A4: Alkoholfreie Getränke | C4: Schützengarten Spezialbiere | D4: Citro | F4: Schweizer Weisswein offen - Wallis und Westschweiz | G4: Gläser - Löwengarten | I4: Lager hell 50 L KEG | J4: Edelspez 50 L KEG | K4: Schützengarten Craft Beer-Box 6x33 cl EW | L4: Schützeng. India Pale alkoholfrei 6x33 cl EW | M4: Löwengarten Lager hell 20 L Container | N4: Erdinger Weissbier alkoholfrei 50 cl MW | O4: Eve Strawberry Mojito 6x4er 27,5 cl EW | P4: Corona Extra Mex 4x6er 35,5 cl EW | Q4: Ticino Beer Box ass. 6x33 cl EW | R4: Adelbodner Mineral blau mit KS 100 cl MW | S4: Romanette Zitrone 150 cl PET Sixpack | T4: Vivi Kola Zéro 33 cl MW | U4: Goba Grape 50 cl PET | V4: Rivella Blau 50 cl PET | W4: Sinalco Original 50 cl PET | X4: Fanta Orange 150 cl PET Sixpack | Y4: IceTea Lufrutta Lemon Premix 20 L Cont. | Z4: San Pellegrino Limonata 20 cl EW | AA4: Michel Traube 100 cl MW 6er Harass | AB4: Michel Sunshine 100 cl PET 4er Pack | AC4: Möhl Bio Süssmost 100 cl MW | AD4: Möhl Saft klar alkoholfrei 50 cl MW | AE4: Michel Schorle 50 cl PET | AF4: Red Bull Red Edition 25 cl Dosen | AG4: Rimuss Sparkling Dry 75 cl EW | AH4: Gazosa 1883 Limone 35 cl MW | AI4: Lufrutta Himbeer Sirup 100 cl PET | AJ4: Vitamin Well Refresh 50 cl PET | AK4: Ramseier Suure Most trüeb 49 cl MW Bügel | AL4: Hallauer Riesling-Silvaner AOC 50 cl EW | AM4: Féchy Coeur de la Côte AOC 20 cl EW | AN4: Herbstgold Weiss VdP Suisse 50 cl EW | AO4: Goldbeere Riesling-Silvaner 75 cl EW | AP4: St. Saphorin Les Frères Dubois AOC 70 cl EW | AQ4: Herbstgold Weiss VdP Suisse 75 cl EW | AR4: Chardonnay Vin de Pays d'Oc 50 cl EW | AS4: Pinot Grigio Friuli Grave DOC 50 cl EW | AT4: Vin blanc Tischwein 100 cl EW | AU4: Chardonnay Green Bay 75 cl EW | AV4: Chardonnay Gato Negro 75 cl EW | AW4: Lugana Zeni DOC 75 cl EW | AX4: Lazarra Sauvignon Blanc DO 75 cl EW | AY4: Grüner Veltliner Heideboden Nittnaus 75 cl EW | AZ4: Trapiche Melodias Sauvignon Blanc 75 cl EW | BA4: Jenins Blauburgunder AOC 50 cl EW | BB4: Dôle du Valais Vilanelle AOC 50 cl EW | BC4: Goldbeere Pinot Noir 75 cl EW | BD4: Aigle les Murailles Rouge AOC 70 cl EW | BE4: Merlot Ticino Selezione d'Ottobre DOC 75 cl EW | BF4: Montepulciano d'Abruzzo DOC 50 cl EW | BG4: Cabernet Sauvignon Rich Mount 50 cl EW | BH4: Barlito Tempranillo Castilla 50 cl EW | BI4: Kalterersee See-Perle DOC 100 cl EW | BJ4: Vino da Pasto Tischwein 100 cl EW | BK4: Château de Girard Minervois AOC 75 cl EW | BL4: Silentium Primitivo di Manduria DOC 75 cl EW | BM4: Celeste Ribera del Duero DO 75 cl EW | BN4: Kaiken Estate Malbec Mendoza 75 cl EW | BO4: Cabernet Sauvignon Gato Negro 75 cl EW | BP4: Zweigelt Heideboden Nittnaus 75 cl EW | BQ4: Bojador Tinto Reserva 75 cl EW | BR4: Piacere Rosé VdP Suisse 75 cl EW | BS4: Moët & Chandon brut Imperial 75 cl EW | BT4: Hugo Cavatini Frizzante 75 cl EW | BU4: Cuvée Jean Georges 75 cl EW | BV4: beHugo 75 cl EW | BW4: Basic Stange 2 dl | BX4: Löwengarten Basic Stange 3 dl | BY4: Aligal 13 Carba-Gas klein (Gemisch) 7 Kg
A5: Alkoholhaltige Getränke | C5: Schützengarten Spezialitätenbiere | D5: Cola | F5: Schweizer Weisswein offen - Schweiz allgemein | G5: Gläser - andere | I5: Lager hell 20 L Container | J5: Edelspez 20 L Container | K5: Schützengarten Sud 1779 6x33 cl EW KT | L5: Schützeng. India Pale a-frei 33 cl EW Miniharass | M5: Löwengarten Lager hell 50 cl MW | O5: Eve Litchi 6x4er Pack 27,5 cl EW | P5: Erdinger Weissbier 50 cl MW | Q5: San Martino La Bella 6x33cl EW Karton | R5: Adelbodner Mineral blau mit KS 50 cl PET | S5: Romanette Zitrone Harass 150 cl PET | T5: Vivi Kola 4x6er 33 cl PET | U5: Goba Grape 150 cl PET Harass | V5: Rivella Blau 150 cl PET Harass | W5: Sinalco Postmix 10 L BIB | X5: Goba Orange 50 cl PET | Y5: IceTea Lufrutta Lemon 10 L Postmix BIB | Z5: San Pellegrino Acqua Tonica 20 cl EW | AA5: Michel Traube 20 cl EW | AB5: Michel Bodyguard 100 cl PET 4er Pack | AC5: Möhl fifty-fifty 150 cl PET Sixpack | AD5: Möhl Saft vom Fass trüb a-frei 8x33 cl EW | AE5: Michel Schorle 33 cl MW | AF5: Red Bull 25 cl Dosen 4x6er | AG5: Alisea Bianco alkoholfrei 75 cl EW | AH5: Gazosa 1883 Mandarino 35 cl MW | AJ5: Vitamin Well Reload/Kulturlicht 50cl PET | AK5: Möhl Saft vom Fass trüb 20 L Container | AL5: Riesling-Silvaner Silberstreif 50 cl EW | AM5: Yvorne Vigneronne Badoux 50 cl EW | AO5: Goldbeere Cuvée d Or 75 cl EW | AP5: Piacere Blanc VdP Suisse 75 cl EW | AS5: Chardonnay Ormelle Veneto DOC 50 cl EW | AW5: Pinot Grigio Friuli Grave DOC 75 cl EW | AX5: Gran Castillo Sauvignon Blanc DO 75 cl EW | AY5: Hagn Welschriesling 75 cl EW | AZ5: Kaiken Torrontés Terroir Series 75 cl EW | BA5: Iselisberg Blauburgunder AOC 50 cl EW | BB5: Dôle Pinot Noir Dynastie AOC 50 cl EW | BC5: Herbstgold Rot VdP Suisse 75 cl EW | BD5: Piacere Rouge VdP Suisse 75 cl EW | BF5: Merlot del Veneto Boccantino 100 cl EW | BL5: Valpolicella Ripasso Tiratore DOC 75 cl EW | BM5: Egomei Rioja DOCa 75 cl EW | BN5: Ojo de Agua Cabernet Sauvignon 75 cl EW | BP5: Hagn Komptur Cuvée 75 cl EW | BQ5: Quintõa Vinho de Mesa Portugues 75 cl EW | BR5: Madini Rosé Grapefruit 75 cl EW | BS5: Champagne Veuve Clicquot brut 75 cl EW | BT5: Sensi 18K Prosecco Brut Gold DOC 75 cl EW | BU5: Ramseier Sélection Premium 75 cl EW | BW5: Basic Stange 2,5 dl | BX5: Löwengarten Basic Stange 2,5 dl | BY5: Kohlensäure Schützengarten gross 10 Kg
A6: Weine | C6: Schützengarten alkoholfreie Biere | D6: Grape | F6: Schweizer Flaschenweine weiss - Ostschweiz | G6: Kohlensäure und andere Ausschank-Gase | I6: Lager hell 5 Liter Partyfass | J6: Edelspez 20 Liter Partyfass | K6: Schützengarten Sud 1779 33 cl EW Miniharass | L6: Schützeng. Ginger Beer a-frei 6x33 cl EW | M6: Löwenprinz Spezial 20 L Container | O6: Eve Litchi 27,5 cl MW | P6: Desperados Original 33 cl MW | Q6: Bad Attitude Hobo White IPA 6x33 cl EW | R6: Adelbodner Min. grün ohne KS 100 cl MW | S6: St. Galler Citro 150 cl PET Sixpack | T6: Vivi Kola Zéro 4x6er 33 cl PET | U6: Pepita Grapefruit 150 cl PET Sixpack | V6: Rivella Blau 33 cl MW | W6: Sinalco Original 20 L Premix Container | X6: Fanta Orange 10 L Postmix Container | Y6: Appenzell Flauder iisfee 150 cl PET Sixp. | Z6: San Pellegrino Chinotto 20 cl EW | AA6: Rimuss Blanc Party 70 cl EW | AB6: Michel Orange Premium 100 cl PET 4er | AC6: Möhl fifty-fifty 4x6er 50 cl PET | AD6: Möhl Saft trüb alkoholfrei 50 cl MW | AE6: Michel Schorle Rhabarber/Himbeer 50 cl PET | AF6: Red Bull Sugarfree 25 cl Dosen | AG6: Luna de Murviedro alkoholfrei 75 cl EW | AH6: Gazosa 1883 Mirtillo 35 cl MW | AJ6: Vitamin Well Defence 50 cl PET | AK6: Möhl Saft vom Fass gerätzt 20 L Cont. | AL6: Rhein Weiss SG AOC 50 cl EW | AM6: Fendant du Valais Valclair AOC 100 cl EW | AO6: Jenins Riesling-Silvaner AOC 75 cl EW | AP6: Heida Valais Belle Vallée AOC 75 cl EW | AS6: Chardonnay Friuli Grave DOC 50 cl EW | AW6: Senza Parole Bianco IGT 50 cl EW | AX6: Mariposa Roja Gewürztraminer 75 cl EW | AZ6: Ojo de Agua Torrontés Bio 75 cl EW | BA6: Iselisberg Blauburgunder AOC 25 cl EW | BB6: Dôle Pinot Noir Dynastie AOC 25 cl EW | BC6: Cicero Malans Pinot Noir AOC 75 cl EW | BD6: Ancora Galotta Merlot VdP Suisse 75 cl EW | BF6: Merlot del Veneto Cavatina IGP 50 cl EW | BL6: Chianti Classico Il Grigio DOCG 75 cl EW | BM6: Juan Gil Jumilla 12 Month DO 75 cl EW | BN6: Puro Malbec Bio 75 cl EW | BR6: Dôle Blanche Valais Belle Vallée AOC 75 cl EW | BT6: Senza Parole Frizzante d'Italia 75 cl EW | BU6: Freixenet Cordon Negro 20 cl 3er Pack EW | BW6: Basic Stange 3 dl | BX6: Löwengarten Basic Stange 2 dl | BY6: Kohlensäure Schützengarten mittel 10 Kg
A7: Kategorie auswählen | C7: Löwengarten | D7: Rivella | F7: Schweizer Flaschenweine weiss - Wallis und Westschweiz | G7: Offenausschank-Service | I7: Lager hell 50 cl MW | J7: Edelspez 10 Liter Partyfass | K7: Schützengarten Vadian Pale Ale 6x33 cl EW KT | L7: Schützeng. Ginger Beer a-frei 33 cl EW Miniharass | M7: Löwenprinz Spezial 33 cl MW | P7: Guinness Draught 30 L KEG | Q7: Bad Attitude Dude 6x33 cl EW Karton | R7: Adello Mineral blau mit KS 150 cl PET Harass | S7: St. Galler Citro 150 cl PET 12er Harass | T7: Goba Cola 150 cl PET Sixpack | U7: Pepita Grapefruit 100 cl MW | V7: Rivella Refresh 150 cl PET Harass | W7: Sinalco Original 150 cl PET Harass | X7: Fanta Orange 10 L Premix Container | Y7: Ramseier Huustee Früchte 4x6er 50 cl PET | Z7: San Pellegrino Aranciata Dolce 20 cl EW | AB7: Ocean Spray Cranberry 100 cl MW 12er | AC7: Möhl Apfelsaft Hell 150 cl PET Harass | AD7: Möhl Saft vom Fass alkoholfrei 100 cl MW | AE7: Möhl Shorley Culinarium 150 cl PET Six | AF7: Red Bull 25 cl Dosen 24er | AH7: Gazosa 1883 Sanguinella 35 cl MW | AJ7: Vitamin Well Hydrate 50 cl PET | AK7: Möhl Saft vom Fass trüb 100 cl MW | AM7: Fendant du Valais Valclair AOC 50 cl EW | AP7: Aigle les Murailles AOC 70 cl EW | AW7: Masianco Bianco IGT 75 cl EW | AX7: Coto Mayor Blanco Rioja DOCa 75 cl EW | AZ7: New Age Mendoza 75 cl EW | BA7: Malanser Blauburgunder AOC 50 cl EW | BC7: Maienfelder Blauburgunder AOC 75 cl EW | BD7: Cornalin Valais Belle Vallée AOC 75 cl EW | BF7: Chianti Cavatina DOCG 50 cl EW | BL7: Senza Parole Negroamaro IGT 75 cl EW | BM7: Don Aurelio Garnacha DO 75 cl EW | BN7: Ojo de Agua Cuvée Bio 75 cl EW | BR7: Cap Gris Grenache Rosé Pays d'Oc 75 cl EW | BT7: Prosecco Villa Sandi DOC 20 cl EW | BU7: Freixenet Carta Nevada Semi Seco 75 cl EW | BW7: Schützengarten Seidel 5 dl | BX7: LG Löwenprinz Tulpe 3 dl | BY7: Kohlensäure Schützengarten klein 7 Kg
C8: Alkoholfreie Handelsbiere | D8: Sinalco | F8: Schweizer Flaschenweine weiss - Schweiz allgemein | G8: Festmaterial | I8: Lager hell 50 cl MW Display | J8: Edelspez 8x33 cl EW Karton | K8: Schützengarten Vadian Pale Ale 33 cl EW Miniharass | L8: Schützengarten Alkoholfrei 20 L Container | P8: Guinness Draught 33 cl EW | Q8: Bad Attitude Kurt 6x33 cl EW Karton | R8: Adello Mineral blau mit KS 150 cl PET Sixpack | S8: Goba Citro 20 L Premix Container | T8: Goba Cola 20 L Premix Container | U8: Pepita Grapefruit 50 cl PET | V8: Rivella Refresh 150 cl PET Sixpack | W8: Sinalco Original 150 cl PET Sixpack | X8: Fanta Orange 50 cl PET | Y8: Fusetea Lemongrass 33 cl MW | Z8: Citrojus 100 cl PET 6er Karton | AB8: Michel Orange Premium 4x6er 33 cl PET | AC8: Möhl Apfelsaft hell 20 L Container | AD8: Möhl Easy Cider a-frei 33 cl EW Harass | AE8: Cappy Schorle 50 cl PET | AF8: Red Bull Tropical Edition 25 cl Dosen | AH8: Gazosa 1883 Aranciata Amara 35 cl MW | AJ8: Aquarius Water Lemon 40 cl PET | AK8: Möhl Saft vom Fass trüb 50 cl MW | AM8: Féchy Murinet AOC 50 cl EW | AP8: Fendant du Valais Administra. 75 cl EW | AW8: Leonardo da Vinci Vermentino IGT 75 cl EW | BA8: Rehböckler Blauburgunder 50 cl EW | BD8: Pinot Noir Réserve des Administrateurs 75 cl EW | BF8: Primitivo del Salento IGT 50 cl EW | BL8: Rocca Rubia Riserva DOC 75 cl EW | BM8: Mariposa Roja Tempranillo 75 cl EW | BN8: Ojo de Agua Malbec Bio 75 cl EW | BR8: Rosato di Toscana IGT 50 cl EW | BT8: Prosecco Per Ora Extra Dry DOC 75 cl EW | BU8: Freixenet Cordon Negro Seco 75 cl EW | BW8: Schützengarten Seidel 4 dl | BX8: LG Löwenprinz Tulpe 2,5 dl | BY8: Aligal 2 Carba-Gas klein (Kohlensäure) 7 Kg
C9: Handelsbiere inländisch | D9: Orange | F9: Ausländischer Weisswein offen - Frankreich | I9: Lager hell 4x6er Pack 50 cl Dosen | J9: Edelspez 33 cl MW | K9: Gallus 612 Old Style Ale 33 cl EW Miniharass | L9: Schützengarten Alkoholfrei 50 cl MW | P9: Guinness Draught 6x4er 50 cl Dosen | Q9: San Martino La Nostra 4x6er 50 cl Dosen | R9: Allegra Mineral ohne KS 77 cl MW | S9: Goba Citro 150 cl PET Harass | T9: Goba Cola 100 cl MW | U9: Pepita Grapefruit 33 cl MW | V9: Rivella Grüntee 50 cl PET | W9: Sinalco Original 100 cl MW | X9: Fanta Orange 4x6er 33 cl Dosen | Y9: Fusetea Lemongrass 50 cl PET | Z9: Schweppes Ginger Ale 100 cl PET Sixpack | AB9: Michel Bodyguard 4x6er 33 cl PET | AC9: Möhl Apfelsaft hell 100 cl MW | AD9: Möhl Easy Cider a-frei 6x33 cl EW KT | AE9: Ramseier Apfelschorle 150 cl PET Sixpack | AF9: Monster Core Energy 35,5 cl Dosen | AH9: Gazosa 1883 Pompelmo Rosa 35 cl MW | AJ9: Aquarius Water Blutorange 40 cl PET | AK9: Möhl Saft vom Fass trüb 8x33 cl EW | AM9: St. Saphorin Trois Soleils AOC 50 cl EW | AP9: Féchy Filet d'Or La Côte AOC 75 cl EW | AW9: Costalago Bianco Venezia IGT 75 cl EW | BA9: Hallau Blauburgunder AOC 50 cl EW | BL9: Masi Campofiorin IGT 75 cl EW | BM9: Mariposa Roja Monastrell 75 cl EW | BR9: Aigle les Murailles Rosé AOC 70 cl EW | BT9: Prosecco Il Concerto DOC 75 cl EW | BW9: Schützengarten Seidel 3 dl | BX9: Löwengarten Stange 3 dl | BY9: Aligal 1 Carba-Gas klein (Stickstoff) 7 Kg
C10: Handelsbiere ausländisch | D10: Ice-Tea | F10: Ausländischer Weisswein offen - Italien | I10: Lager hell 10x33 cl EW Karton | K10: Gallus 612 Old Style Ale 6x33 cl EW Karton | L10: Schützengarten Alkoholfrei 33 cl MW | P10: Heineken 33 cl MW | Q10: San Martino La Nostra 6x33 cl EW Karton | R10: Allegra Mineral ohne KS 100 cl MW | S10: Goba Citro 100 cl MW | T10: Coca Cola 125 cl PET Harass | V10: Rivella Rot 20 L Premix Container | W10: Sinalco Original 30 cl MW | X10: Fanta Orange 33 cl MW | Y10: Fusetea Lemongrass 150 cl PET Sixpack | Z10: Manzoni Spritz 33 cl EW Harass | AB10: Ramseier Premium 100% Ananas 100 cl TET | AC10: Möhl Apfelsaft Hell 4x6er 50 cl PET | AD10: Ramseier Suure Most trüeb a-frei 49 cl MW | AE10: Ramseier Apfelschorle 150 cl PET Harass | AF10: Trojka Energy 25 cl Dosen 4x6er | AH10: Gazosa 1883 Ginger 35 cl MW | AJ10: Vitamin Well Antioxidant 50 cl PET | AK10: Möhl Saft klar 50 cl MW | AM10: Féchy Murinet AOC 25 cl EW | AP10: Féchy Domaine Grand Cru AOC 75 cl EW | AW10: Senza Parole Bianco IGT 75 cl EW | BA10: Ottenberger Blauburgunder AOC 50 cl EW | BL10: Mavrio Negroamaro Salento IGT 75 cl EW | BM10: 12 Uvas De La Suerte Crianza DOP 75 cl EW | BR10: Coto Mayor Rosado Rioja DOCa 75 cl EW | BT10: Prosecco Borgo Molino brut DOC 75 cl EW | BW10: Schützengarten Becher Glas 5 dl | BX10: Löwengarten Tulpe 3 dl
C11: San Martino Biere | D11: Diverses | F11: Ausländischer Weisswein offen - Tischwein | I11: Lager hell 18x33 cl EW Karton | K11: Gallus 612 Old Style Ale 20 L Container | L11: Schützengarten Alkoholfrei 8x33 cl EW | P11: Heineken 25 cl MW | Q11: San Martino La Rossa 6x33 cl EW Karton | R11: Adello Mineral grün ohne KS 150 cl PET Sixpack | S11: Goba Citro 50 cl PET | T11: Coca Cola 10 L Postmix Container | V11: Rivella Rot 10 L Postmix Container | W11: Sinalco Zero 150 cl PET Sixpack | Y11: Fusetea Lemongrass 150 cl PET Harass | Z11: Manzoni Spritz 4er Pack 33 cl EW | AB11: Michel Cranberry 100 cl MW 6er Harass | AC11: Möhl Apfelsaft Hell 33 cl MW | AD11: Ramseier Suure Most klar a-frei 49 cl MW Bügel | AE11: Möhl Shorley Culinarium 33 cl MW | AF11: Poker Energy Drink 150 cl PET Sixpack | AH11: Gazosa 1883 Mela Verde 35 cl MW | AJ11: Vitamin Well Awake 50 cl PET | AK11: Ramseier Suure Most klar 49 cl MW Bügel | AM11: Epesses Cave de Beauvoir AOC 50 cl EW | AP11: Epesses Bujard Roche d'Or AOC 75 cl EW | AW11: Bianco di Custoza DOC 75 cl EW | BA11: Rhein Rot SG AOC 50 cl EW | BL11: Le Volte dell' Ornellaia IGT 75 cl EW | BM11: Azacan Garnacha Shiraz DO 75 cl EW | BR11: Öise Rosé 50 cl EW | BT11: Sarotto Moscato d'Asti DOCG 75 cl EW | BW11: Klosterbräu Seidel 5 dl | BX11: Löwengarten Seidel 5 dl
D12: Traubensaft | F12: Ausländische Flaschenweine weiss - Australien | I12: Lager hell 24 x 33 cl MW | K12: Schützengarten India Pale Ale 6x33 cl EW Karton | L12: Schützengarten Grapefruit a-frei 6x33 cl EW | P12: Paulaner Hefeweizenbier 30 L KEG | Q12: La Helles Bio Knospe 6x33 cl EW Karton | R12: Allegra Mineral ohne KS 50 cl MW | S12: Goba Citro 33 cl MW | T12: Coca Cola 20 L Premix Container | V12: Rivella Refresh 50 cl PET | W12: Sinalco Zero 100 cl MW | Y12: Fusetea Lemongrass 20 L Premix Container | Z12: Yuzu Soda Original 50 cl PET | AB12: Granini Fruchtcocktail 33 cl PET | AC12: Ramseier Apfeldrink 10 L Postmix BIB | AD12: Ramseier Milder Most a-frei 49 cl MW Bügel | AE12: Möhl Shorley Culinarium 50 cl PET | AH12: Gazosa 1883 Lampone (Himbeer) 35 cl MW | AJ12: Vitamin Well Upgrade 50 cl PET | AK12: Ramseier Milder Most 49 cl MW Bügel | AM12: Féchy Fonterive La Côte AOC 50 cl EW | AP12: Mont sur Rolle Châtagnereaz 75 cl EW | BA12: Herbstgold Rot VdP Suisse 50 cl EW | BL12: Santa Cristina Toscana IGT 75 cl EW | BM12: Coto Mayor Crianza DOCa 50 cl EW | BR12: Senza Parole Rosato IGP 75 cl EW | BW12: Klosterbräu Seidel 2 dl | BX12: Löwengarten Seidel 4 dl
D13: Frucht-/Gemüsesaft | F13: Ausländische Flaschenweine weiss - Chile | K13: Schützengarten India Pale Ale 33 cl EW Miniharass | L13: Schützeng. Grapefruit a-frei 33 cl EW Miniharass | P13: Paulaner Hefeweizenbier 50 cl MW | R13: Appenzell Mineral laut 80 cl MW | S13: Goba Citro 150 cl PET Sixpack | T13: Coca Cola 150 cl PET Sixpack | V13: Rivella Rot 150 cl PET Harass | Y13: Fusetea Lemongrass 10 L Postmix Cont. | Z13: Valser Prickelnd Minze 4x6er 50 cl PET | AB13: Granini Ananas 100 cl MW | AC13: Ramseier Apfeldrink Postmix 10 L Cont. | AE13: Möhl Shorley Culinarium 150 cl PET Har. | AJ13: Focus Water Ananas Active 50 cl PET | AK13: Swizly Swiss Cider 33 cl MW | AM13: Chasselas Cave de Jolimont VdP 100 cl EW | AP13: Yvorne Château Maison Blanche AOC 75 cl EW | BL13: Silentium Primitivo DOC 37,5 cl EW | BM13: Alicante Marques de Malagón 75 cl EW | BW13: Klosterbräu Seidel 3 dl | BX13: LG Plastikbecher 3 dl
D14: Süssmost | F14: Ausländische Flaschenweine weiss - Italien | K14: Schützengarten India Pale Ale 20 L Container | L14: Schützeng. Panaché a-frei 6x33 cl EW Karton | P14: Paulaner Hefeweizenbier Dunkel 50 cl MW | R14: Appenzell Mineral leise 80 cl MW | S14: Elmer Citro 20 L Premix Container | T14: Coca Cola 150 cl PET Harass | V14: Rivella Rot 50 cl PET | Y14: Fusetea Peach Hibiscus 33 cl MW | Z14: Valser Viva Zitrone/Kräuter 4x6er 50 cl PET | AB14: Granini Ananas 24 x 20 cl EW | AC14: Ramseier Süssmost 100 cl MW | AE14: Ramseier Apfelschorle 50 cl PET | AJ14: Focus Water Grapefruit Relax 50 cl PET | AK14: Möhl Juicy Apple Cider 6x33 cl EW | AM14: La Côte La Vaudoise Cave de Jolimont AOC 50 cl EW | AP14: Chasselas Romand Chantevigne 75 cl EW | BL14: Luna Argenta Terre Siciliane IGT 75 cl EW | BM14: El Copero Vino Tinto Valencia 75 cl EW | BW14: Schützengarten Becher Glas 3 dl
D15: alkoholfreie Obstsäfte | F15: Ausländische Flaschenweine weiss - Spanien | K15: Schützengarten Swiss Stout 6x33 cl EW Karton | L15: Schützeng. Panaché a-frei 33 cl EW Miniharass | P15: San Miguel Export 33 cl EW | R15: Appenzell Mineral still 80 cl MW | S15: Elmer Citro 150 cl PET Harass | T15: Coca Cola 50 cl PET | V15: Rivella Blau 150 cl PET Sixpack | Y15: Fusetea Peach Hibiscus 50 cl PET | Z15: Appenzell Flauder Yolo 33 cl MW | AB15: Granini Orangensaft 100 cl MW | AC15: Ramseier Süssmost 33 cl MW | AE15: Ramseier Apfelschorle 33 cl MW | AJ15: Focus Water Mirabelle Care 50 cl PET | AK15: Möhl Grape Apple Cider 33 cl EW Harass | AM15: Mont s. Rolle Coer de la Côte AOC 50 cl | BL15: Amarama Terre Siciliane IGT 75 cl EW | BM15: Gran Castillo Cabernet Sauv. DO 75 cl | BW15: Schützengarten Becher Glas 2 dl
D16: Schorle | F16: Ausländische Flaschenweine weiss - Österreich | K16: Schützengarten Swiss Stout 33 cl EW Miniharass | R16: Allegra Mineral ohne KS 35 cl MW | S16: Elmer Citro 150 cl PET Sixpack | T16: Coca Cola 4x6er 33 cl Dosen | V16: Rivella Grüntee 150 cl PET Sixpack | Y16: Fusetea Peach Hibiscus 150 cl PET Sixpack | Z16: Appenzell Flauder Yolo 50 cl PET | AB16: Granini Fruchtcocktail 24 x 20 cl EW | AC16: Ramseier Süssmost 150 cl PET Harass | AE16: Möhl Shorley Balance Ingwer 50 cl PET | AJ16: Focus Water Birne Refresh 50 cl PET | AK16: Möhl Grape Apple Cider 6x33 cl EW | AM16: Yvorne Cave de Beauvoir AOC 50 cl EW | BL16: Balteo di Orione IGT 75 cl EW | BM16: La Planta Ribera del Duero DO 75 cl EW | BW16: Schützengarten Henkelglas 1 Liter
D17: Energy Drinks | F17: Ausländische Flaschenweine weiss - Argentinien | K17: Säntisbier 33 cl MW | R17: Appenzell Mineral laut 20 L Container | S17: Elmer Citro 100 cl MW | T17: Goba Cola 50 cl PET | V17: Rivella Rot 150 cl PET Sixpack | Y17: IceTea Lipton Peach 4x6er 50 cl PET | Z17: Appenzell Flauder Yolo 150 cl PET Sixpack | AB17: Granini Fruchtcocktail 100 cl PET Sixpack | AC17: Ramseier Süssmost 50 cl PET | AJ17: Focus Water Orange Revive 50 cl PET | AK17: Möhl Straight Apple Cider 33 cl EW Har. | AM17: Aigle Cave de Beauvoir AOC 50 cl EW | BL17: Leonardo da Vinci Toscana Rosso IGT 75 cl EW | BM17: Coto Mayor Crianza DOCa 75 cl EW | BW17: Schützengarten Stange 3 dl
D18: alkoholfreie Weine | F18: Schweizer Rotweine offen - Ostschweiz | K18: Schwarzer Bär Dunkelbier 33 cl MW | R18: Appenzell Mineral leise 150 cl PET Sixp. | S18: Elmer Citro light 100 cl MW | T18: Goba Cola 33 cl MW | V18: Rivella Rot 33 cl MW | Y18: Ramseier Huustee Minze 4x6er 50 cl PET | Z18: Red Bull Organics Ginger Ale 25 cl Fl. | AB18: Ramseier 100% Multivitamin 100 cl TET | AC18: Möhl Steinkrügler trüb 100 cl MW | AJ18: Focus Water Antiox Lemon Lime 50 cl PET | AK18: Möhl Straight Apple Cider 6x33 cl EW | BL18: Rocca di Cesena Riserva DOC 75 cl EW | BM18: Museum Cigales Reserva DO 75 cl EW | BW18: Schützengarten Stange Fresh 5 dl
D19: Gazosa | F19: Schweizer Rotweine offen - Wallis und Westschweiz | K19: Säntisbier 50 cl MW | R19: Appenzell Mineral still 150 cl PET Har. | S19: Elmer Citro 10 L Postmix BIB | T19: Goba Cola Zero 33 cl MW | V19: Rivella Blau 100 cl PET Harass | Y19: IceTea Lipton Lemon 4x6er 50 cl PET | Z19: Red Bull Organics Tonic Water 25 cl Fl. | AB19: Ramseier Premium 100% Orange 100 cl TET | AC19: Ramseier Süssmost 150 cl PET Sixpack | AK19: Möhl Juicy Apple Cider 33 cl EW Harass | BL19: Scaia Corvina Veneto IGT 75 cl EW | BW19: Schützengarten Stange Fresh 3 dl
D20: Sirup | F20: Schweizer Flaschenweine rot - Ostschweiz | K20: Säntisbier 8x33 cl EW Karton | R20: Appenzell Mineral laut 150 cl PET Har. | S20: Elmer Citro 50 cl PET | T20: Goba Cola Zero 50 cl PET | V20: Rivella Rot 100 cl PET Harass | Y20: IceTea Lipton Lemon 150 cl PET Sixpack | Z20: Red Bull Organics Bitter Lemon 25 cl Fl. | AB20: Granini Orangensaft 33 cl PET | AK20: Smirnoff Ice 27,5 cl EW | BL20: Santolo Terre Siciliane IGP 75 cl EW | BW20: Schützengarten Stange Fresh 2 dl
D21: Funktionelles Wasser | F21: Schweizer Flaschenweine rot - Wallis und Westschweiz | K21: Schwarzer Bär Dunkelbier 20 L Container | R21: Appenzell Mineral laut 50 cl PET | S21: Elmer Citro 33 cl MW | T21: Goba Cola Zero 150 cl PET Sixpack | V21: Rivella Refresh 33 cl MW | Y21: IceTea Lufrutta Lemon 100 cl TET | Z21: Red Bull Organics Viva Mate 25 cl Fl. | AB21: Granini Orangensaft 24 x 20 cl EW | AK21: Somersby Apple 6x4er 33 cl EW | BL21: Tosone Nero d'Avola Sicilia DOC 75 cl EW | BW21: Schützengarten Stange Fresh 2,5 dl
F22: Schweizer Flaschenweine rot - Tessin | K22: Schwarzer Bär Dunkelbier 50 cl MW | R22: Appenzell Mineral leise 150 cl PET Har. | S22: Lufrutta Citro 150 cl PET Sixpack | T22: Coca Cola 33 cl MW | V22: Rivella Grapefruit 50 cl PET | Y22: IceTea Lufrutta Lemon 50 cl PET | Z22: Schweppes Ginger Ale 20 cl MW | AB22: Granini Pfirsich 24 x 20 cl EW | AK22: Trojka Ice 27,5 cl EW | BL22: Montepulciano dAbruzzo Villa dOra DOP 75 cl | BW22: Schützengarten Tulpe Cervoise 3 dl
F23: Ausländische Rotweine offen - Italien | K23: Schwarzer Bär Dunkelbier 8x33 cl EW Kart | R23: Appenzell Mineral laut 100 cl MW | S23: Pepita Citro 150 cl PET Sixpack | T23: Coca Cola 20 cl MW | Y23: Enertea by Rivella Mate Bio 33 cl PET | Z23: Appenzell Flauder Minz 150 cl PET Sixp. | AB23: Granini Tomatensaft 100 cl MW | AK23: Topo Chico Tangy Lemon Lime 33 cl Dose | BL23: Senza Parole Primitivo Salento IGT 75 cl EW | BW23: Landbier Seidel 3 dl
F24: Ausländische Rotweine offen - USA | K24: Festbier 50 cl MW | R24: Appenzell Mineral leise 100 cl MW | S24: Sprite 10 L Postmix Container | T24: Coca Cola light 10 L Postmix Container | Y24: Enertea by Rivella Guayusa Bio 33 cl PET | Z24: Appenzell Flauder Minz 4x6er 50 cl PET | AB24: Granini Tomate 24 x 20 cl EW | AK24: Topo Chico Cherry Acai 33 cl Dose | BL24: Merlot del Veneto Villa dOro IGP 75 cl EW | BW24: Plastikbecher 5 dl ohne Logo
F25: Ausländische Rotweine offen - Spanien | K25: Festbier 50 cl MW Display | R25: Appenzell Mineral still 100 cl MW | S25: Sprite 10 L Premix Container | T25: Coca Cola light 10 L Premix Container | Y25: Nestea Lemon 150 cl PET Harass | Z25: Fanta Mango 150 cl PET Sixpack | AB25: Granini Williams Birne 24 x 20 cl EW | AK25: Topo Chico Tropical Mango 33 cl Dose | BL25: Montepulciano d'Abbruzzo Cavatina 75 cl | BW25: Schützengarten Plastikbecher 4 dl
F26: Ausländische Rotweine offen - Südtirol | K26: Festbier 8x33 cl EW Karton | R26: Appenzell Mineral still 33 cl MW | S26: Sprite 150 cl PET Sixpack | T26: Coca Cola light 150 cl PET Sixpack | Y26: Nestea Lemon 150 cl PET Sixpack | Z26: Appenzell Flauder Minz 33 cl MW | AB26: Michel Orange Premium 100 cl MW 6er Har. | AK26: Vilter Hard Seltzer Juicy Lime 33 cl EW | BL26: Valpolicella Ripasso Zeni Magnum DOC 150 cl EW | BW26: Schützengarten Plastikbecher 3 dl
F27: Ausländische Rotweine offen - Tischwein | K27: Weisser Engel 20 L Container | R27: Appenzell Mineral laut 50 cl MW | S27: Sprite 33 cl MW | T27: Coca Cola zero 150 cl PET Harass | Y27: Nestea Peach 150 cl PET Sixpack | Z27: Fever-Tree Tonic Water 24 x 20 cl EW | AB27: Michel Ananas 100 cl MW 6er Harass | AK27: Vilter Hard Seltzer Passionfruit 33 cl EW | BL27: Senza Parole Primitivo Salento 50 cl EW | BW27: Schützengarten Plastikbecher 2 dl
F28: Ausländische Flaschenweine rot - Frankreich | K28: Weisser Engel 50 cl MW | R28: Appenzell Mineral leise 50 cl MW | T28: Coca Cola light 33 cl MW | Y28: IceTea Lipton Peach 150 cl PET Sixpack | Z28: Flauder Holunderblüten Original 150 cl PET Harass | AB28: Michel Ananas 20 cl EW | AK28: Vibes Hard Seltzer Mint Lemon 33 cl EW | BL28: Amarone della Valpolicella DOCG 75 cl EW | BW28: Plastikbecher 1 dl ohne Logo
F29: Ausländische Flaschenweine rot - Italien | K29: Weisser Engel 4x50 cl EW Karton | R29: Appenzell Mineral still 50 cl MW | T29: Coca Cola zero 150 cl PET Sixpack | Y29: Volvic Grüntee Minze 150 cl PET Sixpack | Z29: Kinley Bitter Lemon 20 cl EW | AB29: Michel Aprikosen 20 cl EW | AK29: Vibes Hard Seltzer Rasp. Elder 33 cl EW | BL29: Amarone della Valpolicella Cami DOCG 50 cl EW | BW29: Weisser Engel Glas 5 dl
F30: Ausländische Flaschenweine rot - Spanien | K30: Schützengarten Panaché 33 cl EW Miniharass | R30: Appenzell Mineral still 50 cl PET | T30: Coca Cola zero 50 cl PET | Y30: IceTea Lufrutta Lemon 150 cl PET Harass | Z30: Kinley Ginger Ale 20 cl EW | AB30: Michel Bodyguard 20 cl EW | AK30: Vibes Hard Seltzer Grape Ginger 33 cl EW | BL30: Primitivo Salento Koiné IGT 75 cl EW | BW30: Weisser Engel Glas 3 dl
F31: Ausländische Flaschenweine rot - Argentinien | K31: Schützengarten Panaché 6x33 cl EW Karton | R31: Appenzell Mineral leise 50 cl PET | T31: Coca Cola zero 33 cl MW | Y31: Nestea Lemon 4x6er 50 cl PET | Z31: Kinley Tonic Water 20 cl EW | AB31: Michel Cranberry 20 cl EW | BL31: Basta Primitivo di Manduria DOC 75 cl EW
F32: Ausländische Flaschenweine rot - Chile | K32: Schützengarten Panaché 4x6er 50 cl Dosen | R32: Appenzell Mineral laut 33 cl MW | T32: Coca Cola zero 4x6er 33 cl Dosen | Y32: Nestea Peach 4x6er 50 cl PET | Z32: Flauder Holunderblüten Original 50 cl PET | AB32: Michel Orangensaft Premium 20 cl EW | BL32: Summa Summarum Primitivo IGP 75 cl EW
F33: Ausländische Flaschenweine rot - Österreich | K33: Schützengarten Aperitivo 6x33 cl EW Kar. | R33: Appenzell Mineral leise 33 cl MW | T33: Sinalco Cola 10 L Postmix BIB | Y33: Nestea Lemon 33 cl MW | Z33: Flauder Holunderblüten Original 150 cl PET Sixpack | AB33: Michel Pfirsich 20 cl EW | BL33: Costalago Rosso Veronese IGT 75 cl EW
F34: Ausländische Flaschenweine rot - Portugal | K34: Schützengarten Aperitivo 33 cl EW Miniharass | R34: Appenzell Mineral leise 20 L Container | T34: Sinalco Cola 150 cl PET Harass | Y34: Nestea Peach 33 cl MW | Z34: Flauder Holunderblüten Original 33 cl MW | AB34: Michel Tomatensaft 20 cl EW | BL34: Nero d Avola Feudo Sicilia IGT 75 cl EW
F35: Roséweine | K35: Säntis / Huusbier 20 L Container | R35: Elmer Mineral mit KS 75 cl MW | T35: Sinalco Cola Zero 30 cl MW | Y35: Ramseier Huustee Minze 100 cl PET Sixpack | Z35: SanBittèr 4x6er 10 cl EW | AB35: Michel Williams Birne 20 cl EW | BL35: Amarone Classico Zeni DOCG 75 cl EW
F36: Champagner, Schaum- und Apéroweine - Frankreich | K36: St. Galler Klosterbräu 20 L Container | R36: Cristallo blau ohne KS 150 cl PET Sixp. | T36: Sinalco Cola 20 L Premix Container | Y36: Ramseier Huustee Minze 33 cl MW | Z36: Schweppes Bitter Lemon 20 cl MW | AB36: Ramseier Orangensaft 100 cl MW | BL36: Valpolicella Ripasso Cami DOC 50 cl EW
F37: Champagner, Schaum- und Apéroweine - Italien | K37: St. Galler Klosterbräu 2 Lt-Füllung | R37: Cristallo blau ohne KS 150 cl PET Harass | T37: Sinalco Cola 30 cl MW | Z37: Flauder Holunderblüten Original 100 cl MW | AB37: Ramseier Orangensaft 100 cl TET | BL37: Valpolicella Ripasso Zeni DOC 75 cl EW
F38: Champagner, Schaum- und Apéroweine - Schweiz | K38: St. Galler Klosterbräu 3 Lt inkl. Holzkiste EW | R38: Cristallo rot mit KS 150 cl PET Sixpack | T38: Sinalco Cola 50 cl PET | Z38: Crodino bitter 8x3er 17.5 cl EW | AB38: Lufrutta Orangensaft 100 cl TET | BL38: Edizione Cinque Autoctoni 75 cl EW
F39: Champagner, Schaum- und Apéroweine - Diverse | K39: Säntisbier 3 Lt inkl. Holzkiste EW | R39: Cristallo rot mit KS 150 cl PET Harass | T39: Sinalco Cola Zero 20 L Premix Container | Z39: Kinley Bitter Lemon 100 cl PET
K40: St. Galler Klosterbräu 50 cl MW | R40: Elmer Mineral mit Ks 150 cl PET Sixpack | T40: Sinalco Cola Zero 50 cl PET | Z40: Kinley Tonic Water 100 cl PET
K41: St. Galler Klosterbräu 33 cl MW | R41: Elmer Mineral mit Ks 150 cl PET Harass | T41: Sinalco Cola Zero 150 cl PET Harass | Z41: Powerade Mountain Blast 50 cl PET
K42: St. Galler Klosterbräu 4x6er 50 cl Dosen | R42: Elmer Mineral ohne Ks 150 cl PET Harass | T42: Vivi Kola 33 cl MW | Z42: Schweppes Tonic Water 20 cl MW
K43: St. Galler Klosterbräu 8x33 cl EW Kart. | R43: Elmer Mineral mit Ks 100 cl MW | Z43: Powerade Orange 50 cl PET
K44: Landbier 20 L Container | R44: Elmer Mineral mit KS 50 cl MW | Z44: Henniez 0 Kal. Mango Yuzu 50 cl PET
K45: Landbier 50 cl MW | R45: Elmer Mineral ohne Ks 50 cl MW | Z45: Valser Viva Mango/Guave 4x6er 50 cl PET
K46: Landbier 33 cl MW | R46: Elmer Mineral mit KS 33 cl MW | Z46: Valser Viva Birne/Melisse 4x6er 50 cl PET
K47: Landbier 8x33 cl EW Karton | R47: Elmer Mineral ohne Ks 150 cl PET Sixpack | Z47: Henniez 0 Kal. Passion Kiwi 50 cl PET
K48: Bierhalbmeter EW 33 cl/Do 50 cl | R48: Elmer Mineral ohne KS 75 cl MW | Z48: Schweppes Bitter Lemon 100 cl PET Sixp.
K49: Biermeter EW 33 cl/Do 50cl | R49: Elmer Mineral mit KS 50 cl PET | Z49: Schweppes Tonic Water 100 cl PET Sixpack
K50: Geschenk-Packung Klosterbräu 50 cl + Glas | R50: Elmer Mineral ohne KS 33 cl MW | Z50: Lurisia Aranciata 6x4er 27,5 cl EW
K51: Schützengarten Geschenk-Kiste | R51: Elmer Mineral mit Ks Premix 20 L Cont | Z51: Lurisia Gazzosa 6x4er 27,5 cl EW
K52: Geschenk-Set 6 Biere assortiert 50 cl MW | R52: Elmer Mineral ohne Ks 50 cl PET | Z52: Lurisia Chinotto 6x4er 27,5 cl EW
K53: Geschenk-Packung Weisser Engel 50 cl + Glas | R53: Elmer Mineral ohne Ks 100 cl MW | Z53: Schweppes Wild Berry 100 cl PET MW
K54: Geschenk-Set 3 Biere assortiert 33 cl EW | R54: Eptinger Mineral blau 150 cl PET Harass | Z54: Thomas Henry Tonic Water 20 cl MW
R55: Eptinger Mineral rot mit KS 20 L Cont. | Z55: Fanta Lemon 4x6er 50 cl PET
R56: Eptinger Mineral blau ohne KS 50 cl MW
R57: Eptinger Mineral blau ohne KS 100 cl MW
R58: Eptinger rot mit KS 150 cl PET Harass
R59: Eptinger Mineral rot mit KS 100 cl MW
R60: Eptinger Mineral rot mit KS 50 cl MW
R61: Eptinger Mineral rot mit KS 50 cl PET
R62: Eptinger Mineral rot mit KS 33 cl MW
R63: Eptinger Mineral blau ohne KS 33 cl MW
R64: Eptinger Mineral blau ohne KS 50 cl PET
R65: Evian Mineral ohne KS 150 cl PET Sixpack
R66: Evian Mineral ohne KS 100 cl MW
R67: Evian Mineral ohne KS 50 cl MW
R68: Evian Mineral ohne KS 4x6er 50 cl PET
R69: Evian Sportscap 75 cl PET Sixpack
R70: Henniez blau ohne KS 150 cl PET Harass
R71: Henniez blau ohne KS 100 cl MW
R72: Henniez blau ohne KS 75 cl MW
R73: Henniez blau ohne KS 50 cl MW
R74: Henniez blau ohne KS 4x6er 50 cl PET
R75: Henniez blau ohne KS 33 cl MW
R76: Henniez rot mit KS 50 cl MW
R77: Henniez rot mit KS 150 cl PET Harass
R78: Henniez rot mit KS 150 cl PET Sixpack
R79: Henniez rot mit KS 100 cl MW
R80: Henniez rot mit KS 4x6er 50 cl PET
R81: Henniez rot mit KS 33 cl MW
R82: Henniez grün wenig KS 150 cl PET Harass
R83: Henniez grün wenig KS 150 cl PET Sixpack
R84: Henniez grün wenig KS 100 cl MW
R85: Henniez grün wenig KS 75 cl MW
R86: Henniez grün wenig KS 50 cl MW
R87: Henniez grün wenig KS 4x6er 50 cl PET
R88: Henniez grün wenig KS 33 cl MW
R89: Passugger Mineral 77 cl MW
R90: Acqua Panna ohne KS 150 cl PET Sixpack
R91: Acqua Panna ohne KS 100 cl MW
R92: Acqua Panna ohne KS 50 cl MW
R93: Acqua Panna ohne KS 75 cl MW
R94: Acqua Panna ohne KS 25 cl MW
R95: Passugger Mineral 100 cl MW
R96: Passugger Mineral 50 cl MW
R97: Passugger Mineral 35 cl MW
R98: San Benedetto mit Kohlensäure 100 cl MW
R99: San Benedetto ohne KS 100 cl MW
R100: San Benedetto mit Kohlensäure 50 cl MW
R101: San Benedetto ohne KS 50 cl MW
R102: San Pellegrino Mineral mit KS 100 cl MW
R103: San Pellegrino Mineral mit KS 75 cl MW
R104: San Pellegrino Mineral 4x6er 50 cl PET
R105: San Pellegrino Mineral 125 cl PET Sixpack
R106: San Pellegrino Mineral mit KS 50 cl MW
R107: San Pellegrino Mineral mit KS 25 cl MW
R108: Valser Mineral Prickelnd 20 L Container
R109: Valser Mineral Prickelnd 150 cl PET Harass
R110: Valser Calc./Mag. o KS 150 cl PET Harass
R111: Valser Mineral Prickelnd 150 cl PET Sixpack
R112: Valser Calc./Mag. o KS 150 cl PET Sixpack
R113: Valser Mineral Prickelnd 100 cl MW
R114: Valser Mineral Calc./Mag. o KS 100 cl MW
R115: Valser Mineral Prickelnd 75 cl MW
R116: Valser Mineral Prickelnd 50 cl MW
R117: Valser Mineral Prickelnd 50 cl PET
R118: Valser Mineral Calc./Mag. o KS 50 cl PET
R119: Valser Mineral Still 75 cl MW
R120: Valser Mineral Still 50 cl MW
R121: Valser Mineral Still 50 cl PET
R122: Valser Mineral Still 33 cl MW
R123: Valser Mineral Still 100 cl MW
R124: Valser Mineral Still 150 cl PET Sixpack
R125: Valser Mineral Prickelnd 33 cl MW
R126: Vittel Mineral o. KS 150 cl PET Sixpack
R127: Vittel Mineral o. KS 150 cl PET Harass
R128: Perrier Mineral m. KS 100 cl PET Sixpack
R129: Perrier Mineral m. KS 100 cl PET Harass
R130: Volvic Mineral ohne KS 150 cl PET Six
R131: Piz Sardona ohne KS 6er 50 cl PET
R132: Piz Sardona mit KS 6er 50 cl PET
R133: St. Galler Wasser ohne KS 24 x 50 cl PET
R134: St. Galler Wasser ohne KS 150 cl 12er Harass
R135: St. Galler Wasser mit KS 150 cl 12er Harass
R136: St. Galler Wasser mit KS 24 x 50 cl PET
R137: Piz Sardona *3* viel KS 40 cl MW
R138: Piz Sardona *3* viel KS 75 cl MW
R139: Piz Sardona *0* ohne KS 75 cl MW
R140: Piz Sardona *2* mit KS mittel 75 cl MW
R141: Piz Sardona *0* ohne KS 40 cl MW
R142: Piz Sardona *2* mit KS mittel 40 cl MW
R143: St. Galler Wasser mit KS 150 cl Sixpack
R144: St. Galler Wasser ohne KS 150 cl Sixpack

Sheet Artikelcode 90 mit Kategorien (hidden)
A1: Code-Grp | B1: Ebene 1 | C1: Ebene 2 | D1: Ebene 3 | E1: Ebene 4 | F1: Bezeichnung | G1: Wgr. | H1: Art.typ | I1: Hauptkategorie | J1: Unterkategorie | K1: Arikelbezeichnung | L1: Artikelnummer | M1: E1 | N1: E2 | O1: Inhalt (FL / oder L) | P1: Privatpreis
A2: 90 | B2: 1 | C2: 1 | D2: 1 | E2: 0 | F2: Preisliste,Biere,Schützengarten,Lagerbiere, | G2: 300 | H2: 1 - Ware | I2: Biere | J2: Schützengarten Lagerbiere | K2: Lager hell 50 L KEG | L2: 001020 | M2: =COUNTIF(I2:I796,I2) -> 107 | N2: =COUNTIF(J2:J796,J2) -> 9 | O2: =IF(ISNA(VLOOKUP(L2,Artikelinhalt!A:H,8,FALSE)),IF(ISNA(VLOOKUP(L2,Gebindeinhalt!A:H,8,FALSE)),VLOOKUP(L2,Packungseinheit!A:H,8,FALSE),VLOOKUP(L2,Gebindeinhalt!A:H,8,FALSE)),VLOOKUP(L2,Artikelinhalt!A:H,8,FALSE)) -> 50 | P2: =VLOOKUP(L2,Privatpreis!A:D,4,FALSE) -> 4.1
A3: 90 | B3: 1 | C3: 1 | D3: 1 | E3: 0 | F3: Preisliste,Biere,Schützengarten,Lagerbiere, | G3: 300 | H3: 1 - Ware | I3: Biere | J3: Schützengarten Lagerbiere | K3: Lager hell 20 L Container | L3: 001040 | M3: 106 | N3: 8 | O3: =IF(ISNA(VLOOKUP(L3,Artikelinhalt!A:H,8,FALSE)),IF(ISNA(VLOOKUP(L3,Gebindeinhalt!A:H,8,FALSE)),VLOOKUP(L3,Packungseinheit!A:H,8,FALSE),VLOOKUP(L3,Gebindeinhalt!A:H,8,FALSE)),VLOOKUP(L3,Artikelinhalt!A:H,8,FALSE)) -> 20 | P3: =VLOOKUP(L3,Privatpreis!A:D,4,FALSE) -> 4.1
A4: 90 | B4: 1 | C4: 1 | D4: 1 | E4: 0 | F4: Preisliste,Biere,Schützengarten,Lagerbiere, | G4: 300 | H4: 1 - Ware | I4: Biere | J4: Schützengarten Lagerbiere | K4: Lager hell 5 Liter Partyfass | L4: 001090 | M4: 105 | N4: 7 | O4: =IF(ISNA(VLOOKUP(L4,Artikelinhalt!A:H,8,FALSE)),IF(ISNA(VLOOKUP(L4,Gebindeinhalt!A:H,8,FALSE)),VLOOKUP(L4,Packungseinheit!A:H,8,FALSE),VLOOKUP(L4,Gebindeinhalt!A:H,8,FALSE)),VLOOKUP(L4,Artikelinhalt!A:H,8,FALSE)) -> 5 | P4: =VLOOKUP(L4,Privatpreis!A:D,4,FALSE) -> 17.9
A5: 90 | B5: 1 | C5: 1 | D5: 1 | E5: 0 | F5: Preisliste,Biere,Schützengarten,Lagerbiere, | G5: 300 | H5: 1 - Ware | I5: Biere | J5: Schützengarten Lagerbiere | K5: Lager hell 50 cl MW | L5: 001105 | M5: 104 | N5: 6 | O5: =IF(ISNA(VLOOKUP(L5,Artikelinhalt!A:H,8,FALSE)),IF(ISNA(VLOOKUP(L5,Gebindeinhalt!A:H,8,FALSE)),VLOOKUP(L5,Packungseinheit!A:H,8,FALSE),VLOOKUP(L5,Gebindeinhalt!A:H,8,FALSE)),VLOOKUP(L5,Artikelinhalt!A:H,8,FALSE)) -> 20 | P5: =VLOOKUP(L5,Privatpreis!A:D,4,FALSE) -> 1.68
A6: 90 | B6: 1 | C6: 1 | D6: 1 | E6: 0 | F6: Preisliste,Biere,Schützengarten,Lagerbiere, | G6: 300 | H6: 1 - Ware | I6: Biere | J6: Schützengarten Lagerbiere | K6: Lager hell 50 cl MW Display | L6: 001110 | M6: 103 | N6: 5 | O6: =IF(ISNA(VLOOKUP(L6,Artikelinhalt!A:H,8,FALSE)),IF(ISNA(VLOOKUP(L6,Gebindeinhalt!A:H,8,FALSE)),VLOOKUP(L6,Packungseinheit!A:H,8,FALSE),VLOOKUP(L6,Gebindeinhalt!A:H,8,FALSE)),VLOOKUP(L6,Artikelinhalt!A:H,8,FALSE)) -> 10 | P6: =VLOOKUP(L6,Privatpreis!A:D,4,FALSE) -> 1.68
A7: 90 | B7: 1 | C7: 1 | D7: 1 | E7: 0 | F7: Preisliste,Biere,Schützengarten,Lagerbiere, | G7: 300 | H7: 1 - Ware | I7: Biere | J7: Schützengarten Lagerbiere | K7: Lager hell 4x6er Pack 50 cl Dosen | L7: 001117 | M7: 102 | N7: 4 | O7: =IF(ISNA(VLOOKUP(L7,Artikelinhalt!A:H,8,FALSE)),IF(ISNA(VLOOKUP(L7,Gebindeinhalt!A:H,8,FALSE)),VLOOKUP(L7,Packungseinheit!A:H,8,FALSE),VLOOKUP(L7,Gebindeinhalt!A:H,8,FALSE)),VLOOKUP(L7,Artikelinhalt!A:H,8,FALSE)) -> 24 | P7: =VLOOKUP(L7,Privatpreis!A:D,4,FALSE) -> 1.66
A8: 90 | B8: 1 | C8: 1 | D8: 1 | E8: 0 | F8: Preisliste,Biere,Schützengarten,Lagerbiere, | G8: 300 | H8: 1 - Ware | I8: Biere | J8: Schützengarten Lagerbiere | K8: Lager hell 10x33 cl EW Karton | L8: 001120 | M8: 101 | N8: 3 | O8: =IF(ISNA(VLOOKUP(L8,Artikelinhalt!A:H,8,FALSE)),IF(ISNA(VLOOKUP(L8,Gebindeinhalt!A:H,8,FALSE)),VLOOKUP(L8,Packungseinheit!A:H,8,FALSE),VLOOKUP(L8,Gebindeinhalt!A:H,8,FALSE)),VLOOKUP(L8,Artikelinhalt!A:H,8,FALSE)) -> 10 | P8: =VLOOKUP(L8,Privatpreis!A:D,4,FALSE) -> 1.35
A9: 90 | B9: 1 | C9: 1 | D9: 1 | E9: 0 | F9: Preisliste,Biere,Schützengarten,Lagerbiere, | G9: 300 | H9: 1 - Ware | I9: Biere | J9: Schützengarten Lagerbiere | K9: Lager hell 18x33 cl EW Karton | L9: 001130 | M9: 100 | N9: 2 | O9: =IF(ISNA(VLOOKUP(L9,Artikelinhalt!A:H,8,FALSE)),IF(ISNA(VLOOKUP(L9,Gebindeinhalt!A:H,8,FALSE)),VLOOKUP(L9,Packungseinheit!A:H,8,FALSE),VLOOKUP(L9,Gebindeinhalt!A:H,8,FALSE)),VLOOKUP(L9,Artikelinhalt!A:H,8,FALSE)) -> 18 | P9: =VLOOKUP(L9,Privatpreis!A:D,4,FALSE) -> 1.35
A10: 90 | B10: 1 | C10: 1 | D10: 1 | E10: 0 | F10: Preisliste,Biere,Schützengarten,Lagerbiere, | G10: 300 | H10: 1 - Ware | I10: Biere | J10: Schützengarten Lagerbiere | K10: Lager hell 24 x 33 cl MW | L10: 001161 | M10: 99 | N10: 1 | O10: =IF(ISNA(VLOOKUP(L10,Artikelinhalt!A:H,8,FALSE)),IF(ISNA(VLOOKUP(L10,Gebindeinhalt!A:H,8,FALSE)),VLOOKUP(L10,Packungseinheit!A:H,8,FALSE),VLOOKUP(L10,Gebindeinhalt!A:H,8,FALSE)),VLOOKUP(L10,Artikelinhalt!A:H,8,FALSE)) -> 24 | P10: =VLOOKUP(L10,Privatpreis!A:D,4,FALSE) -> 1.24
A11: 90 | B11: 1 | C11: 1 | D11: 2 | E11: 0 | F11: Preisliste,Biere,Schützengarten,Spezialbiere, | G11: 300 | H11: 1 - Ware | I11: Biere | J11: Schützengarten Spezialbiere | K11: Edelspez 50 L KEG | L11: 001320 | M11: 98 | N11: 6 | O11: =IF(ISNA(VLOOKUP(L11,Artikelinhalt!A:H,8,FALSE)),IF(ISNA(VLOOKUP(L11,Gebindeinhalt!A:H,8,FALSE)),VLOOKUP(L11,Packungseinheit!A:H,8,FALSE),VLOOKUP(L11,Gebindeinhalt!A:H,8,FALSE)),VLOOKUP(L11,Artikelinhalt!A:H,8,FALSE)) -> 50 | P11: =VLOOKUP(L11,Privatpreis!A:D,4,FALSE) -> 4.5
A12: 90 | B12: 1 | C12: 1 | D12: 2 | E12: 0 | F12: Preisliste,Biere,Schützengarten,Spezialbiere, | G12: 300 | H12: 1 - Ware | I12: Biere | J12: Schützengarten Spezialbiere | K12: Edelspez 20 L Container | L12: 001340 | M12: 97 | N12: 5 | O12: =IF(ISNA(VLOOKUP(L12,Artikelinhalt!A:H,8,FALSE)),IF(ISNA(VLOOKUP(L12,Gebindeinhalt!A:H,8,FALSE)),VLOOKUP(L12,Packungseinheit!A:H,8,FALSE),VLOOKUP(L12,Gebindeinhalt!A:H,8,FALSE)),VLOOKUP(L12,Artikelinhalt!A:H,8,FALSE)) -> 20 | P12: =VLOOKUP(L12,Privatpreis!A:D,4,FALSE) -> 4.5
A13: 90 | B13: 1 | C13: 1 | D13: 2 | E13: 0 | F13: Preisliste,Biere,Schützengarten,Spezialbiere, | G13: 300 | H13: 1 - Ware | I13: Biere | J13: Schützengarten Spezialbiere | K13: Edelspez 20 Liter Partyfass | L13: 001380 | M13: 96 | N13: 4 | O13: =IF(ISNA(VLOOKUP(L13,Artikelinhalt!A:H,8,FALSE)),IF(ISNA(VLOOKUP(L13,Gebindeinhalt!A:H,8,FALSE)),VLOOKUP(L13,Packungseinheit!A:H,8,FALSE),VLOOKUP(L13,Gebindeinhalt!A:H,8,FALSE)),VLOOKUP(L13,Artikelinhalt!A:H,8,FALSE)) -> 20 | P13: =VLOOKUP(L13,Privatpreis!A:D,4,FALSE) -> 4.5
A14: 90 | B14: 1 | C14: 1 | D14: 2 | E14: 0 | F14: Preisliste,Biere,Schützengarten,Spezialbiere, | G14: 300 | H14: 1 - Ware | I14: Biere | J14: Schützengarten Spezialbiere | K14: Edelspez 10 Liter Partyfass | L14: 001400 | M14: 95 | N14: 3 | O14: =IF(ISNA(VLOOKUP(L14,Artikelinhalt!A:H,8,FALSE)),IF(ISNA(VLOOKUP(L14,Gebindeinhalt!A:H,8,FALSE)),VLOOKUP(L14,Packungseinheit!A:H,8,FALSE),VLOOKUP(L14,Gebindeinhalt!A:H,8,FALSE)),VLOOKUP(L14,Artikelinhalt!A:H,8,FALSE)) -> 10 | P14: =VLOOKUP(L14,Privatpreis!A:D,4,FALSE) -> 4.5
A15: 90 | B15: 1 | C15: 1 | D15: 2 | E15: 0 | F15: Preisliste,Biere,Schützengarten,Spezialbiere, | G15: 300 | H15: 1 - Ware | I15: Biere | J15: Schützengarten Spezialbiere | K15: Edelspez 8x33 cl EW Karton | L15: 001460 | M15: 94 | N15: 2 | O15: =IF(ISNA(VLOOKUP(L15,Artikelinhalt!A:H,8,FALSE)),IF(ISNA(VLOOKUP(L15,Gebindeinhalt!A:H,8,FALSE)),VLOOKUP(L15,Packungseinheit!A:H,8,FALSE),VLOOKUP(L15,Gebindeinhalt!A:H,8,FALSE)),VLOOKUP(L15,Artikelinhalt!A:H,8,FALSE)) -> 8 | P15: =VLOOKUP(L15,Privatpreis!A:D,4,FALSE) -> 1.52
A16: 90 | B16: 1 | C16: 1 | D16: 2 | E16: 0 | F16: Preisliste,Biere,Schützengarten,Spezialbiere, | G16: 300 | H16: 1 - Ware | I16: Biere | J16: Schützengarten Spezialbiere | K16: Edelspez 33 cl MW | L16: 001480 | M16: 93 | N16: 1 | O16: =IF(ISNA(VLOOKUP(L16,Artikelinhalt!A:H,8,FALSE)),IF(ISNA(VLOOKUP(L16,Gebindeinhalt!A:H,8,FALSE)),VLOOKUP(L16,Packungseinheit!A:H,8,FALSE),VLOOKUP(L16,Gebindeinhalt!A:H,8,FALSE)),VLOOKUP(L16,Artikelinhalt!A:H,8,FALSE)) -> 24 | P16: =VLOOKUP(L16,Privatpreis!A:D,4,FALSE) -> 1.42
A17: 90 | B17: 1 | C17: 1 | D17: 3 | E17: 0 | F17: Preisliste,Biere,Schützengarten,Spezialitätenbiere, | G17: 300 | H17: 1 - Ware | I17: Biere | J17: Schützengarten Spezialitätenbiere | K17: Schützengarten Craft Beer-Box 6x33 cl EW | L17: 001539 | M17: 92 | N17: 51 | O17: =IF(ISNA(VLOOKUP(L17,Artikelinhalt!A:H,8,FALSE)),IF(ISNA(VLOOKUP(L17,Gebindeinhalt!A:H,8,FALSE)),VLOOKUP(L17,Packungseinheit!A:H,8,FALSE),VLOOKUP(L17,Gebindeinhalt!A:H,8,FALSE)),VLOOKUP(L17,Artikelinhalt!A:H,8,FALSE)) -> 6 | P17: =VLOOKUP(L17,Privatpreis!A:D,4,FALSE) -> 14.4
A18: 90 | B18: 1 | C18: 1 | D18: 3 | E18: 0 | F18: Preisliste,Biere,Schützengarten,Spezialitätenbiere, | G18: 300 | H18: 1 - Ware | I18: Biere | J18: Schützengarten Spezialitätenbiere | K18: Schützengarten Sud 1779 6x33 cl EW KT | L18: 001543 | M18: 91 | N18: 50 | O18: =IF(ISNA(VLOOKUP(L18,Artikelinhalt!A:H,8,FALSE)),IF(ISNA(VLOOKUP(L18,Gebindeinhalt!A:H,8,FALSE)),VLOOKUP(L18,Packungseinheit!A:H,8,FALSE),VLOOKUP(L18,Gebindeinhalt!A:H,8,FALSE)),VLOOKUP(L18,Artikelinhalt!A:H,8,FALSE)) -> 6 | P18: =VLOOKUP(L18,Privatpreis!A:D,4,FALSE) -> 2.4
A19: 90 | B19: 1 | C19: 1 | D19: 3 | E19: 0 | F19: Preisliste,Biere,Schützengarten,Spezialitätenbiere, | G19: 300 | H19: 1 - Ware | I19: Biere | J19: Schützengarten Spezialitätenbiere | K19: Schützengarten Sud 1779 33 cl EW Miniharass | L19: 001544 | M19: 90 | N19: 49 | O19: =IF(ISNA(VLOOKUP(L19,Artikelinhalt!A:H,8,FALSE)),IF(ISNA(VLOOKUP(L19,Gebindeinhalt!A:H,8,FALSE)),VLOOKUP(L19,Packungseinheit!A:H,8,FALSE),VLOOKUP(L19,Gebindeinhalt!A:H,8,FALSE)),VLOOKUP(L19,Artikelinhalt!A:H,8,FALSE)) -> 10 | P19: =VLOOKUP(L19,Privatpreis!A:D,4,FALSE) -> 2.35
A20: 90 | B20: 1 | C20: 1 | D20: 3 | E20: 0 | F20: Preisliste,Biere,Schützengarten,Spezialitätenbiere, | G20: 300 | H20: 1 - Ware | I20: Biere | J20: Schützengarten Spezialitätenbiere | K20: Schützengarten Vadian Pale Ale 6x33 cl EW KT | L20: 001546 | M20: 89 | N20: 48 | O20: =IF(ISNA(VLOOKUP(L20,Artikelinhalt!A:H,8,FALSE)),IF(ISNA(VLOOKUP(L20,Gebindeinhalt!A:H,8,FALSE)),VLOOKUP(L20,Packungseinheit!A:H,8,FALSE),VLOOKUP(L20,Gebindeinhalt!A:H,8,FALSE)),VLOOKUP(L20,Artikelinhalt!A:H,8,FALSE)) -> 6 | P20: =VLOOKUP(L20,Privatpreis!A:D,4,FALSE) -> 2.4
A21: 90 | B21: 1 | C21: 1 | D21: 3 | E21: 0 | F21: Preisliste,Biere,Schützengarten,Spezialitätenbiere, | G21: 300 | H21: 1 - Ware | I21: Biere | J21: Schützengarten Spezialitätenbiere | K21: Schützengarten Vadian Pale Ale 33 cl EW Miniharass | L21: 001547 | M21: 88 | N21: 47 | O21: =IF(ISNA(VLOOKUP(L21,Artikelinhalt!A:H,8,FALSE)),IF(ISNA(VLOOKUP(L21,Gebindeinhalt!A:H,8,FALSE)),VLOOKUP(L21,Packungseinheit!A:H,8,FALSE),VLOOKUP(L21,Gebindeinhalt!A:H,8,FALSE)),VLOOKUP(L21,Artikelinhalt!A:H,8,FALSE)) -> 10 | P21: =VLOOKUP(L21,Privatpreis!A:D,4,FALSE) -> 2.35
A22: 90 | B22: 1 | C22: 1 | D22: 3 | E22: 0 | F22: Preisliste,Biere,Schützengarten,Spezialitätenbiere, | G22: 300 | H22: 1 - Ware | I22: Biere | J22: Schützengarten Spezialitätenbiere | K22: Gallus 612 Old Style Ale 33 cl EW Miniharass | L22: 001548 | M22: 87 | N22: 46 | O22: =IF(ISNA(VLOOKUP(L22,Artikelinhalt!A:H,8,FALSE)),IF(ISNA(VLOOKUP(L22,Gebindeinhalt!A:H,8,FALSE)),VLOOKUP(L22,Packungseinheit!A:H,8,FALSE),VLOOKUP(L22,Gebindeinhalt!A:H,8,FALSE)),VLOOKUP(L22,Artikelinhalt!A:H,8,FALSE)) -> 10 | P22: =VLOOKUP(L22,Privatpreis!A:D,4,FALSE) -> 2.35
A23: 90 | B23: 1 | C23: 1 | D23: 3 | E23: 0 | F23: Preisliste,Biere,Schützengarten,Spezialitätenbiere, | G23: 300 | H23: 1 - Ware | I23: Biere | J23: Schützengarten Spezialitätenbiere | K23: Gallus 612 Old Style Ale 6x33 cl EW Karton | L23: 001549 | M23: 86 | N23: 45 | O23: =IF(ISNA(VLOOKUP(L23,Artikelinhalt!A:H,8,FALSE)),IF(ISNA(VLOOKUP(L23,Gebindeinhalt!A:H,8,FALSE)),VLOOKUP(L23,Packungseinheit!A:H,8,FALSE),VLOOKUP(L23,Gebindeinhalt!A:H,8,FALSE)),VLOOKUP(L23,Artikelinhalt!A:H,8,FALSE)) -> 6 | P23: =VLOOKUP(L23,Privatpreis!A:D,4,FALSE) -> 2.4
A24: 90 | B24: 1 | C24: 1 | D24: 3 | E24: 0 | F24: Preisliste,Biere,Schützengarten,Spezialitätenbiere, | G24: 300 | H24: 1 - Ware | I24: Biere | J24: Schützengarten Spezialitätenbiere | K24: Gallus 612 Old Style Ale 20 L Container | L24: 001553 | M24: 85 | N24: 44 | O24: =IF(ISNA(VLOOKUP(L24,Artikelinhalt!A:H,8,FALSE)),IF(ISNA(VLOOKUP(L24,Gebindeinhalt!A:H,8,FALSE)),VLOOKUP(L24,Packungseinheit!A:H,8,FALSE),VLOOKUP(L24,Gebindeinhalt!A:H,8,FALSE)),VLOOKUP(L24,Artikelinhalt!A:H,8,FALSE)) -> 20 | P24: =VLOOKUP(L24,Privatpreis!A:D,4,FALSE) -> 5.9
A25: 90 | B25: 1 | C25: 1 | D25: 3 | E25: 0 | F25: Preisliste,Biere,Schützengarten,Spezialitätenbiere, | G25: 300 | H25: 1 - Ware | I25: Biere | J25: Schützengarten Spezialitätenbiere | K25: Schützengarten India Pale Ale 6x33 cl EW Karton | L25: 001555 | M25: 84 | N25: 43 | O25: =IF(ISNA(VLOOKUP(L25,Artikelinhalt!A:H,8,FALSE)),IF(ISNA(VLOOKUP(L25,Gebindeinhalt!A:H,8,FALSE)),VLOOKUP(L25,Packungseinheit!A:H,8,FALSE),VLOOKUP(L25,Gebindeinhalt!A:H,8,FALSE)),VLOOKUP(L25,Artikelinhalt!A:H,8,FALSE)) -> 6 | P25: =VLOOKUP(L25,Privatpreis!A:D,4,FALSE) -> 2.4
A26: 90 | B26: 1 | C26: 1 | D26: 3 | E26: 0 | F26: Preisliste,Biere,Schützengarten,Spezialitätenbiere, | G26: 300 | H26: 1 - Ware | I26: Biere | J26: Schützengarten Spezialitätenbiere | K26: Schützengarten India Pale Ale 33 cl EW Miniharass | L26: 001556 | M26: 83 | N26: 42 | O26: =IF(ISNA(VLOOKUP(L26,Artikelinhalt!A:H,8,FALSE)),IF(ISNA(VLOOKUP(L26,Gebindeinhalt!A:H,8,FALSE)),VLOOKUP(L26,Packungseinheit!A:H,8,FALSE),VLOOKUP(L26,Gebindeinhalt!A:H,8,FALSE)),VLOOKUP(L26,Artikelinhalt!A:H,8,FALSE)) -> 10 | P26: =VLOOKUP(L26,Privatpreis!A:D,4,FALSE) -> 2.35
A27: 90 | B27: 1 | C27: 1 | D27: 3 | E27: 0 | F27: Preisliste,Biere,Schützengarten,Spezialitätenbiere, | G27: 300 | H27: 1 - Ware | I27: Biere | J27: Schützengarten Spezialitätenbiere | K27: Schützengarten India Pale Ale 20 L Container | L27: 001557 | M27: 82 | N27: 41 | O27: =IF(ISNA(VLOOKUP(L27,Artikelinhalt!A:H,8,FALSE)),IF(ISNA(VLOOKUP(L27,Gebindeinhalt!A:H,8,FALSE)),VLOOKUP(L27,Packungseinheit!A:H,8,FALSE),VLOOKUP(L27,Gebindeinhalt!A:H,8,FALSE)),VLOOKUP(L27,Artikelinhalt!A:H,8,FALSE)) -> 20 | P27: =VLOOKUP(L27,Privatpreis!A:D,4,FALSE) -> 5.9
A28: 90 | B28: 1 | C28: 1 | D28: 3 | E28: 0 | F28: Preisliste,Biere,Schützengarten,Spezialitätenbiere, | G28: 300 | H28: 1 - Ware | I28: Biere | J28: Schützengarten Spezialitätenbiere | K28: Schützengarten Swiss Stout 6x33 cl EW Karton | L28: 001558 | M28: 81 | N28: 40 | O28: =IF(ISNA(VLOOKUP(L28,Artikelinhalt!A:H,8,FALSE)),IF(ISNA(VLOOKUP(L28,Gebindeinhalt!A:H,8,FALSE)),VLOOKUP(L28,Packungseinheit!A:H,8,FALSE),VLOOKUP(L28,Gebindeinhalt!A:H,8,FALSE)),VLOOKUP(L28,Artikelinhalt!A:H,8,FALSE)) -> 6 | P28: =VLOOKUP(L28,Privatpreis!A:D,4,FALSE) -> 2.4
A29: 90 | B29: 1 | C29: 1 | D29: 3 | E29: 0 | F29: Preisliste,Biere,Schützengarten,Spezialitätenbiere, | G29: 300 | H29: 1 - Ware | I29: Biere | J29: Schützengarten Spezialitätenbiere | K29: Schützengarten Swiss Stout 33 cl EW Miniharass | L29: 001559 | M29: 80 | N29: 39 | O29: =IF(ISNA(VLOOKUP(L29,Artikelinhalt!A:H,8,FALSE)),IF(ISNA(VLOOKUP(L29,Gebindeinhalt!A:H,8,FALSE)),VLOOKUP(L29,Packungseinheit!A:H,8,FALSE),VLOOKUP(L29,Gebindeinhalt!A:H,8,FALSE)),VLOOKUP(L29,Artikelinhalt!A:H,8,FALSE)) -> 10 | P29: =VLOOKUP(L29,Privatpreis!A:D,4,FALSE) -> 2.35
A30: 90 | B30: 1 | C30: 1 | D30: 3 | E30: 0 | F30: Preisliste,Biere,Schützengarten,Spezialitätenbiere, | G30: 300 | H30: 1 - Ware | I30: Biere | J30: Schützengarten Spezialitätenbiere | K30: Säntisbier 33 cl MW | L30: 001576 | M30: 79 | N30: 38 | O30: =IF(ISNA(VLOOKUP(L30,Artikelinhalt!A:H,8,FALSE)),IF(ISNA(VLOOKUP(L30,Gebindeinhalt!A:H,8,FALSE)),VLOOKUP(L30,Packungseinheit!A:H,8,FALSE),VLOOKUP(L30,Gebindeinhalt!A:H,8,FALSE)),VLOOKUP(L30,Artikelinhalt!A:H,8,FALSE)) -> 20 | P30: =VLOOKUP(L30,Privatpreis!A:D,4,FALSE) -> 1.7
A31: 90 | B31: 1 | C31: 1 | D31: 3 | E31: 0 | F31: Preisliste,Biere,Schützengarten,Spezialitätenbiere, | G31: 300 | H31: 1 - Ware | I31: Biere | J31: Schützengarten Spezialitätenbiere | K31: Schwarzer Bär Dunkelbier 33 cl MW | L31: 001577 | M31: 78 | N31: 37 | O31: =IF(ISNA(VLOOKUP(L31,Artikelinhalt!A:H,8,FALSE)),IF(ISNA(VLOOKUP(L31,Gebindeinhalt!A:H,8,FALSE)),VLOOKUP(L31,Packungseinheit!A:H,8,FALSE),VLOOKUP(L31,Gebindeinhalt!A:H,8,FALSE)),VLOOKUP(L31,Artikelinhalt!A:H,8,FALSE)) -> 20 | P31: =VLOOKUP(L31,Privatpreis!A:D,4,FALSE) -> 1.7
A32: 90 | B32: 1 | C32: 1 | D32: 3 | E32: 0 | F32: Preisliste,Biere,Schützengarten,Spezialitätenbiere, | G32: 300 | H32: 1 - Ware | I32: Biere | J32: Schützengarten Spezialitätenbiere | K32: Säntisbier 50 cl MW | L32: 001585 | M32: 77 | N32: 36 | O32: =IF(ISNA(VLOOKUP(L32,Artikelinhalt!A:H,8,FALSE)),IF(ISNA(VLOOKUP(L32,Gebindeinhalt!A:H,8,FALSE)),VLOOKUP(L32,Packungseinheit!A:H,8,FALSE),VLOOKUP(L32,Gebindeinhalt!A:H,8,FALSE)),VLOOKUP(L32,Artikelinhalt!A:H,8,FALSE)) -> 15 | P32: =VLOOKUP(L32,Privatpreis!A:D,4,FALSE) -> 1.92
A33: 90 | B33: 1 | C33: 1 | D33: 3 | E33: 0 | F33: Preisliste,Biere,Schützengarten,Spezialitätenbiere, | G33: 300 | H33: 1 - Ware | I33: Biere | J33: Schützengarten Spezialitätenbiere | K33: Säntisbier 8x33 cl EW Karton | L33: 001586 | M33: 76 | N33: 35 | O33: =IF(ISNA(VLOOKUP(L33,Artikelinhalt!A:H,8,FALSE)),IF(ISNA(VLOOKUP(L33,Gebindeinhalt!A:H,8,FALSE)),VLOOKUP(L33,Packungseinheit!A:H,8,FALSE),VLOOKUP(L33,Gebindeinhalt!A:H,8,FALSE)),VLOOKUP(L33,Artikelinhalt!A:H,8,FALSE)) -> 8 | P33: =VLOOKUP(L33,Privatpreis!A:D,4,FALSE) -> 1.6
A34: 90 | B34: 1 | C34: 1 | D34: 3 | E34: 0 | F34: Preisliste,Biere,Schützengarten,Spezialitätenbiere, | G34: 300 | H34: 1 - Ware | I34: Biere | J34: Schützengarten Spezialitätenbiere | K34: Schwarzer Bär Dunkelbier 20 L Container | L34: 001592 | M34: 75 | N34: 34 | O34: =IF(ISNA(VLOOKUP(L34,Artikelinhalt!A:H,8,FALSE)),IF(ISNA(VLOOKUP(L34,Gebindeinhalt!A:H,8,FALSE)),VLOOKUP(L34,Packungseinheit!A:H,8,FALSE),VLOOKUP(L34,Gebindeinhalt!A:H,8,FALSE)),VLOOKUP(L34,Artikelinhalt!A:H,8,FALSE)) -> 20 | P34: =VLOOKUP(L34,Privatpreis!A:D,4,FALSE) -> 4.5
A35: 90 | B35: 1 | C35: 1 | D35: 3 | E35: 0 | F35: Preisliste,Biere,Schützengarten,Spezialitätenbiere, | G35: 300 | H35: 1 - Ware | I35: Biere | J35: Schützengarten Spezialitätenbiere | K35: Schwarzer Bär Dunkelbier 50 cl MW | L35: 001594 | M35: 74 | N35: 33 | O35: =IF(ISNA(VLOOKUP(L35,Artikelinhalt!A:H,8,FALSE)),IF(ISNA(VLOOKUP(L35,Gebindeinhalt!A:H,8,FALSE)),VLOOKUP(L35,Packungseinheit!A:H,8,FALSE),VLOOKUP(L35,Gebindeinhalt!A:H,8,FALSE)),VLOOKUP(L35,Artikelinhalt!A:H,8,FALSE)) -> 15 | P35: =VLOOKUP(L35,Privatpreis!A:D,4,FALSE) -> 1.96
A36: 90 | B36: 1 | C36: 1 | D36: 3 | E36: 0 | F36: Preisliste,Biere,Schützengarten,Spezialitätenbiere, | G36: 300 | H36: 1 - Ware | I36: Biere | J36: Schützengarten Spezialitätenbiere | K36: Schwarzer Bär Dunkelbier 8x33 cl EW Kart | L36: 001596 | M36: 73 | N36: 32 | O36: =IF(ISNA(VLOOKUP(L36,Artikelinhalt!A:H,8,FALSE)),IF(ISNA(VLOOKUP(L36,Gebindeinhalt!A:H,8,FALSE)),VLOOKUP(L36,Packungseinheit!A:H,8,FALSE),VLOOKUP(L36,Gebindeinhalt!A:H,8,FALSE)),VLOOKUP(L36,Artikelinhalt!A:H,8,FALSE)) -> 8 | P36: =VLOOKUP(L36,Privatpreis!A:D,4,FALSE) -> 1.57
A37: 90 | B37: 1 | C37: 1 | D37: 3 | E37: 0 | F37: Preisliste,Biere,Schützengarten,Spezialitätenbiere, | G37: 300 | H37: 1 - Ware | I37: Biere | J37: Schützengarten Spezialitätenbiere | K37: Festbier 50 cl MW | L37: 001780 | M37: 72 | N37: 31 | O37: =IF(ISNA(VLOOKUP(L37,Artikelinhalt!A:H,8,FALSE)),IF(ISNA(VLOOKUP(L37,Gebindeinhalt!A:H,8,FALSE)),VLOOKUP(L37,Packungseinheit!A:H,8,FALSE),VLOOKUP(L37,Gebindeinhalt!A:H,8,FALSE)),VLOOKUP(L37,Artikelinhalt!A:H,8,FALSE)) -> 20 | P37: =VLOOKUP(L37,Privatpreis!A:D,4,FALSE) -> 1.66
A38: 90 | B38: 1 | C38: 1 | D38: 3 | E38: 0 | F38: Preisliste,Biere,Schützengarten,Spezialitätenbiere, | G38: 300 | H38: 1 - Ware | I38: Biere | J38: Schützengarten Spezialitätenbiere | K38: Festbier 50 cl MW Display | L38: 001785 | M38: 71 | N38: 30 | O38: =IF(ISNA(VLOOKUP(L38,Artikelinhalt!A:H,8,FALSE)),IF(ISNA(VLOOKUP(L38,Gebindeinhalt!A:H,8,FALSE)),VLOOKUP(L38,Packungseinheit!A:H,8,FALSE),VLOOKUP(L38,Gebindeinhalt!A:H,8,FALSE)),VLOOKUP(L38,Artikelinhalt!A:H,8,FALSE)) -> 10 | P38: =VLOOKUP(L38,Privatpreis!A:D,4,FALSE) -> 1.66
A39: 90 | B39: 1 | C39: 1 | D39: 3 | E39: 0 | F39: Preisliste,Biere,Schützengarten,Spezialitätenbiere, | G39: 300 | H39: 1 - Ware | I39: Biere | J39: Schützengarten Spezialitätenbiere | K39: Festbier 8x33 cl EW Karton | L39: 001786 | M39: 70 | N39: 29 | O39: =IF(ISNA(VLOOKUP(L39,Artikelinhalt!A:H,8,FALSE)),IF(ISNA(VLOOKUP(L39,Gebindeinhalt!A:H,8,FALSE)),VLOOKUP(L39,Packungseinheit!A:H,8,FALSE),VLOOKUP(L39,Gebindeinhalt!A:H,8,FALSE)),VLOOKUP(L39,Artikelinhalt!A:H,8,FALSE)) -> 8 | P39: =VLOOKUP(L39,Privatpreis!A:D,4,FALSE) -> 1.52
A40: 90 | B40: 1 | C40: 1 | D40: 3 | E40: 0 | F40: Preisliste,Biere,Schützengarten,Spezialitätenbiere, | G40: 300 | H40: 1 - Ware | I40: Biere | J40: Schützengarten Spezialitätenbiere | K40: Weisser Engel 20 L Container | L40: 001803 | M40: 69 | N40: 28 | O40: =IF(ISNA(VLOOKUP(L40,Artikelinhalt!A:H,8,FALSE)),IF(ISNA(VLOOKUP(L40,Gebindeinhalt!A:H,8,FALSE)),VLOOKUP(L40,Packungseinheit!A:H,8,FALSE),VLOOKUP(L40,Gebindeinhalt!A:H,8,FALSE)),VLOOKUP(L40,Artikelinhalt!A:H,8,FALSE)) -> 20 | P40: =VLOOKUP(L40,Privatpreis!A:D,4,FALSE) -> 4.04
A41: 90 | B41: 1 | C41: 1 | D41: 3 | E41: 0 | F41: Preisliste,Biere,Schützengarten,Spezialitätenbiere, | G41: 300 | H41: 1 - Ware | I41: Biere | J41: Schützengarten Spezialitätenbiere | K41: Weisser Engel 50 cl MW | L41: 001806 | M41: 68 | N41: 27 | O41: =IF(ISNA(VLOOKUP(L41,Artikelinhalt!A:H,8,FALSE)),IF(ISNA(VLOOKUP(L41,Gebindeinhalt!A:H,8,FALSE)),VLOOKUP(L41,Packungseinheit!A:H,8,FALSE),VLOOKUP(L41,Gebindeinhalt!A:H,8,FALSE)),VLOOKUP(L41,Artikelinhalt!A:H,8,FALSE)) -> 20 | P41: =VLOOKUP(L41,Privatpreis!A:D,4,FALSE) -> 2.23
A42: 90 | B42: 1 | C42: 1 | D42: 3 | E42: 0 | F42: Preisliste,Biere,Schützengarten,Spezialitätenbiere, | G42: 300 | H42: 1 - Ware | I42: Biere | J42: Schützengarten Spezialitätenbiere | K42: Weisser Engel 4x50 cl EW Karton | L42: 001810 | M42: 67 | N42: 26 | O42: =IF(ISNA(VLOOKUP(L42,Artikelinhalt!A:H,8,FALSE)),IF(ISNA(VLOOKUP(L42,Gebindeinhalt!A:H,8,FALSE)),VLOOKUP(L42,Packungseinheit!A:H,8,FALSE),VLOOKUP(L42,Gebindeinhalt!A:H,8,FALSE)),VLOOKUP(L42,Artikelinhalt!A:H,8,FALSE)) -> 4 | P42: =VLOOKUP(L42,Privatpreis!A:D,4,FALSE) -> 2.4
A43: 90 | B43: 1 | C43: 1 | D43: 3 | E43: 0 | F43: Preisliste,Biere,Schützengarten,Spezialitätenbiere, | G43: 300 | H43: 1 - Ware | I43: Biere | J43: Schützengarten Spezialitätenbiere | K43: Schützengarten Panaché 33 cl EW Miniharass | L43: 001819 | M43: 66 | N43: 25 | O43: =IF(ISNA(VLOOKUP(L43,Artikelinhalt!A:H,8,FALSE)),IF(ISNA(VLOOKUP(L43,Gebindeinhalt!A:H,8,FALSE)),VLOOKUP(L43,Packungseinheit!A:H,8,FALSE),VLOOKUP(L43,Gebindeinhalt!A:H,8,FALSE)),VLOOKUP(L43,Artikelinhalt!A:H,8,FALSE)) -> 10 | P43: =VLOOKUP(L43,Privatpreis!A:D,4,FALSE) -> 1.38
A44: 90 | B44: 1 | C44: 1 | D44: 3 | E44: 0 | F44: Preisliste,Biere,Schützengarten,Spezialitätenbiere, | G44: 300 | H44: 1 - Ware | I44: Biere | J44: Schützengarten Spezialitätenbiere | K44: Schützengarten Panaché 6x33 cl EW Karton | L44: 001821 | M44: 65 | N44: 24 | O44: =IF(ISNA(VLOOKUP(L44,Artikelinhalt!A:H,8,FALSE)),IF(ISNA(VLOOKUP(L44,Gebindeinhalt!A:H,8,FALSE)),VLOOKUP(L44,Packungseinheit!A:H,8,FALSE),VLOOKUP(L44,Gebindeinhalt!A:H,8,FALSE)),VLOOKUP(L44,Artikelinhalt!A:H,8,FALSE)) -> 6 | P44: =VLOOKUP(L44,Privatpreis!A:D,4,FALSE) -> 1.425
A45: 90 | B45: 1 | C45: 1 | D45: 3 | E45: 0 | F45: Preisliste,Biere,Schützengarten,Spezialitätenbiere, | G45: 300 | H45: 1 - Ware | I45: Biere | J45: Schützengarten Spezialitätenbiere | K45: Schützengarten Panaché 4x6er 50 cl Dosen | L45: 001823 | M45: 64 | N45: 23 | O45: =IF(ISNA(VLOOKUP(L45,Artikelinhalt!A:H,8,FALSE)),IF(ISNA(VLOOKUP(L45,Gebindeinhalt!A:H,8,FALSE)),VLOOKUP(L45,Packungseinheit!A:H,8,FALSE),VLOOKUP(L45,Gebindeinhalt!A:H,8,FALSE)),VLOOKUP(L45,Artikelinhalt!A:H,8,FALSE)) -> 24 | P45: =VLOOKUP(L45,Privatpreis!A:D,4,FALSE) -> 1.82
A46: 90 | B46: 1 | C46: 1 | D46: 3 | E46: 0 | F46: Preisliste,Biere,Schützengarten,Spezialitätenbiere, | G46: 300 | H46: 1 - Ware | I46: Biere | J46: Schützengarten Spezialitätenbiere | K46: Schützengarten Aperitivo 6x33 cl EW Kar. | L46: 001824 | M46: 63 | N46: 22 | O46: =IF(ISNA(VLOOKUP(L46,Artikelinhalt!A:H,8,FALSE)),IF(ISNA(VLOOKUP(L46,Gebindeinhalt!A:H,8,FALSE)),VLOOKUP(L46,Packungseinheit!A:H,8,FALSE),VLOOKUP(L46,Gebindeinhalt!A:H,8,FALSE)),VLOOKUP(L46,Artikelinhalt!A:H,8,FALSE)) -> 6 | P46: =VLOOKUP(L46,Privatpreis!A:D,4,FALSE) -> 1.425
A47: 90 | B47: 1 | C47: 1 | D47: 3 | E47: 0 | F47: Preisliste,Biere,Schützengarten,Spezialitätenbiere, | G47: 300 | H47: 1 - Ware | I47: Biere | J47: Schützengarten Spezialitätenbiere | K47: Schützengarten Aperitivo 33 cl EW Miniharass | L47: 001826 | M47: 62 | N47: 21 | O47: =IF(ISNA(VLOOKUP(L47,Artikelinhalt!A:H,8,FALSE)),IF(ISNA(VLOOKUP(L47,Gebindeinhalt!A:H,8,FALSE)),VLOOKUP(L47,Packungseinheit!A:H,8,FALSE),VLOOKUP(L47,Gebindeinhalt!A:H,8,FALSE)),VLOOKUP(L47,Artikelinhalt!A:H,8,FALSE)) -> 10 | P47: =VLOOKUP(L47,Privatpreis!A:D,4,FALSE) -> 1.38
A48: 90 | B48: 1 | C48: 1 | D48: 3 | E48: 0 | F48: Preisliste,Biere,Schützengarten,Spezialitätenbiere, | G48: 300 | H48: 1 - Ware | I48: Biere | J48: Schützengarten Spezialitätenbiere | K48: Säntis / Huusbier 20 L Container | L48: 001880 | M48: 61 | N48: 20 | O48: =IF(ISNA(VLOOKUP(L48,Artikelinhalt!A:H,8,FALSE)),IF(ISNA(VLOOKUP(L48,Gebindeinhalt!A:H,8,FALSE)),VLOOKUP(L48,Packungseinheit!A:H,8,FALSE),VLOOKUP(L48,Gebindeinhalt!A:H,8,FALSE)),VLOOKUP(L48,Artikelinhalt!A:H,8,FALSE)) -> 20 | P48: =VLOOKUP(L48,Privatpreis!A:D,4,FALSE) -> 4.54
A49: 90 | B49: 1 | C49: 1 | D49: 3 | E49: 0 | F49: Preisliste,Biere,Schützengarten,Spezialitätenbiere, | G49: 300 | H49: 1 - Ware | I49: Biere | J49: Schützengarten Spezialitätenbiere | K49: St. Galler Klosterbräu 20 L Container | L49: 001910 | M49: 60 | N49: 19 | O49: =IF(ISNA(VLOOKUP(L49,Artikelinhalt!A:H,8,FALSE)),IF(ISNA(VLOOKUP(L49,Gebindeinhalt!A:H,8,FALSE)),VLOOKUP(L49,Packungseinheit!A:H,8,FALSE),VLOOKUP(L49,Gebindeinhalt!A:H,8,FALSE)),VLOOKUP(L49,Artikelinhalt!A:H,8,FALSE)) -> 20 | P49: =VLOOKUP(L49,Privatpreis!A:D,4,FALSE) -> 4.5
A50: 90 | B50: 1 | C50: 1 | D50: 3 | E50: 0 | F50: Preisliste,Biere,Schützengarten,Spezialitätenbiere, | G50: 300 | H50: 1 - Ware | I50: Biere | J50: Schützengarten Spezialitätenbiere | K50: St. Galler Klosterbräu 2 Lt-Füllung | L50: 001920 | M50: 59 | N50: 18 | O50: =IF(ISNA(VLOOKUP(L50,Artikelinhalt!A:H,8,FALSE)),IF(ISNA(VLOOKUP(L50,Gebindeinhalt!A:H,8,FALSE)),VLOOKUP(L50,Packungseinheit!A:H,8,FALSE),VLOOKUP(L50,Gebindeinhalt!A:H,8,FALSE)),VLOOKUP(L50,Artikelinhalt!A:H,8,FALSE)) -> 2 | P50: =VLOOKUP(L50,Privatpreis!A:D,4,FALSE) -> 11.42
A51: 90 | B51: 1 | C51: 1 | D51: 3 | E51: 0 | F51: Preisliste,Biere,Schützengarten,Spezialitätenbiere, | G51: 300 | H51: 1 - Ware | I51: Biere | J51: Schützengarten Spezialitätenbiere | K51: St. Galler Klosterbräu 3 Lt inkl. Holzkiste EW | L51: 001923 | M51: 58 | N51: 17 | O51: =IF(ISNA(VLOOKUP(L51,Artikelinhalt!A:H,8,FALSE)),IF(ISNA(VLOOKUP(L51,Gebindeinhalt!A:H,8,FALSE)),VLOOKUP(L51,Packungseinheit!A:H,8,FALSE),VLOOKUP(L51,Gebindeinhalt!A:H,8,FALSE)),VLOOKUP(L51,Artikelinhalt!A:H,8,FALSE)) -> 1 | P51: =VLOOKUP(L51,Privatpreis!A:D,4,FALSE) -> 41.9
A52: 90 | B52: 1 | C52: 1 | D52: 3 | E52: 0 | F52: Preisliste,Biere,Schützengarten,Spezialitätenbiere, | G52: 300 | H52: 1 - Ware | I52: Biere | J52: Schützengarten Spezialitätenbiere | K52: Säntisbier 3 Lt inkl. Holzkiste EW | L52: 001925 | M52: 57 | N52: 16 | O52: =IF(ISNA(VLOOKUP(L52,Artikelinhalt!A:H,8,FALSE)),IF(ISNA(VLOOKUP(L52,Gebindeinhalt!A:H,8,FALSE)),VLOOKUP(L52,Packungseinheit!A:H,8,FALSE),VLOOKUP(L52,Gebindeinhalt!A:H,8,FALSE)),VLOOKUP(L52,Artikelinhalt!A:H,8,FALSE)) -> 1 | P52: =VLOOKUP(L52,Privatpreis!A:D,4,FALSE) -> 48.9
A53: 90 | B53: 1 | C53: 1 | D53: 3 | E53: 0 | F53: Preisliste,Biere,Schützengarten,Spezialitätenbiere, | G53: 300 | H53: 1 - Ware | I53: Biere | J53: Schützengarten Spezialitätenbiere | K53: St. Galler Klosterbräu 50 cl MW | L53: 001930 | M53: 56 | N53: 15 | O53: =IF(ISNA(VLOOKUP(L53,Artikelinhalt!A:H,8,FALSE)),IF(ISNA(VLOOKUP(L53,Gebindeinhalt!A:H,8,FALSE)),VLOOKUP(L53,Packungseinheit!A:H,8,FALSE),VLOOKUP(L53,Gebindeinhalt!A:H,8,FALSE)),VLOOKUP(L53,Artikelinhalt!A:H,8,FALSE)) -> 15 | P53: =VLOOKUP(L53,Privatpreis!A:D,4,FALSE) -> 1.98
A54: 90 | B54: 1 | C54: 1 | D54: 3 | E54: 0 | F54: Preisliste,Biere,Schützengarten,Spezialitätenbiere, | G54: 300 | H54: 1 - Ware | I54: Biere | J54: Schützengarten Spezialitätenbiere | K54: St. Galler Klosterbräu 33 cl MW | L54: 001938 | M54: 55 | N54: 14 | O54: =IF(ISNA(VLOOKUP(L54,Artikelinhalt!A:H,8,FALSE)),IF(ISNA(VLOOKUP(L54,Gebindeinhalt!A:H,8,FALSE)),VLOOKUP(L54,Packungseinheit!A:H,8,FALSE),VLOOKUP(L54,Gebindeinhalt!A:H,8,FALSE)),VLOOKUP(L54,Artikelinhalt!A:H,8,FALSE)) -> 20 | P54: =VLOOKUP(L54,Privatpreis!A:D,4,FALSE) -> 1.7
A55: 90 | B55: 1 | C55: 1 | D55: 3 | E55: 0 | F55: Preisliste,Biere,Schützengarten,Spezialitätenbiere, | G55: 300 | H55: 1 - Ware | I55: Biere | J55: Schützengarten Spezialitätenbiere | K55: St. Galler Klosterbräu 4x6er 50 cl Dosen | L55: 001939 | M55: 54 | N55: 13 | O55: =IF(ISNA(VLOOKUP(L55,Artikelinhalt!A:H,8,FALSE)),IF(ISNA(VLOOKUP(L55,Gebindeinhalt!A:H,8,FALSE)),VLOOKUP(L55,Packungseinheit!A:H,8,FALSE),VLOOKUP(L55,Gebindeinhalt!A:H,8,FALSE)),VLOOKUP(L55,Artikelinhalt!A:H,8,FALSE)) -> 24 | P55: =VLOOKUP(L55,Privatpreis!A:D,4,FALSE) -> 1.98
A56: 90 | B56: 1 | C56: 1 | D56: 3 | E56: 0 | F56: Preisliste,Biere,Schützengarten,Spezialitätenbiere, | G56: 300 | H56: 1 - Ware | I56: Biere | J56: Schützengarten Spezialitätenbiere | K56: St. Galler Klosterbräu 8x33 cl EW Kart. | L56: 001941 | M56: 53 | N56: 12 | O56: =IF(ISNA(VLOOKUP(L56,Artikelinhalt!A:H,8,FALSE)),IF(ISNA(VLOOKUP(L56,Gebindeinhalt!A:H,8,FALSE)),VLOOKUP(L56,Packungseinheit!A:H,8,FALSE),VLOOKUP(L56,Gebindeinhalt!A:H,8,FALSE)),VLOOKUP(L56,Artikelinhalt!A:H,8,FALSE)) -> 8 | P56: =VLOOKUP(L56,Privatpreis!A:D,4,FALSE) -> 1.57
A57: 90 | B57: 1 | C57: 1 | D57: 3 | E57: 0 | F57: Preisliste,Biere,Schützengarten,Spezialitätenbiere, | G57: 300 | H57: 1 - Ware | I57: Biere | J57: Schützengarten Spezialitätenbiere | K57: Landbier 20 L Container | L57: 001942 | M57: 52 | N57: 11 | O57: =IF(ISNA(VLOOKUP(L57,Artikelinhalt!A:H,8,FALSE)),IF(ISNA(VLOOKUP(L57,Gebindeinhalt!A:H,8,FALSE)),VLOOKUP(L57,Packungseinheit!A:H,8,FALSE),VLOOKUP(L57,Gebindeinhalt!A:H,8,FALSE)),VLOOKUP(L57,Artikelinhalt!A:H,8,FALSE)) -> 20 | P57: =VLOOKUP(L57,Privatpreis!A:D,4,FALSE) -> 4.5
A58: 90 | B58: 1 | C58: 1 | D58: 3 | E58: 0 | F58: Preisliste,Biere,Schützengarten,Spezialitätenbiere, | G58: 300 | H58: 1 - Ware | I58: Biere | J58: Schützengarten Spezialitätenbiere | K58: Landbier 50 cl MW | L58: 001946 | M58: 51 | N58: 10 | O58: =IF(ISNA(VLOOKUP(L58,Artikelinhalt!A:H,8,FALSE)),IF(ISNA(VLOOKUP(L58,Gebindeinhalt!A:H,8,FALSE)),VLOOKUP(L58,Packungseinheit!A:H,8,FALSE),VLOOKUP(L58,Gebindeinhalt!A:H,8,FALSE)),VLOOKUP(L58,Artikelinhalt!A:H,8,FALSE)) -> 15 | P58: =VLOOKUP(L58,Privatpreis!A:D,4,FALSE) -> 1.98
A59: 90 | B59: 1 | C59: 1 | D59: 3 | E59: 0 | F59: Preisliste,Biere,Schützengarten,Spezialitätenbiere, | G59: 300 | H59: 1 - Ware | I59: Biere | J59: Schützengarten Spezialitätenbiere | K59: Landbier 33 cl MW | L59: 001947 | M59: 50 | N59: 9 | O59: =IF(ISNA(VLOOKUP(L59,Artikelinhalt!A:H,8,FALSE)),IF(ISNA(VLOOKUP(L59,Gebindeinhalt!A:H,8,FALSE)),VLOOKUP(L59,Packungseinheit!A:H,8,FALSE),VLOOKUP(L59,Gebindeinhalt!A:H,8,FALSE)),VLOOKUP(L59,Artikelinhalt!A:H,8,FALSE)) -> 20 | P59: =VLOOKUP(L59,Privatpreis!A:D,4,FALSE) -> 1.7
A60: 90 | B60: 1 | C60: 1 | D60: 3 | E60: 0 | F60: Preisliste,Biere,Schützengarten,Spezialitätenbiere, | G60: 300 | H60: 1 - Ware | I60: Biere | J60: Schützengarten Spezialitätenbiere | K60: Landbier 8x33 cl EW Karton | L60: 001948 | M60: 49 | N60: 8 | O60: =IF(ISNA(VLOOKUP(L60,Artikelinhalt!A:H,8,FALSE)),IF(ISNA(VLOOKUP(L60,Gebindeinhalt!A:H,8,FALSE)),VLOOKUP(L60,Packungseinheit!A:H,8,FALSE),VLOOKUP(L60,Gebindeinhalt!A:H,8,FALSE)),VLOOKUP(L60,Artikelinhalt!A:H,8,FALSE)) -> 8 | P60: =VLOOKUP(L60,Privatpreis!A:D,4,FALSE) -> 1.57
A61: 90 | B61: 1 | C61: 1 | D61: 3 | E61: 0 | F61: Preisliste,Biere,Schützengarten,Spezialitätenbiere, | G61: 300 | H61: 1 - Ware | I61: Biere | J61: Schützengarten Spezialitätenbiere | K61: Bierhalbmeter EW 33 cl/Do 50 cl | L61: 001974 | M61: 48 | N61: 7 | O61: =IF(ISNA(VLOOKUP(L61,Artikelinhalt!A:H,8,FALSE)),IF(ISNA(VLOOKUP(L61,Gebindeinhalt!A:H,8,FALSE)),VLOOKUP(L61,Packungseinheit!A:H,8,FALSE),VLOOKUP(L61,Gebindeinhalt!A:H,8,FALSE)),VLOOKUP(L61,Artikelinhalt!A:H,8,FALSE)) -> 1 | P61: =VLOOKUP(L61,Privatpreis!A:D,4,FALSE) -> 30.75
A62: 90 | B62: 1 | C62: 1 | D62: 3 | E62: 0 | F62: Preisliste,Biere,Schützengarten,Spezialitätenbiere, | G62: 300 | H62: 1 - Ware | I62: Biere | J62: Schützengarten Spezialitätenbiere | K62: Biermeter EW 33 cl/Do 50cl | L62: 001976 | M62: 47 | N62: 6 | O62: =IF(ISNA(VLOOKUP(L62,Artikelinhalt!A:H,8,FALSE)),IF(ISNA(VLOOKUP(L62,Gebindeinhalt!A:H,8,FALSE)),VLOOKUP(L62,Packungseinheit!A:H,8,FALSE),VLOOKUP(L62,Gebindeinhalt!A:H,8,FALSE)),VLOOKUP(L62,Artikelinhalt!A:H,8,FALSE)) -> 1 | P62: =VLOOKUP(L62,Privatpreis!A:D,4,FALSE) -> 51
A63: 90 | B63: 1 | C63: 1 | D63: 3 | E63: 0 | F63: Preisliste,Biere,Schützengarten,Spezialitätenbiere, | G63: 300 | H63: 1 - Ware | I63: Biere | J63: Schützengarten Spezialitätenbiere | K63: Geschenk-Packung Klosterbräu 50 cl + Glas | L63: 001980 | M63: 46 | N63: 5 | O63: =IF(ISNA(VLOOKUP(L63,Artikelinhalt!A:H,8,FALSE)),IF(ISNA(VLOOKUP(L63,Gebindeinhalt!A:H,8,FALSE)),VLOOKUP(L63,Packungseinheit!A:H,8,FALSE),VLOOKUP(L63,Gebindeinhalt!A:H,8,FALSE)),VLOOKUP(L63,Artikelinhalt!A:H,8,FALSE)) -> 1 | P63: =VLOOKUP(L63,Privatpreis!A:D,4,FALSE) -> 9.9
A64: 90 | B64: 1 | C64: 1 | D64: 3 | E64: 0 | F64: Preisliste,Biere,Schützengarten,Spezialitätenbiere, | G64: 300 | H64: 1 - Ware | I64: Biere | J64: Schützengarten Spezialitätenbiere | K64: Schützengarten Geschenk-Kiste | L64: 001982 | M64: 45 | N64: 4 | O64: =IF(ISNA(VLOOKUP(L64,Artikelinhalt!A:H,8,FALSE)),IF(ISNA(VLOOKUP(L64,Gebindeinhalt!A:H,8,FALSE)),VLOOKUP(L64,Packungseinheit!A:H,8,FALSE),VLOOKUP(L64,Gebindeinhalt!A:H,8,FALSE)),VLOOKUP(L64,Artikelinhalt!A:H,8,FALSE)) -> 15 | P64: =VLOOKUP(L64,Privatpreis!A:D,4,FALSE) -> 55.5
A65: 90 | B65: 1 | C65: 1 | D65: 3 | E65: 0 | F65: Preisliste,Biere,Schützengarten,Spezialitätenbiere, | G65: 300 | H65: 1 - Ware | I65: Biere | J65: Schützengarten Spezialitätenbiere | K65: Geschenk-Set 6 Biere assortiert 50 cl MW | L65: 001985 | M65: 44 | N65: 3 | O65: =IF(ISNA(VLOOKUP(L65,Artikelinhalt!A:H,8,FALSE)),IF(ISNA(VLOOKUP(L65,Gebindeinhalt!A:H,8,FALSE)),VLOOKUP(L65,Packungseinheit!A:H,8,FALSE),VLOOKUP(L65,Gebindeinhalt!A:H,8,FALSE)),VLOOKUP(L65,Artikelinhalt!A:H,8,FALSE)) -> 6 | P65: =VLOOKUP(L65,Privatpreis!A:D,4,FALSE) -> 21.5
A66: 90 | B66: 1 | C66: 1 | D66: 3 | E66: 0 | F66: Preisliste,Biere,Schützengarten,Spezialitätenbiere, | G66: 300 | H66: 1 - Ware | I66: Biere | J66: Schützengarten Spezialitätenbiere | K66: Geschenk-Packung Weisser Engel 50 cl + Glas | L66: 001986 | M66: =COUNTIF(I66:I860,I66) -> 43 | N66: =COUNTIF(J66:J860,J66) -> 2 | O66: =IF(ISNA(VLOOKUP(L66,Artikelinhalt!A:H,8,FALSE)),IF(ISNA(VLOOKUP(L66,Gebindeinhalt!A:H,8,FALSE)),VLOOKUP(L66,Packungseinheit!A:H,8,FALSE),VLOOKUP(L66,Gebindeinhalt!A:H,8,FALSE)),VLOOKUP(L66,Artikelinhalt!A:H,8,FALSE)) -> 1 | P66: =VLOOKUP(L66,Privatpreis!A:D,4,FALSE) -> 9.9
A67: 90 | B67: 1 | C67: 1 | D67: 3 | E67: 0 | F67: Preisliste,Biere,Schützengarten,Spezialitätenbiere, | G67: 300 | H67: 1 - Ware | I67: Biere | J67: Schützengarten Spezialitätenbiere | K67: Geschenk-Set 3 Biere assortiert 33 cl EW | L67: 001999 | M67: 42 | N67: 1 | O67: =IF(ISNA(VLOOKUP(L67,Artikelinhalt!A:H,8,FALSE)),IF(ISNA(VLOOKUP(L67,Gebindeinhalt!A:H,8,FALSE)),VLOOKUP(L67,Packungseinheit!A:H,8,FALSE),VLOOKUP(L67,Gebindeinhalt!A:H,8,FALSE)),VLOOKUP(L67,Artikelinhalt!A:H,8,FALSE)) -> 3 | P67: =VLOOKUP(L67,Privatpreis!A:D,4,FALSE) -> 9.9
A68: 90 | B68: 1 | C68: 1 | D68: 5 | E68: 0 | F68: Preisliste,Biere,Schützengarten,Alkoholfreie Biere, | G68: 301 | H68: 1 - Ware | I68: Biere | J68: Schützengarten alkoholfreie Biere | K68: Schützeng. India Pale alkoholfrei 6x33 cl EW | L68: 002330 | M68: 41 | N68: 12 | O68: =IF(ISNA(VLOOKUP(L68,Artikelinhalt!A:H,8,FALSE)),IF(ISNA(VLOOKUP(L68,Gebindeinhalt!A:H,8,FALSE)),VLOOKUP(L68,Packungseinheit!A:H,8,FALSE),VLOOKUP(L68,Gebindeinhalt!A:H,8,FALSE)),VLOOKUP(L68,Artikelinhalt!A:H,8,FALSE)) -> 6 | P68: =VLOOKUP(L68,Privatpreis!A:D,4,FALSE) -> 2.4
A69: 90 | B69: 1 | C69: 1 | D69: 5 | E69: 0 | F69: Preisliste,Biere,Schützengarten,Alkoholfreie Biere, | G69: 301 | H69: 1 - Ware | I69: Biere | J69: Schützengarten alkoholfreie Biere | K69: Schützeng. India Pale a-frei 33 cl EW Miniharass | L69: 002331 | M69: 40 | N69: 11 | O69: =IF(ISNA(VLOOKUP(L69,Artikelinhalt!A:H,8,FALSE)),IF(ISNA(VLOOKUP(L69,Gebindeinhalt!A:H,8,FALSE)),VLOOKUP(L69,Packungseinheit!A:H,8,FALSE),VLOOKUP(L69,Gebindeinhalt!A:H,8,FALSE)),VLOOKUP(L69,Artikelinhalt!A:H,8,FALSE)) -> 10 | P69: =VLOOKUP(L69,Privatpreis!A:D,4,FALSE) -> 2.35
A70: 90 | B70: 1 | C70: 1 | D70: 5 | E70: 0 | F70: Preisliste,Biere,Schützengarten,Alkoholfreie Biere, | G70: 301 | H70: 1 - Ware | I70: Biere | J70: Schützengarten alkoholfreie Biere | K70: Schützeng. Ginger Beer a-frei 6x33 cl EW | L70: 002334 | M70: 39 | N70: 10 | O70: =IF(ISNA(VLOOKUP(L70,Artikelinhalt!A:H,8,FALSE)),IF(ISNA(VLOOKUP(L70,Gebindeinhalt!A:H,8,FALSE)),VLOOKUP(L70,Packungseinheit!A:H,8,FALSE),VLOOKUP(L70,Gebindeinhalt!A:H,8,FALSE)),VLOOKUP(L70,Artikelinhalt!A:H,8,FALSE)) -> 6 | P70: =VLOOKUP(L70,Privatpreis!A:D,4,FALSE) -> 2.4
A71: 90 | B71: 1 | C71: 1 | D71: 5 | E71: 0 | F71: Preisliste,Biere,Schützengarten,Alkoholfreie Biere, | G71: 301 | H71: 1 - Ware | I71: Biere | J71: Schützengarten alkoholfreie Biere | K71: Schützeng. Ginger Beer a-frei 33 cl EW Miniharass | L71: 002335 | M71: 38 | N71: 9 | O71: =IF(ISNA(VLOOKUP(L71,Artikelinhalt!A:H,8,FALSE)),IF(ISNA(VLOOKUP(L71,Gebindeinhalt!A:H,8,FALSE)),VLOOKUP(L71,Packungseinheit!A:H,8,FALSE),VLOOKUP(L71,Gebindeinhalt!A:H,8,FALSE)),VLOOKUP(L71,Artikelinhalt!A:H,8,FALSE)) -> 10 | P71: =VLOOKUP(L71,Privatpreis!A:D,4,FALSE) -> 2.35
A72: 90 | B72: 1 | C72: 1 | D72: 5 | E72: 0 | F72: Preisliste,Biere,Schützengarten,Alkoholfreie Biere, | G72: 301 | H72: 1 - Ware | I72: Biere | J72: Schützengarten alkoholfreie Biere | K72: Schützengarten Alkoholfrei 20 L Container | L72: 002350 | M72: 37 | N72: 8 | O72: =IF(ISNA(VLOOKUP(L72,Artikelinhalt!A:H,8,FALSE)),IF(ISNA(VLOOKUP(L72,Gebindeinhalt!A:H,8,FALSE)),VLOOKUP(L72,Packungseinheit!A:H,8,FALSE),VLOOKUP(L72,Gebindeinhalt!A:H,8,FALSE)),VLOOKUP(L72,Artikelinhalt!A:H,8,FALSE)) -> 20 | P72: =VLOOKUP(L72,Privatpreis!A:D,4,FALSE) -> 4.3
A73: 90 | B73: 1 | C73: 1 | D73: 5 | E73: 0 | F73: Preisliste,Biere,Schützengarten,Alkoholfreie Biere, | G73: 301 | H73: 1 - Ware | I73: Biere | J73: Schützengarten alkoholfreie Biere | K73: Schützengarten Alkoholfrei 50 cl MW | L73: 002352 | M73: 36 | N73: 7 | O73: =IF(ISNA(VLOOKUP(L73,Artikelinhalt!A:H,8,FALSE)),IF(ISNA(VLOOKUP(L73,Gebindeinhalt!A:H,8,FALSE)),VLOOKUP(L73,Packungseinheit!A:H,8,FALSE),VLOOKUP(L73,Gebindeinhalt!A:H,8,FALSE)),VLOOKUP(L73,Artikelinhalt!A:H,8,FALSE)) -> 20 | P73: =VLOOKUP(L73,Privatpreis!A:D,4,FALSE) -> 1.72
A74: 90 | B74: 1 | C74: 1 | D74: 5 | E74: 0 | F74: Preisliste,Biere,Schützengarten,Alkoholfreie Biere, | G74: 301 | H74: 1 - Ware | I74: Biere | J74: Schützengarten alkoholfreie Biere | K74: Schützengarten Alkoholfrei 33 cl MW | L74: 002354 | M74: 35 | N74: 6 | O74: =IF(ISNA(VLOOKUP(L74,Artikelinhalt!A:H,8,FALSE)),IF(ISNA(VLOOKUP(L74,Gebindeinhalt!A:H,8,FALSE)),VLOOKUP(L74,Packungseinheit!A:H,8,FALSE),VLOOKUP(L74,Gebindeinhalt!A:H,8,FALSE)),VLOOKUP(L74,Artikelinhalt!A:H,8,FALSE)) -> 24 | P74: =VLOOKUP(L74,Privatpreis!A:D,4,FALSE) -> 1.34
A75: 90 | B75: 1 | C75: 1 | D75: 5 | E75: 0 | F75: Preisliste,Biere,Schützengarten,Alkoholfreie Biere, | G75: 301 | H75: 1 - Ware | I75: Biere | J75: Schützengarten alkoholfreie Biere | K75: Schützengarten Alkoholfrei 8x33 cl EW | L75: 002356 | M75: 34 | N75: 5 | O75: =IF(ISNA(VLOOKUP(L75,Artikelinhalt!A:H,8,FALSE)),IF(ISNA(VLOOKUP(L75,Gebindeinhalt!A:H,8,FALSE)),VLOOKUP(L75,Packungseinheit!A:H,8,FALSE),VLOOKUP(L75,Gebindeinhalt!A:H,8,FALSE)),VLOOKUP(L75,Artikelinhalt!A:H,8,FALSE)) -> 8 | P75: =VLOOKUP(L75,Privatpreis!A:D,4,FALSE) -> 1.38
A76: 90 | B76: 1 | C76: 1 | D76: 5 | E76: 0 | F76: Preisliste,Biere,Schützengarten,Alkoholfreie Biere, | G76: 301 | H76: 1 - Ware | I76: Biere | J76: Schützengarten alkoholfreie Biere | K76: Schützengarten Grapefruit a-frei 6x33 cl EW | L76: 002357 | M76: 33 | N76: 4 | O76: =IF(ISNA(VLOOKUP(L76,Artikelinhalt!A:H,8,FALSE)),IF(ISNA(VLOOKUP(L76,Gebindeinhalt!A:H,8,FALSE)),VLOOKUP(L76,Packungseinheit!A:H,8,FALSE),VLOOKUP(L76,Gebindeinhalt!A:H,8,FALSE)),VLOOKUP(L76,Artikelinhalt!A:H,8,FALSE)) -> 6 | P76: =VLOOKUP(L76,Privatpreis!A:D,4,FALSE) -> 1.425
A77: 90 | B77: 1 | C77: 1 | D77: 5 | E77: 0 | F77: Preisliste,Biere,Schützengarten,Alkoholfreie Biere, | G77: 301 | H77: 1 - Ware | I77: Biere | J77: Schützengarten alkoholfreie Biere | K77: Schützeng. Grapefruit a-frei 33 cl EW Miniharass | L77: 002359 | M77: 32 | N77: 3 | O77: =IF(ISNA(VLOOKUP(L77,Artikelinhalt!A:H,8,FALSE)),IF(ISNA(VLOOKUP(L77,Gebindeinhalt!A:H,8,FALSE)),VLOOKUP(L77,Packungseinheit!A:H,8,FALSE),VLOOKUP(L77,Gebindeinhalt!A:H,8,FALSE)),VLOOKUP(L77,Artikelinhalt!A:H,8,FALSE)) -> 10 | P77: =VLOOKUP(L77,Privatpreis!A:D,4,FALSE) -> 1.38
A78: 90 | B78: 1 | C78: 1 | D78: 5 | E78: 0 | F78: Preisliste,Biere,Schützengarten,Alkoholfreie Biere, | G78: 301 | H78: 1 - Ware | I78: Biere | J78: Schützengarten alkoholfreie Biere | K78: Schützeng. Panaché a-frei 6x33 cl EW Karton | L78: 002361 | M78: 31 | N78: 2 | O78: =IF(ISNA(VLOOKUP(L78,Artikelinhalt!A:H,8,FALSE)),IF(ISNA(VLOOKUP(L78,Gebindeinhalt!A:H,8,FALSE)),VLOOKUP(L78,Packungseinheit!A:H,8,FALSE),VLOOKUP(L78,Gebindeinhalt!A:H,8,FALSE)),VLOOKUP(L78,Artikelinhalt!A:H,8,FALSE)) -> 6 | P78: =VLOOKUP(L78,Privatpreis!A:D,4,FALSE) -> 1.425
A79: 90 | B79: 1 | C79: 1 | D79: 5 | E79: 0 | F79: Preisliste,Biere,Schützengarten,Alkoholfreie Biere, | G79: 301 | H79: 1 - Ware | I79: Biere | J79: Schützengarten alkoholfreie Biere | K79: Schützeng. Panaché a-frei 33 cl EW Miniharass | L79: 002362 | M79: 30 | N79: 1 | O79: =IF(ISNA(VLOOKUP(L79,Artikelinhalt!A:H,8,FALSE)),IF(ISNA(VLOOKUP(L79,Gebindeinhalt!A:H,8,FALSE)),VLOOKUP(L79,Packungseinheit!A:H,8,FALSE),VLOOKUP(L79,Gebindeinhalt!A:H,8,FALSE)),VLOOKUP(L79,Artikelinhalt!A:H,8,FALSE)) -> 10 | P79: =VLOOKUP(L79,Privatpreis!A:D,4,FALSE) -> 1.38
A80: 90 | B80: 1 | C80: 2 | D80: 0 | E80: 0 | F80: Preisliste,Biere,Löwengarten, , | G80: 300 | H80: 1 - Ware | I80: Biere | J80: Löwengarten | K80: Löwengarten Lager hell 20 L Container | L80: 001202 | M80: 29 | N80: 4 | O80: =IF(ISNA(VLOOKUP(L80,Artikelinhalt!A:H,8,FALSE)),IF(ISNA(VLOOKUP(L80,Gebindeinhalt!A:H,8,FALSE)),VLOOKUP(L80,Packungseinheit!A:H,8,FALSE),VLOOKUP(L80,Gebindeinhalt!A:H,8,FALSE)),VLOOKUP(L80,Artikelinhalt!A:H,8,FALSE)) -> 20 | P80: =VLOOKUP(L80,Privatpreis!A:D,4,FALSE) -> 4.1
A81: 90 | B81: 1 | C81: 2 | D81: 0 | E81: 0 | F81: Preisliste,Biere,Löwengarten, , | G81: 300 | H81: 1 - Ware | I81: Biere | J81: Löwengarten | K81: Löwengarten Lager hell 50 cl MW | L81: 001206 | M81: 28 | N81: 3 | O81: =IF(ISNA(VLOOKUP(L81,Artikelinhalt!A:H,8,FALSE)),IF(ISNA(VLOOKUP(L81,Gebindeinhalt!A:H,8,FALSE)),VLOOKUP(L81,Packungseinheit!A:H,8,FALSE),VLOOKUP(L81,Gebindeinhalt!A:H,8,FALSE)),VLOOKUP(L81,Artikelinhalt!A:H,8,FALSE)) -> 20 | P81: =VLOOKUP(L81,Privatpreis!A:D,4,FALSE) -> 1.68
A82: 90 | B82: 1 | C82: 2 | D82: 0 | E82: 0 | F82: Preisliste,Biere,Löwengarten, , | G82: 300 | H82: 1 - Ware | I82: Biere | J82: Löwengarten | K82: Löwenprinz Spezial 20 L Container | L82: 001248 | M82: 27 | N82: 2 | O82: =IF(ISNA(VLOOKUP(L82,Artikelinhalt!A:H,8,FALSE)),IF(ISNA(VLOOKUP(L82,Gebindeinhalt!A:H,8,FALSE)),VLOOKUP(L82,Packungseinheit!A:H,8,FALSE),VLOOKUP(L82,Gebindeinhalt!A:H,8,FALSE)),VLOOKUP(L82,Artikelinhalt!A:H,8,FALSE)) -> 20 | P82: =VLOOKUP(L82,Privatpreis!A:D,4,FALSE) -> 4.54
A83: 90 | B83: 1 | C83: 2 | D83: 0 | E83: 0 | F83: Preisliste,Biere,Löwengarten, , | G83: 300 | H83: 1 - Ware | I83: Biere | J83: Löwengarten | K83: Löwenprinz Spezial 33 cl MW | L83: 001256 | M83: 26 | N83: 1 | O83: =IF(ISNA(VLOOKUP(L83,Artikelinhalt!A:H,8,FALSE)),IF(ISNA(VLOOKUP(L83,Gebindeinhalt!A:H,8,FALSE)),VLOOKUP(L83,Packungseinheit!A:H,8,FALSE),VLOOKUP(L83,Gebindeinhalt!A:H,8,FALSE)),VLOOKUP(L83,Artikelinhalt!A:H,8,FALSE)) -> 24 | P83: =VLOOKUP(L83,Privatpreis!A:D,4,FALSE) -> 1.42
A84: 90 | B84: 1 | C84: 3 | D84: 0 | E84: 0 | F84: Preisliste,Biere,Alkoholfreie Handelsbiere, , | G84: 322 | H84: 1 - Ware | I84: Biere | J84: Alkoholfreie Handelsbiere | K84: Erdinger Weissbier alkoholfrei 50 cl MW | L84: 002180 | M84: 25 | N84: 1 | O84: =IF(ISNA(VLOOKUP(L84,Artikelinhalt!A:H,8,FALSE)),IF(ISNA(VLOOKUP(L84,Gebindeinhalt!A:H,8,FALSE)),VLOOKUP(L84,Packungseinheit!A:H,8,FALSE),VLOOKUP(L84,Gebindeinhalt!A:H,8,FALSE)),VLOOKUP(L84,Artikelinhalt!A:H,8,FALSE)) -> 20 | P84: =VLOOKUP(L84,Privatpreis!A:D,4,FALSE) -> 2.6
A85: 90 | B85: 1 | C85: 4 | D85: 1 | E85: 0 | F85: Preisliste,Biere,Handelsbiere,Inländische Biere, | G85: 320 | H85: 1 - Ware | I85: Biere | J85: Handelsbiere inländisch | K85: Eve Strawberry Mojito 6x4er 27,5 cl EW | L85: 001703 | M85: 24 | N85: 3 | O85: =IF(ISNA(VLOOKUP(L85,Artikelinhalt!A:H,8,FALSE)),IF(ISNA(VLOOKUP(L85,Gebindeinhalt!A:H,8,FALSE)),VLOOKUP(L85,Packungseinheit!A:H,8,FALSE),VLOOKUP(L85,Gebindeinhalt!A:H,8,FALSE)),VLOOKUP(L85,Artikelinhalt!A:H,8,FALSE)) -> 24 | P85: =VLOOKUP(L85,Privatpreis!A:D,4,FALSE) -> 2.7
A86: 90 | B86: 1 | C86: 4 | D86: 1 | E86: 0 | F86: Preisliste,Biere,Handelsbiere,Inländische Biere, | G86: 320 | H86: 1 - Ware | I86: Biere | J86: Handelsbiere inländisch | K86: Eve Litchi 6x4er Pack 27,5 cl EW | L86: 001711 | M86: 23 | N86: 2 | O86: =IF(ISNA(VLOOKUP(L86,Artikelinhalt!A:H,8,FALSE)),IF(ISNA(VLOOKUP(L86,Gebindeinhalt!A:H,8,FALSE)),VLOOKUP(L86,Packungseinheit!A:H,8,FALSE),VLOOKUP(L86,Gebindeinhalt!A:H,8,FALSE)),VLOOKUP(L86,Artikelinhalt!A:H,8,FALSE)) -> 24 | P86: =VLOOKUP(L86,Privatpreis!A:D,4,FALSE) -> 2.7
A87: 90 | B87: 1 | C87: 4 | D87: 1 | E87: 0 | F87: Preisliste,Biere,Handelsbiere,Inländische Biere, | G87: 320 | H87: 1 - Ware | I87: Biere | J87: Handelsbiere inländisch | K87: Eve Litchi 27,5 cl MW | L87: 001712 | M87: 22 | N87: 1 | O87: =IF(ISNA(VLOOKUP(L87,Artikelinhalt!A:H,8,FALSE)),IF(ISNA(VLOOKUP(L87,Gebindeinhalt!A:H,8,FALSE)),VLOOKUP(L87,Packungseinheit!A:H,8,FALSE),VLOOKUP(L87,Gebindeinhalt!A:H,8,FALSE)),VLOOKUP(L87,Artikelinhalt!A:H,8,FALSE)) -> 24 | P87: =VLOOKUP(L87,Privatpreis!A:D,4,FALSE) -> 2.1
A88: 90 | B88: 1 | C88: 4 | D88: 2 | E88: 0 | F88: Preisliste,Biere,Handelsbiere,Ausländische Biere, | G88: 321 | H88: 1 - Ware | I88: Biere | J88: Handelsbiere ausländisch | K88: Corona Extra Mex 4x6er 35,5 cl EW | L88: 002655 | M88: 21 | N88: 12 | O88: =IF(ISNA(VLOOKUP(L88,Artikelinhalt!A:H,8,FALSE)),IF(ISNA(VLOOKUP(L88,Gebindeinhalt!A:H,8,FALSE)),VLOOKUP(L88,Packungseinheit!A:H,8,FALSE),VLOOKUP(L88,Gebindeinhalt!A:H,8,FALSE)),VLOOKUP(L88,Artikelinhalt!A:H,8,FALSE)) -> 24 | P88: =VLOOKUP(L88,Privatpreis!A:D,4,FALSE) -> 1.95
A89: 90 | B89: 1 | C89: 4 | D89: 2 | E89: 0 | F89: Preisliste,Biere,Handelsbiere,Ausländische Biere, | G89: 321 | H89: 1 - Ware | I89: Biere | J89: Handelsbiere ausländisch | K89: Erdinger Weissbier 50 cl MW | L89: 002660 | M89: 20 | N89: 11 | O89: =IF(ISNA(VLOOKUP(L89,Artikelinhalt!A:H,8,FALSE)),IF(ISNA(VLOOKUP(L89,Gebindeinhalt!A:H,8,FALSE)),VLOOKUP(L89,Packungseinheit!A:H,8,FALSE),VLOOKUP(L89,Gebindeinhalt!A:H,8,FALSE)),VLOOKUP(L89,Artikelinhalt!A:H,8,FALSE)) -> 20 | P89: =VLOOKUP(L89,Privatpreis!A:D,4,FALSE) -> 2.5
A90: 90 | B90: 1 | C90: 4 | D90: 2 | E90: 0 | F90: Preisliste,Biere,Handelsbiere,Ausländische Biere, | G90: 321 | H90: 1 - Ware | I90: Biere | J90: Handelsbiere ausländisch | K90: Desperados Original 33 cl MW | L90: 002668 | M90: 19 | N90: 10 | O90: =IF(ISNA(VLOOKUP(L90,Artikelinhalt!A:H,8,FALSE)),IF(ISNA(VLOOKUP(L90,Gebindeinhalt!A:H,8,FALSE)),VLOOKUP(L90,Packungseinheit!A:H,8,FALSE),VLOOKUP(L90,Gebindeinhalt!A:H,8,FALSE)),VLOOKUP(L90,Artikelinhalt!A:H,8,FALSE)) -> 24 | P90: =VLOOKUP(L90,Privatpreis!A:D,4,FALSE) -> 2.3
A91: 90 | B91: 1 | C91: 4 | D91: 2 | E91: 0 | F91: Preisliste,Biere,Handelsbiere,Ausländische Biere, | G91: 321 | H91: 1 - Ware | I91: Biere | J91: Handelsbiere ausländisch | K91: Guinness Draught 30 L KEG | L91: 002690 | M91: 18 | N91: 9 | O91: =IF(ISNA(VLOOKUP(L91,Artikelinhalt!A:H,8,FALSE)),IF(ISNA(VLOOKUP(L91,Gebindeinhalt!A:H,8,FALSE)),VLOOKUP(L91,Packungseinheit!A:H,8,FALSE),VLOOKUP(L91,Gebindeinhalt!A:H,8,FALSE)),VLOOKUP(L91,Artikelinhalt!A:H,8,FALSE)) -> 30 | P91: =VLOOKUP(L91,Privatpreis!A:D,4,FALSE) -> 6.45
A92: 90 | B92: 1 | C92: 4 | D92: 2 | E92: 0 | F92: Preisliste,Biere,Handelsbiere,Ausländische Biere, | G92: 321 | H92: 1 - Ware | I92: Biere | J92: Handelsbiere ausländisch | K92: Guinness Draught 33 cl EW | L92: 002694 | M92: 17 | N92: 8 | O92: =IF(ISNA(VLOOKUP(L92,Artikelinhalt!A:H,8,FALSE)),IF(ISNA(VLOOKUP(L92,Gebindeinhalt!A:H,8,FALSE)),VLOOKUP(L92,Packungseinheit!A:H,8,FALSE),VLOOKUP(L92,Gebindeinhalt!A:H,8,FALSE)),VLOOKUP(L92,Artikelinhalt!A:H,8,FALSE)) -> 24 | P92: =VLOOKUP(L92,Privatpreis!A:D,4,FALSE) -> 3.15
A93: 90 | B93: 1 | C93: 4 | D93: 2 | E93: 0 | F93: Preisliste,Biere,Handelsbiere,Ausländische Biere, | G93: 321 | H93: 1 - Ware | I93: Biere | J93: Handelsbiere ausländisch | K93: Guinness Draught 6x4er 50 cl Dosen | L93: 002698 | M93: 16 | N93: 7 | O93: =IF(ISNA(VLOOKUP(L93,Artikelinhalt!A:H,8,FALSE)),IF(ISNA(VLOOKUP(L93,Gebindeinhalt!A:H,8,FALSE)),VLOOKUP(L93,Packungseinheit!A:H,8,FALSE),VLOOKUP(L93,Gebindeinhalt!A:H,8,FALSE)),VLOOKUP(L93,Artikelinhalt!A:H,8,FALSE)) -> 24 | P93: =VLOOKUP(L93,Privatpreis!A:D,4,FALSE) -> 4.25
A94: 90 | B94: 1 | C94: 4 | D94: 2 | E94: 0 | F94: Preisliste,Biere,Handelsbiere,Ausländische Biere, | G94: 321 | H94: 1 - Ware | I94: Biere | J94: Handelsbiere ausländisch | K94: Heineken 33 cl MW | L94: 002720 | M94: 15 | N94: 6 | O94: =IF(ISNA(VLOOKUP(L94,Artikelinhalt!A:H,8,FALSE)),IF(ISNA(VLOOKUP(L94,Gebindeinhalt!A:H,8,FALSE)),VLOOKUP(L94,Packungseinheit!A:H,8,FALSE),VLOOKUP(L94,Gebindeinhalt!A:H,8,FALSE)),VLOOKUP(L94,Artikelinhalt!A:H,8,FALSE)) -> 24 | P94: =VLOOKUP(L94,Privatpreis!A:D,4,FALSE) -> 1.95
A95: 90 | B95: 1 | C95: 4 | D95: 2 | E95: 0 | F95: Preisliste,Biere,Handelsbiere,Ausländische Biere, | G95: 321 | H95: 1 - Ware | I95: Biere | J95: Handelsbiere ausländisch | K95: Heineken 25 cl MW | L95: 002740 | M95: 14 | N95: 5 | O95: =IF(ISNA(VLOOKUP(L95,Artikelinhalt!A:H,8,FALSE)),IF(ISNA(VLOOKUP(L95,Gebindeinhalt!A:H,8,FALSE)),VLOOKUP(L95,Packungseinheit!A:H,8,FALSE),VLOOKUP(L95,Gebindeinhalt!A:H,8,FALSE)),VLOOKUP(L95,Artikelinhalt!A:H,8,FALSE)) -> 28 | P95: =VLOOKUP(L95,Privatpreis!A:D,4,FALSE) -> 1.35
A96: 90 | B96: 1 | C96: 4 | D96: 2 | E96: 0 | F96: Preisliste,Biere,Handelsbiere,Ausländische Biere, | G96: 321 | H96: 1 - Ware | I96: Biere | J96: Handelsbiere ausländisch | K96: Paulaner Hefeweizenbier 30 L KEG | L96: 002743 | M96: 13 | N96: 4 | O96: =IF(ISNA(VLOOKUP(L96,Artikelinhalt!A:H,8,FALSE)),IF(ISNA(VLOOKUP(L96,Gebindeinhalt!A:H,8,FALSE)),VLOOKUP(L96,Packungseinheit!A:H,8,FALSE),VLOOKUP(L96,Gebindeinhalt!A:H,8,FALSE)),VLOOKUP(L96,Artikelinhalt!A:H,8,FALSE)) -> 30 | P96: =VLOOKUP(L96,Privatpreis!A:D,4,FALSE) -> 4.05
A97: 90 | B97: 1 | C97: 4 | D97: 2 | E97: 0 | F97: Preisliste,Biere,Handelsbiere,Ausländische Biere, | G97: 321 | H97: 1 - Ware | I97: Biere | J97: Handelsbiere ausländisch | K97: Paulaner Hefeweizenbier 50 cl MW | L97: 002745 | M97: 12 | N97: 3 | O97: =IF(ISNA(VLOOKUP(L97,Artikelinhalt!A:H,8,FALSE)),IF(ISNA(VLOOKUP(L97,Gebindeinhalt!A:H,8,FALSE)),VLOOKUP(L97,Packungseinheit!A:H,8,FALSE),VLOOKUP(L97,Gebindeinhalt!A:H,8,FALSE)),VLOOKUP(L97,Artikelinhalt!A:H,8,FALSE)) -> 20 | P97: =VLOOKUP(L97,Privatpreis!A:D,4,FALSE) -> 2.55
A98: 90 | B98: 1 | C98: 4 | D98: 2 | E98: 0 | F98: Preisliste,Biere,Handelsbiere,Ausländische Biere, | G98: 321 | H98: 1 - Ware | I98: Biere | J98: Handelsbiere ausländisch | K98: Paulaner Hefeweizenbier Dunkel 50 cl MW | L98: 002761 | M98: 11 | N98: 2 | O98: =IF(ISNA(VLOOKUP(L98,Artikelinhalt!A:H,8,FALSE)),IF(ISNA(VLOOKUP(L98,Gebindeinhalt!A:H,8,FALSE)),VLOOKUP(L98,Packungseinheit!A:H,8,FALSE),VLOOKUP(L98,Gebindeinhalt!A:H,8,FALSE)),VLOOKUP(L98,Artikelinhalt!A:H,8,FALSE)) -> 20 | P98: =VLOOKUP(L98,Privatpreis!A:D,4,FALSE) -> 2.55
A99: 90 | B99: 1 | C99: 4 | D99: 2 | E99: 0 | F99: Preisliste,Biere,Handelsbiere,Ausländische Biere, | G99: 321 | H99: 1 - Ware | I99: Biere | J99: Handelsbiere ausländisch | K99: San Miguel Export 33 cl EW | L99: 002840 | M99: 10 | N99: 1 | O99: =IF(ISNA(VLOOKUP(L99,Artikelinhalt!A:H,8,FALSE)),IF(ISNA(VLOOKUP(L99,Gebindeinhalt!A:H,8,FALSE)),VLOOKUP(L99,Packungseinheit!A:H,8,FALSE),VLOOKUP(L99,Gebindeinhalt!A:H,8,FALSE)),VLOOKUP(L99,Artikelinhalt!A:H,8,FALSE)) -> 24 | P99: =VLOOKUP(L99,Privatpreis!A:D,4,FALSE) -> 2.2
A100: 90 | B100: 1 | C100: 5 | D100: 0 | E100: 0 | F100: Preisliste,Biere,San Martino Biere, , | G100: 320 | H100: 1 - Ware | I100: Biere | J100: San Martino Biere | K100: Ticino Beer Box ass. 6x33 cl EW | L100: 001579 | M100: 9 | N100: 9 | O100: =IF(ISNA(VLOOKUP(L100,Artikelinhalt!A:H,8,FALSE)),IF(ISNA(VLOOKUP(L100,Gebindeinhalt!A:H,8,FALSE)),VLOOKUP(L100,Packungseinheit!A:H,8,FALSE),VLOOKUP(L100,Gebindeinhalt!A:H,8,FALSE)),VLOOKUP(L100,Artikelinhalt!A:H,8,FALSE)) -> 6 | P100: =VLOOKUP(L100,Privatpreis!A:D,4,FALSE) -> 14.9
A101: 90 | B101: 1 | C101: 5 | D101: 0 | E101: 0 | F101: Preisliste,Biere,San Martino Biere, , | G101: 320 | H101: 1 - Ware | I101: Biere | J101: San Martino Biere | K101: San Martino La Bella 6x33cl EW Karton | L101: 001581 | M101: 8 | N101: 8 | O101: =IF(ISNA(VLOOKUP(L101,Artikelinhalt!A:H,8,FALSE)),IF(ISNA(VLOOKUP(L101,Gebindeinhalt!A:H,8,FALSE)),VLOOKUP(L101,Packungseinheit!A:H,8,FALSE),VLOOKUP(L101,Gebindeinhalt!A:H,8,FALSE)),VLOOKUP(L101,Artikelinhalt!A:H,8,FALSE)) -> 6 | P101: =VLOOKUP(L101,Privatpreis!A:D,4,FALSE) -> 2.4
A102: 90 | B102: 1 | C102: 5 | D102: 0 | E102: 0 | F102: Preisliste,Biere,San Martino Biere, , | G102: 320 | H102: 1 - Ware | I102: Biere | J102: San Martino Biere | K102: Bad Attitude Hobo White IPA 6x33 cl EW | L102: 001583 | M102: 7 | N102: 7 | O102: =IF(ISNA(VLOOKUP(L102,Artikelinhalt!A:H,8,FALSE)),IF(ISNA(VLOOKUP(L102,Gebindeinhalt!A:H,8,FALSE)),VLOOKUP(L102,Packungseinheit!A:H,8,FALSE),VLOOKUP(L102,Gebindeinhalt!A:H,8,FALSE)),VLOOKUP(L102,Artikelinhalt!A:H,8,FALSE)) -> 6 | P102: =VLOOKUP(L102,Privatpreis!A:D,4,FALSE) -> 2.6
A103: 90 | B103: 1 | C103: 5 | D103: 0 | E103: 0 | F103: Preisliste,Biere,San Martino Biere, , | G103: 320 | H103: 1 - Ware | I103: Biere | J103: San Martino Biere | K103: Bad Attitude Dude 6x33 cl EW Karton | L103: 001584 | M103: 6 | N103: 6 | O103: =IF(ISNA(VLOOKUP(L103,Artikelinhalt!A:H,8,FALSE)),IF(ISNA(VLOOKUP(L103,Gebindeinhalt!A:H,8,FALSE)),VLOOKUP(L103,Packungseinheit!A:H,8,FALSE),VLOOKUP(L103,Gebindeinhalt!A:H,8,FALSE)),VLOOKUP(L103,Artikelinhalt!A:H,8,FALSE)) -> 6 | P103: =VLOOKUP(L103,Privatpreis!A:D,4,FALSE) -> 2.6
A104: 90 | B104: 1 | C104: 5 | D104: 0 | E104: 0 | F104: Preisliste,Biere,San Martino Biere, , | G104: 320 | H104: 1 - Ware | I104: Biere | J104: San Martino Biere | K104: Bad Attitude Kurt 6x33 cl EW Karton | L104: 001587 | M104: 5 | N104: 5 | O104: =IF(ISNA(VLOOKUP(L104,Artikelinhalt!A:H,8,FALSE)),IF(ISNA(VLOOKUP(L104,Gebindeinhalt!A:H,8,FALSE)),VLOOKUP(L104,Packungseinheit!A:H,8,FALSE),VLOOKUP(L104,Gebindeinhalt!A:H,8,FALSE)),VLOOKUP(L104,Artikelinhalt!A:H,8,FALSE)) -> 6 | P104: =VLOOKUP(L104,Privatpreis!A:D,4,FALSE) -> 2.5
A105: 90 | B105: 1 | C105: 5 | D105: 0 | E105: 0 | F105: Preisliste,Biere,San Martino Biere, , | G105: 300 | H105: 1 - Ware | I105: Biere | J105: San Martino Biere | K105: San Martino La Nostra 4x6er 50 cl Dosen | L105: 001595 | M105: 4 | N105: 4 | O105: =IF(ISNA(VLOOKUP(L105,Artikelinhalt!A:H,8,FALSE)),IF(ISNA(VLOOKUP(L105,Gebindeinhalt!A:H,8,FALSE)),VLOOKUP(L105,Packungseinheit!A:H,8,FALSE),VLOOKUP(L105,Gebindeinhalt!A:H,8,FALSE)),VLOOKUP(L105,Artikelinhalt!A:H,8,FALSE)) -> 24 | P105: =VLOOKUP(L105,Privatpreis!A:D,4,FALSE) -> 2.5
A106: 90 | B106: 1 | C106: 5 | D106: 0 | E106: 0 | F106: Preisliste,Biere,San Martino Biere, , | G106: 300 | H106: 1 - Ware | I106: Biere | J106: San Martino Biere | K106: San Martino La Nostra 6x33 cl EW Karton | L106: 001598 | M106: 3 | N106: 3 | O106: =IF(ISNA(VLOOKUP(L106,Artikelinhalt!A:H,8,FALSE)),IF(ISNA(VLOOKUP(L106,Gebindeinhalt!A:H,8,FALSE)),VLOOKUP(L106,Packungseinheit!A:H,8,FALSE),VLOOKUP(L106,Gebindeinhalt!A:H,8,FALSE)),VLOOKUP(L106,Artikelinhalt!A:H,8,FALSE)) -> 6 | P106: =VLOOKUP(L106,Privatpreis!A:D,4,FALSE) -> 2.4
A107: 90 | B107: 1 | C107: 5 | D107: 0 | E107: 0 | F107: Preisliste,Biere,San Martino Biere, , | G107: 320 | H107: 1 - Ware | I107: Biere | J107: San Martino Biere | K107: San Martino La Rossa 6x33 cl EW Karton | L107: 001599 | M107: 2 | N107: 2 | O107: =IF(ISNA(VLOOKUP(L107,Artikelinhalt!A:H,8,FALSE)),IF(ISNA(VLOOKUP(L107,Gebindeinhalt!A:H,8,FALSE)),VLOOKUP(L107,Packungseinheit!A:H,8,FALSE),VLOOKUP(L107,Gebindeinhalt!A:H,8,FALSE)),VLOOKUP(L107,Artikelinhalt!A:H,8,FALSE)) -> 6 | P107: =VLOOKUP(L107,Privatpreis!A:D,4,FALSE) -> 2.4
A108: 90 | B108: 1 | C108: 5 | D108: 0 | E108: 0 | F108: Preisliste,Biere,San Martino Biere, , | G108: 320 | H108: 1 - Ware | I108: Biere | J108: San Martino Biere | K108: La Helles Bio Knospe 6x33 cl EW Karton | L108: 001770 | M108: 1 | N108: 1 | O108: =IF(ISNA(VLOOKUP(L108,Artikelinhalt!A:H,8,FALSE)),IF(ISNA(VLOOKUP(L108,Gebindeinhalt!A:H,8,FALSE)),VLOOKUP(L108,Packungseinheit!A:H,8,FALSE),VLOOKUP(L108,Gebindeinhalt!A:H,8,FALSE)),VLOOKUP(L108,Artikelinhalt!A:H,8,FALSE)) -> 6 | P108: =VLOOKUP(L108,Privatpreis!A:D,4,FALSE) -> 2.4
A109: 90 | B109: 8 | C109: 1 | D109: 0 | E109: 0 | F109: Preisliste,Alkoholfreie Getränke,Mineralwasser, , | G109: 323 | H109: 1 - Ware | I109: Alkoholfreie Getränke | J109: Mineralwasser | K109: Adelbodner Mineral blau mit KS 100 cl MW | L109: 013020 | M109: 442 | N109: 141 | O109: =IF(ISNA(VLOOKUP(L109,Artikelinhalt!A:H,8,FALSE)),IF(ISNA(VLOOKUP(L109,Gebindeinhalt!A:H,8,FALSE)),VLOOKUP(L109,Packungseinheit!A:H,8,FALSE),VLOOKUP(L109,Gebindeinhalt!A:H,8,FALSE)),VLOOKUP(L109,Artikelinhalt!A:H,8,FALSE)) -> 12 | P109: =VLOOKUP(L109,Privatpreis!A:D,4,FALSE) -> 1.45
A110: 90 | B110: 8 | C110: 1 | D110: 0 | E110: 0 | F110: Preisliste,Alkoholfreie Getränke,Mineralwasser, , | G110: 323 | H110: 1 - Ware | I110: Alkoholfreie Getränke | J110: Mineralwasser | K110: Adelbodner Mineral blau mit KS 50 cl PET | L110: 013024 | M110: 441 | N110: 140 | O110: =IF(ISNA(VLOOKUP(L110,Artikelinhalt!A:H,8,FALSE)),IF(ISNA(VLOOKUP(L110,Gebindeinhalt!A:H,8,FALSE)),VLOOKUP(L110,Packungseinheit!A:H,8,FALSE),VLOOKUP(L110,Gebindeinhalt!A:H,8,FALSE)),VLOOKUP(L110,Artikelinhalt!A:H,8,FALSE)) -> 24 | P110: =VLOOKUP(L110,Privatpreis!A:D,4,FALSE) -> 1.4
A111: 90 | B111: 8 | C111: 1 | D111: 0 | E111: 0 | F111: Preisliste,Alkoholfreie Getränke,Mineralwasser, , | G111: 323 | H111: 1 - Ware | I111: Alkoholfreie Getränke | J111: Mineralwasser | K111: Adelbodner Min. grün ohne KS 100 cl MW | L111: 013026 | M111: 440 | N111: 139 | O111: =IF(ISNA(VLOOKUP(L111,Artikelinhalt!A:H,8,FALSE)),IF(ISNA(VLOOKUP(L111,Gebindeinhalt!A:H,8,FALSE)),VLOOKUP(L111,Packungseinheit!A:H,8,FALSE),VLOOKUP(L111,Gebindeinhalt!A:H,8,FALSE)),VLOOKUP(L111,Artikelinhalt!A:H,8,FALSE)) -> 12 | P111: =VLOOKUP(L111,Privatpreis!A:D,4,FALSE) -> 1.45
A112: 90 | B112: 8 | C112: 1 | D112: 0 | E112: 0 | F112: Preisliste,Alkoholfreie Getränke,Mineralwasser, , | G112: 323 | H112: 1 - Ware | I112: Alkoholfreie Getränke | J112: Mineralwasser | K112: Adello Mineral blau mit KS 150 cl PET Harass | L112: 013030 | M112: 439 | N112: 138 | O112: =IF(ISNA(VLOOKUP(L112,Artikelinhalt!A:H,8,FALSE)),IF(ISNA(VLOOKUP(L112,Gebindeinhalt!A:H,8,FALSE)),VLOOKUP(L112,Packungseinheit!A:H,8,FALSE),VLOOKUP(L112,Gebindeinhalt!A:H,8,FALSE)),VLOOKUP(L112,Artikelinhalt!A:H,8,FALSE)) -> 6 | P112: =VLOOKUP(L112,Privatpreis!A:D,4,FALSE) -> 1.6
A113: 90 | B113: 8 | C113: 1 | D113: 0 | E113: 0 | F113: Preisliste,Alkoholfreie Getränke,Mineralwasser, , | G113: 323 | H113: 1 - Ware | I113: Alkoholfreie Getränke | J113: Mineralwasser | K113: Adello Mineral blau mit KS 150 cl PET Sixpack | L113: 013031 | M113: 438 | N113: 137 | O113: =IF(ISNA(VLOOKUP(L113,Artikelinhalt!A:H,8,FALSE)),IF(ISNA(VLOOKUP(L113,Gebindeinhalt!A:H,8,FALSE)),VLOOKUP(L113,Packungseinheit!A:H,8,FALSE),VLOOKUP(L113,Gebindeinhalt!A:H,8,FALSE)),VLOOKUP(L113,Artikelinhalt!A:H,8,FALSE)) -> 6 | P113: =VLOOKUP(L113,Privatpreis!A:D,4,FALSE) -> 1.6
A114: 90 | B114: 8 | C114: 1 | D114: 0 | E114: 0 | F114: Preisliste,Alkoholfreie Getränke,Mineralwasser, , | G114: 323 | H114: 1 - Ware | I114: Alkoholfreie Getränke | J114: Mineralwasser | K114: Allegra Mineral ohne KS 77 cl MW | L114: 013038 | M114: 437 | N114: 136 | O114: =IF(ISNA(VLOOKUP(L114,Artikelinhalt!A:H,8,FALSE)),IF(ISNA(VLOOKUP(L114,Gebindeinhalt!A:H,8,FALSE)),VLOOKUP(L114,Packungseinheit!A:H,8,FALSE),VLOOKUP(L114,Gebindeinhalt!A:H,8,FALSE)),VLOOKUP(L114,Artikelinhalt!A:H,8,FALSE)) -> 12 | P114: =VLOOKUP(L114,Privatpreis!A:D,4,FALSE) -> 1.55
A115: 90 | B115: 8 | C115: 1 | D115: 0 | E115: 0 | F115: Preisliste,Alkoholfreie Getränke,Mineralwasser, , | G115: 323 | H115: 1 - Ware | I115: Alkoholfreie Getränke | J115: Mineralwasser | K115: Allegra Mineral ohne KS 100 cl MW | L115: 013040 | M115: 436 | N115: 135 | O115: =IF(ISNA(VLOOKUP(L115,Artikelinhalt!A:H,8,FALSE)),IF(ISNA(VLOOKUP(L115,Gebindeinhalt!A:H,8,FALSE)),VLOOKUP(L115,Packungseinheit!A:H,8,FALSE),VLOOKUP(L115,Gebindeinhalt!A:H,8,FALSE)),VLOOKUP(L115,Artikelinhalt!A:H,8,FALSE)) -> 12 | P115: =VLOOKUP(L115,Privatpreis!A:D,4,FALSE) -> 1.6
A116: 90 | B116: 8 | C116: 1 | D116: 0 | E116: 0 | F116: Preisliste,Alkoholfreie Getränke,Mineralwasser, , | G116: 323 | H116: 1 - Ware | I116: Alkoholfreie Getränke | J116: Mineralwasser | K116: Adello Mineral grün ohne KS 150 cl PET Sixpack | L116: 013041 | M116: 435 | N116: 134 | O116: =IF(ISNA(VLOOKUP(L116,Artikelinhalt!A:H,8,FALSE)),IF(ISNA(VLOOKUP(L116,Gebindeinhalt!A:H,8,FALSE)),VLOOKUP(L116,Packungseinheit!A:H,8,FALSE),VLOOKUP(L116,Gebindeinhalt!A:H,8,FALSE)),VLOOKUP(L116,Artikelinhalt!A:H,8,FALSE)) -> 6 | P116: =VLOOKUP(L116,Privatpreis!A:D,4,FALSE) -> 1.6
A117: 90 | B117: 8 | C117: 1 | D117: 0 | E117: 0 | F117: Preisliste,Alkoholfreie Getränke,Mineralwasser, , | G117: 323 | H117: 1 - Ware | I117: Alkoholfreie Getränke | J117: Mineralwasser | K117: Allegra Mineral ohne KS 50 cl MW | L117: 013042 | M117: 434 | N117: 133 | O117: =IF(ISNA(VLOOKUP(L117,Artikelinhalt!A:H,8,FALSE)),IF(ISNA(VLOOKUP(L117,Gebindeinhalt!A:H,8,FALSE)),VLOOKUP(L117,Packungseinheit!A:H,8,FALSE),VLOOKUP(L117,Gebindeinhalt!A:H,8,FALSE)),VLOOKUP(L117,Artikelinhalt!A:H,8,FALSE)) -> 20 | P117: =VLOOKUP(L117,Privatpreis!A:D,4,FALSE) -> 1.4
A118: 90 | B118: 8 | C118: 1 | D118: 0 | E118: 0 | F118: Preisliste,Alkoholfreie Getränke,Mineralwasser, , | G118: 323 | H118: 1 - Ware | I118: Alkoholfreie Getränke | J118: Mineralwasser | K118: Appenzell Mineral laut 80 cl MW | L118: 013077 | M118: 433 | N118: 132 | O118: =IF(ISNA(VLOOKUP(L118,Artikelinhalt!A:H,8,FALSE)),IF(ISNA(VLOOKUP(L118,Gebindeinhalt!A:H,8,FALSE)),VLOOKUP(L118,Packungseinheit!A:H,8,FALSE),VLOOKUP(L118,Gebindeinhalt!A:H,8,FALSE)),VLOOKUP(L118,Artikelinhalt!A:H,8,FALSE)) -> 12 | P118: =VLOOKUP(L118,Privatpreis!A:D,4,FALSE) -> 1.7
A119: 90 | B119: 8 | C119: 1 | D119: 0 | E119: 0 | F119: Preisliste,Alkoholfreie Getränke,Mineralwasser, , | G119: 323 | H119: 1 - Ware | I119: Alkoholfreie Getränke | J119: Mineralwasser | K119: Appenzell Mineral leise 80 cl MW | L119: 013078 | M119: 432 | N119: 131 | O119: =IF(ISNA(VLOOKUP(L119,Artikelinhalt!A:H,8,FALSE)),IF(ISNA(VLOOKUP(L119,Gebindeinhalt!A:H,8,FALSE)),VLOOKUP(L119,Packungseinheit!A:H,8,FALSE),VLOOKUP(L119,Gebindeinhalt!A:H,8,FALSE)),VLOOKUP(L119,Artikelinhalt!A:H,8,FALSE)) -> 12 | P119: =VLOOKUP(L119,Privatpreis!A:D,4,FALSE) -> 1.7
A120: 90 | B120: 8 | C120: 1 | D120: 0 | E120: 0 | F120: Preisliste,Alkoholfreie Getränke,Mineralwasser, , | G120: 323 | H120: 1 - Ware | I120: Alkoholfreie Getränke | J120: Mineralwasser | K120: Appenzell Mineral still 80 cl MW | L120: 013079 | M120: 431 | N120: 130 | O120: =IF(ISNA(VLOOKUP(L120,Artikelinhalt!A:H,8,FALSE)),IF(ISNA(VLOOKUP(L120,Gebindeinhalt!A:H,8,FALSE)),VLOOKUP(L120,Packungseinheit!A:H,8,FALSE),VLOOKUP(L120,Gebindeinhalt!A:H,8,FALSE)),VLOOKUP(L120,Artikelinhalt!A:H,8,FALSE)) -> 12 | P120: =VLOOKUP(L120,Privatpreis!A:D,4,FALSE) -> 1.7
A121: 90 | B121: 8 | C121: 1 | D121: 0 | E121: 0 | F121: Preisliste,Alkoholfreie Getränke,Mineralwasser, , | G121: 323 | H121: 1 - Ware | I121: Alkoholfreie Getränke | J121: Mineralwasser | K121: Allegra Mineral ohne KS 35 cl MW | L121: 013080 | M121: 430 | N121: 129 | O121: =IF(ISNA(VLOOKUP(L121,Artikelinhalt!A:H,8,FALSE)),IF(ISNA(VLOOKUP(L121,Gebindeinhalt!A:H,8,FALSE)),VLOOKUP(L121,Packungseinheit!A:H,8,FALSE),VLOOKUP(L121,Gebindeinhalt!A:H,8,FALSE)),VLOOKUP(L121,Artikelinhalt!A:H,8,FALSE)) -> 24 | P121: =VLOOKUP(L121,Privatpreis!A:D,4,FALSE) -> 1.3
A122: 90 | B122: 8 | C122: 1 | D122: 0 | E122: 0 | F122: Preisliste,Alkoholfreie Getränke,Mineralwasser, , | G122: 323 | H122: 1 - Ware | I122: Alkoholfreie Getränke | J122: Mineralwasser | K122: Appenzell Mineral laut 20 L Container | L122: 013082 | M122: 429 | N122: 128 | O122: =IF(ISNA(VLOOKUP(L122,Artikelinhalt!A:H,8,FALSE)),IF(ISNA(VLOOKUP(L122,Gebindeinhalt!A:H,8,FALSE)),VLOOKUP(L122,Packungseinheit!A:H,8,FALSE),VLOOKUP(L122,Gebindeinhalt!A:H,8,FALSE)),VLOOKUP(L122,Artikelinhalt!A:H,8,FALSE)) -> 20 | P122: =VLOOKUP(L122,Privatpreis!A:D,4,FALSE) -> 1.65
A123: 90 | B123: 8 | C123: 1 | D123: 0 | E123: 0 | F123: Preisliste,Alkoholfreie Getränke,Mineralwasser, , | G123: 323 | H123: 1 - Ware | I123: Alkoholfreie Getränke | J123: Mineralwasser | K123: Appenzell Mineral leise 150 cl PET Sixp. | L123: 013085 | M123: 428 | N123: 127 | O123: =IF(ISNA(VLOOKUP(L123,Artikelinhalt!A:H,8,FALSE)),IF(ISNA(VLOOKUP(L123,Gebindeinhalt!A:H,8,FALSE)),VLOOKUP(L123,Packungseinheit!A:H,8,FALSE),VLOOKUP(L123,Gebindeinhalt!A:H,8,FALSE)),VLOOKUP(L123,Artikelinhalt!A:H,8,FALSE)) -> 6 | P123: =VLOOKUP(L123,Privatpreis!A:D,4,FALSE) -> 1.85
A124: 90 | B124: 8 | C124: 1 | D124: 0 | E124: 0 | F124: Preisliste,Alkoholfreie Getränke,Mineralwasser, , | G124: 323 | H124: 1 - Ware | I124: Alkoholfreie Getränke | J124: Mineralwasser | K124: Appenzell Mineral still 150 cl PET Har. | L124: 013086 | M124: 427 | N124: 126 | O124: =IF(ISNA(VLOOKUP(L124,Artikelinhalt!A:H,8,FALSE)),IF(ISNA(VLOOKUP(L124,Gebindeinhalt!A:H,8,FALSE)),VLOOKUP(L124,Packungseinheit!A:H,8,FALSE),VLOOKUP(L124,Gebindeinhalt!A:H,8,FALSE)),VLOOKUP(L124,Artikelinhalt!A:H,8,FALSE)) -> 6 | P124: =VLOOKUP(L124,Privatpreis!A:D,4,FALSE) -> 1.85
A125: 90 | B125: 8 | C125: 1 | D125: 0 | E125: 0 | F125: Preisliste,Alkoholfreie Getränke,Mineralwasser, , | G125: 323 | H125: 1 - Ware | I125: Alkoholfreie Getränke | J125: Mineralwasser | K125: Appenzell Mineral laut 150 cl PET Har. | L125: 013087 | M125: 426 | N125: 125 | O125: =IF(ISNA(VLOOKUP(L125,Artikelinhalt!A:H,8,FALSE)),IF(ISNA(VLOOKUP(L125,Gebindeinhalt!A:H,8,FALSE)),VLOOKUP(L125,Packungseinheit!A:H,8,FALSE),VLOOKUP(L125,Gebindeinhalt!A:H,8,FALSE)),VLOOKUP(L125,Artikelinhalt!A:H,8,FALSE)) -> 6 | P125: =VLOOKUP(L125,Privatpreis!A:D,4,FALSE) -> 1.85
A126: 90 | B126: 8 | C126: 1 | D126: 0 | E126: 0 | F126: Preisliste,Alkoholfreie Getränke,Mineralwasser, , | G126: 323 | H126: 1 - Ware | I126: Alkoholfreie Getränke | J126: Mineralwasser | K126: Appenzell Mineral laut 50 cl PET | L126: 013088 | M126: 425 | N126: 124 | O126: =IF(ISNA(VLOOKUP(L126,Artikelinhalt!A:H,8,FALSE)),IF(ISNA(VLOOKUP(L126,Gebindeinhalt!A:H,8,FALSE)),VLOOKUP(L126,Packungseinheit!A:H,8,FALSE),VLOOKUP(L126,Gebindeinhalt!A:H,8,FALSE)),VLOOKUP(L126,Artikelinhalt!A:H,8,FALSE)) -> 24 | P126: =VLOOKUP(L126,Privatpreis!A:D,4,FALSE) -> 1.35
A127: 90 | B127: 8 | C127: 1 | D127: 0 | E127: 0 | F127: Preisliste,Alkoholfreie Getränke,Mineralwasser, , | G127: 323 | H127: 1 - Ware | I127: Alkoholfreie Getränke | J127: Mineralwasser | K127: Appenzell Mineral leise 150 cl PET Har. | L127: 013089 | M127: 424 | N127: 123 | O127: =IF(ISNA(VLOOKUP(L127,Artikelinhalt!A:H,8,FALSE)),IF(ISNA(VLOOKUP(L127,Gebindeinhalt!A:H,8,FALSE)),VLOOKUP(L127,Packungseinheit!A:H,8,FALSE),VLOOKUP(L127,Gebindeinhalt!A:H,8,FALSE)),VLOOKUP(L127,Artikelinhalt!A:H,8,FALSE)) -> 6 | P127: =VLOOKUP(L127,Privatpreis!A:D,4,FALSE) -> 1.85
A128: 90 | B128: 8 | C128: 1 | D128: 0 | E128: 0 | F128: Preisliste,Alkoholfreie Getränke,Mineralwasser, , | G128: 323 | H128: 1 - Ware | I128: Alkoholfreie Getränke | J128: Mineralwasser | K128: Appenzell Mineral laut 100 cl MW | L128: 013090 | M128: 423 | N128: 122 | O128: =IF(ISNA(VLOOKUP(L128,Artikelinhalt!A:H,8,FALSE)),IF(ISNA(VLOOKUP(L128,Gebindeinhalt!A:H,8,FALSE)),VLOOKUP(L128,Packungseinheit!A:H,8,FALSE),VLOOKUP(L128,Gebindeinhalt!A:H,8,FALSE)),VLOOKUP(L128,Artikelinhalt!A:H,8,FALSE)) -> 12 | P128: =VLOOKUP(L128,Privatpreis!A:D,4,FALSE) -> 1.5
A129: 90 | B129: 8 | C129: 1 | D129: 0 | E129: 0 | F129: Preisliste,Alkoholfreie Getränke,Mineralwasser, , | G129: 323 | H129: 1 - Ware | I129: Alkoholfreie Getränke | J129: Mineralwasser | K129: Appenzell Mineral leise 100 cl MW | L129: 013091 | M129: 422 | N129: 121 | O129: =IF(ISNA(VLOOKUP(L129,Artikelinhalt!A:H,8,FALSE)),IF(ISNA(VLOOKUP(L129,Gebindeinhalt!A:H,8,FALSE)),VLOOKUP(L129,Packungseinheit!A:H,8,FALSE),VLOOKUP(L129,Gebindeinhalt!A:H,8,FALSE)),VLOOKUP(L129,Artikelinhalt!A:H,8,FALSE)) -> 12 | P129: =VLOOKUP(L129,Privatpreis!A:D,4,FALSE) -> 1.5
A130: 90 | B130: 8 | C130: 1 | D130: 0 | E130: 0 | F130: Preisliste,Alkoholfreie Getränke,Mineralwasser, , | G130: 323 | H130: 1 - Ware | I130: Alkoholfreie Getränke | J130: Mineralwasser | K130: Appenzell Mineral still 100 cl MW | L130: 013092 | M130: =COUNTIF(I130:I924,I130) -> 421 | N130: =COUNTIF(J130:J924,J130) -> 120 | O130: =IF(ISNA(VLOOKUP(L130,Artikelinhalt!A:H,8,FALSE)),IF(ISNA(VLOOKUP(L130,Gebindeinhalt!A:H,8,FALSE)),VLOOKUP(L130,Packungseinheit!A:H,8,FALSE),VLOOKUP(L130,Gebindeinhalt!A:H,8,FALSE)),VLOOKUP(L130,Artikelinhalt!A:H,8,FALSE)) -> 12 | P130: =VLOOKUP(L130,Privatpreis!A:D,4,FALSE) -> 1.5
A131: 90 | B131: 8 | C131: 1 | D131: 0 | E131: 0 | F131: Preisliste,Alkoholfreie Getränke,Mineralwasser, , | G131: 323 | H131: 1 - Ware | I131: Alkoholfreie Getränke | J131: Mineralwasser | K131: Appenzell Mineral still 33 cl MW | L131: 013093 | M131: 420 | N131: 119 | O131: =IF(ISNA(VLOOKUP(L131,Artikelinhalt!A:H,8,FALSE)),IF(ISNA(VLOOKUP(L131,Gebindeinhalt!A:H,8,FALSE)),VLOOKUP(L131,Packungseinheit!A:H,8,FALSE),VLOOKUP(L131,Gebindeinhalt!A:H,8,FALSE)),VLOOKUP(L131,Artikelinhalt!A:H,8,FALSE)) -> 24 | P131: =VLOOKUP(L131,Privatpreis!A:D,4,FALSE) -> 1.25
A132: 90 | B132: 8 | C132: 1 | D132: 0 | E132: 0 | F132: Preisliste,Alkoholfreie Getränke,Mineralwasser, , | G132: 323 | H132: 1 - Ware | I132: Alkoholfreie Getränke | J132: Mineralwasser | K132: Appenzell Mineral laut 50 cl MW | L132: 013094 | M132: 419 | N132: 118 | O132: =IF(ISNA(VLOOKUP(L132,Artikelinhalt!A:H,8,FALSE)),IF(ISNA(VLOOKUP(L132,Gebindeinhalt!A:H,8,FALSE)),VLOOKUP(L132,Packungseinheit!A:H,8,FALSE),VLOOKUP(L132,Gebindeinhalt!A:H,8,FALSE)),VLOOKUP(L132,Artikelinhalt!A:H,8,FALSE)) -> 20 | P132: =VLOOKUP(L132,Privatpreis!A:D,4,FALSE) -> 1.35
A133: 90 | B133: 8 | C133: 1 | D133: 0 | E133: 0 | F133: Preisliste,Alkoholfreie Getränke,Mineralwasser, , | G133: 323 | H133: 1 - Ware | I133: Alkoholfreie Getränke | J133: Mineralwasser | K133: Appenzell Mineral leise 50 cl MW | L133: 013095 | M133: 418 | N133: 117 | O133: =IF(ISNA(VLOOKUP(L133,Artikelinhalt!A:H,8,FALSE)),IF(ISNA(VLOOKUP(L133,Gebindeinhalt!A:H,8,FALSE)),VLOOKUP(L133,Packungseinheit!A:H,8,FALSE),VLOOKUP(L133,Gebindeinhalt!A:H,8,FALSE)),VLOOKUP(L133,Artikelinhalt!A:H,8,FALSE)) -> 20 | P133: =VLOOKUP(L133,Privatpreis!A:D,4,FALSE) -> 1.35
A134: 90 | B134: 8 | C134: 1 | D134: 0 | E134: 0 | F134: Preisliste,Alkoholfreie Getränke,Mineralwasser, , | G134: 323 | H134: 1 - Ware | I134: Alkoholfreie Getränke | J134: Mineralwasser | K134: Appenzell Mineral still 50 cl MW | L134: 013096 | M134: 417 | N134: 116 | O134: =IF(ISNA(VLOOKUP(L134,Artikelinhalt!A:H,8,FALSE)),IF(ISNA(VLOOKUP(L134,Gebindeinhalt!A:H,8,FALSE)),VLOOKUP(L134,Packungseinheit!A:H,8,FALSE),VLOOKUP(L134,Gebindeinhalt!A:H,8,FALSE)),VLOOKUP(L134,Artikelinhalt!A:H,8,FALSE)) -> 20 | P134: =VLOOKUP(L134,Privatpreis!A:D,4,FALSE) -> 1.35
A135: 90 | B135: 8 | C135: 1 | D135: 0 | E135: 0 | F135: Preisliste,Alkoholfreie Getränke,Mineralwasser, , | G135: 323 | H135: 1 - Ware | I135: Alkoholfreie Getränke | J135: Mineralwasser | K135: Appenzell Mineral still 50 cl PET | L135: 013098 | M135: 416 | N135: 115 | O135: =IF(ISNA(VLOOKUP(L135,Artikelinhalt!A:H,8,FALSE)),IF(ISNA(VLOOKUP(L135,Gebindeinhalt!A:H,8,FALSE)),VLOOKUP(L135,Packungseinheit!A:H,8,FALSE),VLOOKUP(L135,Gebindeinhalt!A:H,8,FALSE)),VLOOKUP(L135,Artikelinhalt!A:H,8,FALSE)) -> 24 | P135: =VLOOKUP(L135,Privatpreis!A:D,4,FALSE) -> 1.35
A136: 90 | B136: 8 | C136: 1 | D136: 0 | E136: 0 | F136: Preisliste,Alkoholfreie Getränke,Mineralwasser, , | G136: 323 | H136: 1 - Ware | I136: Alkoholfreie Getränke | J136: Mineralwasser | K136: Appenzell Mineral leise 50 cl PET | L136: 013099 | M136: 415 | N136: 114 | O136: =IF(ISNA(VLOOKUP(L136,Artikelinhalt!A:H,8,FALSE)),IF(ISNA(VLOOKUP(L136,Gebindeinhalt!A:H,8,FALSE)),VLOOKUP(L136,Packungseinheit!A:H,8,FALSE),VLOOKUP(L136,Gebindeinhalt!A:H,8,FALSE)),VLOOKUP(L136,Artikelinhalt!A:H,8,FALSE)) -> 24 | P136: =VLOOKUP(L136,Privatpreis!A:D,4,FALSE) -> 1.35
A137: 90 | B137: 8 | C137: 1 | D137: 0 | E137: 0 | F137: Preisliste,Alkoholfreie Getränke,Mineralwasser, , | G137: 323 | H137: 1 - Ware | I137: Alkoholfreie Getränke | J137: Mineralwasser | K137: Appenzell Mineral laut 33 cl MW | L137: 013100 | M137: 414 | N137: 113 | O137: =IF(ISNA(VLOOKUP(L137,Artikelinhalt!A:H,8,FALSE)),IF(ISNA(VLOOKUP(L137,Gebindeinhalt!A:H,8,FALSE)),VLOOKUP(L137,Packungseinheit!A:H,8,FALSE),VLOOKUP(L137,Gebindeinhalt!A:H,8,FALSE)),VLOOKUP(L137,Artikelinhalt!A:H,8,FALSE)) -> 24 | P137: =VLOOKUP(L137,Privatpreis!A:D,4,FALSE) -> 1.25
A138: 90 | B138: 8 | C138: 1 | D138: 0 | E138: 0 | F138: Preisliste,Alkoholfreie Getränke,Mineralwasser, , | G138: 323 | H138: 1 - Ware | I138: Alkoholfreie Getränke | J138: Mineralwasser | K138: Appenzell Mineral leise 33 cl MW | L138: 013102 | M138: 413 | N138: 112 | O138: =IF(ISNA(VLOOKUP(L138,Artikelinhalt!A:H,8,FALSE)),IF(ISNA(VLOOKUP(L138,Gebindeinhalt!A:H,8,FALSE)),VLOOKUP(L138,Packungseinheit!A:H,8,FALSE),VLOOKUP(L138,Gebindeinhalt!A:H,8,FALSE)),VLOOKUP(L138,Artikelinhalt!A:H,8,FALSE)) -> 24 | P138: =VLOOKUP(L138,Privatpreis!A:D,4,FALSE) -> 1.25
A139: 90 | B139: 8 | C139: 1 | D139: 0 | E139: 0 | F139: Preisliste,Alkoholfreie Getränke,Mineralwasser, , | G139: 323 | H139: 1 - Ware | I139: Alkoholfreie Getränke | J139: Mineralwasser | K139: Appenzell Mineral leise 20 L Container | L139: 013105 | M139: 412 | N139: 111 | O139: =IF(ISNA(VLOOKUP(L139,Artikelinhalt!A:H,8,FALSE)),IF(ISNA(VLOOKUP(L139,Gebindeinhalt!A:H,8,FALSE)),VLOOKUP(L139,Packungseinheit!A:H,8,FALSE),VLOOKUP(L139,Gebindeinhalt!A:H,8,FALSE)),VLOOKUP(L139,Artikelinhalt!A:H,8,FALSE)) -> 20 | P139: =VLOOKUP(L139,Privatpreis!A:D,4,FALSE) -> 1.65
A140: 90 | B140: 8 | C140: 1 | D140: 0 | E140: 0 | F140: Preisliste,Alkoholfreie Getränke,Mineralwasser, , | G140: 323 | H140: 1 - Ware | I140: Alkoholfreie Getränke | J140: Mineralwasser | K140: Elmer Mineral mit KS 75 cl MW | L140: 013159 | M140: 411 | N140: 110 | O140: =IF(ISNA(VLOOKUP(L140,Artikelinhalt!A:H,8,FALSE)),IF(ISNA(VLOOKUP(L140,Gebindeinhalt!A:H,8,FALSE)),VLOOKUP(L140,Packungseinheit!A:H,8,FALSE),VLOOKUP(L140,Gebindeinhalt!A:H,8,FALSE)),VLOOKUP(L140,Artikelinhalt!A:H,8,FALSE)) -> 12 | P140: =VLOOKUP(L140,Privatpreis!A:D,4,FALSE) -> 1.4
A141: 90 | B141: 8 | C141: 1 | D141: 0 | E141: 0 | F141: Preisliste,Alkoholfreie Getränke,Mineralwasser, , | G141: 323 | H141: 1 - Ware | I141: Alkoholfreie Getränke | J141: Mineralwasser | K141: Cristallo blau ohne KS 150 cl PET Sixp. | L141: 013161 | M141: 410 | N141: 109 | O141: =IF(ISNA(VLOOKUP(L141,Artikelinhalt!A:H,8,FALSE)),IF(ISNA(VLOOKUP(L141,Gebindeinhalt!A:H,8,FALSE)),VLOOKUP(L141,Packungseinheit!A:H,8,FALSE),VLOOKUP(L141,Gebindeinhalt!A:H,8,FALSE)),VLOOKUP(L141,Artikelinhalt!A:H,8,FALSE)) -> 6 | P141: =VLOOKUP(L141,Privatpreis!A:D,4,FALSE) -> 1.15
A142: 90 | B142: 8 | C142: 1 | D142: 0 | E142: 0 | F142: Preisliste,Alkoholfreie Getränke,Mineralwasser, , | G142: 323 | H142: 1 - Ware | I142: Alkoholfreie Getränke | J142: Mineralwasser | K142: Cristallo blau ohne KS 150 cl PET Harass | L142: 013162 | M142: 409 | N142: 108 | O142: =IF(ISNA(VLOOKUP(L142,Artikelinhalt!A:H,8,FALSE)),IF(ISNA(VLOOKUP(L142,Gebindeinhalt!A:H,8,FALSE)),VLOOKUP(L142,Packungseinheit!A:H,8,FALSE),VLOOKUP(L142,Gebindeinhalt!A:H,8,FALSE)),VLOOKUP(L142,Artikelinhalt!A:H,8,FALSE)) -> 6 | P142: =VLOOKUP(L142,Privatpreis!A:D,4,FALSE) -> 1.15
A143: 90 | B143: 8 | C143: 1 | D143: 0 | E143: 0 | F143: Preisliste,Alkoholfreie Getränke,Mineralwasser, , | G143: 323 | H143: 1 - Ware | I143: Alkoholfreie Getränke | J143: Mineralwasser | K143: Cristallo rot mit KS 150 cl PET Sixpack | L143: 013166 | M143: 408 | N143: 107 | O143: =IF(ISNA(VLOOKUP(L143,Artikelinhalt!A:H,8,FALSE)),IF(ISNA(VLOOKUP(L143,Gebindeinhalt!A:H,8,FALSE)),VLOOKUP(L143,Packungseinheit!A:H,8,FALSE),VLOOKUP(L143,Gebindeinhalt!A:H,8,FALSE)),VLOOKUP(L143,Artikelinhalt!A:H,8,FALSE)) -> 6 | P143: =VLOOKUP(L143,Privatpreis!A:D,4,FALSE) -> 1.15
A144: 90 | B144: 8 | C144: 1 | D144: 0 | E144: 0 | F144: Preisliste,Alkoholfreie Getränke,Mineralwasser, , | G144: 323 | H144: 1 - Ware | I144: Alkoholfreie Getränke | J144: Mineralwasser | K144: Cristallo rot mit KS 150 cl PET Harass | L144: 013167 | M144: 407 | N144: 106 | O144: =IF(ISNA(VLOOKUP(L144,Artikelinhalt!A:H,8,FALSE)),IF(ISNA(VLOOKUP(L144,Gebindeinhalt!A:H,8,FALSE)),VLOOKUP(L144,Packungseinheit!A:H,8,FALSE),VLOOKUP(L144,Gebindeinhalt!A:H,8,FALSE)),VLOOKUP(L144,Artikelinhalt!A:H,8,FALSE)) -> 6 | P144: =VLOOKUP(L144,Privatpreis!A:D,4,FALSE) -> 1.15
A145: 90 | B145: 8 | C145: 1 | D145: 0 | E145: 0 | F145: Preisliste,Alkoholfreie Getränke,Mineralwasser, , | G145: 323 | H145: 1 - Ware | I145: Alkoholfreie Getränke | J145: Mineralwasser | K145: Elmer Mineral mit Ks 150 cl PET Sixpack | L145: 013181 | M145: 406 | N145: 105 | O145: =IF(ISNA(VLOOKUP(L145,Artikelinhalt!A:H,8,FALSE)),IF(ISNA(VLOOKUP(L145,Gebindeinhalt!A:H,8,FALSE)),VLOOKUP(L145,Packungseinheit!A:H,8,FALSE),VLOOKUP(L145,Gebindeinhalt!A:H,8,FALSE)),VLOOKUP(L145,Artikelinhalt!A:H,8,FALSE)) -> 6 | P145: =VLOOKUP(L145,Privatpreis!A:D,4,FALSE) -> 1.85
A146: 90 | B146: 8 | C146: 1 | D146: 0 | E146: 0 | F146: Preisliste,Alkoholfreie Getränke,Mineralwasser, , | G146: 323 | H146: 1 - Ware | I146: Alkoholfreie Getränke | J146: Mineralwasser | K146: Elmer Mineral mit Ks 150 cl PET Harass | L146: 013182 | M146: 405 | N146: 104 | O146: =IF(ISNA(VLOOKUP(L146,Artikelinhalt!A:H,8,FALSE)),IF(ISNA(VLOOKUP(L146,Gebindeinhalt!A:H,8,FALSE)),VLOOKUP(L146,Packungseinheit!A:H,8,FALSE),VLOOKUP(L146,Gebindeinhalt!A:H,8,FALSE)),VLOOKUP(L146,Artikelinhalt!A:H,8,FALSE)) -> 6 | P146: =VLOOKUP(L146,Privatpreis!A:D,4,FALSE) -> 1.85
A147: 90 | B147: 8 | C147: 1 | D147: 0 | E147: 0 | F147: Preisliste,Alkoholfreie Getränke,Mineralwasser, , | G147: 323 | H147: 1 - Ware | I147: Alkoholfreie Getränke | J147: Mineralwasser | K147: Elmer Mineral ohne Ks 150 cl PET Harass | L147: 013183 | M147: 404 | N147: 103 | O147: =IF(ISNA(VLOOKUP(L147,Artikelinhalt!A:H,8,FALSE)),IF(ISNA(VLOOKUP(L147,Gebindeinhalt!A:H,8,FALSE)),VLOOKUP(L147,Packungseinheit!A:H,8,FALSE),VLOOKUP(L147,Gebindeinhalt!A:H,8,FALSE)),VLOOKUP(L147,Artikelinhalt!A:H,8,FALSE)) -> 6 | P147: =VLOOKUP(L147,Privatpreis!A:D,4,FALSE) -> 1.85
A148: 90 | B148: 8 | C148: 1 | D148: 0 | E148: 0 | F148: Preisliste,Alkoholfreie Getränke,Mineralwasser, , | G148: 323 | H148: 1 - Ware | I148: Alkoholfreie Getränke | J148: Mineralwasser | K148: Elmer Mineral mit Ks 100 cl MW | L148: 013184 | M148: 403 | N148: 102 | O148: =IF(ISNA(VLOOKUP(L148,Artikelinhalt!A:H,8,FALSE)),IF(ISNA(VLOOKUP(L148,Gebindeinhalt!A:H,8,FALSE)),VLOOKUP(L148,Packungseinheit!A:H,8,FALSE),VLOOKUP(L148,Gebindeinhalt!A:H,8,FALSE)),VLOOKUP(L148,Artikelinhalt!A:H,8,FALSE)) -> 12 | P148: =VLOOKUP(L148,Privatpreis!A:D,4,FALSE) -> 1.4
A149: 90 | B149: 8 | C149: 1 | D149: 0 | E149: 0 | F149: Preisliste,Alkoholfreie Getränke,Mineralwasser, , | G149: 323 | H149: 1 - Ware | I149: Alkoholfreie Getränke | J149: Mineralwasser | K149: Elmer Mineral mit KS 50 cl MW | L149: 013186 | M149: 402 | N149: 101 | O149: =IF(ISNA(VLOOKUP(L149,Artikelinhalt!A:H,8,FALSE)),IF(ISNA(VLOOKUP(L149,Gebindeinhalt!A:H,8,FALSE)),VLOOKUP(L149,Packungseinheit!A:H,8,FALSE),VLOOKUP(L149,Gebindeinhalt!A:H,8,FALSE)),VLOOKUP(L149,Artikelinhalt!A:H,8,FALSE)) -> 20 | P149: =VLOOKUP(L149,Privatpreis!A:D,4,FALSE) -> 1.3
A150: 90 | B150: 8 | C150: 1 | D150: 0 | E150: 0 | F150: Preisliste,Alkoholfreie Getränke,Mineralwasser, , | G150: 323 | H150: 1 - Ware | I150: Alkoholfreie Getränke | J150: Mineralwasser | K150: Elmer Mineral ohne Ks 50 cl MW | L150: 013187 | M150: 401 | N150: 100 | O150: =IF(ISNA(VLOOKUP(L150,Artikelinhalt!A:H,8,FALSE)),IF(ISNA(VLOOKUP(L150,Gebindeinhalt!A:H,8,FALSE)),VLOOKUP(L150,Packungseinheit!A:H,8,FALSE),VLOOKUP(L150,Gebindeinhalt!A:H,8,FALSE)),VLOOKUP(L150,Artikelinhalt!A:H,8,FALSE)) -> 20 | P150: =VLOOKUP(L150,Privatpreis!A:D,4,FALSE) -> 1.3
A151: 90 | B151: 8 | C151: 1 | D151: 0 | E151: 0 | F151: Preisliste,Alkoholfreie Getränke,Mineralwasser, , | G151: 323 | H151: 1 - Ware | I151: Alkoholfreie Getränke | J151: Mineralwasser | K151: Elmer Mineral mit KS 33 cl MW | L151: 013188 | M151: 400 | N151: 99 | O151: =IF(ISNA(VLOOKUP(L151,Artikelinhalt!A:H,8,FALSE)),IF(ISNA(VLOOKUP(L151,Gebindeinhalt!A:H,8,FALSE)),VLOOKUP(L151,Packungseinheit!A:H,8,FALSE),VLOOKUP(L151,Gebindeinhalt!A:H,8,FALSE)),VLOOKUP(L151,Artikelinhalt!A:H,8,FALSE)) -> 24 | P151: =VLOOKUP(L151,Privatpreis!A:D,4,FALSE) -> 1.2
A152: 90 | B152: 8 | C152: 1 | D152: 0 | E152: 0 | F152: Preisliste,Alkoholfreie Getränke,Mineralwasser, , | G152: 323 | H152: 1 - Ware | I152: Alkoholfreie Getränke | J152: Mineralwasser | K152: Elmer Mineral ohne Ks 150 cl PET Sixpack | L152: 013189 | M152: 399 | N152: 98 | O152: =IF(ISNA(VLOOKUP(L152,Artikelinhalt!A:H,8,FALSE)),IF(ISNA(VLOOKUP(L152,Gebindeinhalt!A:H,8,FALSE)),VLOOKUP(L152,Packungseinheit!A:H,8,FALSE),VLOOKUP(L152,Gebindeinhalt!A:H,8,FALSE)),VLOOKUP(L152,Artikelinhalt!A:H,8,FALSE)) -> 6 | P152: =VLOOKUP(L152,Privatpreis!A:D,4,FALSE) -> 1.85
A153: 90 | B153: 8 | C153: 1 | D153: 0 | E153: 0 | F153: Preisliste,Alkoholfreie Getränke,Mineralwasser, , | G153: 323 | H153: 1 - Ware | I153: Alkoholfreie Getränke | J153: Mineralwasser | K153: Elmer Mineral ohne KS 75 cl MW | L153: 013190 | M153: 398 | N153: 97 | O153: =IF(ISNA(VLOOKUP(L153,Artikelinhalt!A:H,8,FALSE)),IF(ISNA(VLOOKUP(L153,Gebindeinhalt!A:H,8,FALSE)),VLOOKUP(L153,Packungseinheit!A:H,8,FALSE),VLOOKUP(L153,Gebindeinhalt!A:H,8,FALSE)),VLOOKUP(L153,Artikelinhalt!A:H,8,FALSE)) -> 12 | P153: =VLOOKUP(L153,Privatpreis!A:D,4,FALSE) -> 1.4
A154: 90 | B154: 8 | C154: 1 | D154: 0 | E154: 0 | F154: Preisliste,Alkoholfreie Getränke,Mineralwasser, , | G154: 323 | H154: 1 - Ware | I154: Alkoholfreie Getränke | J154: Mineralwasser | K154: Elmer Mineral mit KS 50 cl PET | L154: 013191 | M154: 397 | N154: 96 | O154: =IF(ISNA(VLOOKUP(L154,Artikelinhalt!A:H,8,FALSE)),IF(ISNA(VLOOKUP(L154,Gebindeinhalt!A:H,8,FALSE)),VLOOKUP(L154,Packungseinheit!A:H,8,FALSE),VLOOKUP(L154,Gebindeinhalt!A:H,8,FALSE)),VLOOKUP(L154,Artikelinhalt!A:H,8,FALSE)) -> 24 | P154: =VLOOKUP(L154,Privatpreis!A:D,4,FALSE) -> 1.35
A155: 90 | B155: 8 | C155: 1 | D155: 0 | E155: 0 | F155: Preisliste,Alkoholfreie Getränke,Mineralwasser, , | G155: 323 | H155: 1 - Ware | I155: Alkoholfreie Getränke | J155: Mineralwasser | K155: Elmer Mineral ohne KS 33 cl MW | L155: 013193 | M155: 396 | N155: 95 | O155: =IF(ISNA(VLOOKUP(L155,Artikelinhalt!A:H,8,FALSE)),IF(ISNA(VLOOKUP(L155,Gebindeinhalt!A:H,8,FALSE)),VLOOKUP(L155,Packungseinheit!A:H,8,FALSE),VLOOKUP(L155,Gebindeinhalt!A:H,8,FALSE)),VLOOKUP(L155,Artikelinhalt!A:H,8,FALSE)) -> 24 | P155: =VLOOKUP(L155,Privatpreis!A:D,4,FALSE) -> 1.2
A156: 90 | B156: 8 | C156: 1 | D156: 0 | E156: 0 | F156: Preisliste,Alkoholfreie Getränke,Mineralwasser, , | G156: 323 | H156: 1 - Ware | I156: Alkoholfreie Getränke | J156: Mineralwasser | K156: Elmer Mineral mit Ks Premix 20 L Cont | L156: 013195 | M156: 395 | N156: 94 | O156: =IF(ISNA(VLOOKUP(L156,Artikelinhalt!A:H,8,FALSE)),IF(ISNA(VLOOKUP(L156,Gebindeinhalt!A:H,8,FALSE)),VLOOKUP(L156,Packungseinheit!A:H,8,FALSE),VLOOKUP(L156,Gebindeinhalt!A:H,8,FALSE)),VLOOKUP(L156,Artikelinhalt!A:H,8,FALSE)) -> 20 | P156: =VLOOKUP(L156,Privatpreis!A:D,4,FALSE) -> 1.85
A157: 90 | B157: 8 | C157: 1 | D157: 0 | E157: 0 | F157: Preisliste,Alkoholfreie Getränke,Mineralwasser, , | G157: 323 | H157: 1 - Ware | I157: Alkoholfreie Getränke | J157: Mineralwasser | K157: Elmer Mineral ohne Ks 50 cl PET | L157: 013196 | M157: 394 | N157: 93 | O157: =IF(ISNA(VLOOKUP(L157,Artikelinhalt!A:H,8,FALSE)),IF(ISNA(VLOOKUP(L157,Gebindeinhalt!A:H,8,FALSE)),VLOOKUP(L157,Packungseinheit!A:H,8,FALSE),VLOOKUP(L157,Gebindeinhalt!A:H,8,FALSE)),VLOOKUP(L157,Artikelinhalt!A:H,8,FALSE)) -> 24 | P157: =VLOOKUP(L157,Privatpreis!A:D,4,FALSE) -> 1.35
A158: 90 | B158: 8 | C158: 1 | D158: 0 | E158: 0 | F158: Preisliste,Alkoholfreie Getränke,Mineralwasser, , | G158: 323 | H158: 1 - Ware | I158: Alkoholfreie Getränke | J158: Mineralwasser | K158: Elmer Mineral ohne Ks 100 cl MW | L158: 013197 | M158: 393 | N158: 92 | O158: =IF(ISNA(VLOOKUP(L158,Artikelinhalt!A:H,8,FALSE)),IF(ISNA(VLOOKUP(L158,Gebindeinhalt!A:H,8,FALSE)),VLOOKUP(L158,Packungseinheit!A:H,8,FALSE),VLOOKUP(L158,Gebindeinhalt!A:H,8,FALSE)),VLOOKUP(L158,Artikelinhalt!A:H,8,FALSE)) -> 12 | P158: =VLOOKUP(L158,Privatpreis!A:D,4,FALSE) -> 1.4
A159: 90 | B159: 8 | C159: 1 | D159: 0 | E159: 0 | F159: Preisliste,Alkoholfreie Getränke,Mineralwasser, , | G159: 323 | H159: 1 - Ware | I159: Alkoholfreie Getränke | J159: Mineralwasser | K159: Eptinger Mineral blau 150 cl PET Harass | L159: 013199 | M159: 392 | N159: 91 | O159: =IF(ISNA(VLOOKUP(L159,Artikelinhalt!A:H,8,FALSE)),IF(ISNA(VLOOKUP(L159,Gebindeinhalt!A:H,8,FALSE)),VLOOKUP(L159,Packungseinheit!A:H,8,FALSE),VLOOKUP(L159,Gebindeinhalt!A:H,8,FALSE)),VLOOKUP(L159,Artikelinhalt!A:H,8,FALSE)) -> 6 | P159: =VLOOKUP(L159,Privatpreis!A:D,4,FALSE) -> 1.7
A160: 90 | B160: 8 | C160: 1 | D160: 0 | E160: 0 | F160: Preisliste,Alkoholfreie Getränke,Mineralwasser, , | G160: 323 | H160: 1 - Ware | I160: Alkoholfreie Getränke | J160: Mineralwasser | K160: Eptinger Mineral rot mit KS 20 L Cont. | L160: 013201 | M160: 391 | N160: 90 | O160: =IF(ISNA(VLOOKUP(L160,Artikelinhalt!A:H,8,FALSE)),IF(ISNA(VLOOKUP(L160,Gebindeinhalt!A:H,8,FALSE)),VLOOKUP(L160,Packungseinheit!A:H,8,FALSE),VLOOKUP(L160,Gebindeinhalt!A:H,8,FALSE)),VLOOKUP(L160,Artikelinhalt!A:H,8,FALSE)) -> 20 | P160: =VLOOKUP(L160,Privatpreis!A:D,4,FALSE) -> 1.85
A161: 90 | B161: 8 | C161: 1 | D161: 0 | E161: 0 | F161: Preisliste,Alkoholfreie Getränke,Mineralwasser, , | G161: 323 | H161: 1 - Ware | I161: Alkoholfreie Getränke | J161: Mineralwasser | K161: Eptinger Mineral blau ohne KS 50 cl MW | L161: 013205 | M161: 390 | N161: 89 | O161: =IF(ISNA(VLOOKUP(L161,Artikelinhalt!A:H,8,FALSE)),IF(ISNA(VLOOKUP(L161,Gebindeinhalt!A:H,8,FALSE)),VLOOKUP(L161,Packungseinheit!A:H,8,FALSE),VLOOKUP(L161,Gebindeinhalt!A:H,8,FALSE)),VLOOKUP(L161,Artikelinhalt!A:H,8,FALSE)) -> 20 | P161: =VLOOKUP(L161,Privatpreis!A:D,4,FALSE) -> 1.25
A162: 90 | B162: 8 | C162: 1 | D162: 0 | E162: 0 | F162: Preisliste,Alkoholfreie Getränke,Mineralwasser, , | G162: 323 | H162: 1 - Ware | I162: Alkoholfreie Getränke | J162: Mineralwasser | K162: Eptinger Mineral blau ohne KS 100 cl MW | L162: 013207 | M162: 389 | N162: 88 | O162: =IF(ISNA(VLOOKUP(L162,Artikelinhalt!A:H,8,FALSE)),IF(ISNA(VLOOKUP(L162,Gebindeinhalt!A:H,8,FALSE)),VLOOKUP(L162,Packungseinheit!A:H,8,FALSE),VLOOKUP(L162,Gebindeinhalt!A:H,8,FALSE)),VLOOKUP(L162,Artikelinhalt!A:H,8,FALSE)) -> 12 | P162: =VLOOKUP(L162,Privatpreis!A:D,4,FALSE) -> 1.35
A163: 90 | B163: 8 | C163: 1 | D163: 0 | E163: 0 | F163: Preisliste,Alkoholfreie Getränke,Mineralwasser, , | G163: 323 | H163: 1 - Ware | I163: Alkoholfreie Getränke | J163: Mineralwasser | K163: Eptinger rot mit KS 150 cl PET Harass | L163: 013208 | M163: 388 | N163: 87 | O163: =IF(ISNA(VLOOKUP(L163,Artikelinhalt!A:H,8,FALSE)),IF(ISNA(VLOOKUP(L163,Gebindeinhalt!A:H,8,FALSE)),VLOOKUP(L163,Packungseinheit!A:H,8,FALSE),VLOOKUP(L163,Gebindeinhalt!A:H,8,FALSE)),VLOOKUP(L163,Artikelinhalt!A:H,8,FALSE)) -> 6 | P163: =VLOOKUP(L163,Privatpreis!A:D,4,FALSE) -> 1.7
A164: 90 | B164: 8 | C164: 1 | D164: 0 | E164: 0 | F164: Preisliste,Alkoholfreie Getränke,Mineralwasser, , | G164: 323 | H164: 1 - Ware | I164: Alkoholfreie Getränke | J164: Mineralwasser | K164: Eptinger Mineral rot mit KS 100 cl MW | L164: 013210 | M164: 387 | N164: 86 | O164: =IF(ISNA(VLOOKUP(L164,Artikelinhalt!A:H,8,FALSE)),IF(ISNA(VLOOKUP(L164,Gebindeinhalt!A:H,8,FALSE)),VLOOKUP(L164,Packungseinheit!A:H,8,FALSE),VLOOKUP(L164,Gebindeinhalt!A:H,8,FALSE)),VLOOKUP(L164,Artikelinhalt!A:H,8,FALSE)) -> 12 | P164: =VLOOKUP(L164,Privatpreis!A:D,4,FALSE) -> 1.35
A165: 90 | B165: 8 | C165: 1 | D165: 0 | E165: 0 | F165: Preisliste,Alkoholfreie Getränke,Mineralwasser, , | G165: 323 | H165: 1 - Ware | I165: Alkoholfreie Getränke | J165: Mineralwasser | K165: Eptinger Mineral rot mit KS 50 cl MW | L165: 013212 | M165: 386 | N165: 85 | O165: =IF(ISNA(VLOOKUP(L165,Artikelinhalt!A:H,8,FALSE)),IF(ISNA(VLOOKUP(L165,Gebindeinhalt!A:H,8,FALSE)),VLOOKUP(L165,Packungseinheit!A:H,8,FALSE),VLOOKUP(L165,Gebindeinhalt!A:H,8,FALSE)),VLOOKUP(L165,Artikelinhalt!A:H,8,FALSE)) -> 20 | P165: =VLOOKUP(L165,Privatpreis!A:D,4,FALSE) -> 1.25
A166: 90 | B166: 8 | C166: 1 | D166: 0 | E166: 0 | F166: Preisliste,Alkoholfreie Getränke,Mineralwasser, , | G166: 323 | H166: 1 - Ware | I166: Alkoholfreie Getränke | J166: Mineralwasser | K166: Eptinger Mineral rot mit KS 50 cl PET | L166: 013213 | M166: 385 | N166: 84 | O166: =IF(ISNA(VLOOKUP(L166,Artikelinhalt!A:H,8,FALSE)),IF(ISNA(VLOOKUP(L166,Gebindeinhalt!A:H,8,FALSE)),VLOOKUP(L166,Packungseinheit!A:H,8,FALSE),VLOOKUP(L166,Gebindeinhalt!A:H,8,FALSE)),VLOOKUP(L166,Artikelinhalt!A:H,8,FALSE)) -> 24 | P166: =VLOOKUP(L166,Privatpreis!A:D,4,FALSE) -> 1.3
A167: 90 | B167: 8 | C167: 1 | D167: 0 | E167: 0 | F167: Preisliste,Alkoholfreie Getränke,Mineralwasser, , | G167: 323 | H167: 1 - Ware | I167: Alkoholfreie Getränke | J167: Mineralwasser | K167: Eptinger Mineral rot mit KS 33 cl MW | L167: 013214 | M167: 384 | N167: 83 | O167: =IF(ISNA(VLOOKUP(L167,Artikelinhalt!A:H,8,FALSE)),IF(ISNA(VLOOKUP(L167,Gebindeinhalt!A:H,8,FALSE)),VLOOKUP(L167,Packungseinheit!A:H,8,FALSE),VLOOKUP(L167,Gebindeinhalt!A:H,8,FALSE)),VLOOKUP(L167,Artikelinhalt!A:H,8,FALSE)) -> 24 | P167: =VLOOKUP(L167,Privatpreis!A:D,4,FALSE) -> 1.1
A168: 90 | B168: 8 | C168: 1 | D168: 0 | E168: 0 | F168: Preisliste,Alkoholfreie Getränke,Mineralwasser, , | G168: 323 | H168: 1 - Ware | I168: Alkoholfreie Getränke | J168: Mineralwasser | K168: Eptinger Mineral blau ohne KS 33 cl MW | L168: 013215 | M168: 383 | N168: 82 | O168: =IF(ISNA(VLOOKUP(L168,Artikelinhalt!A:H,8,FALSE)),IF(ISNA(VLOOKUP(L168,Gebindeinhalt!A:H,8,FALSE)),VLOOKUP(L168,Packungseinheit!A:H,8,FALSE),VLOOKUP(L168,Gebindeinhalt!A:H,8,FALSE)),VLOOKUP(L168,Artikelinhalt!A:H,8,FALSE)) -> 24 | P168: =VLOOKUP(L168,Privatpreis!A:D,4,FALSE) -> 1.1
A169: 90 | B169: 8 | C169: 1 | D169: 0 | E169: 0 | F169: Preisliste,Alkoholfreie Getränke,Mineralwasser, , | G169: 323 | H169: 1 - Ware | I169: Alkoholfreie Getränke | J169: Mineralwasser | K169: Eptinger Mineral blau ohne KS 50 cl PET | L169: 013217 | M169: 382 | N169: 81 | O169: =IF(ISNA(VLOOKUP(L169,Artikelinhalt!A:H,8,FALSE)),IF(ISNA(VLOOKUP(L169,Gebindeinhalt!A:H,8,FALSE)),VLOOKUP(L169,Packungseinheit!A:H,8,FALSE),VLOOKUP(L169,Gebindeinhalt!A:H,8,FALSE)),VLOOKUP(L169,Artikelinhalt!A:H,8,FALSE)) -> 24 | P169: =VLOOKUP(L169,Privatpreis!A:D,4,FALSE) -> 1.3
A170: 90 | B170: 8 | C170: 1 | D170: 0 | E170: 0 | F170: Preisliste,Alkoholfreie Getränke,Mineralwasser, , | G170: 323 | H170: 1 - Ware | I170: Alkoholfreie Getränke | J170: Mineralwasser | K170: Evian Mineral ohne KS 150 cl PET Sixpack | L170: 013221 | M170: 381 | N170: 80 | O170: =IF(ISNA(VLOOKUP(L170,Artikelinhalt!A:H,8,FALSE)),IF(ISNA(VLOOKUP(L170,Gebindeinhalt!A:H,8,FALSE)),VLOOKUP(L170,Packungseinheit!A:H,8,FALSE),VLOOKUP(L170,Gebindeinhalt!A:H,8,FALSE)),VLOOKUP(L170,Artikelinhalt!A:H,8,FALSE)) -> 6 | P170: =VLOOKUP(L170,Privatpreis!A:D,4,FALSE) -> 1.95
A171: 90 | B171: 8 | C171: 1 | D171: 0 | E171: 0 | F171: Preisliste,Alkoholfreie Getränke,Mineralwasser, , | G171: 323 | H171: 1 - Ware | I171: Alkoholfreie Getränke | J171: Mineralwasser | K171: Evian Mineral ohne KS 100 cl MW | L171: 013225 | M171: 380 | N171: 79 | O171: =IF(ISNA(VLOOKUP(L171,Artikelinhalt!A:H,8,FALSE)),IF(ISNA(VLOOKUP(L171,Gebindeinhalt!A:H,8,FALSE)),VLOOKUP(L171,Packungseinheit!A:H,8,FALSE),VLOOKUP(L171,Gebindeinhalt!A:H,8,FALSE)),VLOOKUP(L171,Artikelinhalt!A:H,8,FALSE)) -> 12 | P171: =VLOOKUP(L171,Privatpreis!A:D,4,FALSE) -> 1.4
A172: 90 | B172: 8 | C172: 1 | D172: 0 | E172: 0 | F172: Preisliste,Alkoholfreie Getränke,Mineralwasser, , | G172: 323 | H172: 1 - Ware | I172: Alkoholfreie Getränke | J172: Mineralwasser | K172: Evian Mineral ohne KS 50 cl MW | L172: 013226 | M172: 379 | N172: 78 | O172: =IF(ISNA(VLOOKUP(L172,Artikelinhalt!A:H,8,FALSE)),IF(ISNA(VLOOKUP(L172,Gebindeinhalt!A:H,8,FALSE)),VLOOKUP(L172,Packungseinheit!A:H,8,FALSE),VLOOKUP(L172,Gebindeinhalt!A:H,8,FALSE)),VLOOKUP(L172,Artikelinhalt!A:H,8,FALSE)) -> 20 | P172: =VLOOKUP(L172,Privatpreis!A:D,4,FALSE) -> 1.2
A173: 90 | B173: 8 | C173: 1 | D173: 0 | E173: 0 | F173: Preisliste,Alkoholfreie Getränke,Mineralwasser, , | G173: 323 | H173: 1 - Ware | I173: Alkoholfreie Getränke | J173: Mineralwasser | K173: Evian Mineral ohne KS 4x6er 50 cl PET | L173: 013227 | M173: 378 | N173: 77 | O173: =IF(ISNA(VLOOKUP(L173,Artikelinhalt!A:H,8,FALSE)),IF(ISNA(VLOOKUP(L173,Gebindeinhalt!A:H,8,FALSE)),VLOOKUP(L173,Packungseinheit!A:H,8,FALSE),VLOOKUP(L173,Gebindeinhalt!A:H,8,FALSE)),VLOOKUP(L173,Artikelinhalt!A:H,8,FALSE)) -> 24 | P173: =VLOOKUP(L173,Privatpreis!A:D,4,FALSE) -> 1.2
A174: 90 | B174: 8 | C174: 1 | D174: 0 | E174: 0 | F174: Preisliste,Alkoholfreie Getränke,Mineralwasser, , | G174: 323 | H174: 1 - Ware | I174: Alkoholfreie Getränke | J174: Mineralwasser | K174: Evian Sportscap 75 cl PET Sixpack | L174: 013237 | M174: 377 | N174: 76 | O174: =IF(ISNA(VLOOKUP(L174,Artikelinhalt!A:H,8,FALSE)),IF(ISNA(VLOOKUP(L174,Gebindeinhalt!A:H,8,FALSE)),VLOOKUP(L174,Packungseinheit!A:H,8,FALSE),VLOOKUP(L174,Gebindeinhalt!A:H,8,FALSE)),VLOOKUP(L174,Artikelinhalt!A:H,8,FALSE)) -> 6 | P174: =VLOOKUP(L174,Privatpreis!A:D,4,FALSE) -> 1.65
A175: 90 | B175: 8 | C175: 1 | D175: 0 | E175: 0 | F175: Preisliste,Alkoholfreie Getränke,Mineralwasser, , | G175: 323 | H175: 1 - Ware | I175: Alkoholfreie Getränke | J175: Mineralwasser | K175: Henniez blau ohne KS 150 cl PET Harass | L175: 013288 | M175: 376 | N175: 75 | O175: =IF(ISNA(VLOOKUP(L175,Artikelinhalt!A:H,8,FALSE)),IF(ISNA(VLOOKUP(L175,Gebindeinhalt!A:H,8,FALSE)),VLOOKUP(L175,Packungseinheit!A:H,8,FALSE),VLOOKUP(L175,Gebindeinhalt!A:H,8,FALSE)),VLOOKUP(L175,Artikelinhalt!A:H,8,FALSE)) -> 6 | P175: =VLOOKUP(L175,Privatpreis!A:D,4,FALSE) -> 1.95
A176: 90 | B176: 8 | C176: 1 | D176: 0 | E176: 0 | F176: Preisliste,Alkoholfreie Getränke,Mineralwasser, , | G176: 323 | H176: 1 - Ware | I176: Alkoholfreie Getränke | J176: Mineralwasser | K176: Henniez blau ohne KS 100 cl MW | L176: 013290 | M176: 375 | N176: 74 | O176: =IF(ISNA(VLOOKUP(L176,Artikelinhalt!A:H,8,FALSE)),IF(ISNA(VLOOKUP(L176,Gebindeinhalt!A:H,8,FALSE)),VLOOKUP(L176,Packungseinheit!A:H,8,FALSE),VLOOKUP(L176,Gebindeinhalt!A:H,8,FALSE)),VLOOKUP(L176,Artikelinhalt!A:H,8,FALSE)) -> 12 | P176: =VLOOKUP(L176,Privatpreis!A:D,4,FALSE) -> 1.5
A177: 90 | B177: 8 | C177: 1 | D177: 0 | E177: 0 | F177: Preisliste,Alkoholfreie Getränke,Mineralwasser, , | G177: 323 | H177: 1 - Ware | I177: Alkoholfreie Getränke | J177: Mineralwasser | K177: Henniez blau ohne KS 75 cl MW | L177: 013292 | M177: 374 | N177: 73 | O177: =IF(ISNA(VLOOKUP(L177,Artikelinhalt!A:H,8,FALSE)),IF(ISNA(VLOOKUP(L177,Gebindeinhalt!A:H,8,FALSE)),VLOOKUP(L177,Packungseinheit!A:H,8,FALSE),VLOOKUP(L177,Gebindeinhalt!A:H,8,FALSE)),VLOOKUP(L177,Artikelinhalt!A:H,8,FALSE)) -> 12 | P177: =VLOOKUP(L177,Privatpreis!A:D,4,FALSE) -> 1.5
A178: 90 | B178: 8 | C178: 1 | D178: 0 | E178: 0 | F178: Preisliste,Alkoholfreie Getränke,Mineralwasser, , | G178: 323 | H178: 1 - Ware | I178: Alkoholfreie Getränke | J178: Mineralwasser | K178: Henniez blau ohne KS 50 cl MW | L178: 013293 | M178: 373 | N178: 72 | O178: =IF(ISNA(VLOOKUP(L178,Artikelinhalt!A:H,8,FALSE)),IF(ISNA(VLOOKUP(L178,Gebindeinhalt!A:H,8,FALSE)),VLOOKUP(L178,Packungseinheit!A:H,8,FALSE),VLOOKUP(L178,Gebindeinhalt!A:H,8,FALSE)),VLOOKUP(L178,Artikelinhalt!A:H,8,FALSE)) -> 20 | P178: =VLOOKUP(L178,Privatpreis!A:D,4,FALSE) -> 1.3
A179: 90 | B179: 8 | C179: 1 | D179: 0 | E179: 0 | F179: Preisliste,Alkoholfreie Getränke,Mineralwasser, , | G179: 323 | H179: 1 - Ware | I179: Alkoholfreie Getränke | J179: Mineralwasser | K179: Henniez blau ohne KS 4x6er 50 cl PET | L179: 013294 | M179: 372 | N179: 71 | O179: =IF(ISNA(VLOOKUP(L179,Artikelinhalt!A:H,8,FALSE)),IF(ISNA(VLOOKUP(L179,Gebindeinhalt!A:H,8,FALSE)),VLOOKUP(L179,Packungseinheit!A:H,8,FALSE),VLOOKUP(L179,Gebindeinhalt!A:H,8,FALSE)),VLOOKUP(L179,Artikelinhalt!A:H,8,FALSE)) -> 24 | P179: =VLOOKUP(L179,Privatpreis!A:D,4,FALSE) -> 1.4
A180: 90 | B180: 8 | C180: 1 | D180: 0 | E180: 0 | F180: Preisliste,Alkoholfreie Getränke,Mineralwasser, , | G180: 323 | H180: 1 - Ware | I180: Alkoholfreie Getränke | J180: Mineralwasser | K180: Henniez blau ohne KS 33 cl MW | L180: 013300 | M180: 371 | N180: 70 | O180: =IF(ISNA(VLOOKUP(L180,Artikelinhalt!A:H,8,FALSE)),IF(ISNA(VLOOKUP(L180,Gebindeinhalt!A:H,8,FALSE)),VLOOKUP(L180,Packungseinheit!A:H,8,FALSE),VLOOKUP(L180,Gebindeinhalt!A:H,8,FALSE)),VLOOKUP(L180,Artikelinhalt!A:H,8,FALSE)) -> 24 | P180: =VLOOKUP(L180,Privatpreis!A:D,4,FALSE) -> 1.25
A181: 90 | B181: 8 | C181: 1 | D181: 0 | E181: 0 | F181: Preisliste,Alkoholfreie Getränke,Mineralwasser, , | G181: 323 | H181: 1 - Ware | I181: Alkoholfreie Getränke | J181: Mineralwasser | K181: Henniez rot mit KS 50 cl MW | L181: 013302 | M181: 370 | N181: 69 | O181: =IF(ISNA(VLOOKUP(L181,Artikelinhalt!A:H,8,FALSE)),IF(ISNA(VLOOKUP(L181,Gebindeinhalt!A:H,8,FALSE)),VLOOKUP(L181,Packungseinheit!A:H,8,FALSE),VLOOKUP(L181,Gebindeinhalt!A:H,8,FALSE)),VLOOKUP(L181,Artikelinhalt!A:H,8,FALSE)) -> 20 | P181: =VLOOKUP(L181,Privatpreis!A:D,4,FALSE) -> 1.3
A182: 90 | B182: 8 | C182: 1 | D182: 0 | E182: 0 | F182: Preisliste,Alkoholfreie Getränke,Mineralwasser, , | G182: 323 | H182: 1 - Ware | I182: Alkoholfreie Getränke | J182: Mineralwasser | K182: Henniez rot mit KS 150 cl PET Harass | L182: 013310 | M182: 369 | N182: 68 | O182: =IF(ISNA(VLOOKUP(L182,Artikelinhalt!A:H,8,FALSE)),IF(ISNA(VLOOKUP(L182,Gebindeinhalt!A:H,8,FALSE)),VLOOKUP(L182,Packungseinheit!A:H,8,FALSE),VLOOKUP(L182,Gebindeinhalt!A:H,8,FALSE)),VLOOKUP(L182,Artikelinhalt!A:H,8,FALSE)) -> 6 | P182: =VLOOKUP(L182,Privatpreis!A:D,4,FALSE) -> 1.95
A183: 90 | B183: 8 | C183: 1 | D183: 0 | E183: 0 | F183: Preisliste,Alkoholfreie Getränke,Mineralwasser, , | G183: 323 | H183: 1 - Ware | I183: Alkoholfreie Getränke | J183: Mineralwasser | K183: Henniez rot mit KS 150 cl PET Sixpack | L183: 013312 | M183: 368 | N183: 67 | O183: =IF(ISNA(VLOOKUP(L183,Artikelinhalt!A:H,8,FALSE)),IF(ISNA(VLOOKUP(L183,Gebindeinhalt!A:H,8,FALSE)),VLOOKUP(L183,Packungseinheit!A:H,8,FALSE),VLOOKUP(L183,Gebindeinhalt!A:H,8,FALSE)),VLOOKUP(L183,Artikelinhalt!A:H,8,FALSE)) -> 6 | P183: =VLOOKUP(L183,Privatpreis!A:D,4,FALSE) -> 1.95
A184: 90 | B184: 8 | C184: 1 | D184: 0 | E184: 0 | F184: Preisliste,Alkoholfreie Getränke,Mineralwasser, , | G184: 323 | H184: 1 - Ware | I184: Alkoholfreie Getränke | J184: Mineralwasser | K184: Henniez rot mit KS 100 cl MW | L184: 013320 | M184: 367 | N184: 66 | O184: =IF(ISNA(VLOOKUP(L184,Artikelinhalt!A:H,8,FALSE)),IF(ISNA(VLOOKUP(L184,Gebindeinhalt!A:H,8,FALSE)),VLOOKUP(L184,Packungseinheit!A:H,8,FALSE),VLOOKUP(L184,Gebindeinhalt!A:H,8,FALSE)),VLOOKUP(L184,Artikelinhalt!A:H,8,FALSE)) -> 12 | P184: =VLOOKUP(L184,Privatpreis!A:D,4,FALSE) -> 1.5
A185: 90 | B185: 8 | C185: 1 | D185: 0 | E185: 0 | F185: Preisliste,Alkoholfreie Getränke,Mineralwasser, , | G185: 323 | H185: 1 - Ware | I185: Alkoholfreie Getränke | J185: Mineralwasser | K185: Henniez rot mit KS 4x6er 50 cl PET | L185: 013340 | M185: 366 | N185: 65 | O185: =IF(ISNA(VLOOKUP(L185,Artikelinhalt!A:H,8,FALSE)),IF(ISNA(VLOOKUP(L185,Gebindeinhalt!A:H,8,FALSE)),VLOOKUP(L185,Packungseinheit!A:H,8,FALSE),VLOOKUP(L185,Gebindeinhalt!A:H,8,FALSE)),VLOOKUP(L185,Artikelinhalt!A:H,8,FALSE)) -> 24 | P185: =VLOOKUP(L185,Privatpreis!A:D,4,FALSE) -> 1.4
A186: 90 | B186: 8 | C186: 1 | D186: 0 | E186: 0 | F186: Preisliste,Alkoholfreie Getränke,Mineralwasser, , | G186: 323 | H186: 1 - Ware | I186: Alkoholfreie Getränke | J186: Mineralwasser | K186: Henniez rot mit KS 33 cl MW | L186: 013360 | M186: 365 | N186: 64 | O186: =IF(ISNA(VLOOKUP(L186,Artikelinhalt!A:H,8,FALSE)),IF(ISNA(VLOOKUP(L186,Gebindeinhalt!A:H,8,FALSE)),VLOOKUP(L186,Packungseinheit!A:H,8,FALSE),VLOOKUP(L186,Gebindeinhalt!A:H,8,FALSE)),VLOOKUP(L186,Artikelinhalt!A:H,8,FALSE)) -> 24 | P186: =VLOOKUP(L186,Privatpreis!A:D,4,FALSE) -> 1.25
A187: 90 | B187: 8 | C187: 1 | D187: 0 | E187: 0 | F187: Preisliste,Alkoholfreie Getränke,Mineralwasser, , | G187: 323 | H187: 1 - Ware | I187: Alkoholfreie Getränke | J187: Mineralwasser | K187: Henniez grün wenig KS 150 cl PET Harass | L187: 013408 | M187: 364 | N187: 63 | O187: =IF(ISNA(VLOOKUP(L187,Artikelinhalt!A:H,8,FALSE)),IF(ISNA(VLOOKUP(L187,Gebindeinhalt!A:H,8,FALSE)),VLOOKUP(L187,Packungseinheit!A:H,8,FALSE),VLOOKUP(L187,Gebindeinhalt!A:H,8,FALSE)),VLOOKUP(L187,Artikelinhalt!A:H,8,FALSE)) -> 6 | P187: =VLOOKUP(L187,Privatpreis!A:D,4,FALSE) -> 1.95
A188: 90 | B188: 8 | C188: 1 | D188: 0 | E188: 0 | F188: Preisliste,Alkoholfreie Getränke,Mineralwasser, , | G188: 323 | H188: 1 - Ware | I188: Alkoholfreie Getränke | J188: Mineralwasser | K188: Henniez grün wenig KS 150 cl PET Sixpack | L188: 013409 | M188: 363 | N188: 62 | O188: =IF(ISNA(VLOOKUP(L188,Artikelinhalt!A:H,8,FALSE)),IF(ISNA(VLOOKUP(L188,Gebindeinhalt!A:H,8,FALSE)),VLOOKUP(L188,Packungseinheit!A:H,8,FALSE),VLOOKUP(L188,Gebindeinhalt!A:H,8,FALSE)),VLOOKUP(L188,Artikelinhalt!A:H,8,FALSE)) -> 6 | P188: =VLOOKUP(L188,Privatpreis!A:D,4,FALSE) -> 1.95
A189: 90 | B189: 8 | C189: 1 | D189: 0 | E189: 0 | F189: Preisliste,Alkoholfreie Getränke,Mineralwasser, , | G189: 323 | H189: 1 - Ware | I189: Alkoholfreie Getränke | J189: Mineralwasser | K189: Henniez grün wenig KS 100 cl MW | L189: 013410 | M189: 362 | N189: 61 | O189: =IF(ISNA(VLOOKUP(L189,Artikelinhalt!A:H,8,FALSE)),IF(ISNA(VLOOKUP(L189,Gebindeinhalt!A:H,8,FALSE)),VLOOKUP(L189,Packungseinheit!A:H,8,FALSE),VLOOKUP(L189,Gebindeinhalt!A:H,8,FALSE)),VLOOKUP(L189,Artikelinhalt!A:H,8,FALSE)) -> 12 | P189: =VLOOKUP(L189,Privatpreis!A:D,4,FALSE) -> 1.5
A190: 90 | B190: 8 | C190: 1 | D190: 0 | E190: 0 | F190: Preisliste,Alkoholfreie Getränke,Mineralwasser, , | G190: 323 | H190: 1 - Ware | I190: Alkoholfreie Getränke | J190: Mineralwasser | K190: Henniez grün wenig KS 75 cl MW | L190: 013411 | M190: 361 | N190: 60 | O190: =IF(ISNA(VLOOKUP(L190,Artikelinhalt!A:H,8,FALSE)),IF(ISNA(VLOOKUP(L190,Gebindeinhalt!A:H,8,FALSE)),VLOOKUP(L190,Packungseinheit!A:H,8,FALSE),VLOOKUP(L190,Gebindeinhalt!A:H,8,FALSE)),VLOOKUP(L190,Artikelinhalt!A:H,8,FALSE)) -> 12 | P190: =VLOOKUP(L190,Privatpreis!A:D,4,FALSE) -> 1.5
A191: 90 | B191: 8 | C191: 1 | D191: 0 | E191: 0 | F191: Preisliste,Alkoholfreie Getränke,Mineralwasser, , | G191: 323 | H191: 1 - Ware | I191: Alkoholfreie Getränke | J191: Mineralwasser | K191: Henniez grün wenig KS 50 cl MW | L191: 013413 | M191: 360 | N191: 59 | O191: =IF(ISNA(VLOOKUP(L191,Artikelinhalt!A:H,8,FALSE)),IF(ISNA(VLOOKUP(L191,Gebindeinhalt!A:H,8,FALSE)),VLOOKUP(L191,Packungseinheit!A:H,8,FALSE),VLOOKUP(L191,Gebindeinhalt!A:H,8,FALSE)),VLOOKUP(L191,Artikelinhalt!A:H,8,FALSE)) -> 20 | P191: =VLOOKUP(L191,Privatpreis!A:D,4,FALSE) -> 1.3
A192: 90 | B192: 8 | C192: 1 | D192: 0 | E192: 0 | F192: Preisliste,Alkoholfreie Getränke,Mineralwasser, , | G192: 323 | H192: 1 - Ware | I192: Alkoholfreie Getränke | J192: Mineralwasser | K192: Henniez grün wenig KS 4x6er 50 cl PET | L192: 013414 | M192: 359 | N192: 58 | O192: =IF(ISNA(VLOOKUP(L192,Artikelinhalt!A:H,8,FALSE)),IF(ISNA(VLOOKUP(L192,Gebindeinhalt!A:H,8,FALSE)),VLOOKUP(L192,Packungseinheit!A:H,8,FALSE),VLOOKUP(L192,Gebindeinhalt!A:H,8,FALSE)),VLOOKUP(L192,Artikelinhalt!A:H,8,FALSE)) -> 24 | P192: =VLOOKUP(L192,Privatpreis!A:D,4,FALSE) -> 1.4
A193: 90 | B193: 8 | C193: 1 | D193: 0 | E193: 0 | F193: Preisliste,Alkoholfreie Getränke,Mineralwasser, , | G193: 323 | H193: 1 - Ware | I193: Alkoholfreie Getränke | J193: Mineralwasser | K193: Henniez grün wenig KS 33 cl MW | L193: 013416 | M193: 358 | N193: 57 | O193: =IF(ISNA(VLOOKUP(L193,Artikelinhalt!A:H,8,FALSE)),IF(ISNA(VLOOKUP(L193,Gebindeinhalt!A:H,8,FALSE)),VLOOKUP(L193,Packungseinheit!A:H,8,FALSE),VLOOKUP(L193,Gebindeinhalt!A:H,8,FALSE)),VLOOKUP(L193,Artikelinhalt!A:H,8,FALSE)) -> 24 | P193: =VLOOKUP(L193,Privatpreis!A:D,4,FALSE) -> 1.25
A194: 90 | B194: 8 | C194: 1 | D194: 0 | E194: 0 | F194: Preisliste,Alkoholfreie Getränke,Mineralwasser, , | G194: 323 | H194: 1 - Ware | I194: Alkoholfreie Getränke | J194: Mineralwasser | K194: Passugger Mineral 77 cl MW | L194: 013420 | M194: =COUNTIF(I194:I988,I194) -> 357 | N194: =COUNTIF(J194:J988,J194) -> 56 | O194: =IF(ISNA(VLOOKUP(L194,Artikelinhalt!A:H,8,FALSE)),IF(ISNA(VLOOKUP(L194,Gebindeinhalt!A:H,8,FALSE)),VLOOKUP(L194,Packungseinheit!A:H,8,FALSE),VLOOKUP(L194,Gebindeinhalt!A:H,8,FALSE)),VLOOKUP(L194,Artikelinhalt!A:H,8,FALSE)) -> 12 | P194: =VLOOKUP(L194,Privatpreis!A:D,4,FALSE) -> 1.55
A195: 90 | B195: 8 | C195: 1 | D195: 0 | E195: 0 | F195: Preisliste,Alkoholfreie Getränke,Mineralwasser, , | G195: 323 | H195: 1 - Ware | I195: Alkoholfreie Getränke | J195: Mineralwasser | K195: Acqua Panna ohne KS 150 cl PET Sixpack | L195: 013428 | M195: 356 | N195: 55 | O195: =IF(ISNA(VLOOKUP(L195,Artikelinhalt!A:H,8,FALSE)),IF(ISNA(VLOOKUP(L195,Gebindeinhalt!A:H,8,FALSE)),VLOOKUP(L195,Packungseinheit!A:H,8,FALSE),VLOOKUP(L195,Gebindeinhalt!A:H,8,FALSE)),VLOOKUP(L195,Artikelinhalt!A:H,8,FALSE)) -> 6 | P195: =VLOOKUP(L195,Privatpreis!A:D,4,FALSE) -> 1.85
A196: 90 | B196: 8 | C196: 1 | D196: 0 | E196: 0 | F196: Preisliste,Alkoholfreie Getränke,Mineralwasser, , | G196: 323 | H196: 1 - Ware | I196: Alkoholfreie Getränke | J196: Mineralwasser | K196: Acqua Panna ohne KS 100 cl MW | L196: 013429 | M196: 355 | N196: 54 | O196: =IF(ISNA(VLOOKUP(L196,Artikelinhalt!A:H,8,FALSE)),IF(ISNA(VLOOKUP(L196,Gebindeinhalt!A:H,8,FALSE)),VLOOKUP(L196,Packungseinheit!A:H,8,FALSE),VLOOKUP(L196,Gebindeinhalt!A:H,8,FALSE)),VLOOKUP(L196,Artikelinhalt!A:H,8,FALSE)) -> 12 | P196: =VLOOKUP(L196,Privatpreis!A:D,4,FALSE) -> 1.65
A197: 90 | B197: 8 | C197: 1 | D197: 0 | E197: 0 | F197: Preisliste,Alkoholfreie Getränke,Mineralwasser, , | G197: 323 | H197: 1 - Ware | I197: Alkoholfreie Getränke | J197: Mineralwasser | K197: Acqua Panna ohne KS 50 cl MW | L197: 013430 | M197: 354 | N197: 53 | O197: =IF(ISNA(VLOOKUP(L197,Artikelinhalt!A:H,8,FALSE)),IF(ISNA(VLOOKUP(L197,Gebindeinhalt!A:H,8,FALSE)),VLOOKUP(L197,Packungseinheit!A:H,8,FALSE),VLOOKUP(L197,Gebindeinhalt!A:H,8,FALSE)),VLOOKUP(L197,Artikelinhalt!A:H,8,FALSE)) -> 20 | P197: =VLOOKUP(L197,Privatpreis!A:D,4,FALSE) -> 1.4
A198: 90 | B198: 8 | C198: 1 | D198: 0 | E198: 0 | F198: Preisliste,Alkoholfreie Getränke,Mineralwasser, , | G198: 323 | H198: 1 - Ware | I198: Alkoholfreie Getränke | J198: Mineralwasser | K198: Acqua Panna ohne KS 75 cl MW | L198: 013431 | M198: 353 | N198: 52 | O198: =IF(ISNA(VLOOKUP(L198,Artikelinhalt!A:H,8,FALSE)),IF(ISNA(VLOOKUP(L198,Gebindeinhalt!A:H,8,FALSE)),VLOOKUP(L198,Packungseinheit!A:H,8,FALSE),VLOOKUP(L198,Gebindeinhalt!A:H,8,FALSE)),VLOOKUP(L198,Artikelinhalt!A:H,8,FALSE)) -> 16 | P198: =VLOOKUP(L198,Privatpreis!A:D,4,FALSE) -> 1.65
A199: 90 | B199: 8 | C199: 1 | D199: 0 | E199: 0 | F199: Preisliste,Alkoholfreie Getränke,Mineralwasser, , | G199: 323 | H199: 1 - Ware | I199: Alkoholfreie Getränke | J199: Mineralwasser | K199: Acqua Panna ohne KS 25 cl MW | L199: 013434 | M199: 352 | N199: 51 | O199: =IF(ISNA(VLOOKUP(L199,Artikelinhalt!A:H,8,FALSE)),IF(ISNA(VLOOKUP(L199,Gebindeinhalt!A:H,8,FALSE)),VLOOKUP(L199,Packungseinheit!A:H,8,FALSE),VLOOKUP(L199,Gebindeinhalt!A:H,8,FALSE)),VLOOKUP(L199,Artikelinhalt!A:H,8,FALSE)) -> 24 | P199: =VLOOKUP(L199,Privatpreis!A:D,4,FALSE) -> 1.25
A200: 90 | B200: 8 | C200: 1 | D200: 0 | E200: 0 | F200: Preisliste,Alkoholfreie Getränke,Mineralwasser, , | G200: 323 | H200: 1 - Ware | I200: Alkoholfreie Getränke | J200: Mineralwasser | K200: Passugger Mineral 100 cl MW | L200: 013440 | M200: 351 | N200: 50 | O200: =IF(ISNA(VLOOKUP(L200,Artikelinhalt!A:H,8,FALSE)),IF(ISNA(VLOOKUP(L200,Gebindeinhalt!A:H,8,FALSE)),VLOOKUP(L200,Packungseinheit!A:H,8,FALSE),VLOOKUP(L200,Gebindeinhalt!A:H,8,FALSE)),VLOOKUP(L200,Artikelinhalt!A:H,8,FALSE)) -> 12 | P200: =VLOOKUP(L200,Privatpreis!A:D,4,FALSE) -> 1.6
... 596 more rows

Sheet Packungseinheit (hidden)
A1: Artikel-Nr. | B1: Kurz-Artikel-Nr. | C1: Artikelbez. | D1: Nr. | E1: Verpack.Art | F1: ME | G1: Kurzbez | H1: Menge | I1: Artikel-Nr. Verp./Leergut | J1: Artikelbez. | K1: EAN/GTIN
A2: 000001 | C2: Keg Schützengarten leer 50 L | D2: 1 | E2: 2 - Packungseinheit | F2: KEG | G2: KEG | H2: 1 | I2: 000001 | J2: Keg Schützengarten leer 50 L | K2: 7613700100012
A3: 000002 | C3: Container Schützengarten leer 20L | D3: 1 | E3: 2 - Packungseinheit | F3: CON | G3: CON | H3: 1 | I3: 000002 | J3: Container Schützengarten leer 20L | K3: 7613700100029
A4: 000003 | C4: Partyfass Schützengarten leer 10L/20L | D4: 1 | E4: 2 - Packungseinheit | F4: PYF | G4: PYF | H4: 1 | I4: 000003 | J4: Partyfass Schützengarten leer 10L/20L | K4: 7613700100036
A5: 000004 | C5: Harass leer 5.-- | D5: 1 | E5: 2 - Packungseinheit | F5: HA | G5: HA | H5: 1 | I5: 000004 | J5: Harass leer 5.-- | K5: 7613700100043
A6: 000005 | C6: Flasche -.30 | D6: 1 | E6: 2 - Packungseinheit | F6: FL | G6: FL | I6: 000005 | J6: Flasche -.30 | K6: 7613700100050
A7: 000006 | C7: Flasche -.50 | D7: 1 | E7: 2 - Packungseinheit | F7: FL | G7: FL | H7: 1 | I7: 000006 | J7: Flasche -.50 | K7: 7613700100067
A8: 000007 | C8: Europalett 12.-- | D8: 1 | E8: 2 - Packungseinheit | F8: PAL | G8: Pal | H8: 1 | I8: 000007 | J8: Europalett 12.-- | K8: 7613700100074
A9: 000008 | C9: Kohlensäure Schützengarten leer | D9: 1 | E9: 2 - Packungseinheit | F9: STK | G9: Stk | H9: 1 | I9: 000008 | J9: Kohlensäure Schützengarten leer | K9: 7613700100081
A10: 000009 | C10: Weinharass -.-- | D10: 1 | E10: 2 - Packungseinheit | F10: HA | G10: HA | H10: 1 | I10: 000009 | J10: Weinharass -.--
A11: 000010 | C11: Flasche 1.-- | D11: 1 | E11: 2 - Packungseinheit | F11: FL | G11: FL | H11: 1 | I11: 000010 | J11: Flasche 1.-- | K11: 7613700100104
A12: 000011 | C12: Flasche -.80 | D12: 1 | E12: 2 - Packungseinheit | F12: FL | G12: FL | H12: 1 | I12: 000011 | J12: Flasche -.80
A13: 000012 | C13: Palett -.-- | D13: 1 | E13: 2 - Packungseinheit | F13: PAL | G13: Pal | H13: 1 | I13: 000012 | J13: Palett -.-- | K13: 7610242001562
A14: 000013 | C14: CoolKeg à 20 L | D14: 1 | E14: 2 - Packungseinheit | F14: KEG | G14: KEG | H14: 1 | I14: 000013 | J14: CoolKeg à 20 L
A15: 000014 | C15: Beer-Tender Container leer 7.-- | D15: 1 | E15: 2 - Packungseinheit | F15: CON | G15: CON | H15: 1 | I15: 000014 | J15: Beer-Tender Container leer 7.--
A16: 000015 | C16: Ballon à 11 / 19 / 25 Liter | D16: 1 | E16: 2 - Packungseinheit | F16: BAL | G16: BAL | H16: 1 | I16: 000015 | J16: Ballon à 11 / 19 / 25 Liter
A17: 000016 | C17: Keggy à 12,5 L | D17: 1 | E17: 2 - Packungseinheit | F17: KEG | G17: KEG | H17: 1 | I17: 000016 | J17: Keggy à 12,5 L
A18: 000017 | C18: Halbpalett 12.-- | D18: 1 | E18: 2 - Packungseinheit | F18: PAL | G18: Pal | H18: 1 | I18: 000017 | J18: Halbpalett 12.--
A19: 000018 | C19: TSP leer 30.-- | D19: 1 | E19: 2 - Packungseinheit | F19: PAL | G19: Pal | H19: 1 | I19: 000018 | J19: TSP leer 30.--
A20: 000019 | C20: Kohlensäureflasche Minipom | D20: 1 | E20: 2 - Packungseinheit | F20: STK | G20: Stk | H20: 1 | I20: 000019 | J20: Kohlensäureflasche Minipom
A21: 000020 | C21: Harass 5.-- mit 10 Fla -.30 | D21: 2 | E21: 2 - Packungseinheit | F21: HA | G21: HA | H21: 1 | I21: 000020 | J21: Harass 5.-- mit 10 Fla -.30 | K21: 7613700100203
A22: 000022 | C22: Harass 5.-- mit 15 Fla -.30 | D22: 2 | E22: 2 - Packungseinheit | F22: HA | G22: HA | H22: 1 | I22: 000022 | J22: Harass 5.-- mit 15 Fla -.30
A23: 000023 | C23: Harass 5.-- mit 27 Fla -.30 | D23: 2 | E23: 2 - Packungseinheit | F23: HA | G23: HA | H23: 1 | I23: 000023 | J23: Harass 5.-- mit 27 Fla -.30
A24: 000024 | C24: Harass 5.-- mit 20 Fla -.30 | D24: 2 | E24: 2 - Packungseinheit | F24: HA | G24: HA | H24: 1 | I24: 000024 | J24: Harass 5.-- mit 20 Fla -.30 | K24: 7613700100241
A25: 000026 | C25: Harass 5.-- mit 24 Fla -.30 | D25: 2 | E25: 2 - Packungseinheit | F25: HA | G25: HA | H25: 1 | I25: 000026 | J25: Harass 5.-- mit 24 Fla -.30 | K25: 7613700100265
A26: 000028 | C26: Harass 5.-- mit 12 Fla -.50 | D26: 2 | E26: 2 - Packungseinheit | F26: HA | G26: HA | H26: 1 | I26: 000028 | J26: Harass 5.-- mit 12 Fla -.50 | K26: 76137860
A27: 000029 | C27: Harass 5.-- mit 12 Fla 1.-- | D27: 2 | E27: 2 - Packungseinheit | F27: HA | G27: HA | H27: 1 | I27: 000029 | J27: Harass 5.-- mit 12 Fla 1.--
A28: 000030 | C28: Harass 5.-- mit 30 Fla -.30 | D28: 2 | E28: 2 - Packungseinheit | F28: HA | G28: HA | H28: 1 | I28: 000030 | J28: Harass 5.-- mit 30 Fla -.30
A29: 000032 | C29: Harass 5.-- mit 6 Fla -.50 | D29: 2 | E29: 2 - Packungseinheit | F29: HA | G29: HA | H29: 1 | I29: 000032 | J29: Harass 5.-- mit 6 Fla -.50 | K29: 7613700000510
A30: 000033 | C30: Harass 5.-- mit 6 PET -.50 | D30: 2 | E30: 2 - Packungseinheit | F30: HA | G30: HA | H30: 1 | I30: 000033 | J30: Harass 5.-- mit 6 PET -.50
A31: 000034 | C31: Harass 5.-- mit 15 Fla -.50 | D31: 2 | E31: 2 - Packungseinheit | F31: HA | G31: HA | H31: 1 | I31: 000034 | J31: Harass 5.-- mit 15 Fla -.50 | K31: 7613700100340
A32: 000035 | C32: Harass 5.-- mit 15 Fla -.80 | D32: 2 | E32: 2 - Packungseinheit | F32: HA | G32: HA | H32: 1 | I32: 000035 | J32: Harass 5.-- mit 15 Fla -.80
A33: 000036 | C33: Harass 5.-- mit 10 Fla -.50 | D33: 2 | E33: 2 - Packungseinheit | F33: HA | G33: HA | H33: 1 | I33: 000036 | J33: Harass 5.-- mit 10 Fla -.50
A34: 000037 | C34: Harass 5.-- mit 12 PET -.50 | D34: 2 | E34: 2 - Packungseinheit | F34: HA | G34: HA | H34: 1 | I34: 000037 | J34: Harass 5.-- mit 12 PET -.50
A35: 000038 | C35: Harass 5.-- mit 12 Fla -.30 | D35: 2 | E35: 2 - Packungseinheit | F35: HA | G35: HA | H35: 1 | I35: 000038 | J35: Harass 5.-- mit 12 Fla -.30
A36: 000039 | C36: Harass 5.-- mit 28 Fla -.30 | D36: 2 | E36: 2 - Packungseinheit | F36: HA | G36: HA | H36: 1 | I36: 000039 | J36: Harass 5.-- mit 28 Fla -.30
A37: 000040 | C37: Harass 5.-- mit 54 Fla -.30 | D37: 2 | E37: 2 - Packungseinheit | F37: HA | G37: HA | H37: 1 | I37: 000040 | J37: Harass 5.-- mit 54 Fla -.30
A38: 000041 | C38: Harass 5.-- mit 16 Fla -.50 | D38: 2 | E38: 2 - Packungseinheit | F38: HA | G38: HA | H38: 1 | I38: 000041 | J38: Harass 5.-- mit 16 Fla -.50
A39: 000042 | C39: Harass -.-- mit 24 Fla -.30 | D39: 2 | E39: 2 - Packungseinheit | F39: HA | G39: HA | H39: 1 | I39: 000042 | J39: Harass -.-- mit 24 Fla -.30
A40: 000043 | C40: Harass -.-- mit 15 Fla -.30 | D40: 2 | E40: 2 - Packungseinheit | F40: HA | G40: HA | H40: 1 | I40: 000043 | J40: Harass -.-- mit 15 Fla -.30
A41: 000044 | C41: Harass -.-- mit 12 Fla -.30 | D41: 2 | E41: 2 - Packungseinheit | F41: HA | G41: HA | H41: 1 | I41: 000044 | J41: Harass -.-- mit 12 Fla -.30
A42: 000045 | C42: Harass 5.-- mit 15 Fla 1.-- | D42: 2 | E42: 2 - Packungseinheit | F42: HA | G42: HA | H42: 1 | I42: 000045 | J42: Harass 5.-- mit 15 Fla 1.--
A43: 000046 | C43: Harass 5.-- mit 10 Fla 1.-- | D43: 2 | E43: 2 - Packungseinheit | F43: HA | G43: HA | H43: 1 | I43: 000046 | J43: Harass 5.-- mit 10 Fla 1.--
A44: 000047 | C44: Harass 5.-- mit 24 Fla -.50 | D44: 2 | E44: 2 - Packungseinheit | F44: HA | G44: HA | H44: 1 | I44: 000047 | J44: Harass 5.-- mit 24 Fla -.50
A45: 000048 | C45: Harass 5.-- mit 2 Container à 7.-- | D45: 2 | E45: 2 - Packungseinheit | F45: HA | G45: HA | H45: 1 | I45: 000048 | J45: Harass 5.-- mit 2 Container à 7.--
A46: 000049 | C46: Harass 5.-- mit 20 Fla -.50 | D46: 2 | E46: 2 - Packungseinheit | F46: HA | G46: HA | H46: 1 | I46: 000049 | J46: Harass 5.-- mit 20 Fla -.50 | K46: 7610242001500
A47: 000050 | C47: Harass 5.-- mit 20 Fla 1.-- | D47: 2 | E47: 2 - Packungseinheit | F47: HA | G47: HA | H47: 1 | I47: 000050 | J47: Harass 5.-- mit 20 Fla 1.--
A48: 000051 | C48: Halbpalett ohne Pfand | D48: 1 | E48: 2 - Packungseinheit | F48: PAL | G48: Pal | H48: 1 | I48: 000051 | J48: Halbpalett ohne Pfand
A49: 000052 | C49: 10er Harass 5.-- Coop | D49: 2 | E49: 2 - Packungseinheit | F49: HA | G49: HA | H49: 1 | I49: 000052 | J49: 10er Harass 5.-- Coop | K49: 7613700100524
A50: 000053 | C50: 15er Harass 5.-- Coop | D50: 2 | E50: 2 - Packungseinheit | F50: HA | G50: HA | H50: 1 | I50: 000053 | J50: 15er Harass 5.-- Coop | K50: 7613700100531
A51: 000054 | C51: 20er Harass 5.-- Coop | D51: 2 | E51: 2 - Packungseinheit | F51: HA | G51: HA | H51: 1 | I51: 000054 | J51: 20er Harass 5.-- Coop | K51: 7613700100548
A52: 000055 | C52: Flagagas-Flasche leer für Grill Stahl | D52: 1 | E52: 2 - Packungseinheit | F52: STK | G52: Stk | H52: 1 | I52: 000055 | J52: Flagagas-Flasche leer für Grill Stahl
A53: 000056 | C53: Gasflasche leer für Grill Kunststoff | D53: 1 | E53: 2 - Packungseinheit | F53: STK | G53: Stk | H53: 1 | I53: 000056 | J53: Gasflasche leer für Grill Kunststoff
A54: 000057 | C54: Harass 5.-- mit 10 Fla 1.-- | D54: 2 | E54: 2 - Packungseinheit | F54: HA | G54: HA | H54: 1 | I54: 000057 | J54: Harass 5.-- mit 10 Fla 1.--
A55: 000058 | C55: Sammelgebinde ohne Wert | D55: 1 | E55: 2 - Packungseinheit | F55: HA | G55: HA | H55: 1
A56: 000059 | C56: Anstichset Holzfass 20 L / 30 L | D56: 1 | E56: 2 - Packungseinheit | F56: PYF | G56: PYF | H56: 1 | I56: 000059 | J56: Anstichset Holzfass 20 L / 30 L
A57: 000060 | C57: Halbpalette Landi Fr. 5.-- | D57: 1 | E57: 2 - Packungseinheit | F57: PAL | G57: Pal | H57: 1 | I57: 000060 | J57: Halbpalette Landi Fr. 5.--
A58: 000061 | C58: KEG Handelsbier leer 30L/50L | D58: 1 | E58: 2 - Packungseinheit | F58: KEG | G58: KEG | H58: 1 | I58: 000061 | J58: KEG Handelsbier leer 30L/50L
A59: 000062 | C59: Container AfG/Handelsbier leer 10L/20L | D59: 1 | E59: 2 - Packungseinheit | F59: CON | G59: CON | H59: 1 | I59: 000062 | J59: Container AfG/Handelsbier leer 10L/20L
A60: 000068 | C60: Aligal Carbagas Leer | D60: 1 | E60: 2 - Packungseinheit | F60: STK | G60: Stk | H60: 1 | I60: 000068 | J60: Aligal Carbagas Leer
A61: 000069 | C61: Gratis Bidon | D61: 1 | E61: 2 - Packungseinheit | F61: CON | G61: CON | H61: 1 | I61: 000069 | J61: Gratis Bidon
A62: 000960 | C62: Entsorgungsgebühr PET über 50 cl (N) | D62: 1 | E62: 2 - Packungseinheit | F62: STK | G62: Stk | H62: 1 | I62: 000960 | J62: Entsorgungsgebühr PET über 50 cl (N) | K62: 7613700109602
A63: 000961 | C63: Entsorgungsgebühr PET über 50 cl (R) | D63: 1 | E63: 2 - Packungseinheit | F63: STK | G63: Stk | H63: 1 | I63: 000961 | J63: Entsorgungsgebühr PET über 50 cl (R) | K63: 7613700109619
A64: 000962 | C64: Entsorgungsgebühr Dosen (N) | D64: 1 | E64: 2 - Packungseinheit | F64: STK | G64: Stk | H64: 1 | I64: 000962 | J64: Entsorgungsgebühr Dosen (N) | K64: 7613700109626
A65: 000963 | C65: Entsorgungsgebühr Dosen (R) | D65: 1 | E65: 2 - Packungseinheit | F65: STK | G65: Stk | H65: 1 | I65: 000963 | J65: Entsorgungsgebühr Dosen (R) | K65: 7613700109633
A66: 000964 | C66: Entsorgungsgebühr EW Glas 9-33 cl (N) | D66: 1 | E66: 2 - Packungseinheit | F66: STK | G66: Stk | H66: 1 | I66: 000964 | J66: Entsorgungsgebühr EW Glas 9-33 cl (N) | K66: 7613700109640
A67: 000965 | C67: Entsorgungsgebühr EW Glas 9-33 cl (R) | D67: 1 | E67: 2 - Packungseinheit | F67: STK | G67: Stk | H67: 1 | I67: 000965 | J67: Entsorgungsgebühr EW Glas 9-33 cl (R) | K67: 7613700109657
A68: 000966 | C68: Entsorgungsgebühr EW Glas 34-60 cl (N) | D68: 1 | E68: 2 - Packungseinheit | F68: STK | G68: Stk | H68: 1 | I68: 000966 | J68: Entsorgungsgebühr EW Glas 34-60 cl (N) | K68: 7613700109664
A69: 000967 | C69: Entsorgungsgebühr EW Glas 34-60 cl (R) | D69: 1 | E69: 2 - Packungseinheit | F69: STK | G69: Stk | H69: 1 | I69: 000967 | J69: Entsorgungsgebühr EW Glas 34-60 cl (R) | K69: 7613700109671
A70: 000968 | C70: Entsorgungsgebühr EW Glas >60 cl (N) | D70: 1 | E70: 2 - Packungseinheit | F70: STK | G70: Stk | H70: 1 | I70: 000968 | J70: Entsorgungsgebühr EW Glas >60 cl (N) | K70: 7613700109688
A71: 000969 | C71: Entsorgungsgebühr EW Glas >60 cl (R) | D71: 1 | E71: 2 - Packungseinheit | F71: STK | G71: Stk | H71: 1 | I71: 000969 | J71: Entsorgungsgebühr EW Glas >60 cl (R) | K71: 7613700109695
A72: 000970 | C72: Entsorgungsgebühr PET bis 50 cl (N) | D72: 1 | E72: 2 - Packungseinheit | F72: STK | G72: Stk | H72: 1 | I72: 000970 | J72: Entsorgungsgebühr PET bis 50 cl (N) | K72: 7610242009902
A73: 000971 | C73: Entsorgungsgebühr PET bis 50 cl (R) | D73: 1 | E73: 2 - Packungseinheit | F73: STK | G73: Stk | H73: 1 | I73: 000971 | J73: Entsorgungsgebühr PET bis 50 cl (R) | K73: 7610242009919
A74: 001010 | C74: Lager hell Kellertank | D74: 2 | E74: 2 - Packungseinheit | F74: L | G74: LTR | H74: 1
A75: 001020 | C75: Lager hell 50 L KEG | D75: 2 | E75: 2 - Packungseinheit | F75: KEG | G75: KEG | H75: 1 | I75: 000001 | J75: Keg Schützengarten leer 50 L | K75: 7613700000312
A76: 001040 | C76: Lager hell 20 L Container | D76: 2 | E76: 2 - Packungseinheit | F76: CON | G76: CON | H76: 1 | I76: 000002 | J76: Container Schützengarten leer 20L | K76: 76137068
A77: 001047 | C77: Lager hell 10 L Spezialabfüllung | D77: 2 | E77: 2 - Packungseinheit | F77: CON | G77: CON | H77: 1
A78: 001090 | C78: Lager hell 5 Liter Partyfass | D78: 2 | E78: 2 - Packungseinheit | F78: PYF | G78: PYF | H78: 1 | K78: 76137259
A79: 001105 | C79: Lager hell 50 cl MW | D79: 2 | E79: 2 - Packungseinheit | F79: HA | G79: HA | H79: 1 | I79: 000024 | J79: Harass 5.-- mit 20 Fla -.30 | K79: 76137587
A80: 001106 | C80: Lager hell Aktion 50 cl MW | D80: 2 | E80: 2 - Packungseinheit | F80: HA | G80: HA | H80: 1 | I80: 000024 | J80: Harass 5.-- mit 20 Fla -.30
A81: 001110 | C81: Lager hell 50 cl MW Display | D81: 2 | E81: 2 - Packungseinheit | F81: HA | G81: HA | H81: 1 | I81: 000020 | J81: Harass 5.-- mit 10 Fla -.30 | K81: 76137570
A82: 001111 | C82: Lager hell Aktion 50 cl MW Display | D82: 2 | E82: 2 - Packungseinheit | F82: HA | G82: HA | H82: 1 | I82: 000020 | J82: Harass 5.-- mit 10 Fla -.30
A83: 001115 | C83: Lager hell 50 cl Dosen lose | D83: 2 | E83: 2 - Packungseinheit | F83: KT | G83: Karton | H83: 1 | K83: 76137051
A84: 001117 | C84: Lager hell 4x6er Pack 50 cl Dosen | D84: 2 | E84: 2 - Packungseinheit | F84: KT | G84: Karton | H84: 1 | K84: 76137075
A85: 001118 | C85: Lager hell 24 x 50 cl PET Tray | D85: 2 | E85: 2 - Packungseinheit | F85: TR | G85: Tray | H85: 1 | K85: 76137204
A86: 001119 | C86: Lager hell Kühltasche 12 x 50 cl Dosen | D86: 2 | E86: 2 - Packungseinheit | F86: STK | G86: Stk | H86: 1 | K86: 7613700000640
A87: 001120 | C87: Lager hell 10x33 cl EW Karton | D87: 2 | E87: 2 - Packungseinheit | F87: KT | G87: Karton | H87: 1 | K87: 76137082
A88: 001130 | C88: Lager hell 18x33 cl EW Karton | D88: 2 | E88: 2 - Packungseinheit | F88: KT | G88: Karton | H88: 1 | K88: 76137020
A89: 001135 | C89: Lager hell 10&2 Gratis 33 cl EW Karton | D89: 2 | E89: 2 - Packungseinheit | F89: KT | G89: Karton | H89: 1 | K89: 76137105
A90: 001140 | C90: Lager hell 6x33 cl EW Karton | D90: 2 | E90: 2 - Packungseinheit | F90: KT | G90: Karton | H90: 1
A91: 001150 | C91: Lager hell 15x33cl EW Karton | D91: 2 | E91: 2 - Packungseinheit | F91: KT | G91: Karton | H91: 1 | K91: 76137242
A92: 001151 | C92: Seebueb 33 cl MW | D92: 2 | E92: 2 - Packungseinheit | F92: HA | G92: HA | H92: 1 | I92: 000026 | J92: Harass 5.-- mit 24 Fla -.30
A93: 001160 | C93: Lager hell 33 cl MW Miniharass | D93: 2 | E93: 2 - Packungseinheit | F93: HA | G93: HA | H93: 1 | I93: 000020 | J93: Harass 5.-- mit 10 Fla -.30 | K93: 76137525
A94: 001161 | C94: Lager hell 24 x 33 cl MW | D94: 2 | E94: 2 - Packungseinheit | F94: HA | G94: HA | H94: 1 | I94: 000026 | J94: Harass 5.-- mit 24 Fla -.30 | K94: 7613700000480
A95: 001170 | C95: Lidl Grillchampion Lager hell 10&2 Gratis 33 cl EW | D95: 2 | E95: 2 - Packungseinheit | F95: KT | G95: Karton | H95: 1 | K95: 76137983
A96: 001171 | C96: Schützengarten Jodlerbier Lager 10x33 cl EW | D96: 2 | E96: 2 - Packungseinheit | F96: KT | G96: Karton | H96: 1 | K96: 7610242000039
A97: 001172 | C97: Schützengarten OLMA Bier 10x33 cl EW | D97: 2 | E97: 2 - Packungseinheit | F97: KT | G97: Karton | H97: 1 | K97: 7613700000008
A98: 001173 | C98: Schützengarten OLMA Bier 20 L Container | D98: 2 | E98: 2 - Packungseinheit | F98: CON | G98: CON | H98: 1 | I98: 000002 | J98: Container Schützengarten leer 20L
A99: 001174 | C99: Schützengarten OLMA Bier 50 L KEG | D99: 2 | E99: 2 - Packungseinheit | F99: KEG | G99: KEG | H99: 1 | I99: 000001 | J99: Keg Schützengarten leer 50 L
A100: 001175 | C100: FCSG Cup-Bier 50 cl MW | D100: 2 | E100: 2 - Packungseinheit | F100: HA | G100: HA | H100: 1 | I100: 000024 | J100: Harass 5.-- mit 20 Fla -.30 | K100: 7613700000817
A101: 001180 | C101: Schwingerbier 10x33 cl EW Karton | D101: 2 | E101: 2 - Packungseinheit | F101: KT | G101: Karton | H101: 1 | K101: 76137600
A102: 001200 | C102: Löwengarten Lager hell 50 L KEG | D102: 2 | E102: 2 - Packungseinheit | F102: KEG | G102: KEG | H102: 1 | I102: 000001 | J102: Keg Schützengarten leer 50 L | K102: 7610242000084
A103: 001202 | C103: Löwengarten Lager hell 20 L Container | D103: 2 | E103: 2 - Packungseinheit | F103: CON | G103: CON | H103: 1 | I103: 000002 | J103: Container Schützengarten leer 20L | K103: 7610242000077
A104: 001204 | C104: Löweng Lager 12,5 L KGY | D104: 2 | E104: 2 - Packungseinheit | F104: KEG | G104: KEG | H104: 1 | I104: 000016 | J104: Keggy à 12,5 L
A105: 001206 | C105: Löwengarten Lager hell 50 cl MW | D105: 2 | E105: 2 - Packungseinheit | F105: HA | G105: HA | H105: 1 | I105: 000024 | J105: Harass 5.-- mit 20 Fla -.30 | K105: 7610242000176
A106: 001208 | C106: Löwengarten Lager hell 50 cl MW Display | D106: 2 | E106: 2 - Packungseinheit | F106: HA | G106: HA | H106: 1 | I106: 000020 | J106: Harass 5.-- mit 10 Fla -.30 | K106: 7610242000169
A107: 001210 | C107: Lager "Bad Ragartz" 24 x 33 cl MW | D107: 2 | E107: 2 - Packungseinheit | F107: HA | G107: HA | H107: 1 | I107: 000026 | J107: Harass 5.-- mit 24 Fla -.30
A108: 001212 | C108: Löweng Lager 10+2 33 cl EW | D108: 2 | E108: 2 - Packungseinheit | F108: KT | G108: Karton | H108: 1
A109: 001214 | C109: Löweng. Lager hell 10x33 cl EW Karton | D109: 2 | E109: 2 - Packungseinheit | F109: KT | G109: Karton | H109: 1 | K109: 7610242000022
A110: 001223 | C110: Löwengarten Hausbier 20 L Container | D110: 2 | E110: 2 - Packungseinheit | F110: CON | G110: CON | H110: 1 | I110: 000002 | J110: Container Schützengarten leer 20L
A111: 001224 | C111: Löweng Dunkel Spez 20 L CON | D111: 2 | E111: 2 - Packungseinheit | F111: CON | G111: CON | H111: 1 | I111: 000002 | J111: Container Schützengarten leer 20L
A112: 001225 | C112: Löweng Hausbier 1 L | D112: 1 | E112: 2 - Packungseinheit | F112: L | G112: LTR | H112: 1
A113: 001226 | C113: Löweng Dunkel Spez 50 cl MW | D113: 2 | E113: 2 - Packungseinheit | F113: HA | G113: HA | H113: 1 | I113: 000024 | J113: Harass 5.-- mit 20 Fla -.30
A114: 001227 | C114: Löweng Hausbier 3 dl | D114: 2 | E114: 2 - Packungseinheit | F114: L | G114: LTR | H114: 1
A115: 001230 | C115: Löweng Dunkel 33 cl MW | D115: 2 | E115: 2 - Packungseinheit | F115: HA | G115: HA | H115: 1 | I115: 000026 | J115: Harass 5.-- mit 24 Fla -.30
A116: 001232 | C116: Löweng Bodensee Zw 50 cl MW | D116: 2 | E116: 2 - Packungseinheit | F116: HA | G116: HA | H116: 1 | I116: 000034 | J116: Harass 5.-- mit 15 Fla -.50
A117: 001238 | C117: Löweng Minus 20 L CON | D117: 2 | E117: 2 - Packungseinheit | F117: CON | G117: CON | H117: 1 | I117: 000002 | J117: Container Schützengarten leer 20L
A118: 001240 | C118: Löweng Minus 50 cl MW | D118: 2 | E118: 2 - Packungseinheit | F118: HA | G118: HA | H118: 1 | I118: 000024 | J118: Harass 5.-- mit 20 Fla -.30
A119: 001242 | C119: Löweng Minus Disp 50 cl MW | D119: 2 | E119: 2 - Packungseinheit | F119: HA | G119: HA | H119: 1 | I119: 000020 | J119: Harass 5.-- mit 10 Fla -.30
A120: 001244 | C120: Löweng Minus 33 cl EW | D120: 2 | E120: 2 - Packungseinheit | F120: HA | G120: HA | H120: 1 | I120: 000004 | J120: Harass leer 5.--
A121: 001246 | C121: Löwenprinz Spezial 50 L KEG | D121: 2 | E121: 2 - Packungseinheit | F121: KEG | G121: KEG | H121: 1 | I121: 000001 | J121: Keg Schützengarten leer 50 L
A122: 001248 | C122: Löwenprinz Spezial 20 L Container | D122: 2 | E122: 2 - Packungseinheit | F122: CON | G122: CON | H122: 1 | I122: 000002 | J122: Container Schützengarten leer 20L
A123: 001250 | C123: Löweng Spezial 12,5 L KGY | D123: 2 | E123: 2 - Packungseinheit | F123: KEG | G123: KEG | H123: 1 | I123: 000016 | J123: Keggy à 12,5 L
A124: 001252 | C124: Löwengarten Löwenprinz 50 L KEG | D124: 2 | E124: 2 - Packungseinheit | F124: KEG | G124: KEG | H124: 1 | I124: 000001 | J124: Keg Schützengarten leer 50 L | K124: 7610242000107
A125: 001254 | C125: Löwengarten Löwenprinz 20 L Container | D125: 2 | E125: 2 - Packungseinheit | F125: CON | G125: CON | H125: 1 | I125: 000002 | J125: Container Schützengarten leer 20L | K125: 7610242000091
A126: 001256 | C126: Löwenprinz Spezial 33 cl MW | D126: 2 | E126: 2 - Packungseinheit | F126: HA | G126: HA | H126: 1 | I126: 000026 | J126: Harass 5.-- mit 24 Fla -.30 | K126: 7610242017396
A127: 001258 | C127: Löweng FL-Perle 20 L CON | D127: 2 | E127: 2 - Packungseinheit | F127: CON | G127: CON | H127: 1 | I127: 000002 | J127: Container Schützengarten leer 20L
A128: 001270 | C128: Farmer dunkel 8-P 33 cl EW | D128: 2 | E128: 2 - Packungseinheit | F128: KT | G128: Karton | H128: 1
A129: 001272 | C129: Farmer dunkel 6 x 33 cl EW Karton | D129: 2 | E129: 2 - Packungseinheit | F129: KT | G129: Karton | H129: 1
A130: 001274 | C130: Goldhell Display 50 cl MW | D130: 2 | E130: 2 - Packungseinheit | F130: HA | G130: HA | H130: 1 | I130: 000020 | J130: Harass 5.-- mit 10 Fla -.30
A131: 001276 | C131: Goldhell 33 cl EW | D131: 2 | E131: 2 - Packungseinheit | F131: KT | G131: Karton | H131: 1
A132: 001280 | C132: Hofgold 50 cl MW Display | D132: 2 | E132: 2 - Packungseinheit | F132: HA | G132: HA | H132: 1 | I132: 000020 | J132: Harass 5.-- mit 10 Fla -.30
A133: 001310 | C133: Edelspez Kellertank | D133: 2 | E133: 2 - Packungseinheit | F133: L | G133: LTR | H133: 1
A134: 001320 | C134: Edelspez 50 L KEG | D134: 2 | E134: 2 - Packungseinheit | F134: KEG | G134: KEG | H134: 1 | I134: 000001 | J134: Keg Schützengarten leer 50 L | K134: 7613700000336
A135: 001330 | C135: Säntis / Huusbier 50 L KEG | D135: 2 | E135: 2 - Packungseinheit | F135: KEG | G135: KEG | H135: 1 | I135: 000001 | J135: Keg Schützengarten leer 50 L | K135: 7613700000428
A136: 001340 | C136: Edelspez 20 L Container | D136: 2 | E136: 2 - Packungseinheit | F136: CON | G136: CON | H136: 1 | I136: 000002 | J136: Container Schützengarten leer 20L | K136: 7613700000329
A137: 001350 | C137: Anstichset 30L-Holzfass Edelspez | D137: 2 | E137: 2 - Packungseinheit | F137: STK | G137: Stk | H137: 1 | I137: 000059 | J137: Anstichset Holzfass 20 L / 30 L
A138: 001351 | C138: Anstichset 20L-Holzfass Edelspez | D138: 2 | E138: 2 - Packungseinheit | F138: STK | G138: Stk | H138: 1 | I138: 000059 | J138: Anstichset Holzfass 20 L / 30 L
A139: 001380 | C139: Edelspez 20 Liter Partyfass | D139: 2 | E139: 2 - Packungseinheit | F139: PYF | G139: PYF | H139: 1 | I139: 000003 | J139: Partyfass Schützengarten leer 10L/20L | K139: 7613700000350
A140: 001400 | C140: Edelspez 10 Liter Partyfass | D140: 2 | E140: 2 - Packungseinheit | F140: PYF | G140: PYF | H140: 1 | I140: 000003 | J140: Partyfass Schützengarten leer 10L/20L | K140: 7613700000343
A141: 001425 | C141: Edelspez 50 cl MW | D141: 2 | E141: 2 - Packungseinheit | F141: HA | G141: HA | H141: 1 | I141: 000024 | J141: Harass 5.-- mit 20 Fla -.30
A142: 001460 | C142: Edelspez 8x33 cl EW Karton | D142: 2 | E142: 2 - Packungseinheit | F142: KT | G142: Karton | H142: 1 | K142: 76137143
A143: 001480 | C143: Edelspez 33 cl MW | D143: 2 | E143: 2 - Packungseinheit | F143: HA | G143: HA | H143: 1 | I143: 000026 | J143: Harass 5.-- mit 24 Fla -.30 | K143: 76137136
A144: 001520 | C144: Edelspez 33 cl MW Miniharass | D144: 2 | E144: 2 - Packungseinheit | F144: HA | G144: HA | H144: 1 | I144: 000020 | J144: Harass 5.-- mit 10 Fla -.30 | K144: 76137129
A145: 001537 | C145: Schützengarten Black Orange 6x33 cl EW Karton | D145: 2 | E145: 2 - Packungseinheit | F145: KT | G145: Karton | H145: 1 | K145: 7613700000671
A146: 001538 | C146: Schützengarten Black Orange 33 cl EW Miniharass | D146: 2 | E146: 2 - Packungseinheit | F146: HA | G146: HA | H146: 1 | I146: 000004 | J146: Harass leer 5.--
A147: 001539 | C147: Schützengarten Craft Beer-Box 6x33 cl EW | D147: 2 | E147: 2 - Packungseinheit | F147: KT | G147: Karton | H147: 1 | K147: 7613700000572
A148: 001540 | C148: Jubiläum Geschenk-Set Sud 1779 75 cl | D148: 2 | E148: 2 - Packungseinheit | F148: KT | G148: Karton | H148: 1
A149: 001541 | C149: Schützengarten Sud 1779 50 L KEG | D149: 2 | E149: 2 - Packungseinheit | F149: KEG | G149: KEG | H149: 1 | I149: 000001 | J149: Keg Schützengarten leer 50 L
A150: 001542 | C150: Schützengarten Sud 1779 20 L Container | D150: 2 | E150: 2 - Packungseinheit | F150: CON | G150: CON | H150: 1 | I150: 000002 | J150: Container Schützengarten leer 20L
A151: 001543 | C151: Schützengarten Sud 1779 6x33 cl EW KT | D151: 2 | E151: 2 - Packungseinheit | F151: KT | G151: Karton | H151: 1 | K151: 7613700000176
A152: 001544 | C152: Schützengarten Sud 1779 33 cl EW Miniharass | D152: 2 | E152: 2 - Packungseinheit | F152: HA | G152: HA | H152: 1 | I152: 000004 | J152: Harass leer 5.-- | K152: 7613700000183
A153: 001545 | C153: Craft Bier Display ass. 384 x 33 cl EW | D153: 2 | E153: 2 - Packungseinheit | F153: STK | G153: Stk | H153: 1 | K153: 7613700000107
A154: 001546 | C154: Schützengarten Vadian Pale Ale 6x33 cl EW KT | D154: 2 | E154: 2 - Packungseinheit | F154: KT | G154: Karton | H154: 1 | K154: 7613700000060
A155: 001547 | C155: Schützengarten Vadian Pale Ale 33 cl EW Miniharass | D155: 2 | E155: 2 - Packungseinheit | F155: HA | G155: HA | H155: 1 | I155: 000004 | J155: Harass leer 5.-- | K155: 7613700000077
A156: 001548 | C156: Gallus 612 Old Style Ale 33 cl EW Miniharass | D156: 2 | E156: 2 - Packungseinheit | F156: HA | G156: HA | H156: 1 | I156: 000004 | J156: Harass leer 5.-- | K156: 7613700000039
A157: 001549 | C157: Gallus 612 Old Style Ale 6x33 cl EW Karton | D157: 2 | E157: 2 - Packungseinheit | F157: KT | G157: Karton | H157: 1 | K157: 7613700000022
A158: 001550 | C158: Gallus 612 Old Style Ale 50 cl EW | D158: 2 | E158: 2 - Packungseinheit | F158: HA | G158: HA | H158: 1 | I158: 000004 | J158: Harass leer 5.-- | K158: 76137334
A159: 001551 | C159: Gallus 612 Old Style Ale 4x50 cl EW Kart | D159: 2 | E159: 2 - Packungseinheit | F159: KT | G159: Karton | H159: 1 | K159: 76137280
A160: 001552 | C160: Gallus 612 3 Fl & 1 Glas 50 cl EW Kart | D160: 2 | E160: 2 - Packungseinheit | F160: KT | G160: Karton | H160: 1 | K160: 76137303
A161: 001553 | C161: Gallus 612 Old Style Ale 20 L Container | D161: 2 | E161: 2 - Packungseinheit | F161: CON | G161: CON | H161: 1 | I161: 000002 | J161: Container Schützengarten leer 20L | K161: 7613700000466
A162: 001554 | C162: India Pale Ale Spezialabfüllung 24x33 cl EW | D162: 2 | E162: 2 - Packungseinheit | F162: HA | G162: HA | H162: 1 | I162: 000004 | J162: Harass leer 5.--
A163: 001555 | C163: Schützengarten India Pale Ale 6x33 cl EW Karton | D163: 2 | E163: 2 - Packungseinheit | F163: KT | G163: Karton | H163: 1 | K163: 7610242020020
A164: 001556 | C164: Schützengarten India Pale Ale 33 cl EW Miniharass | D164: 2 | E164: 2 - Packungseinheit | F164: HA | G164: HA | H164: 1 | I164: 000004 | J164: Harass leer 5.-- | K164: 7610242020044
A165: 001557 | C165: Schützengarten India Pale Ale 20 L Container | D165: 2 | E165: 2 - Packungseinheit | F165: CON | G165: CON | H165: 1 | I165: 000002 | J165: Container Schützengarten leer 20L | K165: 7613700000503
A166: 001558 | C166: Schützengarten Swiss Stout 6x33 cl EW Karton | D166: 2 | E166: 2 - Packungseinheit | F166: KT | G166: Karton | H166: 1 | K166: 7610242000053
A167: 001559 | C167: Schützengarten Swiss Stout 33 cl EW Miniharass | D167: 2 | E167: 2 - Packungseinheit | F167: HA | G167: HA | H167: 1 | I167: 000004 | J167: Harass leer 5.-- | K167: 7610242000060
A168: 001560 | C168: Schützengarten Swiss Stout 20 L Container | D168: 2 | E168: 2 - Packungseinheit | F168: CON | G168: CON | H168: 1 | I168: 000002 | J168: Container Schützengarten leer 20L
A169: 001561 | C169: Craft Bier Display 3 x 15 x 6 x 33 cl EW | D169: 2 | E169: 2 - Packungseinheit | F169: STK | G169: Stk | H169: 1 | K169: 7613700000633
A170: 001562 | C170: San Martino Display ass. 270 x 33 cl EW | D170: 2 | E170: 2 - Packungseinheit | F170: STK | G170: Stk | H170: 1 | K170: 7610242005355
A171: 001563 | C171: Edelspez 2,8 20 L Container | D171: 2 | E171: 2 - Packungseinheit | F171: CON | G171: CON | H171: 1 | I171: 000002 | J171: Container Schützengarten leer 20L
A172: 001564 | C172: Biermisch Display 3 x 15 x 6 x 33 cl EW | D172: 2 | E172: 2 - Packungseinheit | F172: STK | G172: Stk | H172: 1 | K172: 7613700000657
A173: 001565 | C173: Edelspez 2,8 50 cl MW | D173: 2 | E173: 2 - Packungseinheit | F173: HA | G173: HA | H173: 1 | I173: 000024 | J173: Harass 5.-- mit 20 Fla -.30 | K173: 76137457
A174: 001566 | C174: San Martino Beer Fan Box ass. 4x33 cl EW | D174: 2 | E174: 2 - Packungseinheit | F174: KT | G174: Karton | H174: 1 | K174: 7610242005348
A175: 001567 | C175: Edelspez 2,8 50 cl MW Display | D175: 2 | E175: 2 - Packungseinheit | F175: HA | G175: HA | H175: 1 | I175: 000020 | J175: Harass 5.-- mit 10 Fla -.30 | K175: 76137464
A176: 001568 | C176: FC SG 140 Jahre Jubiläum 6x33 cl EW | D176: 2 | E176: 2 - Packungseinheit | F176: KT | G176: Karton | H176: 1
A177: 001569 | C177: Churfirstenbier 33 cl MW | D177: 2 | E177: 2 - Packungseinheit | F177: HA | G177: HA | H177: 1 | I177: 000049 | J177: Harass 5.-- mit 20 Fla -.50 | K177: 7613700000565
A178: 001570 | C178: San Martino Maroni Bier 20 L Cont. | D178: 2 | E178: 2 - Packungseinheit | F178: CON | G178: CON | H178: 1 | I178: 000062 | J178: Container AfG/Handelsbier leer 10L/20L
A179: 001571 | C179: San Martino La Bella BSG 6x33 cl EW | D179: 2 | E179: 2 - Packungseinheit | F179: KT | G179: Karton | H179: 1
A180: 001572 | C180: BSM Brauwerk Vollbier 20 L Container | D180: 2 | E180: 2 - Packungseinheit | F180: CON | G180: CON | H180: 1 | I180: 000062 | J180: Container AfG/Handelsbier leer 10L/20L
A181: 001573 | C181: La Passita Swiss Grape Ale 24 x 33 cl EW | D181: 2 | E181: 2 - Packungseinheit | F181: KT | G181: Karton | H181: 1
A182: 001574 | C182: Bad Attitude Hobo White IPA 20 L Cont. | D182: 2 | E182: 2 - Packungseinheit | F182: CON | G182: CON | H182: 1 | I182: 000062 | J182: Container AfG/Handelsbier leer 10L/20L | K182: 7610242005324
A183: 001575 | C183: San Martino La Bella 20 L Container | D183: 2 | E183: 2 - Packungseinheit | F183: CON | G183: CON | H183: 1 | I183: 000062 | J183: Container AfG/Handelsbier leer 10L/20L | K183: 7610242005300
A184: 001576 | C184: Säntisbier 33 cl MW | D184: 2 | E184: 2 - Packungseinheit | F184: HA | G184: HA | H184: 1 | I184: 000049 | J184: Harass 5.-- mit 20 Fla -.50 | K184: 7613700000213
A185: 001577 | C185: Schwarzer Bär Dunkelbier 33 cl MW | D185: 2 | E185: 2 - Packungseinheit | F185: HA | G185: HA | H185: 1 | I185: 000049 | J185: Harass 5.-- mit 20 Fla -.50 | K185: 7613700000220
A186: 001578 | C186: Schützengarten Low Carb Alu-Fl. 37,5 cl | D186: 2 | E186: 2 - Packungseinheit | F186: KT | G186: Karton | H186: 1 | K186: 7613700000091
A187: 001579 | C187: Ticino Beer Box ass. 6x33 cl EW | D187: 2 | E187: 2 - Packungseinheit | F187: KT | G187: Karton | H187: 1 | K187: 7610242005164
A188: 001580 | C188: Edelspez 2,8 30 cl MW | D188: 2 | E188: 2 - Packungseinheit | F188: HA | G188: HA | H188: 1 | I188: 000026 | J188: Harass 5.-- mit 24 Fla -.30 | K188: 76137440
A189: 001581 | C189: San Martino La Bella 6x33cl EW Karton | D189: 2 | E189: 2 - Packungseinheit | F189: KT | G189: Karton | H189: 1 | K189: 7610242005201
A190: 001582 | C190: Schützengarten Low Carb 20 L Container | D190: 2 | E190: 2 - Packungseinheit | F190: CON | G190: CON | H190: 1 | I190: 000002 | J190: Container Schützengarten leer 20L
A191: 001583 | C191: Bad Attitude Hobo White IPA 6x33 cl EW | D191: 2 | E191: 2 - Packungseinheit | F191: KT | G191: Karton | H191: 1 | K191: 7610242005126
A192: 001584 | C192: Bad Attitude Dude 6x33 cl EW Karton | D192: 2 | E192: 2 - Packungseinheit | F192: KT | G192: Karton | H192: 1 | K192: 7610242005140
A193: 001585 | C193: Säntisbier 50 cl MW | D193: 2 | E193: 2 - Packungseinheit | F193: HA | G193: HA | H193: 1 | I193: 000034 | J193: Harass 5.-- mit 15 Fla -.50 | K193: 76137266
A194: 001586 | C194: Säntisbier 8x33 cl EW Karton | D194: 2 | E194: 2 - Packungseinheit | F194: KT | G194: Karton | H194: 1 | K194: 76137181
A195: 001587 | C195: Bad Attitude Kurt 6x33 cl EW Karton | D195: 2 | E195: 2 - Packungseinheit | F195: KT | G195: Karton | H195: 1 | K195: 7610242005102
A196: 001588 | C196: Bad Attitude Dude 20 L Container | D196: 2 | E196: 2 - Packungseinheit | F196: CON | G196: CON | H196: 1 | I196: 000062 | J196: Container AfG/Handelsbier leer 10L/20L | K196: 7610242005331
A197: 001589 | C197: Bad Attitude Kurt 20 L Container | D197: 2 | E197: 2 - Packungseinheit | F197: CON | G197: CON | H197: 1 | I197: 000062 | J197: Container AfG/Handelsbier leer 10L/20L | K197: 7610242005317
A198: 001590 | C198: Säntisbier 20 L Container | D198: 2 | E198: 2 - Packungseinheit | F198: CON | G198: CON | H198: 1 | I198: 000002 | J198: Container Schützengarten leer 20L
A199: 001591 | C199: San Martino La Helles 20 L Container | D199: 2 | E199: 2 - Packungseinheit | F199: CON | G199: CON | H199: 1 | I199: 000062 | J199: Container AfG/Handelsbier leer 10L/20L | K199: 7610242005270
A200: 001592 | C200: Schwarzer Bär Dunkelbier 20 L Container | D200: 2 | E200: 2 - Packungseinheit | F200: CON | G200: CON | H200: 1 | I200: 000002 | J200: Container Schützengarten leer 20L | K200: 7613700000435
... 4429 more rows

Sheet Artikelinhalt (hidden)
A1: Artikel-Nr. | B1: Kurz-Artikel-Nr. | C1: Artikelbez. | D1: Nr. | E1: Verpack.Art | F1: ME | G1: Kurzbez | H1: Menge | I1: Artikel-Nr. Verp./Leergut | J1: Artikelbez. | K1: EAN/GTIN
A2: 000020 | C2: Harass 5.-- mit 10 Fla -.30 | D2: 1 | E2: 1 - Artikelinhalt | F2: FL | G2: FL | H2: 10 | I2: 000005 | J2: Flasche -.30
A3: 000022 | C3: Harass 5.-- mit 15 Fla -.30 | D3: 1 | E3: 1 - Artikelinhalt | F3: FL | G3: FL | H3: 15 | I3: 000005 | J3: Flasche -.30
A4: 000023 | C4: Harass 5.-- mit 27 Fla -.30 | D4: 1 | E4: 1 - Artikelinhalt | F4: FL | G4: FL | H4: 27 | I4: 000005 | J4: Flasche -.30
A5: 000024 | C5: Harass 5.-- mit 20 Fla -.30 | D5: 1 | E5: 1 - Artikelinhalt | F5: FL | G5: FL | H5: 20 | I5: 000005 | J5: Flasche -.30
A6: 000026 | C6: Harass 5.-- mit 24 Fla -.30 | D6: 1 | E6: 1 - Artikelinhalt | F6: FL | G6: FL | H6: 24 | I6: 000005 | J6: Flasche -.30
A7: 000028 | C7: Harass 5.-- mit 12 Fla -.50 | D7: 1 | E7: 1 - Artikelinhalt | F7: FL | G7: FL | H7: 12 | I7: 000006 | J7: Flasche -.50
A8: 000029 | C8: Harass 5.-- mit 12 Fla 1.-- | D8: 1 | E8: 1 - Artikelinhalt | F8: FL | G8: FL | H8: 12 | I8: 000010 | J8: Flasche 1.--
A9: 000030 | C9: Harass 5.-- mit 30 Fla -.30 | D9: 1 | E9: 1 - Artikelinhalt | F9: FL | G9: FL | H9: 30 | I9: 000005 | J9: Flasche -.30
A10: 000032 | C10: Harass 5.-- mit 6 Fla -.50 | D10: 1 | E10: 1 - Artikelinhalt | F10: FL | G10: FL | H10: 6 | I10: 000006 | J10: Flasche -.50
A11: 000033 | C11: Harass 5.-- mit 6 PET -.50 | D11: 1 | E11: 1 - Artikelinhalt | F11: FL | G11: FL | H11: 6 | I11: 000006 | J11: Flasche -.50
A12: 000034 | C12: Harass 5.-- mit 15 Fla -.50 | D12: 1 | E12: 1 - Artikelinhalt | F12: FL | G12: FL | H12: 15 | I12: 000006 | J12: Flasche -.50
A13: 000035 | C13: Harass 5.-- mit 15 Fla -.80 | D13: 1 | E13: 1 - Artikelinhalt | F13: FL | G13: FL | H13: 15 | I13: 000011 | J13: Flasche -.80
A14: 000036 | C14: Harass 5.-- mit 10 Fla -.50 | D14: 1 | E14: 1 - Artikelinhalt | F14: FL | G14: FL | H14: 10 | I14: 000006 | J14: Flasche -.50
A15: 000037 | C15: Harass 5.-- mit 12 PET -.50 | D15: 1 | E15: 1 - Artikelinhalt | F15: FL | G15: FL | H15: 12 | I15: 000006 | J15: Flasche -.50
A16: 000038 | C16: Harass 5.-- mit 12 Fla -.30 | D16: 1 | E16: 1 - Artikelinhalt | F16: FL | G16: FL | H16: 12 | I16: 000005 | J16: Flasche -.30
A17: 000039 | C17: Harass 5.-- mit 28 Fla -.30 | D17: 1 | E17: 1 - Artikelinhalt | F17: FL | G17: FL | H17: 28 | I17: 000005 | J17: Flasche -.30
A18: 000040 | C18: Harass 5.-- mit 54 Fla -.30 | D18: 1 | E18: 1 - Artikelinhalt | F18: FL | G18: FL | H18: 54 | I18: 000005 | J18: Flasche -.30
A19: 000041 | C19: Harass 5.-- mit 16 Fla -.50 | D19: 1 | E19: 1 - Artikelinhalt | F19: FL | G19: FL | H19: 16 | I19: 000006 | J19: Flasche -.50
A20: 000042 | C20: Harass -.-- mit 24 Fla -.30 | D20: 1 | E20: 1 - Artikelinhalt | F20: FL | G20: FL | H20: 24 | I20: 000005 | J20: Flasche -.30
A21: 000043 | C21: Harass -.-- mit 15 Fla -.30 | D21: 1 | E21: 1 - Artikelinhalt | F21: FL | G21: FL | H21: 15 | I21: 000005 | J21: Flasche -.30
A22: 000044 | C22: Harass -.-- mit 12 Fla -.30 | D22: 1 | E22: 1 - Artikelinhalt | F22: FL | G22: FL | H22: 12 | I22: 000005 | J22: Flasche -.30
A23: 000045 | C23: Harass 5.-- mit 15 Fla 1.-- | D23: 1 | E23: 1 - Artikelinhalt | F23: FL | G23: FL | H23: 15 | I23: 000010 | J23: Flasche 1.--
A24: 000046 | C24: Harass 5.-- mit 10 Fla 1.-- | D24: 1 | E24: 1 - Artikelinhalt | F24: FL | G24: FL | H24: 10 | I24: 000010 | J24: Flasche 1.--
A25: 000047 | C25: Harass 5.-- mit 24 Fla -.50 | D25: 1 | E25: 1 - Artikelinhalt | F25: FL | G25: FL | H25: 24 | I25: 000006 | J25: Flasche -.50
A26: 000048 | C26: Harass 5.-- mit 2 Container à 7.-- | D26: 1 | E26: 1 - Artikelinhalt | F26: FL | G26: FL | H26: 2 | I26: 000014 | J26: Beer-Tender Container leer 7.--
A27: 000049 | C27: Harass 5.-- mit 20 Fla -.50 | D27: 1 | E27: 1 - Artikelinhalt | F27: FL | G27: FL | H27: 20 | I27: 000006 | J27: Flasche -.50
A28: 000050 | C28: Harass 5.-- mit 20 Fla 1.-- | D28: 1 | E28: 1 - Artikelinhalt | F28: FL | G28: FL | H28: 20 | I28: 000010 | J28: Flasche 1.--
A29: 000052 | C29: 10er Harass 5.-- Coop | D29: 1 | E29: 1 - Artikelinhalt | F29: FL | G29: FL | H29: 10
A30: 000053 | C30: 15er Harass 5.-- Coop | D30: 1 | E30: 1 - Artikelinhalt | F30: FL | G30: FL | H30: 15
A31: 000054 | C31: 20er Harass 5.-- Coop | D31: 1 | E31: 1 - Artikelinhalt | F31: FL | G31: FL | H31: 20
A32: 000057 | C32: Harass 5.-- mit 10 Fla 1.-- | D32: 1 | E32: 1 - Artikelinhalt | F32: FL | G32: FL | H32: 10 | I32: 000010 | J32: Flasche 1.--
A33: 001010 | C33: Lager hell Kellertank | D33: 1 | E33: 1 - Artikelinhalt | F33: L | G33: LTR | H33: 1
A34: 001090 | C34: Lager hell 5 Liter Partyfass | D34: 1 | E34: 1 - Artikelinhalt | F34: L | G34: LTR | H34: 5
A35: 001105 | C35: Lager hell 50 cl MW | D35: 1 | E35: 1 - Artikelinhalt | F35: FL | G35: FL | H35: 20 | I35: 000005 | J35: Flasche -.30 | K35: 76137563
A36: 001106 | C36: Lager hell Aktion 50 cl MW | D36: 1 | E36: 1 - Artikelinhalt | F36: FL | G36: FL | H36: 20 | I36: 000005 | J36: Flasche -.30 | K36: 76137532
A37: 001110 | C37: Lager hell 50 cl MW Display | D37: 1 | E37: 1 - Artikelinhalt | F37: FL | G37: FL | H37: 10 | I37: 000005 | J37: Flasche -.30
A38: 001111 | C38: Lager hell Aktion 50 cl MW Display | D38: 1 | E38: 1 - Artikelinhalt | F38: FL | G38: FL | H38: 10 | I38: 000005 | J38: Flasche -.30
A39: 001115 | C39: Lager hell 50 cl Dosen lose | D39: 1 | E39: 1 - Artikelinhalt | F39: DO | G39: Dose | H39: 24 | I39: 000962 | J39: Entsorgungsgebühr Dosen (N)
A40: 001117 | C40: Lager hell 4x6er Pack 50 cl Dosen | D40: 1 | E40: 1 - Artikelinhalt | F40: DO | G40: Dose | H40: 24 | I40: 000962 | J40: Entsorgungsgebühr Dosen (N) | K40: 76137099
A41: 001118 | C41: Lager hell 24 x 50 cl PET Tray | D41: 1 | E41: 1 - Artikelinhalt | F41: FL | G41: FL | H41: 24 | I41: 000970 | J41: Entsorgungsgebühr PET bis 50 cl (N) | K41: 76137150
A42: 001119 | C42: Lager hell Kühltasche 12 x 50 cl Dosen | D42: 1 | E42: 1 - Artikelinhalt | F42: DO | G42: Dose | H42: 12 | I42: 000962 | J42: Entsorgungsgebühr Dosen (N)
A43: 001120 | C43: Lager hell 10x33 cl EW Karton | D43: 1 | E43: 1 - Artikelinhalt | F43: FL | G43: FL | H43: 10 | I43: 000964 | J43: Entsorgungsgebühr EW Glas 9-33 cl (N) | K43: 76137037
A44: 001130 | C44: Lager hell 18x33 cl EW Karton | D44: 1 | E44: 1 - Artikelinhalt | F44: FL | G44: FL | H44: 18 | I44: 000964 | J44: Entsorgungsgebühr EW Glas 9-33 cl (N)
A45: 001135 | C45: Lager hell 10&2 Gratis 33 cl EW Karton | D45: 1 | E45: 1 - Artikelinhalt | F45: FL | G45: FL | H45: 12 | I45: 000964 | J45: Entsorgungsgebühr EW Glas 9-33 cl (N)
A46: 001140 | C46: Lager hell 6x33 cl EW Karton | D46: 1 | E46: 1 - Artikelinhalt | F46: FL | G46: FL | H46: 24 | I46: 000964 | J46: Entsorgungsgebühr EW Glas 9-33 cl (N)
A47: 001150 | C47: Lager hell 15x33cl EW Karton | D47: 1 | E47: 1 - Artikelinhalt | F47: FL | G47: FL | H47: 15 | I47: 000964 | J47: Entsorgungsgebühr EW Glas 9-33 cl (N)
A48: 001151 | C48: Seebueb 33 cl MW | D48: 1 | E48: 1 - Artikelinhalt | F48: FL | G48: FL | H48: 24 | I48: 000005 | J48: Flasche -.30 | K48: 7629999022911
A49: 001160 | C49: Lager hell 33 cl MW Miniharass | D49: 1 | E49: 1 - Artikelinhalt | F49: FL | G49: FL | H49: 10 | I49: 000005 | J49: Flasche -.30
A50: 001161 | C50: Lager hell 24 x 33 cl MW | D50: 1 | E50: 1 - Artikelinhalt | F50: FL | G50: FL | H50: 24 | I50: 000005 | J50: Flasche -.30 | K50: 76137518
A51: 001170 | C51: Lidl Grillchampion Lager hell 10&2 Gratis 33 cl EW | D51: 1 | E51: 1 - Artikelinhalt | F51: FL | G51: FL | H51: 12 | I51: 000964 | J51: Entsorgungsgebühr EW Glas 9-33 cl (N)
A52: 001171 | C52: Schützengarten Jodlerbier Lager 10x33 cl EW | D52: 1 | E52: 1 - Artikelinhalt | F52: FL | G52: FL | H52: 10 | I52: 000964 | J52: Entsorgungsgebühr EW Glas 9-33 cl (N)
A53: 001172 | C53: Schützengarten OLMA Bier 10x33 cl EW | D53: 1 | E53: 1 - Artikelinhalt | F53: FL | G53: FL | H53: 10 | I53: 000964 | J53: Entsorgungsgebühr EW Glas 9-33 cl (N) | K53: 7613700000046
A54: 001175 | C54: FCSG Cup-Bier 50 cl MW | D54: 1 | E54: 1 - Artikelinhalt | F54: FL | G54: FL | H54: 20 | I54: 000005 | J54: Flasche -.30 | K54: 7613700000800
A55: 001180 | C55: Schwingerbier 10x33 cl EW Karton | D55: 1 | E55: 1 - Artikelinhalt | F55: FL | G55: FL | H55: 10 | I55: 000964 | J55: Entsorgungsgebühr EW Glas 9-33 cl (N) | K55: 76137594
A56: 001206 | C56: Löwengarten Lager hell 50 cl MW | D56: 1 | E56: 1 - Artikelinhalt | F56: FL | G56: FL | H56: 20 | I56: 000005 | J56: Flasche -.30 | K56: 7610242000114
A57: 001208 | C57: Löwengarten Lager hell 50 cl MW Display | D57: 1 | E57: 1 - Artikelinhalt | F57: FL | G57: FL | H57: 10 | I57: 000005 | J57: Flasche -.30
A58: 001210 | C58: Lager "Bad Ragartz" 24 x 33 cl MW | D58: 1 | E58: 1 - Artikelinhalt | F58: FL | G58: FL | H58: 24 | I58: 000005 | J58: Flasche -.30
A59: 001212 | C59: Löweng Lager 10+2 33 cl EW | D59: 1 | E59: 1 - Artikelinhalt | F59: FL | G59: FL | H59: 12 | I59: 000964 | J59: Entsorgungsgebühr EW Glas 9-33 cl (N)
A60: 001214 | C60: Löweng. Lager hell 10x33 cl EW Karton | D60: 1 | E60: 1 - Artikelinhalt | F60: FL | G60: FL | H60: 10 | I60: 000964 | J60: Entsorgungsgebühr EW Glas 9-33 cl (N) | K60: 7610242000046
A61: 001226 | C61: Löweng Dunkel Spez 50 cl MW | D61: 1 | E61: 1 - Artikelinhalt | F61: FL | G61: FL | H61: 20 | I61: 000005 | J61: Flasche -.30 | K61: 7610242008738
A62: 001227 | C62: Löweng Hausbier 3 dl | D62: 1 | E62: 1 - Artikelinhalt | F62: L | G62: LTR | H62: 1
A63: 001230 | C63: Löweng Dunkel 33 cl MW | D63: 1 | E63: 1 - Artikelinhalt | F63: FL | G63: FL | H63: 24 | I63: 000005 | J63: Flasche -.30 | K63: 7610242008714
A64: 001232 | C64: Löweng Bodensee Zw 50 cl MW | D64: 1 | E64: 1 - Artikelinhalt | F64: FL | G64: FL | H64: 15 | I64: 000006 | J64: Flasche -.50 | K64: 7610242000152
A65: 001240 | C65: Löweng Minus 50 cl MW | D65: 1 | E65: 1 - Artikelinhalt | F65: FL | G65: FL | H65: 20 | I65: 000005 | J65: Flasche -.30 | K65: 7610242008745
A66: 001242 | C66: Löweng Minus Disp 50 cl MW | D66: 1 | E66: 1 - Artikelinhalt | F66: FL | G66: FL | H66: 10 | I66: 000005 | J66: Flasche -.30
A67: 001244 | C67: Löweng Minus 33 cl EW | D67: 1 | E67: 1 - Artikelinhalt | F67: FL | G67: FL | H67: 24
A68: 001256 | C68: Löwenprinz Spezial 33 cl MW | D68: 1 | E68: 1 - Artikelinhalt | F68: FL | G68: FL | H68: 24 | I68: 000005 | J68: Flasche -.30 | K68: 7610242017389
A69: 001270 | C69: Farmer dunkel 8-P 33 cl EW | D69: 1 | E69: 1 - Artikelinhalt | F69: FL | G69: FL | H69: 8 | I69: 000964 | J69: Entsorgungsgebühr EW Glas 9-33 cl (N)
A70: 001272 | C70: Farmer dunkel 6 x 33 cl EW Karton | D70: 1 | E70: 1 - Artikelinhalt | F70: FL | G70: FL | H70: 6 | I70: 000964 | J70: Entsorgungsgebühr EW Glas 9-33 cl (N)
A71: 001274 | C71: Goldhell Display 50 cl MW | D71: 1 | E71: 1 - Artikelinhalt | F71: FL | G71: FL | H71: 10 | I71: 000005 | J71: Flasche -.30
A72: 001276 | C72: Goldhell 33 cl EW | D72: 1 | E72: 1 - Artikelinhalt | F72: FL | G72: FL | H72: 10 | I72: 000964 | J72: Entsorgungsgebühr EW Glas 9-33 cl (N)
A73: 001280 | C73: Hofgold 50 cl MW Display | D73: 1 | E73: 1 - Artikelinhalt | F73: FL | G73: FL | H73: 10 | I73: 000005 | J73: Flasche -.30
A74: 001310 | C74: Edelspez Kellertank | D74: 1 | E74: 1 - Artikelinhalt | F74: L | G74: LTR | H74: 1
A75: 001425 | C75: Edelspez 50 cl MW | D75: 1 | E75: 1 - Artikelinhalt | F75: FL | G75: FL | H75: 20 | I75: 000005 | J75: Flasche -.30
A76: 001460 | C76: Edelspez 8x33 cl EW Karton | D76: 1 | E76: 1 - Artikelinhalt | F76: FL | G76: FL | H76: 8 | I76: 000964 | J76: Entsorgungsgebühr EW Glas 9-33 cl (N) | K76: 76137167
A77: 001480 | C77: Edelspez 33 cl MW | D77: 1 | E77: 1 - Artikelinhalt | F77: FL | G77: FL | H77: 24 | I77: 000005 | J77: Flasche -.30 | K77: 76137112
A78: 001520 | C78: Edelspez 33 cl MW Miniharass | D78: 1 | E78: 1 - Artikelinhalt | F78: FL | G78: FL | H78: 10 | I78: 000005 | J78: Flasche -.30
A79: 001537 | C79: Schützengarten Black Orange 6x33 cl EW Karton | D79: 1 | E79: 1 - Artikelinhalt | F79: FL | G79: FL | H79: 6 | I79: 000964 | J79: Entsorgungsgebühr EW Glas 9-33 cl (N) | K79: 7613700000664
A80: 001538 | C80: Schützengarten Black Orange 33 cl EW Miniharass | D80: 1 | E80: 1 - Artikelinhalt | F80: FL | G80: FL | H80: 10 | I80: 000964 | J80: Entsorgungsgebühr EW Glas 9-33 cl (N)
A81: 001539 | C81: Schützengarten Craft Beer-Box 6x33 cl EW | D81: 1 | E81: 1 - Artikelinhalt | F81: FL | G81: FL | H81: 6 | I81: 000964 | J81: Entsorgungsgebühr EW Glas 9-33 cl (N)
A82: 001540 | C82: Jubiläum Geschenk-Set Sud 1779 75 cl | D82: 1 | E82: 1 - Artikelinhalt | F82: KT | G82: Karton | H82: 1 | I82: 000964 | J82: Entsorgungsgebühr EW Glas 9-33 cl (N)
A83: 001543 | C83: Schützengarten Sud 1779 6x33 cl EW KT | D83: 1 | E83: 1 - Artikelinhalt | F83: FL | G83: FL | H83: 6 | I83: 000964 | J83: Entsorgungsgebühr EW Glas 9-33 cl (N)
A84: 001544 | C84: Schützengarten Sud 1779 33 cl EW Miniharass | D84: 1 | E84: 1 - Artikelinhalt | F84: FL | G84: FL | H84: 10 | I84: 000964 | J84: Entsorgungsgebühr EW Glas 9-33 cl (N) | K84: 7613700000169
A85: 001545 | C85: Craft Bier Display ass. 384 x 33 cl EW | D85: 1 | E85: 1 - Artikelinhalt | F85: FL | G85: FL | H85: 384 | I85: 000964 | J85: Entsorgungsgebühr EW Glas 9-33 cl (N)
A86: 001546 | C86: Schützengarten Vadian Pale Ale 6x33 cl EW KT | D86: 1 | E86: 1 - Artikelinhalt | F86: FL | G86: FL | H86: 6 | I86: 000964 | J86: Entsorgungsgebühr EW Glas 9-33 cl (N)
A87: 001547 | C87: Schützengarten Vadian Pale Ale 33 cl EW Miniharass | D87: 1 | E87: 1 - Artikelinhalt | F87: FL | G87: FL | H87: 10 | I87: 000964 | J87: Entsorgungsgebühr EW Glas 9-33 cl (N) | K87: 7613700000053
A88: 001548 | C88: Gallus 612 Old Style Ale 33 cl EW Miniharass | D88: 1 | E88: 1 - Artikelinhalt | F88: FL | G88: FL | H88: 10 | I88: 000964 | J88: Entsorgungsgebühr EW Glas 9-33 cl (N) | K88: 7613700000015
A89: 001549 | C89: Gallus 612 Old Style Ale 6x33 cl EW Karton | D89: 1 | E89: 1 - Artikelinhalt | F89: FL | G89: FL | H89: 6 | I89: 000964 | J89: Entsorgungsgebühr EW Glas 9-33 cl (N)
A90: 001550 | C90: Gallus 612 Old Style Ale 50 cl EW | D90: 1 | E90: 1 - Artikelinhalt | F90: FL | G90: FL | H90: 15 | K90: 76137273
A91: 001551 | C91: Gallus 612 Old Style Ale 4x50 cl EW Kart | D91: 1 | E91: 1 - Artikelinhalt | F91: FL | G91: FL | H91: 4 | I91: 000966 | J91: Entsorgungsgebühr EW Glas 34-60 cl (N)
A92: 001552 | C92: Gallus 612 3 Fl & 1 Glas 50 cl EW Kart | D92: 1 | E92: 1 - Artikelinhalt | F92: FL | G92: FL | H92: 3 | I92: 000966 | J92: Entsorgungsgebühr EW Glas 34-60 cl (N)
A93: 001554 | C93: India Pale Ale Spezialabfüllung 24x33 cl EW | D93: 1 | E93: 1 - Artikelinhalt | F93: FL | G93: FL | H93: 24 | I93: 000964 | J93: Entsorgungsgebühr EW Glas 9-33 cl (N)
A94: 001555 | C94: Schützengarten India Pale Ale 6x33 cl EW Karton | D94: 1 | E94: 1 - Artikelinhalt | F94: FL | G94: FL | H94: 6 | I94: 000964 | J94: Entsorgungsgebühr EW Glas 9-33 cl (N)
A95: 001556 | C95: Schützengarten India Pale Ale 33 cl EW Miniharass | D95: 1 | E95: 1 - Artikelinhalt | F95: FL | G95: FL | H95: 10 | I95: 000964 | J95: Entsorgungsgebühr EW Glas 9-33 cl (N) | K95: 76137419
A96: 001558 | C96: Schützengarten Swiss Stout 6x33 cl EW Karton | D96: 1 | E96: 1 - Artikelinhalt | F96: FL | G96: FL | H96: 6 | I96: 000964 | J96: Entsorgungsgebühr EW Glas 9-33 cl (N)
A97: 001559 | C97: Schützengarten Swiss Stout 33 cl EW Miniharass | D97: 1 | E97: 1 - Artikelinhalt | F97: FL | G97: FL | H97: 10 | I97: 000964 | J97: Entsorgungsgebühr EW Glas 9-33 cl (N) | K97: 76137341
A98: 001561 | C98: Craft Bier Display 3 x 15 x 6 x 33 cl EW | D98: 1 | E98: 1 - Artikelinhalt | F98: FL | G98: FL | H98: 270 | I98: 000964 | J98: Entsorgungsgebühr EW Glas 9-33 cl (N)
A99: 001562 | C99: San Martino Display ass. 270 x 33 cl EW | D99: 1 | E99: 1 - Artikelinhalt | F99: FL | G99: FL | H99: 270 | I99: 000964 | J99: Entsorgungsgebühr EW Glas 9-33 cl (N)
A100: 001564 | C100: Biermisch Display 3 x 15 x 6 x 33 cl EW | D100: 1 | E100: 1 - Artikelinhalt | F100: FL | G100: FL | H100: 270 | I100: 000964 | J100: Entsorgungsgebühr EW Glas 9-33 cl (N)
A101: 001565 | C101: Edelspez 2,8 50 cl MW | D101: 1 | E101: 1 - Artikelinhalt | F101: FL | G101: FL | H101: 20 | I101: 000005 | J101: Flasche -.30 | K101: 76137433
A102: 001566 | C102: San Martino Beer Fan Box ass. 4x33 cl EW | D102: 1 | E102: 1 - Artikelinhalt | F102: FL | G102: FL | H102: 4 | I102: 000964 | J102: Entsorgungsgebühr EW Glas 9-33 cl (N)
A103: 001567 | C103: Edelspez 2,8 50 cl MW Display | D103: 1 | E103: 1 - Artikelinhalt | F103: FL | G103: FL | H103: 10 | I103: 000005 | J103: Flasche -.30
A104: 001568 | C104: FC SG 140 Jahre Jubiläum 6x33 cl EW | D104: 1 | E104: 1 - Artikelinhalt | F104: FL | G104: FL | H104: 6 | I104: 000964 | J104: Entsorgungsgebühr EW Glas 9-33 cl (N)
A105: 001569 | C105: Churfirstenbier 33 cl MW | D105: 1 | E105: 1 - Artikelinhalt | F105: FL | G105: FL | H105: 20 | I105: 000006 | J105: Flasche -.50 | K105: 7613700000558
A106: 001571 | C106: San Martino La Bella BSG 6x33 cl EW | D106: 1 | E106: 1 - Artikelinhalt | F106: FL | G106: FL | H106: 6 | I106: 000964 | J106: Entsorgungsgebühr EW Glas 9-33 cl (N)
A107: 001573 | C107: La Passita Swiss Grape Ale 24 x 33 cl EW | D107: 1 | E107: 1 - Artikelinhalt | F107: FL | G107: FL | H107: 24 | I107: 000964 | J107: Entsorgungsgebühr EW Glas 9-33 cl (N) | K107: 7610242005249
A108: 001576 | C108: Säntisbier 33 cl MW | D108: 1 | E108: 1 - Artikelinhalt | F108: FL | G108: FL | H108: 20 | I108: 000006 | J108: Flasche -.50 | K108: 7613700000152
A109: 001577 | C109: Schwarzer Bär Dunkelbier 33 cl MW | D109: 1 | E109: 1 - Artikelinhalt | F109: FL | G109: FL | H109: 20 | I109: 000006 | J109: Flasche -.50 | K109: 7613700000190
A110: 001578 | C110: Schützengarten Low Carb Alu-Fl. 37,5 cl | D110: 1 | E110: 1 - Artikelinhalt | F110: FL | G110: FL | H110: 24 | I110: 000962 | J110: Entsorgungsgebühr Dosen (N) | K110: 7613700000084
A111: 001579 | C111: Ticino Beer Box ass. 6x33 cl EW | D111: 1 | E111: 1 - Artikelinhalt | F111: FL | G111: FL | H111: 6 | I111: 000964 | J111: Entsorgungsgebühr EW Glas 9-33 cl (N)
A112: 001580 | C112: Edelspez 2,8 30 cl MW | D112: 1 | E112: 1 - Artikelinhalt | F112: FL | G112: FL | H112: 24 | I112: 000005 | J112: Flasche -.30 | K112: 76137426
A113: 001581 | C113: San Martino La Bella 6x33cl EW Karton | D113: 1 | E113: 1 - Artikelinhalt | F113: FL | G113: FL | H113: 6 | I113: 000964 | J113: Entsorgungsgebühr EW Glas 9-33 cl (N) | K113: 7610242005195
A114: 001583 | C114: Bad Attitude Hobo White IPA 6x33 cl EW | D114: 1 | E114: 1 - Artikelinhalt | F114: FL | G114: FL | H114: 6 | I114: 000964 | J114: Entsorgungsgebühr EW Glas 9-33 cl (N) | K114: 7610242005119
A115: 001584 | C115: Bad Attitude Dude 6x33 cl EW Karton | D115: 1 | E115: 1 - Artikelinhalt | F115: FL | G115: FL | H115: 6 | I115: 000964 | J115: Entsorgungsgebühr EW Glas 9-33 cl (N) | K115: 7610242005133
A116: 001585 | C116: Säntisbier 50 cl MW | D116: 1 | E116: 1 - Artikelinhalt | F116: FL | G116: FL | H116: 15 | I116: 000006 | J116: Flasche -.50 | K116: 76137198
A117: 001586 | C117: Säntisbier 8x33 cl EW Karton | D117: 1 | E117: 1 - Artikelinhalt | F117: FL | G117: FL | H117: 8 | I117: 000964 | J117: Entsorgungsgebühr EW Glas 9-33 cl (N) | K117: 76137174
A118: 001587 | C118: Bad Attitude Kurt 6x33 cl EW Karton | D118: 1 | E118: 1 - Artikelinhalt | F118: FL | G118: FL | H118: 6 | I118: 000964 | J118: Entsorgungsgebühr EW Glas 9-33 cl (N) | K118: 7610242005096
A119: 001594 | C119: Schwarzer Bär Dunkelbier 50 cl MW | D119: 1 | E119: 1 - Artikelinhalt | F119: FL | G119: FL | H119: 15 | I119: 000006 | J119: Flasche -.50 | K119: 76137358
A120: 001595 | C120: San Martino La Nostra 4x6er 50 cl Dosen | D120: 1 | E120: 1 - Artikelinhalt | F120: DO | G120: Dose | H120: 24 | I120: 000962 | J120: Entsorgungsgebühr Dosen (N) | K120: 7610242005065
A121: 001596 | C121: Schwarzer Bär Dunkelbier 8x33 cl EW Kart | D121: 1 | E121: 1 - Artikelinhalt | F121: FL | G121: FL | H121: 8 | I121: 000964 | J121: Entsorgungsgebühr EW Glas 9-33 cl (N) | K121: 76137310
A122: 001597 | C122: San Martino La Helles 6x33 cl EW Karton | D122: 1 | E122: 1 - Artikelinhalt | F122: FL | G122: FL | H122: 6 | I122: 000964 | J122: Entsorgungsgebühr EW Glas 9-33 cl (N) | K122: 7610242005003
A123: 001598 | C123: San Martino La Nostra 6x33 cl EW Karton | D123: 1 | E123: 1 - Artikelinhalt | F123: FL | G123: FL | H123: 6 | I123: 000964 | J123: Entsorgungsgebühr EW Glas 9-33 cl (N) | K123: 7610242005041
A124: 001599 | C124: San Martino La Rossa 6x33 cl EW Karton | D124: 1 | E124: 1 - Artikelinhalt | F124: FL | G124: FL | H124: 6 | I124: 000964 | J124: Entsorgungsgebühr EW Glas 9-33 cl (N) | K124: 7610242005027
A125: 001601 | C125: Boxer Old Lager 50 cl MW | D125: 1 | E125: 1 - Artikelinhalt | F125: FL | G125: FL | H125: 20 | I125: 000006 | J125: Flasche -.50 | K125: 76405150
A126: 001602 | C126: Boxer Old Lager 33 cl MW | D126: 1 | E126: 1 - Artikelinhalt | F126: FL | G126: FL | H126: 15 | I126: 000010 | J126: Flasche 1.--
A127: 001603 | C127: Eichhof Lemon 33 cl MW | D127: 1 | E127: 1 - Artikelinhalt | F127: FL | G127: FL | H127: 24 | I127: 000005 | J127: Flasche -.30
A128: 001604 | C128: Cardinal Draft 33 cl MW | D128: 1 | E128: 1 - Artikelinhalt | F128: FL | G128: FL | H128: 24 | I128: 000005 | J128: Flasche -.30
A129: 001605 | C129: Birra Moretti 24 x 33 cl EW | D129: 1 | E129: 1 - Artikelinhalt | F129: FL | G129: FL | H129: 24 | I129: 000964 | J129: Entsorgungsgebühr EW Glas 9-33 cl (N) | K129: 8410655000416
A130: 001606 | C130: Anchor Liberty Ale 35,5 cl EW | D130: 1 | E130: 1 - Artikelinhalt | F130: FL | G130: FL | H130: 24 | I130: 000966 | J130: Entsorgungsgebühr EW Glas 34-60 cl (N)
A131: 001607 | C131: Eichhof Lager 58 cl MW | D131: 1 | E131: 1 - Artikelinhalt | F131: FL | G131: FL | H131: 15 | I131: 000005 | J131: Flasche -.30
A132: 001608 | C132: Eichhof Braugold 33 cl MW | D132: 1 | E132: 1 - Artikelinhalt | F132: FL | G132: FL | H132: 24 | I132: 000005 | J132: Flasche -.30
A133: 001610 | C133: Feldschlösschen Lager hell 10 x 50 cl MW | D133: 1 | E133: 1 - Artikelinhalt | F133: FL | G133: FL | H133: 10 | I133: 000005 | J133: Flasche -.30
A134: 001612 | C134: Eichhof Lager hell 50 cl MW | D134: 1 | E134: 1 - Artikelinhalt | F134: FL | G134: FL | H134: 20 | I134: 000005 | J134: Flasche -.30
A135: 001613 | C135: Eichhof Lager Hell Dose 50 cl | D135: 1 | E135: 1 - Artikelinhalt | F135: DO | G135: Dose | H135: 24 | I135: 000962 | J135: Entsorgungsgebühr Dosen (N)
A136: 001614 | C136: Sierra Nevada Pale Ale 35 cl EW | D136: 1 | E136: 1 - Artikelinhalt | F136: FL | G136: FL | H136: 24 | I136: 000966 | J136: Entsorgungsgebühr EW Glas 34-60 cl (N)
A137: 001615 | C137: Brewdog Punk IPA 33 cl EW | D137: 1 | E137: 1 - Artikelinhalt | F137: FL | G137: FL | H137: 24 | I137: 000964 | J137: Entsorgungsgebühr EW Glas 9-33 cl (N)
A138: 001616 | C138: Storm & Anchor (Sorte wechselnd) 33 cl EW | D138: 1 | E138: 1 - Artikelinhalt | F138: FL | G138: FL | H138: 12 | I138: 000964 | J138: Entsorgungsgebühr EW Glas 9-33 cl (N)
A139: 001617 | C139: Feldschlösschen Hopfenperle 33 cl MW | D139: 1 | E139: 1 - Artikelinhalt | F139: FL | G139: FL | H139: 24 | I139: 000005 | J139: Flasche -.30 | K139: 76129865
A140: 001618 | C140: Brooklyn Lager 35,5 cl EW | D140: 1 | E140: 1 - Artikelinhalt | F140: FL | G140: FL | H140: 24 | I140: 000966 | J140: Entsorgungsgebühr EW Glas 34-60 cl (N)
A141: 001619 | C141: Appenzeller Brandlöscher Bügel 33 cl MW | D141: 1 | E141: 1 - Artikelinhalt | F141: FL | G141: FL | H141: 20 | I141: 000006 | J141: Flasche -.50 | K141: 7611889120456
A142: 001621 | C142: FS Lager H Party 5 L DO | D142: 1 | E142: 1 - Artikelinhalt | F142: DO | G142: Dose | H142: 1 | I142: 000962 | J142: Entsorgungsgebühr Dosen (N)
A143: 001622 | C143: Feldschlösschen Lager hell 50 cl MW | D143: 1 | E143: 1 - Artikelinhalt | F143: FL | G143: FL | H143: 20 | I143: 000005 | J143: Flasche -.30 | K143: 76129049
A144: 001623 | C144: Feldschlösschen Lager hell 50 cl Dosen | D144: 1 | E144: 1 - Artikelinhalt | F144: DO | G144: Dose | H144: 24 | I144: 000962 | J144: Entsorgungsgebühr Dosen (N)
A145: 001624 | C145: FS Lager Hell Mini 33 cl MW | D145: 1 | E145: 1 - Artikelinhalt | F145: FL | G145: FL | H145: 10 | I145: 000005 | J145: Flasche -.30
A146: 001625 | C146: Seeburger La Helles 24 x 33 cl EW | D146: 1 | E146: 1 - Artikelinhalt | F146: FL | G146: FL | H146: 24 | I146: 000964 | J146: Entsorgungsgebühr EW Glas 9-33 cl (N) | K146: 7610242005225
A147: 001626 | C147: Birra Moretti Baffo d'Oro 33 cl EW | D147: 1 | E147: 1 - Artikelinhalt | F147: FL | G147: FL | H147: 24 | I147: 000964 | J147: Entsorgungsgebühr EW Glas 9-33 cl (N)
A148: 001628 | C148: Haldengut Haldenkrone 33 cl MW | D148: 1 | E148: 1 - Artikelinhalt | F148: FL | G148: FL | H148: 24 | I148: 000005 | J148: Flasche -.30
A149: 001630 | C149: Haldengut Lager hell 58 cl MW | D149: 1 | E149: 1 - Artikelinhalt | F149: FL | G149: FL | H149: 15 | I149: 000005 | J149: Flasche -.30
A150: 001631 | C150: Ittinger Amber 33 cl MW | D150: 1 | E150: 1 - Artikelinhalt | F150: FL | G150: FL | H150: 24 | I150: 000005 | J150: Flasche -.30 | K150: 7610055017354
A151: 001632 | C151: Ittinger Amber 33 cl MW Miniharass | D151: 1 | E151: 1 - Artikelinhalt | F151: FL | G151: FL | H151: 10 | I151: 000005 | J151: Flasche -.30
A152: 001633 | C152: Appenzeller Weizenbier Bügel 33 cl MW | D152: 1 | E152: 1 - Artikelinhalt | F152: FL | G152: FL | H152: 20 | I152: 000006 | J152: Flasche -.50 | K152: 7611889115414
A153: 001634 | C153: Appenzeller Quöllfrisch 15er Harass 33 cl MW | D153: 1 | E153: 1 - Artikelinhalt | F153: FL | G153: FL | H153: 15 | I153: 000006 | J153: Flasche -.50
A154: 001635 | C154: Appenzeller Quöllfrisch hell 10x33 cl EW | D154: 1 | E154: 1 - Artikelinhalt | F154: FL | G154: FL | H154: 10 | I154: 000964 | J154: Entsorgungsgebühr EW Glas 9-33 cl (N)
A155: 001636 | C155: Appenzeller Quöllfrisch trüb 33 cl MW | D155: 1 | E155: 1 - Artikelinhalt | F155: FL | G155: FL | H155: 20 | I155: 000006 | J155: Flasche -.50 | K155: 7611889111188
A156: 001637 | C156: Appenzeller Naturperle Bio 50 cl MW | D156: 1 | E156: 1 - Artikelinhalt | F156: FL | G156: FL | H156: 15 | I156: 000006 | J156: Flasche -.50
A157: 001638 | C157: Appenzeller Quöllfrisch Lager hell 58 cl MW | D157: 1 | E157: 1 - Artikelinhalt | F157: FL | G157: FL | H157: 15 | I157: 000005 | J157: Flasche -.30
A158: 001639 | C158: Appenzeller Holzfass-Bier 20er 33 cl MW | D158: 1 | E158: 1 - Artikelinhalt | F158: FL | G158: FL | H158: 20 | I158: 000006 | J158: Flasche -.50
A159: 001640 | C159: Appenzeller Quöllfrisch hell 10x33 cl EW | D159: 1 | E159: 1 - Artikelinhalt | F159: FL | G159: FL | H159: 10 | I159: 000964 | J159: Entsorgungsgebühr EW Glas 9-33 cl (N)
A160: 001642 | C160: Appenzeller Quöllfrisch trüb 50 cl MW | D160: 1 | E160: 1 - Artikelinhalt | F160: FL | G160: FL | H160: 15 | I160: 000006 | J160: Flasche -.50 | K160: 7611889110129
A161: 001643 | C161: Appenzeller Quöllfrisch Säntis 29 cl MW | D161: 1 | E161: 1 - Artikelinhalt | F161: FL | G161: FL | H161: 20 | I161: 000005 | J161: Flasche -.30
A162: 001644 | C162: Appenzeller Vollmond Bier hell 33 cl MW | D162: 1 | E162: 1 - Artikelinhalt | F162: FL | G162: FL | H162: 24 | I162: 000005 | J162: Flasche -.30
A163: 001645 | C163: Birra Moretti La Rossa 33 cl EW | D163: 1 | E163: 1 - Artikelinhalt | F163: FL | G163: FL | H163: 24 | I163: 000964 | J163: Entsorgungsgebühr EW Glas 9-33 cl (N)
A164: 001646 | C164: Appenzeller Weizenbier 50 cl MW | D164: 1 | E164: 1 - Artikelinhalt | F164: FL | G164: FL | H164: 15 | I164: 000006 | J164: Flasche -.50 | K164: 7611889111515
A165: 001647 | C165: Birra Moretti Doppio Malto 33 cl EW | D165: 1 | E165: 1 - Artikelinhalt | F165: FL | G165: FL | H165: 24 | I165: 000964 | J165: Entsorgungsgebühr EW Glas 9-33 cl (N)
A166: 001648 | C166: LöwBr Lager H 50 cl MW | D166: 1 | E166: 1 - Artikelinhalt | F166: FL | G166: FL | H166: 20 | I166: 000005 | J166: Flasche -.30
A167: 001649 | C167: St. Johann Hell 15er Harass 33 cl MW | D167: 1 | E167: 1 - Artikelinhalt | F167: FL | G167: FL | H167: 15 | I167: 000005 | J167: Flasche -.30
A168: 001650 | C168: Feldschlösschen Lager 33 cl MW | D168: 1 | E168: 1 - Artikelinhalt | F168: FL | G168: FL | H168: 24 | I168: 000005 | J168: Flasche -.30
A169: 001651 | C169: Sonnenbräu Maisbier Ribelgold 50 cl MW | D169: 1 | E169: 1 - Artikelinhalt | F169: FL | G169: FL | H169: 15 | I169: 000006 | J169: Flasche -.50 | K169: 76416408
A170: 001652 | C170: Hürlimann Sternbräu 33 cl MW | D170: 1 | E170: 1 - Artikelinhalt | F170: FL | G170: FL | H170: 24 | I170: 000005 | J170: Flasche -.30
A171: 001654 | C171: Falken Panaché 50 cl MW | D171: 1 | E171: 1 - Artikelinhalt | F171: FL | G171: FL | H171: 20 | I171: 000005 | J171: Flasche -.30
A172: 001655 | C172: Hülse Ice 33 cl MW | D172: 1 | E172: 1 - Artikelinhalt | F172: FL | G172: FL | H172: 24 | I172: 000005 | J172: Flasche -.30
A173: 001656 | C173: FS Lager H 6-P 33 cl EW | D173: 1 | E173: 1 - Artikelinhalt | F173: FL | G173: FL | H173: 24 | I173: 000964 | J173: Entsorgungsgebühr EW Glas 9-33 cl (N)
A174: 001657 | C174: Feldschlösschen Lager 10er Mini 33 cl MW | D174: 1 | E174: 1 - Artikelinhalt | F174: FL | G174: FL | H174: 10 | I174: 000005 | J174: Flasche -.30
A175: 001658 | C175: Haldengut Lager hell 50 cl MW Display | D175: 1 | E175: 1 - Artikelinhalt | F175: FL | G175: FL | H175: 10 | I175: 000005 | J175: Flasche -.30
A176: 001659 | C176: Haldengut Lager hell 10x33 cl EW Kart | D176: 1 | E176: 1 - Artikelinhalt | F176: FL | G176: FL | H176: 10 | I176: 000964 | J176: Entsorgungsgebühr EW Glas 9-33 cl (N)
A177: 001660 | C177: Dunkler Bügel 35 cl MW | D177: 1 | E177: 1 - Artikelinhalt | F177: FL | G177: FL | H177: 10 | I177: 000010 | J177: Flasche 1.--
A178: 001661 | C178: Heller Bügel 35 cl MW | D178: 1 | E178: 1 - Artikelinhalt | F178: FL | G178: FL | H178: 10 | I178: 000010 | J178: Flasche 1.--
A179: 001662 | C179: Eichh Hubertus 33 cl MW | D179: 1 | E179: 1 - Artikelinhalt | F179: FL | G179: FL | H179: 24 | I179: 000005 | J179: Flasche -.30
A180: 001663 | C180: Eichh Barbara 33 cl MW | D180: 1 | E180: 1 - Artikelinhalt | F180: FL | G180: FL | H180: 24 | I180: 000005 | J180: Flasche -.30
A181: 001664 | C181: Appenzeller Quöllfrisch trüb 10x33 cl EW | D181: 1 | E181: 1 - Artikelinhalt | F181: FL | G181: FL | H181: 10 | I181: 000964 | J181: Entsorgungsgebühr EW Glas 9-33 cl (N)
A182: 001665 | C182: Hürlimann Lager 33 cl MW | D182: 1 | E182: 1 - Artikelinhalt | F182: FL | G182: FL | H182: 24 | I182: 000005 | J182: Flasche -.30
A183: 001666 | C183: Einsiedler Maisgold 33 cl PET Harass | D183: 1 | E183: 1 - Artikelinhalt | F183: FL | G183: FL | H183: 10 | I183: 000970 | J183: Entsorgungsgebühr PET bis 50 cl (N)
A184: 001667 | C184: Einsiedler Dinkel Bier 35 cl MW | D184: 1 | E184: 1 - Artikelinhalt | F184: FL | G184: FL | H184: 10 | I184: 000006 | J184: Flasche -.50
A185: 001668 | C185: Eins Lager H 58 cl MW | D185: 1 | E185: 1 - Artikelinhalt | F185: FL | G185: FL | H185: 15 | I185: 000005 | J185: Flasche -.30
A186: 001669 | C186: Einsiedler Maisgold 33 cl MW | D186: 1 | E186: 1 - Artikelinhalt | F186: FL | G186: FL | H186: 10 | I186: 000005 | J186: Flasche -.30
A187: 001670 | C187: FS Dunkle Perle 50 cl MW | D187: 1 | E187: 1 - Artikelinhalt | F187: FL | G187: FL | H187: 20 | I187: 000005 | J187: Flasche -.30
A188: 001671 | C188: Feldschlösschen Dunkel 33 cl MW | D188: 1 | E188: 1 - Artikelinhalt | F188: FL | G188: FL | H188: 24 | I188: 000005 | J188: Flasche -.30
A189: 001672 | C189: Appenz. Quöllfrisch hopfig herb 33 cl EW | D189: 1 | E189: 1 - Artikelinhalt | F189: FL | G189: FL | H189: 6 | I189: 000964 | J189: Entsorgungsgebühr EW Glas 9-33 cl (N)
A190: 001673 | C190: FS Hopfenperle 50 cl MW | D190: 1 | E190: 1 - Artikelinhalt | F190: FL | G190: FL | H190: 20 | I190: 000005 | J190: Flasche -.30
A191: 001674 | C191: Feldschlösschen Hopfenperle 33 cl Dosen | D191: 1 | E191: 1 - Artikelinhalt | F191: DO | G191: Dose | H191: 24 | I191: 000962 | J191: Entsorgungsgebühr Dosen (N)
A192: 001676 | C192: Brooklyn East IPA 35,5 cl EW | D192: 1 | E192: 1 - Artikelinhalt | F192: FL | G192: FL | H192: 24 | I192: 000966 | J192: Entsorgungsgebühr EW Glas 34-60 cl (N)
A193: 001678 | C193: Cardinal Blonde 50 cl MW | D193: 1 | E193: 1 - Artikelinhalt | F193: FL | G193: FL | H193: 20 | I193: 000005 | J193: Flasche -.30
A194: 001679 | C194: Einsiedler Lager 33 cl PET Harass | D194: 1 | E194: 1 - Artikelinhalt | F194: FL | G194: FL | H194: 10 | I194: 000970 | J194: Entsorgungsgebühr PET bis 50 cl (N)
A195: 001680 | C195: FS Lager H 33 cl MW | D195: 1 | E195: 1 - Artikelinhalt | F195: FL | G195: FL | H195: 24 | I195: 000005 | J195: Flasche -.30
A196: 001681 | C196: FS Skiff Diätbier 29 cl MW | D196: 1 | E196: 1 - Artikelinhalt | F196: FL | G196: FL | H196: 24 | I196: 000005 | J196: Flasche -.30
A197: 001683 | C197: FS 2,4 33 cl MW | D197: 1 | E197: 1 - Artikelinhalt | F197: FL | G197: FL | H197: 24 | I197: 000005 | J197: Flasche -.30
A198: 001684 | C198: Haldengut Lager hell 50 cl Dosen | D198: 1 | E198: 1 - Artikelinhalt | F198: DO | G198: Dose | H198: 24 | I198: 000962 | J198: Entsorgungsgebühr Dosen (N)
A199: 001687 | C199: Hürlimann Lager hell 50 cl MW | D199: 1 | E199: 1 - Artikelinhalt | F199: FL | G199: FL | H199: 20 | I199: 000005 | J199: Flasche -.30
A200: 001688 | C200: Falken Eidgenoss Bügel 33 cl MW | D200: 1 | E200: 1 - Artikelinhalt | F200: FL | G200: FL | H200: 20 | I200: 000006 | J200: Flasche -.50 | K200: 7611889111188
... 3833 more rows

Sheet Gebindeinhalt (hidden)
A1: Artikel-Nr. | B1: Kurz-Artikel-Nr. | C1: Artikelbez. | D1: Nr. | E1: Verpack.Art | F1: ME | G1: Kurzbez | H1: Menge | I1: Artikel-Nr. Verp./Leergut | J1: Artikelbez. | K1: EAN/GTIN
A2: 001020 | C2: Lager hell 50 L KEG | D2: 1 | E2: 5 - Gebindeinhalt | F2: L | G2: LTR | H2: 50
A3: 001040 | C3: Lager hell 20 L Container | D3: 1 | E3: 5 - Gebindeinhalt | F3: L | G3: LTR | H3: 20
A4: 001047 | C4: Lager hell 10 L Spezialabfüllung | D4: 1 | E4: 5 - Gebindeinhalt | F4: L | G4: LTR | H4: 10
A5: 001105 | C5: Lager hell 50 cl MW | D5: 3 | E5: 5 - Gebindeinhalt | F5: L | G5: LTR | H5: 0.5
A6: 001106 | C6: Lager hell Aktion 50 cl MW | D6: 3 | E6: 5 - Gebindeinhalt | F6: L | G6: LTR | H6: 0.5
A7: 001110 | C7: Lager hell 50 cl MW Display | D7: 3 | E7: 5 - Gebindeinhalt | F7: L | G7: LTR | H7: 0.5
A8: 001111 | C8: Lager hell Aktion 50 cl MW Display | D8: 3 | E8: 5 - Gebindeinhalt | F8: L | G8: LTR | H8: 0.5
A9: 001115 | C9: Lager hell 50 cl Dosen lose | D9: 3 | E9: 5 - Gebindeinhalt | F9: L | G9: LTR | H9: 0.5
A10: 001117 | C10: Lager hell 4x6er Pack 50 cl Dosen | D10: 3 | E10: 5 - Gebindeinhalt | F10: L | G10: LTR | H10: 0.5
A11: 001118 | C11: Lager hell 24 x 50 cl PET Tray | D11: 3 | E11: 5 - Gebindeinhalt | F11: L | G11: LTR | H11: 0.5
A12: 001119 | C12: Lager hell Kühltasche 12 x 50 cl Dosen | D12: 3 | E12: 5 - Gebindeinhalt | F12: L | G12: LTR | H12: 0.5
A13: 001120 | C13: Lager hell 10x33 cl EW Karton | D13: 3 | E13: 5 - Gebindeinhalt | F13: L | G13: LTR | H13: 0.33
A14: 001130 | C14: Lager hell 18x33 cl EW Karton | D14: 3 | E14: 5 - Gebindeinhalt | F14: L | G14: LTR | H14: 0.33
A15: 001135 | C15: Lager hell 10&2 Gratis 33 cl EW Karton | D15: 3 | E15: 5 - Gebindeinhalt | F15: L | G15: LTR | H15: 0.33
A16: 001140 | C16: Lager hell 6x33 cl EW Karton | D16: 3 | E16: 5 - Gebindeinhalt | F16: L | G16: LTR | H16: 0.33
A17: 001150 | C17: Lager hell 15x33cl EW Karton | D17: 3 | E17: 5 - Gebindeinhalt | F17: L | G17: LTR | H17: 0.33
A18: 001151 | C18: Seebueb 33 cl MW | D18: 3 | E18: 5 - Gebindeinhalt | F18: L | G18: LTR | H18: 0.33
A19: 001160 | C19: Lager hell 33 cl MW Miniharass | D19: 3 | E19: 5 - Gebindeinhalt | F19: L | G19: LTR | H19: 0.33
A20: 001161 | C20: Lager hell 24 x 33 cl MW | D20: 3 | E20: 5 - Gebindeinhalt | F20: L | G20: LTR | H20: 0.33
A21: 001170 | C21: Lidl Grillchampion Lager hell 10&2 Gratis 33 cl EW | D21: 3 | E21: 5 - Gebindeinhalt | F21: L | G21: LTR | H21: 0.33
A22: 001171 | C22: Schützengarten Jodlerbier Lager 10x33 cl EW | D22: 3 | E22: 5 - Gebindeinhalt | F22: L | G22: LTR | H22: 0.33
A23: 001172 | C23: Schützengarten OLMA Bier 10x33 cl EW | D23: 3 | E23: 5 - Gebindeinhalt | F23: L | G23: LTR | H23: 0.33
A24: 001173 | C24: Schützengarten OLMA Bier 20 L Container | D24: 1 | E24: 5 - Gebindeinhalt | F24: L | G24: LTR | H24: 20
A25: 001174 | C25: Schützengarten OLMA Bier 50 L KEG | D25: 1 | E25: 5 - Gebindeinhalt | F25: L | G25: LTR | H25: 50
A26: 001175 | C26: FCSG Cup-Bier 50 cl MW | D26: 3 | E26: 5 - Gebindeinhalt | F26: L | G26: LTR | H26: 0.5
A27: 001180 | C27: Schwingerbier 10x33 cl EW Karton | D27: 3 | E27: 5 - Gebindeinhalt | F27: L | G27: LTR | H27: 0.33
A28: 001200 | C28: Löwengarten Lager hell 50 L KEG | D28: 1 | E28: 5 - Gebindeinhalt | F28: L | G28: LTR | H28: 50
A29: 001202 | C29: Löwengarten Lager hell 20 L Container | D29: 1 | E29: 5 - Gebindeinhalt | F29: L | G29: LTR | H29: 20
A30: 001204 | C30: Löweng Lager 12,5 L KGY | D30: 1 | E30: 5 - Gebindeinhalt | F30: L | G30: LTR | H30: 1
A31: 001206 | C31: Löwengarten Lager hell 50 cl MW | D31: 3 | E31: 5 - Gebindeinhalt | F31: L | G31: LTR | H31: 0.5
A32: 001208 | C32: Löwengarten Lager hell 50 cl MW Display | D32: 3 | E32: 5 - Gebindeinhalt | F32: L | G32: LTR | H32: 0.5
A33: 001210 | C33: Lager "Bad Ragartz" 24 x 33 cl MW | D33: 3 | E33: 5 - Gebindeinhalt | F33: L | G33: LTR | H33: 0.33
A34: 001212 | C34: Löweng Lager 10+2 33 cl EW | D34: 3 | E34: 5 - Gebindeinhalt | F34: L | G34: LTR | H34: 0.33
A35: 001214 | C35: Löweng. Lager hell 10x33 cl EW Karton | D35: 3 | E35: 5 - Gebindeinhalt | F35: L | G35: LTR | H35: 0.33
A36: 001223 | C36: Löwengarten Hausbier 20 L Container | D36: 1 | E36: 5 - Gebindeinhalt | F36: L | G36: LTR | H36: 20
A37: 001224 | C37: Löweng Dunkel Spez 20 L CON | D37: 1 | E37: 5 - Gebindeinhalt | F37: L | G37: LTR | H37: 20
A38: 001226 | C38: Löweng Dunkel Spez 50 cl MW | D38: 3 | E38: 5 - Gebindeinhalt | F38: L | G38: LTR | H38: 0.5
A39: 001230 | C39: Löweng Dunkel 33 cl MW | D39: 3 | E39: 5 - Gebindeinhalt | F39: L | G39: LTR | H39: 0.33
A40: 001232 | C40: Löweng Bodensee Zw 50 cl MW | D40: 3 | E40: 5 - Gebindeinhalt | F40: L | G40: LTR | H40: 0.5
A41: 001238 | C41: Löweng Minus 20 L CON | D41: 1 | E41: 5 - Gebindeinhalt | F41: L | G41: LTR | H41: 20
A42: 001240 | C42: Löweng Minus 50 cl MW | D42: 3 | E42: 5 - Gebindeinhalt | F42: L | G42: LTR | H42: 0.5
A43: 001242 | C43: Löweng Minus Disp 50 cl MW | D43: 3 | E43: 5 - Gebindeinhalt | F43: L | G43: LTR | H43: 0.5
A44: 001244 | C44: Löweng Minus 33 cl EW | D44: 3 | E44: 5 - Gebindeinhalt | F44: L | G44: LTR | H44: 0.33
A45: 001246 | C45: Löwenprinz Spezial 50 L KEG | D45: 1 | E45: 5 - Gebindeinhalt | F45: L | G45: LTR | H45: 50
A46: 001248 | C46: Löwenprinz Spezial 20 L Container | D46: 1 | E46: 5 - Gebindeinhalt | F46: L | G46: LTR | H46: 20
A47: 001250 | C47: Löweng Spezial 12,5 L KGY | D47: 1 | E47: 5 - Gebindeinhalt | F47: L | G47: LTR | H47: 1
A48: 001252 | C48: Löwengarten Löwenprinz 50 L KEG | D48: 1 | E48: 5 - Gebindeinhalt | F48: L | G48: LTR | H48: 50
A49: 001254 | C49: Löwengarten Löwenprinz 20 L Container | D49: 1 | E49: 5 - Gebindeinhalt | F49: L | G49: LTR | H49: 20
A50: 001256 | C50: Löwenprinz Spezial 33 cl MW | D50: 3 | E50: 5 - Gebindeinhalt | F50: L | G50: LTR | H50: 0.33
A51: 001258 | C51: Löweng FL-Perle 20 L CON | D51: 1 | E51: 5 - Gebindeinhalt | F51: L | G51: LTR | H51: 20
A52: 001270 | C52: Farmer dunkel 8-P 33 cl EW | D52: 3 | E52: 5 - Gebindeinhalt | F52: L | G52: LTR | H52: 0.33
A53: 001272 | C53: Farmer dunkel 6 x 33 cl EW Karton | D53: 3 | E53: 5 - Gebindeinhalt | F53: L | G53: LTR | H53: 0.33
A54: 001274 | C54: Goldhell Display 50 cl MW | D54: 3 | E54: 5 - Gebindeinhalt | F54: L | G54: LTR | H54: 0.5
A55: 001276 | C55: Goldhell 33 cl EW | D55: 3 | E55: 5 - Gebindeinhalt | F55: L | G55: LTR | H55: 0.33
A56: 001280 | C56: Hofgold 50 cl MW Display | D56: 3 | E56: 5 - Gebindeinhalt | F56: L | G56: LTR | H56: 0.5
A57: 001320 | C57: Edelspez 50 L KEG | D57: 1 | E57: 5 - Gebindeinhalt | F57: L | G57: LTR | H57: 50
A58: 001330 | C58: Säntis / Huusbier 50 L KEG | D58: 1 | E58: 5 - Gebindeinhalt | F58: L | G58: LTR | H58: 50
A59: 001340 | C59: Edelspez 20 L Container | D59: 1 | E59: 5 - Gebindeinhalt | F59: L | G59: LTR | H59: 20
A60: 001350 | C60: Anstichset 30L-Holzfass Edelspez | D60: 1 | E60: 5 - Gebindeinhalt | F60: L | G60: LTR | H60: 30
A61: 001351 | C61: Anstichset 20L-Holzfass Edelspez | D61: 1 | E61: 5 - Gebindeinhalt | F61: L | G61: LTR | H61: 20
A62: 001380 | C62: Edelspez 20 Liter Partyfass | D62: 1 | E62: 5 - Gebindeinhalt | F62: L | G62: LTR | H62: 20
A63: 001400 | C63: Edelspez 10 Liter Partyfass | D63: 1 | E63: 5 - Gebindeinhalt | F63: L | G63: LTR | H63: 10
A64: 001425 | C64: Edelspez 50 cl MW | D64: 3 | E64: 5 - Gebindeinhalt | F64: L | G64: LTR | H64: 0.5
A65: 001460 | C65: Edelspez 8x33 cl EW Karton | D65: 3 | E65: 5 - Gebindeinhalt | F65: L | G65: LTR | H65: 0.33
A66: 001480 | C66: Edelspez 33 cl MW | D66: 3 | E66: 5 - Gebindeinhalt | F66: L | G66: LTR | H66: 0.33
A67: 001520 | C67: Edelspez 33 cl MW Miniharass | D67: 3 | E67: 5 - Gebindeinhalt | F67: L | G67: LTR | H67: 0.33
A68: 001537 | C68: Schützengarten Black Orange 6x33 cl EW Karton | D68: 3 | E68: 5 - Gebindeinhalt | F68: L | G68: LTR | H68: 0.33
A69: 001538 | C69: Schützengarten Black Orange 33 cl EW Miniharass | D69: 3 | E69: 5 - Gebindeinhalt | F69: L | G69: LTR | H69: 0.33
A70: 001539 | C70: Schützengarten Craft Beer-Box 6x33 cl EW | D70: 3 | E70: 5 - Gebindeinhalt | F70: L | G70: LTR | H70: 0.33
A71: 001540 | C71: Jubiläum Geschenk-Set Sud 1779 75 cl | D71: 3 | E71: 5 - Gebindeinhalt | F71: L | G71: LTR | H71: 0.75
A72: 001541 | C72: Schützengarten Sud 1779 50 L KEG | D72: 1 | E72: 5 - Gebindeinhalt | F72: L | G72: LTR | H72: 50
A73: 001542 | C73: Schützengarten Sud 1779 20 L Container | D73: 1 | E73: 5 - Gebindeinhalt | F73: L | G73: LTR | H73: 20
A74: 001543 | C74: Schützengarten Sud 1779 6x33 cl EW KT | D74: 3 | E74: 5 - Gebindeinhalt | F74: L | G74: LTR | H74: 0.33
A75: 001544 | C75: Schützengarten Sud 1779 33 cl EW Miniharass | D75: 3 | E75: 5 - Gebindeinhalt | F75: L | G75: LTR | H75: 0.33
A76: 001545 | C76: Craft Bier Display ass. 384 x 33 cl EW | D76: 3 | E76: 5 - Gebindeinhalt | F76: L | G76: LTR | H76: 0.33
A77: 001546 | C77: Schützengarten Vadian Pale Ale 6x33 cl EW KT | D77: 3 | E77: 5 - Gebindeinhalt | F77: L | G77: LTR | H77: 0.33
A78: 001547 | C78: Schützengarten Vadian Pale Ale 33 cl EW Miniharass | D78: 3 | E78: 5 - Gebindeinhalt | F78: L | G78: LTR | H78: 0.33
A79: 001548 | C79: Gallus 612 Old Style Ale 33 cl EW Miniharass | D79: 3 | E79: 5 - Gebindeinhalt | F79: L | G79: LTR | H79: 0.33
A80: 001549 | C80: Gallus 612 Old Style Ale 6x33 cl EW Karton | D80: 3 | E80: 5 - Gebindeinhalt | F80: L | G80: LTR | H80: 0.33
A81: 001550 | C81: Gallus 612 Old Style Ale 50 cl EW | D81: 3 | E81: 5 - Gebindeinhalt | F81: L | G81: LTR | H81: 0.5
A82: 001551 | C82: Gallus 612 Old Style Ale 4x50 cl EW Kart | D82: 3 | E82: 5 - Gebindeinhalt | F82: L | G82: LTR | H82: 0.5
A83: 001552 | C83: Gallus 612 3 Fl & 1 Glas 50 cl EW Kart | D83: 3 | E83: 5 - Gebindeinhalt | F83: L | G83: LTR | H83: 0.5
A84: 001553 | C84: Gallus 612 Old Style Ale 20 L Container | D84: 1 | E84: 5 - Gebindeinhalt | F84: L | G84: LTR | H84: 20
A85: 001554 | C85: India Pale Ale Spezialabfüllung 24x33 cl EW | D85: 3 | E85: 5 - Gebindeinhalt | F85: L | G85: LTR | H85: 0.33
A86: 001555 | C86: Schützengarten India Pale Ale 6x33 cl EW Karton | D86: 3 | E86: 5 - Gebindeinhalt | F86: L | G86: LTR | H86: 0.33
A87: 001556 | C87: Schützengarten India Pale Ale 33 cl EW Miniharass | D87: 3 | E87: 5 - Gebindeinhalt | F87: L | G87: LTR | H87: 0.33
A88: 001557 | C88: Schützengarten India Pale Ale 20 L Container | D88: 1 | E88: 5 - Gebindeinhalt | F88: L | G88: LTR | H88: 20
A89: 001558 | C89: Schützengarten Swiss Stout 6x33 cl EW Karton | D89: 3 | E89: 5 - Gebindeinhalt | F89: L | G89: LTR | H89: 0.33
A90: 001559 | C90: Schützengarten Swiss Stout 33 cl EW Miniharass | D90: 3 | E90: 5 - Gebindeinhalt | F90: L | G90: LTR | H90: 0.33
A91: 001560 | C91: Schützengarten Swiss Stout 20 L Container | D91: 1 | E91: 5 - Gebindeinhalt | F91: L | G91: LTR | H91: 20
A92: 001561 | C92: Craft Bier Display 3 x 15 x 6 x 33 cl EW | D92: 3 | E92: 5 - Gebindeinhalt | F92: L | G92: LTR | H92: 0.33
A93: 001562 | C93: San Martino Display ass. 270 x 33 cl EW | D93: 3 | E93: 5 - Gebindeinhalt | F93: L | G93: LTR | H93: 0.33
A94: 001563 | C94: Edelspez 2,8 20 L Container | D94: 1 | E94: 5 - Gebindeinhalt | F94: L | G94: LTR | H94: 20
A95: 001564 | C95: Biermisch Display 3 x 15 x 6 x 33 cl EW | D95: 3 | E95: 5 - Gebindeinhalt | F95: L | G95: LTR | H95: 0.33
A96: 001565 | C96: Edelspez 2,8 50 cl MW | D96: 3 | E96: 5 - Gebindeinhalt | F96: L | G96: LTR | H96: 0.5
A97: 001566 | C97: San Martino Beer Fan Box ass. 4x33 cl EW | D97: 3 | E97: 5 - Gebindeinhalt | F97: L | G97: LTR | H97: 0.33
A98: 001567 | C98: Edelspez 2,8 50 cl MW Display | D98: 3 | E98: 5 - Gebindeinhalt | F98: L | G98: LTR | H98: 0.5
A99: 001568 | C99: FC SG 140 Jahre Jubiläum 6x33 cl EW | D99: 3 | E99: 5 - Gebindeinhalt | F99: L | G99: LTR | H99: 0.33
A100: 001569 | C100: Churfirstenbier 33 cl MW | D100: 3 | E100: 5 - Gebindeinhalt | F100: L | G100: LTR | H100: 0.33
A101: 001570 | C101: San Martino Maroni Bier 20 L Cont. | D101: 1 | E101: 5 - Gebindeinhalt | F101: L | G101: LTR | H101: 20
A102: 001571 | C102: San Martino La Bella BSG 6x33 cl EW | D102: 3 | E102: 5 - Gebindeinhalt | F102: L | G102: LTR | H102: 0.33
A103: 001572 | C103: BSM Brauwerk Vollbier 20 L Container | D103: 1 | E103: 5 - Gebindeinhalt | F103: L | G103: LTR | H103: 20
A104: 001573 | C104: La Passita Swiss Grape Ale 24 x 33 cl EW | D104: 3 | E104: 5 - Gebindeinhalt | F104: L | G104: LTR | H104: 0.33
A105: 001574 | C105: Bad Attitude Hobo White IPA 20 L Cont. | D105: 1 | E105: 5 - Gebindeinhalt | F105: L | G105: LTR | H105: 20
A106: 001575 | C106: San Martino La Bella 20 L Container | D106: 1 | E106: 5 - Gebindeinhalt | F106: L | G106: LTR | H106: 20
A107: 001576 | C107: Säntisbier 33 cl MW | D107: 3 | E107: 5 - Gebindeinhalt | F107: L | G107: LTR | H107: 0.33
A108: 001577 | C108: Schwarzer Bär Dunkelbier 33 cl MW | D108: 3 | E108: 5 - Gebindeinhalt | F108: L | G108: LTR | H108: 0.33
A109: 001578 | C109: Schützengarten Low Carb Alu-Fl. 37,5 cl | D109: 3 | E109: 5 - Gebindeinhalt | F109: L | G109: LTR | H109: 0.375
A110: 001579 | C110: Ticino Beer Box ass. 6x33 cl EW | D110: 3 | E110: 5 - Gebindeinhalt | F110: L | G110: LTR | H110: 0.33
A111: 001580 | C111: Edelspez 2,8 30 cl MW | D111: 3 | E111: 5 - Gebindeinhalt | F111: L | G111: LTR | H111: 0.3
A112: 001581 | C112: San Martino La Bella 6x33cl EW Karton | D112: 3 | E112: 5 - Gebindeinhalt | F112: L | G112: LTR | H112: 0.33
A113: 001582 | C113: Schützengarten Low Carb 20 L Container | D113: 1 | E113: 5 - Gebindeinhalt | F113: L | G113: LTR | H113: 20
A114: 001583 | C114: Bad Attitude Hobo White IPA 6x33 cl EW | D114: 3 | E114: 5 - Gebindeinhalt | F114: L | G114: LTR | H114: 0.33
A115: 001584 | C115: Bad Attitude Dude 6x33 cl EW Karton | D115: 3 | E115: 5 - Gebindeinhalt | F115: L | G115: LTR | H115: 0.33
A116: 001585 | C116: Säntisbier 50 cl MW | D116: 3 | E116: 5 - Gebindeinhalt | F116: L | G116: LTR | H116: 0.5
A117: 001586 | C117: Säntisbier 8x33 cl EW Karton | D117: 3 | E117: 5 - Gebindeinhalt | F117: L | G117: LTR | H117: 0.33
A118: 001587 | C118: Bad Attitude Kurt 6x33 cl EW Karton | D118: 3 | E118: 5 - Gebindeinhalt | F118: L | G118: LTR | H118: 0.33
A119: 001588 | C119: Bad Attitude Dude 20 L Container | D119: 1 | E119: 5 - Gebindeinhalt | F119: L | G119: LTR | H119: 20
A120: 001589 | C120: Bad Attitude Kurt 20 L Container | D120: 1 | E120: 5 - Gebindeinhalt | F120: L | G120: LTR | H120: 20
A121: 001590 | C121: Säntisbier 20 L Container | D121: 1 | E121: 5 - Gebindeinhalt | F121: L | G121: LTR | H121: 20
A122: 001591 | C122: San Martino La Helles 20 L Container | D122: 1 | E122: 5 - Gebindeinhalt | F122: L | G122: LTR | H122: 20
A123: 001592 | C123: Schwarzer Bär Dunkelbier 20 L Container | D123: 1 | E123: 5 - Gebindeinhalt | F123: L | G123: LTR | H123: 20
A124: 001593 | C124: San Martino La Rossa 20 L Container | D124: 1 | E124: 5 - Gebindeinhalt | F124: L | G124: LTR | H124: 20
A125: 001594 | C125: Schwarzer Bär Dunkelbier 50 cl MW | D125: 3 | E125: 5 - Gebindeinhalt | F125: L | G125: LTR | H125: 0.5
A126: 001595 | C126: San Martino La Nostra 4x6er 50 cl Dosen | D126: 3 | E126: 5 - Gebindeinhalt | F126: L | G126: LTR | H126: 0.5
A127: 001596 | C127: Schwarzer Bär Dunkelbier 8x33 cl EW Kart | D127: 3 | E127: 5 - Gebindeinhalt | F127: L | G127: LTR | H127: 0.33
A128: 001597 | C128: San Martino La Helles 6x33 cl EW Karton | D128: 3 | E128: 5 - Gebindeinhalt | F128: L | G128: LTR | H128: 0.33
A129: 001598 | C129: San Martino La Nostra 6x33 cl EW Karton | D129: 3 | E129: 5 - Gebindeinhalt | F129: L | G129: LTR | H129: 0.33
A130: 001599 | C130: San Martino La Rossa 6x33 cl EW Karton | D130: 3 | E130: 5 - Gebindeinhalt | F130: L | G130: LTR | H130: 0.33
A131: 001600 | C131: San Martino La Nostra 20 L Container | D131: 1 | E131: 5 - Gebindeinhalt | F131: L | G131: LTR | H131: 20
A132: 001601 | C132: Boxer Old Lager 50 cl MW | D132: 3 | E132: 5 - Gebindeinhalt | F132: L | G132: LTR | H132: 0.5
A133: 001602 | C133: Boxer Old Lager 33 cl MW | D133: 3 | E133: 5 - Gebindeinhalt | F133: L | G133: LTR | H133: 0.33
A134: 001603 | C134: Eichhof Lemon 33 cl MW | D134: 3 | E134: 5 - Gebindeinhalt | F134: L | G134: LTR | H134: 0.33
A135: 001604 | C135: Cardinal Draft 33 cl MW | D135: 3 | E135: 5 - Gebindeinhalt | F135: L | G135: LTR | H135: 0.33
A136: 001605 | C136: Birra Moretti 24 x 33 cl EW | D136: 3 | E136: 5 - Gebindeinhalt | F136: L | G136: LTR | H136: 0.33
A137: 001606 | C137: Anchor Liberty Ale 35,5 cl EW | D137: 3 | E137: 5 - Gebindeinhalt | F137: L | G137: LTR | H137: 0.355
A138: 001607 | C138: Eichhof Lager 58 cl MW | D138: 3 | E138: 5 - Gebindeinhalt | F138: L | G138: LTR | H138: 0.58
A139: 001608 | C139: Eichhof Braugold 33 cl MW | D139: 3 | E139: 5 - Gebindeinhalt | F139: L | G139: LTR | H139: 0.33
A140: 001609 | C140: Falken Festbier 20 L Container | D140: 1 | E140: 5 - Gebindeinhalt | F140: L | G140: LTR | H140: 20
A141: 001610 | C141: Feldschlösschen Lager hell 10 x 50 cl MW | D141: 3 | E141: 5 - Gebindeinhalt | F141: L | G141: LTR | H141: 0.5
A142: 001611 | C142: Eichhof Lager hell 20 L Container | D142: 1 | E142: 5 - Gebindeinhalt | F142: L | G142: LTR | H142: 20
A143: 001612 | C143: Eichhof Lager hell 50 cl MW | D143: 3 | E143: 5 - Gebindeinhalt | F143: L | G143: LTR | H143: 0.5
A144: 001613 | C144: Eichhof Lager Hell Dose 50 cl | D144: 3 | E144: 5 - Gebindeinhalt | F144: L | G144: LTR | H144: 0.5
A145: 001614 | C145: Sierra Nevada Pale Ale 35 cl EW | D145: 3 | E145: 5 - Gebindeinhalt | F145: L | G145: LTR | H145: 0.35
A146: 001615 | C146: Brewdog Punk IPA 33 cl EW | D146: 3 | E146: 5 - Gebindeinhalt | F146: L | G146: LTR | H146: 0.33
A147: 001616 | C147: Storm & Anchor (Sorte wechselnd) 33 cl EW | D147: 3 | E147: 5 - Gebindeinhalt | F147: L | G147: LTR | H147: 0.33
A148: 001617 | C148: Feldschlösschen Hopfenperle 33 cl MW | D148: 3 | E148: 5 - Gebindeinhalt | F148: L | G148: LTR | H148: 0.33
A149: 001618 | C149: Brooklyn Lager 35,5 cl EW | D149: 3 | E149: 5 - Gebindeinhalt | F149: L | G149: LTR | H149: 0.355
A150: 001619 | C150: Appenzeller Brandlöscher Bügel 33 cl MW | D150: 3 | E150: 5 - Gebindeinhalt | F150: L | G150: LTR | H150: 0.33
A151: 001620 | C151: Feldschlösschen Lager Hell 20 L Cont. | D151: 1 | E151: 5 - Gebindeinhalt | F151: L | G151: LTR | H151: 20
A152: 001622 | C152: Feldschlösschen Lager hell 50 cl MW | D152: 3 | E152: 5 - Gebindeinhalt | F152: L | G152: LTR | H152: 0.5
A153: 001623 | C153: Feldschlösschen Lager hell 50 cl Dosen | D153: 3 | E153: 5 - Gebindeinhalt | F153: L | G153: LTR | H153: 0.5
A154: 001624 | C154: FS Lager Hell Mini 33 cl MW | D154: 3 | E154: 5 - Gebindeinhalt | F154: L | G154: LTR | H154: 0.33
A155: 001625 | C155: Seeburger La Helles 24 x 33 cl EW | D155: 3 | E155: 5 - Gebindeinhalt | F155: L | G155: LTR | H155: 0.33
A156: 001626 | C156: Birra Moretti Baffo d'Oro 33 cl EW | D156: 3 | E156: 5 - Gebindeinhalt | F156: L | G156: LTR | H156: 0.33
A157: 001627 | C157: Haldengut Haldenkrone 20 L Container | D157: 1 | E157: 5 - Gebindeinhalt | F157: L | G157: LTR | H157: 20
A158: 001628 | C158: Haldengut Haldenkrone 33 cl MW | D158: 3 | E158: 5 - Gebindeinhalt | F158: L | G158: LTR | H158: 0.3
A159: 001629 | C159: Haldengut Lager hell 20 L Container | D159: 1 | E159: 5 - Gebindeinhalt | F159: L | G159: LTR | H159: 20
A160: 001630 | C160: Haldengut Lager hell 58 cl MW | D160: 3 | E160: 5 - Gebindeinhalt | F160: L | G160: LTR | H160: 0.58
A161: 001631 | C161: Ittinger Amber 33 cl MW | D161: 3 | E161: 5 - Gebindeinhalt | F161: L | G161: LTR | H161: 0.33
A162: 001632 | C162: Ittinger Amber 33 cl MW Miniharass | D162: 3 | E162: 5 - Gebindeinhalt | F162: L | G162: LTR | H162: 0.33
A163: 001633 | C163: Appenzeller Weizenbier Bügel 33 cl MW | D163: 3 | E163: 5 - Gebindeinhalt | F163: L | G163: LTR | H163: 0.33
A164: 001634 | C164: Appenzeller Quöllfrisch 15er Harass 33 cl MW | D164: 3 | E164: 5 - Gebindeinhalt | F164: L | G164: LTR | H164: 0.33
A165: 001635 | C165: Appenzeller Quöllfrisch hell 10x33 cl EW | D165: 3 | E165: 5 - Gebindeinhalt | F165: L | G165: LTR | H165: 0.33
A166: 001636 | C166: Appenzeller Quöllfrisch trüb 33 cl MW | D166: 3 | E166: 5 - Gebindeinhalt | F166: L | G166: LTR | H166: 0.33
A167: 001637 | C167: Appenzeller Naturperle Bio 50 cl MW | D167: 3 | E167: 5 - Gebindeinhalt | F167: L | G167: LTR | H167: 0.5
A168: 001638 | C168: Appenzeller Quöllfrisch Lager hell 58 cl MW | D168: 3 | E168: 5 - Gebindeinhalt | F168: L | G168: LTR | H168: 0.6
A169: 001639 | C169: Appenzeller Holzfass-Bier 20er 33 cl MW | D169: 3 | E169: 5 - Gebindeinhalt | F169: L | G169: LTR | H169: 0.33
A170: 001640 | C170: Appenzeller Quöllfrisch hell 10x33 cl EW | D170: 3 | E170: 5 - Gebindeinhalt | F170: L | G170: LTR | H170: 0.33
A171: 001641 | C171: Appenzeller Quöllfrisch trüb 20 L Cont. | D171: 1 | E171: 5 - Gebindeinhalt | F171: L | G171: LTR | H171: 20
A172: 001642 | C172: Appenzeller Quöllfrisch trüb 50 cl MW | D172: 3 | E172: 5 - Gebindeinhalt | F172: L | G172: LTR | H172: 0.5
A173: 001643 | C173: Appenzeller Quöllfrisch Säntis 29 cl MW | D173: 3 | E173: 5 - Gebindeinhalt | F173: L | G173: LTR | H173: 0.29
A174: 001644 | C174: Appenzeller Vollmond Bier hell 33 cl MW | D174: 3 | E174: 5 - Gebindeinhalt | F174: L | G174: LTR | H174: 0.33
A175: 001645 | C175: Birra Moretti La Rossa 33 cl EW | D175: 3 | E175: 5 - Gebindeinhalt | F175: L | G175: LTR | H175: 0.33
A176: 001646 | C176: Appenzeller Weizenbier 50 cl MW | D176: 3 | E176: 5 - Gebindeinhalt | F176: L | G176: LTR | H176: 0.5
A177: 001647 | C177: Birra Moretti Doppio Malto 33 cl EW | D177: 3 | E177: 5 - Gebindeinhalt | F177: L | G177: LTR | H177: 0.33
A178: 001648 | C178: LöwBr Lager H 50 cl MW | D178: 3 | E178: 5 - Gebindeinhalt | F178: L | G178: LTR | H178: 0.5
A179: 001649 | C179: St. Johann Hell 15er Harass 33 cl MW | D179: 3 | E179: 5 - Gebindeinhalt | F179: L | G179: LTR | H179: 0.33
A180: 001650 | C180: Feldschlösschen Lager 33 cl MW | D180: 3 | E180: 5 - Gebindeinhalt | F180: L | G180: LTR | H180: 0.33
A181: 001651 | C181: Sonnenbräu Maisbier Ribelgold 50 cl MW | D181: 3 | E181: 5 - Gebindeinhalt | F181: L | G181: LTR | H181: 0.5
A182: 001652 | C182: Hürlimann Sternbräu 33 cl MW | D182: 3 | E182: 5 - Gebindeinhalt | F182: L | G182: LTR | H182: 0.33
A183: 001653 | C183: Cardinal Blonde 20 L Container | D183: 1 | E183: 5 - Gebindeinhalt | F183: L | G183: LTR | H183: 20
A184: 001654 | C184: Falken Panaché 50 cl MW | D184: 3 | E184: 5 - Gebindeinhalt | F184: L | G184: LTR | H184: 0.5
A185: 001655 | C185: Hülse Ice 33 cl MW | D185: 3 | E185: 5 - Gebindeinhalt | F185: L | G185: LTR | H185: 0.33
A186: 001656 | C186: FS Lager H 6-P 33 cl EW | D186: 3 | E186: 5 - Gebindeinhalt | F186: L | G186: LTR | H186: 0.33
A187: 001657 | C187: Feldschlösschen Lager 10er Mini 33 cl MW | D187: 3 | E187: 5 - Gebindeinhalt | F187: L | G187: LTR | H187: 0.33
A188: 001658 | C188: Haldengut Lager hell 50 cl MW Display | D188: 3 | E188: 5 - Gebindeinhalt | F188: L | G188: LTR | H188: 0.5
A189: 001659 | C189: Haldengut Lager hell 10x33 cl EW Kart | D189: 3 | E189: 5 - Gebindeinhalt | F189: L | G189: LTR | H189: 0.33
A190: 001660 | C190: Dunkler Bügel 35 cl MW | D190: 3 | E190: 5 - Gebindeinhalt | F190: L | G190: LTR | H190: 0.35
A191: 001661 | C191: Heller Bügel 35 cl MW | D191: 3 | E191: 5 - Gebindeinhalt | F191: L | G191: LTR | H191: 0.35
A192: 001662 | C192: Eichh Hubertus 33 cl MW | D192: 3 | E192: 5 - Gebindeinhalt | F192: L | G192: LTR | H192: 0.33
A193: 001663 | C193: Eichh Barbara 33 cl MW | D193: 3 | E193: 5 - Gebindeinhalt | F193: L | G193: LTR | H193: 0.3
A194: 001664 | C194: Appenzeller Quöllfrisch trüb 10x33 cl EW | D194: 3 | E194: 5 - Gebindeinhalt | F194: L | G194: LTR | H194: 0.33
A195: 001665 | C195: Hürlimann Lager 33 cl MW | D195: 3 | E195: 5 - Gebindeinhalt | F195: L | G195: LTR | H195: 0.33
A196: 001666 | C196: Einsiedler Maisgold 33 cl PET Harass | D196: 3 | E196: 5 - Gebindeinhalt | F196: L | G196: LTR | H196: 0.33
A197: 001667 | C197: Einsiedler Dinkel Bier 35 cl MW | D197: 3 | E197: 5 - Gebindeinhalt | F197: L | G197: LTR | H197: 0.35
A198: 001668 | C198: Eins Lager H 58 cl MW | D198: 3 | E198: 5 - Gebindeinhalt | F198: L | G198: LTR | H198: 0.6
A199: 001669 | C199: Einsiedler Maisgold 33 cl MW | D199: 3 | E199: 5 - Gebindeinhalt | F199: L | G199: LTR | H199: 0.33
A200: 001670 | C200: FS Dunkle Perle 50 cl MW | D200: 3 | E200: 5 - Gebindeinhalt | F200: L | G200: LTR | H200: 0.5
... 3967 more rows

Sheet Privatpreis (hidden)
A1: Artikel-Nr. | B1: Artikelbez. | C1: ME | D1: Preis | E1: Zollsatz | F1: Z | G1: PSt. | H1: RSt. | I1: Art.-Nr. Preis
A2: 000960 | B2: Entsorgungsgebühr PET über 50 cl (N) | C2: 1/Stück | F2: 0 | G2: 0 | H2: 0
A3: 000961 | B3: Entsorgungsgebühr PET über 50 cl (R) | C3: 1/Stück | F3: 0 | G3: 0 | H3: 0
A4: 000962 | B4: Entsorgungsgebühr Dosen (N) | C4: 1/Stück | F4: 0 | G4: 0 | H4: 0
A5: 000963 | B5: Entsorgungsgebühr Dosen (R) | C5: 1/Stück | F5: 0 | G5: 0 | H5: 0
A6: 000964 | B6: Entsorgungsgebühr EW Glas 9-33 cl (N) | C6: 1/Stück | F6: 0 | G6: 0 | H6: 0
A7: 000965 | B7: Entsorgungsgebühr EW Glas 9-33 cl (R) | C7: 1/Stück | F7: 0 | G7: 0 | H7: 0
A8: 000966 | B8: Entsorgungsgebühr EW Glas 34-60 cl (N) | C8: 1/Stück | F8: 0 | G8: 0 | H8: 0
A9: 000967 | B9: Entsorgungsgebühr EW Glas 34-60 cl (R) | C9: 1/Stück | F9: 0 | G9: 0 | H9: 0
A10: 000968 | B10: Entsorgungsgebühr EW Glas >60 cl (N) | C10: 1/Stück | F10: 0 | G10: 0 | H10: 0
A11: 000969 | B11: Entsorgungsgebühr EW Glas >60 cl (R) | C11: 1/Stück | F11: 0 | G11: 0 | H11: 0
A12: 001010 | B12: Lager hell Kellertank | C12: 1/Liter | D12: 4.1 | F12: 0 | G12: 0 | H12: 0
A13: 001020 | B13: Lager hell 50 L KEG | C13: 1/Liter | D13: 4.1 | F13: 0 | G13: 0 | H13: 0
A14: 001040 | B14: Lager hell 20 L Container | C14: 1/Liter | D14: 4.1 | F14: 0 | G14: 0 | H14: 0
A15: 001047 | B15: Lager hell 10 L Spezialabfüllung | C15: 1/Liter | D15: 4.1 | F15: 0 | G15: 0 | H15: 0
A16: 001090 | B16: Lager hell 5 Liter Partyfass | C16: 1/Partyfass | D16: 17.9 | F16: 0 | G16: 0 | H16: 0
A17: 001105 | B17: Lager hell 50 cl MW | C17: 1/Flasche | D17: 1.68 | F17: 0 | G17: 0 | H17: 0
A18: 001106 | B18: Lager hell Aktion 50 cl MW | C18: 1/Flasche | D18: 1.37 | F18: 0 | G18: 0 | H18: 0
A19: 001110 | B19: Lager hell 50 cl MW Display | C19: 1/Flasche | D19: 1.68 | F19: 0 | G19: 0 | H19: 0
A20: 001115 | B20: Lager hell 50 cl Dosen lose | C20: 1/Dose | D20: 1.66 | F20: 0 | G20: 0 | H20: 0
A21: 001117 | B21: Lager hell 4x6er Pack 50 cl Dosen | C21: 1/Dose | D21: 1.66 | F21: 0 | G21: 0 | H21: 0
A22: 001118 | B22: Lager hell 24 x 50 cl PET Tray | C22: 1/Flasche | D22: 1.78 | F22: 0 | G22: 0 | H22: 0
A23: 001119 | B23: Lager hell Kühltasche 12 x 50 cl Dosen | C23: 1/Dose | D23: 1.66 | F23: 0 | G23: 0 | H23: 0
A24: 001120 | B24: Lager hell 10x33 cl EW Karton | C24: 1/Flasche | D24: 1.35 | F24: 0 | G24: 0 | H24: 0
A25: 001130 | B25: Lager hell 18x33 cl EW Karton | C25: 1/Flasche | D25: 1.35 | F25: 0 | G25: 0 | H25: 0
A26: 001135 | B26: Lager hell 10&2 Gratis 33 cl EW Karton | C26: 1/Flasche | D26: 1.125 | F26: 0 | G26: 0 | H26: 0
A27: 001160 | B27: Lager hell 33 cl MW Miniharass | C27: 1/Flasche | D27: 1.24 | F27: 0 | G27: 0 | H27: 0
A28: 001161 | B28: Lager hell 24 x 33 cl MW | C28: 1/Flasche | D28: 1.24 | F28: 0 | G28: 0 | H28: 0
A29: 001171 | B29: Schützengarten Jodlerbier Lager 10x33 cl EW | C29: 1/Flasche | D29: 1.35 | F29: 0 | G29: 0 | H29: 0
A30: 001172 | B30: Schützengarten OLMA Bier 10x33 cl EW | C30: 1/Flasche | D30: 1.35 | F30: 0 | G30: 0 | H30: 0
A31: 001173 | B31: Schützengarten OLMA Bier 20 L Container | C31: 1/Liter | D31: 4.5 | F31: 0 | G31: 0 | H31: 0
A32: 001174 | B32: Schützengarten OLMA Bier 50 L KEG | C32: 1/Liter | D32: 4.5 | F32: 0 | G32: 0 | H32: 0
A33: 001175 | B33: FCSG Cup-Bier 50 cl MW | C33: 1/Flasche | D33: 1.8 | F33: 0 | G33: 0 | H33: 0
A34: 001180 | B34: Schwingerbier 10x33 cl EW Karton | C34: 1/Flasche | D34: 1.35 | F34: 0 | G34: 0 | H34: 0
A35: 001200 | B35: Löwengarten Lager hell 50 L KEG | C35: 1/Liter | D35: 4.1 | F35: 0 | G35: 0 | H35: 0
A36: 001202 | B36: Löwengarten Lager hell 20 L Container | C36: 1/Liter | D36: 4.1 | F36: 0 | G36: 0 | H36: 0
A37: 001206 | B37: Löwengarten Lager hell 50 cl MW | C37: 1/Flasche | D37: 1.68 | F37: 0 | G37: 0 | H37: 0
A38: 001208 | B38: Löwengarten Lager hell 50 cl MW Display | C38: 1/Flasche | D38: 1.68 | F38: 0 | G38: 0 | H38: 0
A39: 001210 | B39: Lager "Bad Ragartz" 24 x 33 cl MW | C39: 1/Flasche | D39: 1.24 | F39: 0 | G39: 0 | H39: 0
A40: 001214 | B40: Löweng. Lager hell 10x33 cl EW Karton | C40: 1/Flasche | D40: 1.28 | F40: 0 | G40: 0 | H40: 0
A41: 001246 | B41: Löwenprinz Spezial 50 L KEG | C41: 1/Liter | D41: 4.54 | F41: 0 | G41: 0 | H41: 0
A42: 001248 | B42: Löwenprinz Spezial 20 L Container | C42: 1/Liter | D42: 4.54 | F42: 0 | G42: 0 | H42: 0
A43: 001252 | B43: Löwengarten Löwenprinz 50 L KEG | C43: 1/Liter | D43: 4.54 | F43: 0 | G43: 0 | H43: 0
A44: 001254 | B44: Löwengarten Löwenprinz 20 L Container | C44: 1/Liter | D44: 4.54 | F44: 0 | G44: 0 | H44: 0
A45: 001256 | B45: Löwenprinz Spezial 33 cl MW | C45: 1/Flasche | D45: 1.42 | F45: 0 | G45: 0 | H45: 0
A46: 001320 | B46: Edelspez 50 L KEG | C46: 1/Liter | D46: 4.5 | F46: 0 | G46: 0 | H46: 0
A47: 001330 | B47: Säntis / Huusbier 50 L KEG | C47: 1/Liter | D47: 4.54 | F47: 0 | G47: 0 | H47: 0
A48: 001340 | B48: Edelspez 20 L Container | C48: 1/Liter | D48: 4.5 | F48: 0 | G48: 0 | H48: 0
A49: 001350 | B49: Anstichset 30L-Holzfass Edelspez | C49: 1/Container | D49: 150 | F49: 0 | G49: 0 | H49: 0
A50: 001351 | B50: Anstichset 20L-Holzfass Edelspez | C50: 1/Container | D50: 100 | F50: 0 | G50: 0 | H50: 0
A51: 001380 | B51: Edelspez 20 Liter Partyfass | C51: 1/Liter | D51: 4.5 | F51: 0 | G51: 0 | H51: 0
A52: 001400 | B52: Edelspez 10 Liter Partyfass | C52: 1/Liter | D52: 4.5 | F52: 0 | G52: 0 | H52: 0
A53: 001460 | B53: Edelspez 8x33 cl EW Karton | C53: 1/Flasche | D53: 1.52 | F53: 0 | G53: 0 | H53: 0
A54: 001480 | B54: Edelspez 33 cl MW | C54: 1/Flasche | D54: 1.42 | F54: 0 | G54: 0 | H54: 0
A55: 001520 | B55: Edelspez 33 cl MW Miniharass | C55: 1/Flasche | D55: 1.42 | F55: 0 | G55: 0 | H55: 0
A56: 001537 | B56: Schützengarten Black Orange 6x33 cl EW Karton | C56: 1/Flasche | D56: 2.4 | F56: 0 | G56: 0 | H56: 0
A57: 001538 | B57: Schützengarten Black Orange 33 cl EW Miniharass | C57: 1/Flasche | D57: 2.35 | F57: 0 | G57: 0 | H57: 0
A58: 001539 | B58: Schützengarten Craft Beer-Box 6x33 cl EW | C58: 1/Karton | D58: 14.4 | F58: 0 | G58: 0 | H58: 0
A59: 001540 | B59: Jubiläum Geschenk-Set Sud 1779 75 cl | C59: 1/Karton | D59: 13.5 | F59: 0 | G59: 0 | H59: 0
A60: 001541 | B60: Schützengarten Sud 1779 50 L KEG | C60: 1/Liter | D60: 5.9 | F60: 0 | G60: 0 | H60: 0
A61: 001542 | B61: Schützengarten Sud 1779 20 L Container | C61: 1/Liter | D61: 5.9 | F61: 0 | G61: 0 | H61: 0
A62: 001543 | B62: Schützengarten Sud 1779 6x33 cl EW KT | C62: 1/Flasche | D62: 2.4 | F62: 0 | G62: 0 | H62: 0
A63: 001544 | B63: Schützengarten Sud 1779 33 cl EW Miniharass | C63: 1/Flasche | D63: 2.35 | F63: 0 | G63: 0 | H63: 0
A64: 001545 | B64: Craft Bier Display ass. 384 x 33 cl EW | C64: 1/Flasche | D64: 2.4 | F64: 0 | G64: 0 | H64: 0
A65: 001546 | B65: Schützengarten Vadian Pale Ale 6x33 cl EW KT | C65: 1/Flasche | D65: 2.4 | F65: 0 | G65: 0 | H65: 0
A66: 001547 | B66: Schützengarten Vadian Pale Ale 33 cl EW Miniharass | C66: 1/Flasche | D66: 2.35 | F66: 0 | G66: 0 | H66: 0
A67: 001548 | B67: Gallus 612 Old Style Ale 33 cl EW Miniharass | C67: 1/Flasche | D67: 2.35 | F67: 0 | G67: 0 | H67: 0
A68: 001549 | B68: Gallus 612 Old Style Ale 6x33 cl EW Karton | C68: 1/Flasche | D68: 2.4 | F68: 0 | G68: 0 | H68: 0
A69: 001550 | B69: Gallus 612 Old Style Ale 50 cl EW | C69: 1/Flasche | D69: 3.8 | F69: 0 | G69: 0 | H69: 0
A70: 001551 | B70: Gallus 612 Old Style Ale 4x50 cl EW Kart | C70: 1/Flasche | D70: 3.9 | F70: 0 | G70: 0 | H70: 0
A71: 001552 | B71: Gallus 612 3 Fl & 1 Glas 50 cl EW Kart | C71: 1/Flasche | D71: 3.9 | F71: 0 | G71: 0 | H71: 0
A72: 001553 | B72: Gallus 612 Old Style Ale 20 L Container | C72: 1/Liter | D72: 5.9 | F72: 0 | G72: 0 | H72: 0
A73: 001554 | B73: India Pale Ale Spezialabfüllung 24x33 cl EW | C73: 1/Flasche | D73: 2.35 | F73: 0 | G73: 0 | H73: 0
A74: 001555 | B74: Schützengarten India Pale Ale 6x33 cl EW Karton | C74: 1/Flasche | D74: 2.4 | F74: 0 | G74: 0 | H74: 0
A75: 001556 | B75: Schützengarten India Pale Ale 33 cl EW Miniharass | C75: 1/Flasche | D75: 2.35 | F75: 0 | G75: 0 | H75: 0
A76: 001557 | B76: Schützengarten India Pale Ale 20 L Container | C76: 1/Liter | D76: 5.9 | F76: 0 | G76: 0 | H76: 0
A77: 001558 | B77: Schützengarten Swiss Stout 6x33 cl EW Karton | C77: 1/Flasche | D77: 2.4 | F77: 0 | G77: 0 | H77: 0
A78: 001559 | B78: Schützengarten Swiss Stout 33 cl EW Miniharass | C78: 1/Flasche | D78: 2.35 | F78: 0 | G78: 0 | H78: 0
A79: 001560 | B79: Schützengarten Swiss Stout 20 L Container | C79: 1/Liter | D79: 5.9 | F79: 0 | G79: 0 | H79: 0
A80: 001561 | B80: Craft Bier Display 3 x 15 x 6 x 33 cl EW | C80: 1/Flasche | D80: 2.4 | F80: 0 | G80: 0 | H80: 0
A81: 001562 | B81: San Martino Display ass. 270 x 33 cl EW | C81: 1/Stück | D81: 648 | F81: 0 | G81: 0 | H81: 0
A82: 001563 | B82: Edelspez 2,8 20 L Container | C82: 1/Liter | D82: 4.35 | F82: 0 | G82: 0 | H82: 0
A83: 001564 | B83: Biermisch Display 3 x 15 x 6 x 33 cl EW | C83: 1/Flasche | D83: 1.425 | F83: 0 | G83: 0 | H83: 0
A84: 001565 | B84: Edelspez 2,8 50 cl MW | C84: 1/Flasche | D84: 1.77 | F84: 0 | G84: 0 | H84: 0
A85: 001566 | B85: San Martino Beer Fan Box ass. 4x33 cl EW | C85: 1/Karton | D85: 14.9 | F85: 0 | G85: 0 | H85: 0
A86: 001567 | B86: Edelspez 2,8 50 cl MW Display | C86: 1/Flasche | D86: 1.77 | F86: 0 | G86: 0 | H86: 0
A87: 001568 | B87: FC SG 140 Jahre Jubiläum 6x33 cl EW | C87: 1/Karton | D87: 19.95 | F87: 0 | G87: 0 | H87: 0
A88: 001569 | B88: Churfirstenbier 33 cl MW | C88: 1/Flasche | D88: 1.7 | F88: 0 | G88: 0 | H88: 0
A89: 001570 | B89: San Martino Maroni Bier 20 L Cont. | C89: 1/Liter | D89: 5.65 | F89: 0 | G89: 0 | H89: 0
A90: 001572 | B90: BSM Brauwerk Vollbier 20 L Container | C90: 1/Liter | D90: 4.99 | F90: 0 | G90: 0 | H90: 0
A91: 001573 | B91: La Passita Swiss Grape Ale 24 x 33 cl EW | C91: 1/Flasche | D91: 2.6 | F91: 0 | G91: 0 | H91: 0
A92: 001574 | B92: Bad Attitude Hobo White IPA 20 L Cont. | C92: 1/Liter | D92: 5.9 | F92: 0 | G92: 0 | H92: 0
A93: 001575 | B93: San Martino La Bella 20 L Container | C93: 1/Liter | D93: 5.65 | F93: 0 | G93: 0 | H93: 0
A94: 001576 | B94: Säntisbier 33 cl MW | C94: 1/Flasche | D94: 1.7 | F94: 0 | G94: 0 | H94: 0
A95: 001577 | B95: Schwarzer Bär Dunkelbier 33 cl MW | C95: 1/Flasche | D95: 1.7 | F95: 0 | G95: 0 | H95: 0
A96: 001578 | B96: Schützengarten Low Carb Alu-Fl. 37,5 cl | C96: 1/Flasche | D96: 2.45 | F96: 0 | G96: 0 | H96: 0
A97: 001579 | B97: Ticino Beer Box ass. 6x33 cl EW | C97: 1/Karton | D97: 14.9 | F97: 0 | G97: 0 | H97: 0
A98: 001581 | B98: San Martino La Bella 6x33cl EW Karton | C98: 1/Flasche | D98: 2.4 | F98: 0 | G98: 0 | H98: 0
A99: 001582 | B99: Schützengarten Low Carb 20 L Container | C99: 1/Liter | D99: 5.6 | F99: 0 | G99: 0 | H99: 0
A100: 001583 | B100: Bad Attitude Hobo White IPA 6x33 cl EW | C100: 1/Flasche | D100: 2.6 | F100: 0 | G100: 0 | H100: 0
A101: 001584 | B101: Bad Attitude Dude 6x33 cl EW Karton | C101: 1/Flasche | D101: 2.6 | F101: 0 | G101: 0 | H101: 0
A102: 001585 | B102: Säntisbier 50 cl MW | C102: 1/Flasche | D102: 1.92 | F102: 0 | G102: 0 | H102: 0
A103: 001586 | B103: Säntisbier 8x33 cl EW Karton | C103: 1/Flasche | D103: 1.6 | F103: 0 | G103: 0 | H103: 0
A104: 001587 | B104: Bad Attitude Kurt 6x33 cl EW Karton | C104: 1/Flasche | D104: 2.5 | F104: 0 | G104: 0 | H104: 0
A105: 001588 | B105: Bad Attitude Dude 20 L Container | C105: 1/Liter | D105: 5.9 | F105: 0 | G105: 0 | H105: 0
A106: 001589 | B106: Bad Attitude Kurt 20 L Container | C106: 1/Liter | D106: 5.8 | F106: 0 | G106: 0 | H106: 0
A107: 001591 | B107: San Martino La Helles 20 L Container | C107: 1/Liter | D107: 5.65 | F107: 0 | G107: 0 | H107: 0
A108: 001592 | B108: Schwarzer Bär Dunkelbier 20 L Container | C108: 1/Liter | D108: 4.5 | F108: 0 | G108: 0 | H108: 0
A109: 001593 | B109: San Martino La Rossa 20 L Container | C109: 1/Liter | D109: 5.65 | F109: 0 | G109: 0 | H109: 0
A110: 001594 | B110: Schwarzer Bär Dunkelbier 50 cl MW | C110: 1/Flasche | D110: 1.96 | F110: 0 | G110: 0 | H110: 0
A111: 001595 | B111: San Martino La Nostra 4x6er 50 cl Dosen | C111: 1/Dose | D111: 2.5 | F111: 0 | G111: 0 | H111: 0
A112: 001596 | B112: Schwarzer Bär Dunkelbier 8x33 cl EW Kart | C112: 1/Flasche | D112: 1.57 | F112: 0 | G112: 0 | H112: 0
A113: 001597 | B113: San Martino La Helles 6x33 cl EW Karton | C113: 1/Flasche | D113: 2.4 | F113: 0 | G113: 0 | H113: 0
A114: 001598 | B114: San Martino La Nostra 6x33 cl EW Karton | C114: 1/Flasche | D114: 2.4 | F114: 0 | G114: 0 | H114: 0
A115: 001599 | B115: San Martino La Rossa 6x33 cl EW Karton | C115: 1/Flasche | D115: 2.4 | F115: 0 | G115: 0 | H115: 0
A116: 001600 | B116: San Martino La Nostra 20 L Container | C116: 1/Liter | D116: 5.6 | F116: 0 | G116: 0 | H116: 0
A117: 001601 | B117: Boxer Old Lager 50 cl MW | C117: 1/Flasche | D117: 1.9 | F117: 0 | G117: 0 | H117: 0
A118: 001603 | B118: Eichhof Lemon 33 cl MW | C118: 1/Flasche | D118: 1.75 | F118: 0 | G118: 0 | H118: 0
A119: 001604 | B119: Cardinal Draft 33 cl MW | C119: 1/Flasche | D119: 1.75 | F119: 0 | G119: 0 | H119: 0
A120: 001605 | B120: Birra Moretti 24 x 33 cl EW | C120: 1/Flasche | D120: 1.6 | F120: 0 | G120: 0 | H120: 0
A121: 001607 | B121: Eichhof Lager 58 cl MW | C121: 1/Flasche | D121: 2.35 | F121: 0 | G121: 0 | H121: 0
A122: 001608 | B122: Eichhof Braugold 33 cl MW | C122: 1/Flasche | D122: 1.8 | F122: 0 | G122: 0 | H122: 0
A123: 001609 | B123: Falken Festbier 20 L Container | C123: 1/Liter | D123: 4 | F123: 0 | G123: 0 | H123: 0
A124: 001610 | B124: Feldschlösschen Lager hell 10 x 50 cl MW | C124: 1/Flasche | D124: 2 | F124: 0 | G124: 0 | H124: 0
A125: 001611 | B125: Eichhof Lager hell 20 L Container | C125: 1/Liter | D125: 3.9 | F125: 0 | G125: 0 | H125: 0
A126: 001612 | B126: Eichhof Lager hell 50 cl MW | C126: 1/Flasche | D126: 2.1 | F126: 0 | G126: 0 | H126: 0
A127: 001613 | B127: Eichhof Lager Hell Dose 50 cl | C127: 1/Dose | D127: 2.1 | F127: 0 | G127: 0 | H127: 0
A128: 001614 | B128: Sierra Nevada Pale Ale 35 cl EW | C128: 1/Flasche | D128: 3.3 | F128: 0 | G128: 0 | H128: 0
A129: 001617 | B129: Feldschlösschen Hopfenperle 33 cl MW | C129: 1/Flasche | D129: 1.7 | F129: 0 | G129: 0 | H129: 0
A130: 001619 | B130: Appenzeller Brandlöscher Bügel 33 cl MW | C130: 1/Flasche | D130: 1.85 | F130: 0 | G130: 0 | H130: 0
A131: 001620 | B131: Feldschlösschen Lager Hell 20 L Cont. | C131: 1/Liter | D131: 4 | F131: 0 | G131: 0 | H131: 0
A132: 001622 | B132: Feldschlösschen Lager hell 50 cl MW | C132: 1/Flasche | D132: 2 | F132: 0 | G132: 0 | H132: 0
A133: 001623 | B133: Feldschlösschen Lager hell 50 cl Dosen | C133: 1/Dose | D133: 2.1 | F133: 0 | G133: 0 | H133: 0
A134: 001624 | B134: FS Lager Hell Mini 33 cl MW | C134: 1/Flasche | D134: 1.7 | F134: 0 | G134: 0 | H134: 0
A135: 001626 | B135: Birra Moretti Baffo d'Oro 33 cl EW | C135: 1/Flasche | D135: 2 | F135: 0 | G135: 0 | H135: 0
A136: 001627 | B136: Haldengut Haldenkrone 20 L Container | C136: 1/Liter | D136: 4.4 | F136: 0 | G136: 0 | H136: 0
A137: 001628 | B137: Haldengut Haldenkrone 33 cl MW | C137: 1/Flasche | D137: 1.75 | F137: 0 | G137: 0 | H137: 0
A138: 001629 | B138: Haldengut Lager hell 20 L Container | C138: 1/Liter | D138: 4.1 | F138: 0 | G138: 0 | H138: 0
A139: 001630 | B139: Haldengut Lager hell 58 cl MW | C139: 1/Flasche | D139: 1.35 | F139: 0 | G139: 0 | H139: 0
A140: 001631 | B140: Ittinger Amber 33 cl MW | C140: 1/Flasche | D140: 2.2 | F140: 0 | G140: 0 | H140: 0
A141: 001632 | B141: Ittinger Amber 33 cl MW Miniharass | C141: 1/Flasche | D141: 2.2 | F141: 0 | G141: 0 | H141: 0
A142: 001633 | B142: Appenzeller Weizenbier Bügel 33 cl MW | C142: 1/Flasche | D142: 1.9 | F142: 0 | G142: 0 | H142: 0
A143: 001634 | B143: Appenzeller Quöllfrisch 15er Harass 33 cl MW | C143: 1/Flasche | D143: 1.85 | F143: 0 | G143: 0 | H143: 0
A144: 001635 | B144: Appenzeller Quöllfrisch hell 10x33 cl EW | C144: 1/Flasche | D144: 1.58 | F144: 0 | G144: 0 | H144: 0
A145: 001636 | B145: Appenzeller Quöllfrisch trüb 33 cl MW | C145: 1/Flasche | D145: 1.85 | F145: 0 | G145: 0 | H145: 0
A146: 001637 | B146: Appenzeller Naturperle Bio 50 cl MW | C146: 1/Flasche | D146: 2.2 | F146: 0 | G146: 0 | H146: 0
A147: 001639 | B147: Appenzeller Holzfass-Bier 20er 33 cl MW | C147: 1/Flasche | D147: 2.05 | F147: 0 | G147: 0 | H147: 0
A148: 001640 | B148: Appenzeller Quöllfrisch hell 10x33 cl EW | C148: 1/Flasche | D148: 1.39 | F148: 0 | G148: 0 | H148: 0
A149: 001641 | B149: Appenzeller Quöllfrisch trüb 20 L Cont. | C149: 1/Liter | D149: 4.45 | F149: 0 | G149: 0 | H149: 0
A150: 001642 | B150: Appenzeller Quöllfrisch trüb 50 cl MW | C150: 1/Flasche | D150: 2.2 | F150: 0 | G150: 0 | H150: 0
A151: 001644 | B151: Appenzeller Vollmond Bier hell 33 cl MW | C151: 1/Flasche | D151: 2.05 | F151: 0 | G151: 0 | H151: 0
A152: 001645 | B152: Birra Moretti La Rossa 33 cl EW | C152: 1/Flasche | D152: 2 | F152: 0 | G152: 0 | H152: 0
A153: 001646 | B153: Appenzeller Weizenbier 50 cl MW | C153: 1/Flasche | D153: 2.25 | F153: 0 | G153: 0 | H153: 0
A154: 001647 | B154: Birra Moretti Doppio Malto 33 cl EW | C154: 1/Flasche | D154: 2 | F154: 0 | G154: 0 | H154: 0
A155: 001649 | B155: St. Johann Hell 15er Harass 33 cl MW | C155: 1/Flasche | D155: 3.1 | F155: 0 | G155: 0 | H155: 0
A156: 001650 | B156: Feldschlösschen Lager 33 cl MW | C156: 1/Flasche | D156: 1.6 | F156: 0 | G156: 0 | H156: 0
A157: 001651 | B157: Sonnenbräu Maisbier Ribelgold 50 cl MW | C157: 1/Flasche | D157: 2.15 | F157: 0 | G157: 0 | H157: 0
A158: 001652 | B158: Hürlimann Sternbräu 33 cl MW | C158: 1/Flasche | D158: 1.6 | F158: 0 | G158: 0 | H158: 0
A159: 001653 | B159: Cardinal Blonde 20 L Container | C159: 1/Liter | D159: 3.45 | F159: 0 | G159: 0 | H159: 0
A160: 001654 | B160: Falken Panaché 50 cl MW | C160: 1/Flasche | D160: 2.15 | F160: 0 | G160: 0 | H160: 0
A161: 001655 | B161: Hülse Ice 33 cl MW | C161: 1/Flasche | D161: 2.1 | F161: 0 | G161: 0 | H161: 0
A162: 001657 | B162: Feldschlösschen Lager 10er Mini 33 cl MW | C162: 1/Flasche | D162: 1.6 | F162: 0 | G162: 0 | H162: 0
A163: 001658 | B163: Haldengut Lager hell 50 cl MW Display | C163: 1/Flasche | D163: 2.1 | F163: 0 | G163: 0 | H163: 0
A164: 001659 | B164: Haldengut Lager hell 10x33 cl EW Kart | C164: 1/Flasche | D164: 1.45 | F164: 0 | G164: 0 | H164: 0
A165: 001660 | B165: Dunkler Bügel 35 cl MW | C165: 1/Flasche | D165: 2.5 | F165: 0 | G165: 0 | H165: 0
A166: 001661 | B166: Heller Bügel 35 cl MW | C166: 1/Flasche | D166: 2.5 | F166: 0 | G166: 0 | H166: 0
A167: 001662 | B167: Eichh Hubertus 33 cl MW | C167: 1/Flasche | D167: 1.75 | F167: 0 | G167: 0 | H167: 0
A168: 001664 | B168: Appenzeller Quöllfrisch trüb 10x33 cl EW | C168: 1/Flasche | D168: 1.42 | F168: 0 | G168: 0 | H168: 0
A169: 001665 | B169: Hürlimann Lager 33 cl MW | C169: 1/Flasche | D169: 1.6 | F169: 0 | G169: 0 | H169: 0
A170: 001666 | B170: Einsiedler Maisgold 33 cl PET Harass | C170: 1/Flasche | D170: 2.3 | F170: 0 | G170: 0 | H170: 0
A171: 001667 | B171: Einsiedler Dinkel Bier 35 cl MW | C171: 1/Flasche | D171: 1.7 | F171: 0 | G171: 0 | H171: 0
A172: 001669 | B172: Einsiedler Maisgold 33 cl MW | C172: 1/Flasche | D172: 1.5 | F172: 0 | G172: 0 | H172: 0
A173: 001671 | B173: Feldschlösschen Dunkel 33 cl MW | C173: 1/Flasche | D173: 1.65 | F173: 0 | G173: 0 | H173: 0
A174: 001672 | B174: Appenz. Quöllfrisch hopfig herb 33 cl EW | C174: 1/Flasche | D174: 1.8 | F174: 0 | G174: 0 | H174: 0
A175: 001674 | B175: Feldschlösschen Hopfenperle 33 cl Dosen | C175: 1/Dose | D175: 1.8 | F175: 0 | G175: 0 | H175: 0
A176: 001675 | B176: Feldschlösschen Partyfass 5 L | C176: 1/Partyfass | D176: 22.9 | F176: 0 | G176: 0 | H176: 0
A177: 001676 | B177: Brooklyn East IPA 35,5 cl EW | C177: 1/Flasche | D177: 2.7 | F177: 0 | G177: 0 | H177: 0
A178: 001678 | B178: Cardinal Blonde 50 cl MW | C178: 1/Flasche | D178: 1.95 | F178: 0 | G178: 0 | H178: 0
A179: 001679 | B179: Einsiedler Lager 33 cl PET Harass | C179: 1/Flasche | D179: 2.2 | F179: 0 | G179: 0 | H179: 0
A180: 001682 | B180: Appenzeller Quöllfrisch Partyfass 5 L | C180: 1/Partyfass | D180: 21.9 | F180: 0 | G180: 0 | H180: 0
A181: 001684 | B181: Haldengut Lager hell 50 cl Dosen | C181: 1/Dose | D181: 2 | F181: 0 | G181: 0 | H181: 0
A182: 001685 | B182: Appenzeller Naturperle Bio 20 L Cont. | C182: 1/Liter | D182: 4.2 | F182: 0 | G182: 0 | H182: 0
A183: 001687 | B183: Hürlimann Lager hell 50 cl MW | C183: 1/Flasche | D183: 1.9 | F183: 0 | G183: 0 | H183: 0
A184: 001688 | B184: Falken Eidgenoss Bügel 33 cl MW | C184: 1/Flasche | D184: 1.9 | F184: 0 | G184: 0 | H184: 0
A185: 001689 | B185: Feldschlösschen Braufrisch 20 L Cont. | C185: 1/Liter | D185: 4.6 | F185: 0 | G185: 0 | H185: 0
A186: 001690 | B186: Ittinger Amber 20 L Container | C186: 1/Liter | D186: 5.15 | F186: 0 | G186: 0 | H186: 0
A187: 001691 | B187: Appenzeller Bier Légère 50 cl MW | C187: 1/Flasche | D187: 1.95 | F187: 0 | G187: 0 | H187: 0
A188: 001692 | B188: Hop House Guinness 35,5 cl EW | C188: 1/Flasche | D188: 3.1 | F188: 0 | G188: 0 | H188: 0
A189: 001693 | B189: TurBr Goldsprint 33 cl MW | C189: 1/Flasche | D189: 1.45 | F189: 0 | G189: 0 | H189: 0
A190: 001694 | B190: TurBr Weissbier 33 cl MW | C190: 1/Flasche | D190: 1.45 | F190: 0 | G190: 0 | H190: 0
A191: 001695 | B191: Feldschlösschen Braufrisch 33 cl MW Bügel | C191: 1/Flasche | D191: 1.85 | F191: 0 | G191: 0 | H191: 0
A192: 001696 | B192: Feldschlösschen Braufrisch 10 x 33 cl EW | C192: 1/Flasche | D192: 1.49 | F192: 0 | G192: 0 | H192: 0
A193: 001697 | B193: Feldschlösschen Braufrisch 50 cl Dosen | C193: 1/Dose | D193: 2.2 | F193: 0 | G193: 0 | H193: 0
A194: 001698 | B194: Feldschlösschen Frühlingsbier 20 L Cont. | C194: 1/Liter | D194: 4.4 | F194: 0 | G194: 0 | H194: 0
A195: 001699 | B195: Brooklyn Defender IPA 6x4er 35,5 cl EW | C195: 1/Flasche | D195: 3.45 | F195: 0 | G195: 0 | H195: 0
A196: 001700 | B196: San Martino Maroni Bier 6x33 cl EW Karton | C196: 1/Flasche | D196: 2.4 | F196: 0 | G196: 0 | H196: 0
A197: 001701 | B197: Appenzeller Vintage Sour Beer 33 cl EW | C197: 1/Flasche | D197: 3.95 | F197: 0 | G197: 0 | H197: 0
A198: 001702 | B198: Feldschlösschen Weizen 33 cl MW | C198: 1/Flasche | D198: 1.75 | F198: 0 | G198: 0 | H198: 0
A199: 001703 | B199: Eve Strawberry Mojito 6x4er 27,5 cl EW | C199: 1/Flasche | D199: 2.7 | F199: 0 | G199: 0 | H199: 0
A200: 001704 | B200: Eve Strawberry Mojito 27,5 cl MW | C200: 1/Flasche | D200: 1.95 | F200: 0 | G200: 0 | H200: 0
... 3785 more rows
